Workbook

Sheet START

Sheet Instructions
D2: 2020
X4: Yes
X5: No
W7: Type of Entities Range:
X8: Parent Municipality
X9: Consolidated Information
F14: START
F15: Instructions
F16: Template names
F17: Lookup and lists | W17: MTREF Range: | X17: 2013
F18: Org structure | X18: 2014
F19: Contacts | X19: 2015
F20: A1-Sum | X20: 2016
F21: A2-FinPerf SC | X21: 2017
F22: A2A | X22: 2018
F23: A3-FinPerf V | X23: 2019
F24: A3A | X24: 2020
F25: A4-FinPerf RE | X25: 2021
F26: A5-Capex | X26: 2022
F27: A5A | X27: 2023
F28: A6-FinPos | X28: 2024
F29: A7-CFlow | X29: 2025
F30: A8-ResRecon | X30: 2026
F31: A9-Asset | X31: 2027
F32: A10-SerDel
F33: SA1 | W33: MTREF Linked: | X33: 9
F34: SA2 | W34: MTREF: | X34: =INDEX(X17:X26,X33,1) -> 2021
F35: SA3
F36: SA4 | W36: Fin Year: | X36: =MTREF&"/"&RIGHT(MTREF,2)+1 -> 2021/22
F37: SA5
F38: SA6
F39: SA7
F40: SA8
F41: SA9
F42: SA10
F43: SA11
F44: SA12a
F45: SA12b
F46: SA13a
F47: SA13b
F48: SA14
F49: SA15
F50: SA16
F51: SA17
F52: SA18
F53: SA19
F54: SA20
F55: SA21
F56: SA22
F57: SA23
F58: SA24
F59: SA25
F60: SA26
F61: SA27
F62: SA28
F63: SA29
F64: SA30
F65: SA31
F66: SA32
F67: SA33
F68: SA34a
F69: SA34b
F70: SA34c
F71: SA34d
F72: SA34e
F73: SA35
F74: SA36
F75: SA37
F76: SA38
F77: LGDB_EXPORT

Sheet Template names (hidden)
A1: Common sheet headings
A2: Head1 | B2: =HLOOKUP(MTREF,Headings,2) -> 2019/20 | C2: Prior year -1
A3: Head1A | B3: =HLOOKUP(MTREF,Headings,3) -> 2018/19 | C3: Prior year -2
A4: Head1B | B4: =HLOOKUP(MTREF,Headings,4) -> 2017/18 | C4: Prior year -3
A5: Head2 | B5: =HLOOKUP(MTREF,Headings,5) -> Current Year 2020/21 | C5: Year in which budget is being prepared
A6: Head2A | B6: =HLOOKUP(MTREF,Headings,6) -> 2020/21 | C6: Year in which budget is being prepared
A7: Head3 | B7: =HLOOKUP(MTREF,Headings,7) -> 2021/22 Medium Term Revenue & Expenditure Framework | C7: MTREF name
A8: Head4 | B8: LTFS | C8: Long term financial strategy
A9: Head5 | B9: Audited Outcome
A10: Head5A | B10: Outcome
A11: Head5B | B11: Pre-audit outcome
A12: Head6 | B12: Original Budget
A13: Head7 | B13: Adjusted Budget
A14: Head8 | B14: Full Year Forecast
A15: Head9 | B15: =HLOOKUP(MTREF,Headings,8) -> Budget Year 2021/22 | C15: 1st year of MTREF | D15: Year1
A16: Head10 | B16: =HLOOKUP(MTREF,Headings,9) -> Budget Year +1 2022/23 | C16: 2nd year of MTREF | D16: Year2
A17: Head11 | B17: =HLOOKUP(MTREF,Headings,10) -> Budget Year +2 2023/24 | C17: 3rd year of MTREF | D17: Year3
A18: Head12 | B18: =HLOOKUP(MTREF,Headings,11) -> Forecast 2024/25 | C18: 1st yr of long term forecast | D18: Year4
A19: Head13 | B19: =HLOOKUP(MTREF,Headings,12) -> Forecast 2025/26 | C19: Next yr of long term forecast | D19: Year5
A20: Head14 | B20: =HLOOKUP(MTREF,Headings,13) -> Forecast 2026/27 | C20: Next yr of long term forecast | D20: Year6
A21: Head15 | B21: =HLOOKUP(MTREF,Headings,14) -> Forecast 2027/28 | C21: Next yr of long term forecast | D21: Year7
A22: Head16 | B22: =HLOOKUP(MTREF,Headings,15) -> Forecast 2028/29 | C22: Next yr of long term forecast | D22: Year8
A23: Head17 | B23: =HLOOKUP(MTREF,Headings,16) -> Forecast 2029/30 | C23: Next yr of long term forecast | D23: Year9
A24: Head18 | B24: =HLOOKUP(MTREF,Headings,17) -> Forecast 2030/31 | C24: Next yr of long term forecast | D24: Year10
A25: Head19 | B25: =HLOOKUP(MTREF,Headings,18) -> Forecast 2031/32 | C25: Next yr of long term forecast | D25: Year11
A26: Head20 | B26: =HLOOKUP(MTREF,Headings,19) -> Forecast 2032/33 | C26: Next yr of long term forecast | D26: Year12
A27: Head21 | B27: =HLOOKUP(MTREF,Headings,20) -> Forecast 2033/34 | C27: Next yr of long term forecast | D27: Year13
A28: Head22 | B28: =HLOOKUP(MTREF,Headings,21) -> Forecast 2034/35 | C28: Next yr of long term forecast | D28: Year14
A29: Head23 | B29: =HLOOKUP(MTREF,Headings,22) -> Forecast 2035/36 | C29: Next yr of long term forecast | D29: Year15
A30: Head24 | B30: Description
A31: Head25
A32: Head26 | B32: Vote Description
A33: Head27 | B33: Ref
A34: Head27a | B34: References
A35: Head28 | B35: Surplus/(Deficit) for the year | D35: Result
A36: Head29 | B36: =HLOOKUP(MTREF,Headings,23) -> Annual target 2021/22
A37: Head30 | B37: =HLOOKUP(MTREF,Headings,24) -> Revised target 2021/22
A38: Head31 | B38: Quarter ended 30 September
A39: Head32 | B39: Quarter ended 31 December
A40: Head33 | B40: Quarter ended 31 March
A41: Head34 | B41: Quarter ended 30 June
A42: Head35 | B42: Variance explanation
A43: Head36 | B43: YTD Actual 31 Dec
A44: Head37 | B44: YTD Budget 31 Dec
A45: Head38 | B45: Monthly actual
A46: Head39 | B46: YTD actual
A47: Head40 | B47: YTD budget
A48: Head41 | B48: YTD variance
A49: Head42 | B49: Surplus/ (Deficit) for the yr/period
A50: Head43 | B50: =Head3&" Summary" -> 2021/22 Medium Term Revenue & Expenditure Framework Summary
A51: Head44 | B51: 2001 Census
A52: Head45 | B52: 2011 Census
A53: Head46 | B53: - Adjustments Budget - January 2007
A54: Head47 | B54: Previous target year to complete
A55: Head48 | B55: Present value
A56: Head49
A57: Head50 | B57: Other Adjusts.
A58: Head51 | B58: Accum. Funds
A59: Head52 | B59: Multi-year capital
A60: Head53 | B60: Unfore. Unavoid.
A61: Head54 | B61: Prior Adjusted
A62: Head55 | B62: Nat. or Prov. Govt
A63: Head56 | B63: Total Adjusts.
A64: SFPerf1 | B64: Budgeted Financial Performance
A65: SFPerf2 | B65: Forecast Financial Performance
A66: SFPos1 | B66: Budgeted Financial Position
A67: SFPos2 | B67: Forecast Financial Position
A68: Cash1 | B68: Budget Cash Flow
A69: Cash2 | B69: Forecast Cash Flow
A70: RandM | B70: Expenditure includes repairs & maintenance of R'000
A71: Depart1 | B71: Department 1 - | D71: DEP1
A72: Depart2 | B72: Department 2 - | D72: DEP2
A73: Depart3 | B73: Department 3 - | D73: DEP3
A74: Depart4 | B74: Department 4 - | D74: DEP4
A75: Depart5 | B75: Department 5 - | D75: DEP5
A76: Depart6 | B76: Department 6 - | D76: DEP6
A77: Depart7 | B77: Department 7 - | D77: DEP7
A78: Depart8 | B78: Department 8 - | D78: DEP8
A79: Depart9 | B79: Department 9 - | D79: DEP9
A80: Depart10 | B80: Department 10 - | D80: DEP10
A81: Depart11 | B81: Department 11 - | D81: DEP11
A82: Depart12 | B82: Department 12 - | D82: DEP12
A83: Depart13 | B83: Department 13 - | D83: DEP13
A84: Depart14 | B84: Department 14 - | D84: DEP14
A87: Base year of forecast column selection names
A88: Choose | B88: ACT
B89: APP
B90: ADJ
A92: Standard nomenclature
A93: Muni | B93: ='Lookup and lists'!B28 -> Choose name from list
A94: Municipal Entities | B94: 2 | C94: Type of report: | D94: 1
A95: =IF((MuniEntities=1)*(MuniType=2),"YES","NO") -> NO | B95: Does this municipality have entities (consolidated budget and entity budgets required)? YES/NO
A96: Entity 1 | B96: (Pty) Ltd Example 1 - Municipal entity - | D96: Ent1
A97: Entity 2 | B97: (Pty) Ltd Example 2 - Municipal entity - | D97: Ent2
A98: Entity 3 | B98: Municipal Entity Example 3 | D98: Ent3
A99: Budget approval tables | C99: Chart x-ref | D99: Sch/Tab/Ch | E99: Alternative for municipalities without entities | F99: Alternative for municipalities without entities
B100: =IF(Consolques="YES",E100,F100) -> Table A1 Budget Summary | D100: Table A1 | E100: =D100&"Consolidated Budget Summary" -> Table A1 Consolidated Budget Summary | F100: =D100&"Budget Summary" -> Table A1 Budget Summary
B101: Table A2 Budgeted Financial Performance (revenue and expenditure by functional classification) | C101: Charts 5, 6 | D101: Table A2 | E101: =D101&"Consolidated Budgeted Financial Performance (revenue and expenditure by functional classification)" -> Table A2 Consolidated Budgeted Financial Performance (revenue and expenditure by functional classification) | F101: =D101&"Budgeted Financial Performance (revenue and expenditure by functional classification)" -> Table A2 Budgeted Financial Performance (revenue and expenditure by functional classification)
B102: Table A3 Budgeted Financial Performance (revenue and expenditure by municipal vote) | D102: Table A3 | E102: =D102&"Consolidated Budgeted Financial Performance (revenue and expenditure by municipal vote)" -> Table A3 Consolidated Budgeted Financial Performance (revenue and expenditure by municipal vote) | F102: =D102&"Budgeted Financial Performance (revenue and expenditure by municipal vote)" -> Table A3 Budgeted Financial Performance (revenue and expenditure by municipal vote)
B103: Table A4 Budgeted Financial Performance (revenue and expenditure) | C103: Charts 1, 2, 3, 4 | D103: Table A4 | E103: =D103&"Consolidated Budgeted Financial Performance (revenue and expenditure)" -> Table A4 Consolidated Budgeted Financial Performance (revenue and expenditure) | F103: =D103&"Budgeted Financial Performance (revenue and expenditure)" -> Table A4 Budgeted Financial Performance (revenue and expenditure)
B104: Table A5 Budgeted Capital Expenditure by vote, functional classification and funding | C104: Charts 7, 8, 9, 10, 20 | D104: Table A5 | E104: =D104&"Consolidated Budgeted Capital Expenditure by vote, functional classification and funding" -> Table A5 Consolidated Budgeted Capital Expenditure by vote, functional classification and funding | F104: =D104&"Budgeted Capital Expenditure by vote, functional classification and funding" -> Table A5 Budgeted Capital Expenditure by vote, functional classification and funding
B105: Table A6 Budgeted Financial Position | D105: Table A6 | E105: =D105&"Consolidated Budgeted Financial Position" -> Table A6 Consolidated Budgeted Financial Position | F105: =D105&"Budgeted Financial Position" -> Table A6 Budgeted Financial Position
B106: Table A7 Budgeted Cash Flows | D106: Table A7 | E106: =D106&"Consolidated Budgeted Cash Flows" -> Table A7 Consolidated Budgeted Cash Flows | F106: =D106&"Budgeted Cash Flows" -> Table A7 Budgeted Cash Flows
B107: Table A8 Cash backed reserves/accumulated surplus reconciliation | D107: Table A8 | E107: =D107&"Consolidated Cash backed reserves/accumulated surplus reconciliation" -> Table A8 Consolidated Cash backed reserves/accumulated surplus reconciliation | F107: =D107&"Cash backed reserves/accumulated surplus reconciliation" -> Table A8 Cash backed reserves/accumulated surplus reconciliation
B108: Table A9 Asset Management | D108: Table A9 | E108: =D108&"Consolidated Asset Management" -> Table A9 Consolidated Asset Management | F108: =D108&"Asset Management" -> Table A9 Asset Management
B109: Table A10 Basic service delivery measurement | D109: Table A10 | E109: =D109&"Consolidated basic service delivery measurement" -> Table A10 Consolidated basic service delivery measurement | F109: =D109&"Basic service delivery measurement" -> Table A10 Basic service delivery measurement
A110: Supportinging Tables to the Budget Approval Tables | C110: =$C$99 -> Chart x-ref | D110: =$D$99 -> Sch/Tab/Ch
A111: Supporting Table SA1 | B111: =A111&" Supportinging detail to 'Budgeted Financial Performance'" -> Supporting Table SA1 Supportinging detail to 'Budgeted Financial Performance'
A112: Supporting Table SA2 | B112: =IF(Consolques="YES",E112,F112) -> Supporting Table SA2 Matrix Financial Performance Budget (revenue source/expenditure type and dept.) | E112: =A112&"Consolidated Matrix Financial Performance Budget (revenue source/expenditure type & dept.)" -> Supporting Table SA2 Consolidated Matrix Financial Performance Budget (revenue source/expenditure type & dept.) | F112: =A112&"Matrix Financial Performance Budget (revenue source/expenditure type and dept.)" -> Supporting Table SA2 Matrix Financial Performance Budget (revenue source/expenditure type and dept.)
A113: Supporting Table SA3 | B113: =A113&"Supportinging detail to 'Budgeted Financial Position'" -> Supporting Table SA3 Supportinging detail to 'Budgeted Financial Position'
A114: Supporting Table SA4 | B114: =A114&"Reconciliation of IDP strategic objectives and budget (revenue)" -> Supporting Table SA4 Reconciliation of IDP strategic objectives and budget (revenue) | C114: Chart 11
A115: Supporting Table SA5 | B115: =A115&"Reconciliation of IDP strategic objectives and budget (operating expenditure)" -> Supporting Table SA5 Reconciliation of IDP strategic objectives and budget (operating expenditure) | C115: Chart 12
A116: Supporting Table SA6 | B116: =A116&"Reconciliation of IDP strategic objectives and budget (capital expenditure)" -> Supporting Table SA6 Reconciliation of IDP strategic objectives and budget (capital expenditure) | C116: Chart 13
A117: Supporting Table SA7 | B117: =A117&" Measureable performance objectives" -> Supporting Table SA7 Measureable performance objectives
A118: Supporting Table SA8 | B118: =A118&" Performance indicators and benchmarks" -> Supporting Table SA8 Performance indicators and benchmarks | C118: Chts 15-19
A119: Supporting Table SA9 | B119: =A119&" Social, economic and demographic statistics and assumptions" -> Supporting Table SA9 Social, economic and demographic statistics and assumptions
A120: Supporting Table SA10 | B120: =A120&" Funding measurement" -> Supporting Table SA10 Funding measurement | C120: Chart 14
A121: Supporting Table SA11 | B121: =A121&" Property rates summary" -> Supporting Table SA11 Property rates summary
A122: Supporting Table SA12a | B122: =A122&" Property rates by category (current year)" -> Supporting Table SA12a Property rates by category (current year)
A123: Supporting Table SA12b | B123: =A123&" Property rates by category (budget year)" -> Supporting Table SA12b Property rates by category (budget year)
A124: Supporting Table SA13a | B124: =A124&" Service Tariffs by category" -> Supporting Table SA13a Service Tariffs by category
A125: Supporting Table SA13b | B125: =A125&" Service Tariffs by category - explanatory" -> Supporting Table SA13b Service Tariffs by category - explanatory
A126: Supporting Table SA14 | B126: =A126&" Household bills" -> Supporting Table SA14 Household bills
A127: Supporting Table SA15 | B127: =A127&" Investment particulars by type" -> Supporting Table SA15 Investment particulars by type
A128: Supporting Table SA16 | B128: =A128&" Investment particulars by maturity" -> Supporting Table SA16 Investment particulars by maturity
A129: Supporting Table SA17 | B129: =A129&" Borrowing" -> Supporting Table SA17 Borrowing
A130: Supporting Table SA18 | B130: =A130&" Transfers and grant receipts" -> Supporting Table SA18 Transfers and grant receipts
A131: Supporting Table SA19 | B131: =A131&" Expenditure on transfers and grant programme" -> Supporting Table SA19 Expenditure on transfers and grant programme
A132: Supporting Table SA20 | B132: =A132&" Reconciliation of transfers, grant receipts and unspent funds" -> Supporting Table SA20 Reconciliation of transfers, grant receipts and unspent funds
A133: Supporting Table SA21 | B133: =A133&" Transfers and grants made by the municipality" -> Supporting Table SA21 Transfers and grants made by the municipality
A134: Supporting Table SA22 | B134: =A134&" Summary councillor and staff benefits" -> Supporting Table SA22 Summary councillor and staff benefits
A135: Supporting Table SA23 | B135: =A135&" Salaries, allowances & benefits (political office bearers/councillors/senior managers)" -> Supporting Table SA23 Salaries, allowances & benefits (political office bearers/councillors/senior managers)
A136: Supporting Table SA24 | B136: =A136&" Summary of personnel numbers" -> Supporting Table SA24 Summary of personnel numbers
A137: Supporting Table SA25 | B137: =IF(Consolques="YES",E137,F137) -> Supporting Table SA25 Budgeted monthly revenue and expenditure | E137: =A137&" Consolidated budgeted monthly revenue and expenditure" -> Supporting Table SA25 Consolidated budgeted monthly revenue and expenditure | F137: =A137&" Budgeted monthly revenue and expenditure" -> Supporting Table SA25 Budgeted monthly revenue and expenditure
A138: Supporting Table SA26 | B138: Supporting Table SA26 Budgeted monthly revenue and expenditure (municipal vote) | E138: =A138&" Consolidated budgeted monthly revenue and expenditure (municipal vote)" -> Supporting Table SA26 Consolidated budgeted monthly revenue and expenditure (municipal vote) | F138: =A138&" Budgeted monthly revenue and expenditure (municipal vote)" -> Supporting Table SA26 Budgeted monthly revenue and expenditure (municipal vote)
A139: Supporting Table SA27 | B139: Supporting Table SA27 Budgeted monthly revenue and expenditure (functional classification) | E139: =A139&" Consolidated budgeted monthly revenue and expenditure (functional classification)" -> Supporting Table SA27 Consolidated budgeted monthly revenue and expenditure (functional classification) | F139: =A139&" Budgeted monthly revenue and expenditure (functional classification)" -> Supporting Table SA27 Budgeted monthly revenue and expenditure (functional classification)
A140: Supporting Table SA28 | B140: Supporting Table SA28 Budgeted monthly capital expenditure (municipal vote) | E140: =A140&" Consolidated budgeted monthly capital expenditure (municipal vote)" -> Supporting Table SA28 Consolidated budgeted monthly capital expenditure (municipal vote) | F140: =A140&" Budgeted monthly capital expenditure (municipal vote)" -> Supporting Table SA28 Budgeted monthly capital expenditure (municipal vote)
A141: Supporting Table SA29 | B141: Supporting Table SA29 Budgeted monthly capital expenditure (functional classification) | E141: =A141&" Consolidated budgeted monthly capital expenditure (functional classification)" -> Supporting Table SA29 Consolidated budgeted monthly capital expenditure (functional classification) | F141: =A141&" Budgeted monthly capital expenditure (functional classification)" -> Supporting Table SA29 Budgeted monthly capital expenditure (functional classification)
A142: Supporting Table SA30 | B142: Supporting Table SA30 Budgeted monthly cash flow | E142: =A142&" Consolidated budgeted monthly cash flow" -> Supporting Table SA30 Consolidated budgeted monthly cash flow | F142: =A142&" Budgeted monthly cash flow" -> Supporting Table SA30 Budgeted monthly cash flow
A143: Supporting Table SA31 | B143: NOT REQUIRED - municipality does not have entities | E143: =A143&" Aggregated entity budget" -> Supporting Table SA31 Aggregated entity budget | F143: NOT REQUIRED - municipality does not have entities
A144: Supporting Table SA32 | B144: =A144&" List of external mechanisms" -> Supporting Table SA32 List of external mechanisms
A145: Supporting Table SA33 | B145: =A145&" Contracts having future budgetary implications" -> Supporting Table SA33 Contracts having future budgetary implications
A146: Supporting Table SA34a | B146: =IF(Consolques="YES",E146,F146) -> Supporting Table SA34a Capital expenditure on new assets by asset class | E146: =A146&" Consolidated capital expenditure on new assets by asset class" -> Supporting Table SA34a Consolidated capital expenditure on new assets by asset class | F146: =A146&" Capital expenditure on new assets by asset class" -> Supporting Table SA34a Capital expenditure on new assets by asset class
A147: Supporting Table SA34b | B147: Supporting Table SA34b Capital expenditure on the renewal of existing assets by asset class | E147: =A147&" Consolidated capital expenditure on the renewal of existing assets by asset class" -> Supporting Table SA34b Consolidated capital expenditure on the renewal of existing assets by asset class | F147: =A147&" Capital expenditure on the renewal of existing assets by asset class" -> Supporting Table SA34b Capital expenditure on the renewal of existing assets by asset class
A148: Supporting Table SA34c | B148: Supporting Table SA34c Repairs and maintenance expenditure by asset class | E148: =A148&" Consolidated repairs and maintenance by asset class" -> Supporting Table SA34c Consolidated repairs and maintenance by asset class | F148: =A148&" Repairs and maintenance expenditure by asset class" -> Supporting Table SA34c Repairs and maintenance expenditure by asset class
A149: Supporting Table SA34d | B149: =IF(Consolques="YES",E149,F149) -> Supporting Table SA34d Depreciation by asset class | E149: =A149&" Consolidated Depreciation by asset class" -> Supporting Table SA34d Consolidated Depreciation by asset class | F149: =A149&" Depreciation by asset class" -> Supporting Table SA34d Depreciation by asset class
A150: Supporting Table SA34e | B150: =IF(Consolques="YES",E150,F150) -> Supporting Table SA34e Capital expenditure on the upgrading of existing assets by asset class | E150: =A150&" Consolidated capital expenditure on the upgrading of existing assets by asset class" -> Supporting Table SA34e Consolidated capital expenditure on the upgrading of existing assets by asset class | F150: =A150&" Capital expenditure on the upgrading of existing assets by asset class" -> Supporting Table SA34e Capital expenditure on the upgrading of existing assets by asset class
A151: Supporting Table SA35 | B151: Supporting Table SA35 Future financial implications of the capital budget | E151: =A151&" Consolidated future financial implications of the capital budget" -> Supporting Table SA35 Consolidated future financial implications of the capital budget | F151: =A151& " Future financial implications of the capital budget" -> Supporting Table SA35 Future financial implications of the capital budget
A152: Supporting Table SA36 | B152: Supporting Table SA36 Detailed capital budget | E152: =A152&" Consolidated detailed capital budget" -> Supporting Table SA36 Consolidated detailed capital budget | F152: =A152& " Detailed capital budget" -> Supporting Table SA36 Detailed capital budget
A153: Supporting Table SA37 | B153: Supporting Table SA37 Projects delayed from previous financial year/s | E153: =A153&" Consolidated projects delayed from previous financial year/s" -> Supporting Table SA37 Consolidated projects delayed from previous financial year/s | F153: =A153& " Projects delayed from previous financial year/s" -> Supporting Table SA37 Projects delayed from previous financial year/s
A154: Supporting Table SA38 | B154: =IF(Consolques="YES",E154,F154) -> Supporting Table SA38 Detailed operational projects | E154: =A154&" Consolidated detailed operational projects" -> Supporting Table SA38 Consolidated detailed operational projects | F154: =A154& " Detailed operational projects" -> Supporting Table SA38 Detailed operational projects
A156: Budget Charts | B156: Charts | C156: Cross reference
A157: Chart A1 | B157: =A157&"Revenue by Municipal Vote" -> Chart A1 Revenue by Municipal Vote
A158: Chart A2 | B158: =A158&"Expenditure by Municipal Vote" -> Chart A2 Expenditure by Municipal Vote
A159: Chart A3 | B159: =A159&"Revenue by Standard Classification" -> Chart A3 Revenue by Standard Classification | C159: A2
A160: Chart A4 | B160: =A160&"Expenditure by Standard Classification" -> Chart A4 Expenditure by Standard Classification | C160: A2
A161: Chart A5 | B161: =A161&"Revenue by Major Source (refer 'Minor' source for 'Other Revenue' allocation" -> Chart A5 Revenue by Major Source (refer 'Minor' source for 'Other Revenue' allocation | C161: A3
A162: Chart A6 | B162: =A162&"Revenue by Minor Source (Other)" -> Chart A6 Revenue by Minor Source (Other) | C162: A3
A163: Chart A7 | B163: =A163&"Expenditure by Major Type" -> Chart A7 Expenditure by Major Type | C163: A3
A164: Chart A8 | B164: =A164&"Expenditure by Minor Type (Other)" -> Chart A8 Expenditure by Minor Type (Other) | C164: A3
A165: Chart A9 | B165: =A165&"Capital Expenditure by Municipal Vote/Appropriation (Major)" -> Chart A9 Capital Expenditure by Municipal Vote/Appropriation (Major) | C165: A5
A166: Chart A10 | B166: =A166&"Capital Expenditure by Municipal Vote/Appropriation (Minor)" -> Chart A10 Capital Expenditure by Municipal Vote/Appropriation (Minor) | C166: A5
A167: Chart A11 | B167: =A166&"Capital Expenditure by Standard Classification" -> Chart A10 Capital Expenditure by Standard Classification | C167: A5
A168: Chart A12 | B168: =A168&"Capital expenditure performance trend" -> Chart A12 Capital expenditure performance trend | C168: A5
A169: Chart A13 | B169: =A169&"Capital funding by Source" -> Chart A13 Capital funding by Source | C169: A5
A170: Chart A14 | B170: =A170&"Cash flow trend" -> Chart A14 Cash flow trend | C170: A7
A171: Chart A15 | B171: =A171&"IDP Strategic Objective - Revenue" -> Chart A15 IDP Strategic Objective - Revenue | C171: Table A4
A172: Chart A16 | B172: =A172&"IDP Strategic Objective - Expenditure" -> Chart A16 IDP Strategic Objective - Expenditure | C172: Table A5
A173: Chart A17 | B173: =A173&"IDP Strategic Objective - Capital Expenditure" -> Chart A17 IDP Strategic Objective - Capital Expenditure | C173: Table A6
A174: Chart A18 | B174: =A174&"Debt (borrowing to Total Revenue)" -> Chart A18 Debt (borrowing to Total Revenue) | C174: Table A8
A175: Chart A19 | B175: =A175&"Debtors' trend analysis" -> Chart A19 Debtors' trend analysis | C175: Table A8
A176: Chart A20 | B176: =A176&"Distribution losses" -> Chart A20 Distribution losses | C176: Table A8
A177: Chart A21 | B177: =A177&"Borrowed funding of capital expenditure" -> Chart A21 Borrowed funding of capital expenditure | C177: Table A8
A178: Chart A22 | B178: =A178&"Expenditure analysis (% of Revenue)" -> Chart A22 Expenditure analysis (% of Revenue) | C178: Table A8
A179: Chart A23 | B179: =A179&"Increases in service charges" -> Chart A23 Increases in service charges | C179: Table A10

Sheet Lookup and lists (hidden)
A1: Description | B1: 2013 | C1: 2014 | D1: 2015 | E1: 2016 | F1: 2017 | G1: 2018 | H1: 2019 | I1: 2020 | J1: 2021 | K1: 2022 | L1: 2023 | M1: 2024 | N1: 2025 | O1: 2026 | Q1: Lists | Y1: Grants: | Z1: National - opex | AA1: Provincial - opex | AB1: National - capex | AC1: Provincial - capex
A2: ='Template names'!C2 -> Prior year -1 | B2: =B1-2&"/"&RIGHT(B1,2)-1 -> 2011/12 | C2: 2012/13 | D2: 2013/14 | E2: 2014/15 | F2: 2015/16 | G2: 2016/17 | H2: 2017/18 | I2: 2018/19 | J2: =J1-2&"/"&RIGHT(J1,2)-1 -> 2019/20 | K2: 2020/21 | L2: 2021/22 | M2: 2022/23 | N2: 2023/24 | O2: 2024/25 | Q2: Yes | R2: <1 | S2: <4 | T2: Market | U2: Land & impr. | V2: Yes | W2: Uniform | X2: Yrs | Z2: Local Government Equitable Share | AA2: Health subsidy | AB2: Municipal Infrastructure Grant (MIG) | AC2: Agriculture
A3: ='Template names'!C3 -> Prior year -2 | B3: =B1-3&"/"&RIGHT(B1,2)-2 -> 2010/11 | C3: 2011/12 | D3: 2012/13 | E3: 2013/14 | F3: 2014/15 | G3: 2015/16 | H3: 2016/17 | I3: 2017/18 | J3: =J1-3&"/"&RIGHT(J1,2)-2 -> 2018/19 | K3: 2019/20 | L3: 2020/21 | M3: 2021/22 | N3: 2022/23 | O3: 2023/24 | Q3: No | R3: 1 | S3: 4 | T3: Dep.Replace | U3: Land only | V3: No | W3: Variable | X3: Mths | Z3: RSC Levy Replacement | AA3: Ambulance subsidy | AB3: Public Transport and Systems | AC3: Education
A4: ='Template names'!C4 -> Prior year -3 | B4: =B1-4&"/"&RIGHT(B1,2)-3 -> 2009/10 | C4: 2010/11 | D4: 2011/12 | E4: 2012/13 | F4: 2013/14 | G4: 2014/15 | H4: 2015/16 | I4: 2016/17 | J4: =J1-4&"/"&RIGHT(J1,2)-3 -> 2017/18 | K4: 2018/19 | L4: 2019/20 | M4: 2020/21 | N4: 2021/22 | O4: 2022/23 | R4: 2 | S4: 5 | T4: Other | U4: Other | Z4: Finance Management | AA4: Housing | AB4: Rural Transport Services and Infrastructure | AC4: Health
A5: ='Template names'!C5 -> Year in which budget is being prepared | B5: ="Current Year "& B1-1&"/"&RIGHT(B1,2) -> Current Year 2012/13 | C5: Current Year 2013/14 | D5: Current Year 2014/15 | E5: Current Year 2015/16 | F5: Current Year 2016/17 | G5: Current Year 2017/18 | H5: Current Year 2018/19 | I5: Current Year 2019/20 | J5: ="Current Year "& J1-1&"/"&RIGHT(J1,2) -> Current Year 2020/21 | K5: Current Year 2021/22 | L5: Current Year 2022/23 | M5: Current Year 2023/24 | N5: Current Year 2024/25 | O5: Current Year 2025/26 | R5: 3 | S5: 6 | Z5: Municipal Systems Improvement | AA5: Sport and Recreation | AB5: Regional Bulk Infrastructure | AC5: Housing and Local Government
A6: ='Template names'!C6 -> Year in which budget is being prepared | B6: =B1-1&"/"&RIGHT(B1,2) -> 2012/13 | C6: 2013/14 | D6: 2014/15 | E6: 2015/16 | F6: 2016/17 | G6: 2017/18 | H6: 2018/19 | I6: 2019/20 | J6: =J1-1&"/"&RIGHT(J1,2) -> 2020/21 | K6: 2021/22 | L6: 2022/23 | M6: 2023/24 | N6: 2024/25 | O6: 2025/26 | R6: 4 | S6: 6-10 | Z6: Water Services Operating Subsidy | AB6: Rural Households Infrastructure | AC6: Other Departments
A7: ='Template names'!C7 -> MTREF name | B7: =B1&"/"&RIGHT(B1,2)+1&" Medium Term Revenue & Expenditure Framework" -> 2013/14 Medium Term Revenue & Expenditure Framework | C7: 2014/15 Medium Term Revenue & Expenditure Framework | D7: 2015/16 Medium Term Revenue & Expenditure Framework | E7: 2016/17 Medium Term Revenue & Expenditure Framework | F7: 2017/18 Medium Term Revenue & Expenditure Framework | G7: 2018/19 Medium Term Revenue & Expenditure Framework | H7: 2019/20 Medium Term Revenue & Expenditure Framework | I7: 2020/21 Medium Term Revenue & Expenditure Framework | J7: =J1&"/"&RIGHT(J1,2)+1&" Medium Term Revenue & Expenditure Framework" -> 2021/22 Medium Term Revenue & Expenditure Framework | K7: 2022/23 Medium Term Revenue & Expenditure Framework | L7: 2023/24 Medium Term Revenue & Expenditure Framework | M7: 2024/25 Medium Term Revenue & Expenditure Framework | N7: 2025/26 Medium Term Revenue & Expenditure Framework | O7: 2026/27 Medium Term Revenue & Expenditure Framework | R7: 5 | S7: >10 | Z7: Energy Efficiency and Demand Management | AB7: Neighbourhood Development Partnership | AC7: Public Works, Roads, Transport
A8: ='Template names'!C15 -> 1st year of MTREF | B8: ="Budget Year "&B1&"/"&RIGHT(B1,2)+1 -> Budget Year 2013/14 | C8: Budget Year 2014/15 | D8: Budget Year 2015/16 | E8: Budget Year 2016/17 | F8: Budget Year 2017/18 | G8: Budget Year 2018/19 | H8: Budget Year 2019/20 | I8: Budget Year 2020/21 | J8: ="Budget Year "&J1&"/"&RIGHT(J1,2)+1 -> Budget Year 2021/22 | K8: Budget Year 2022/23 | L8: Budget Year 2023/24 | M8: Budget Year 2024/25 | N8: Budget Year 2025/26 | O8: Budget Year 2026/27 | R8: >5 | Z8: Integrated National Electrification Programme | AB8: 2010 FIFA World Cup Stadiums Development | AC8: Sport and Recreation
A9: ='Template names'!C16 -> 2nd year of MTREF | B9: ="Budget Year +1 "&B1+1&"/"&RIGHT(B1,2)+2 -> Budget Year +1 2014/15 | C9: Budget Year +1 2015/16 | D9: Budget Year +1 2016/17 | E9: Budget Year +1 2017/18 | F9: Budget Year +1 2018/19 | G9: Budget Year +1 2019/20 | H9: Budget Year +1 2020/21 | I9: Budget Year +1 2021/22 | J9: ="Budget Year +1 "&J1+1&"/"&RIGHT(J1,2)+2 -> Budget Year +1 2022/23 | K9: Budget Year +1 2023/24 | L9: Budget Year +1 2024/25 | M9: Budget Year +1 2025/26 | N9: Budget Year +1 2026/27 | O9: Budget Year +1 2027/28 | Z9: Municipal Drought Relief
A10: ='Template names'!C17 -> 3rd year of MTREF | B10: ="Budget Year +2 "&B1+2&"/"&RIGHT(B1,2)+3 -> Budget Year +2 2015/16 | C10: Budget Year +2 2016/17 | D10: Budget Year +2 2017/18 | E10: Budget Year +2 2018/19 | F10: Budget Year +2 2019/20 | G10: Budget Year +2 2020/21 | H10: Budget Year +2 2021/22 | I10: Budget Year +2 2022/23 | J10: ="Budget Year +2 "&J1+2&"/"&RIGHT(J1,2)+3 -> Budget Year +2 2023/24 | K10: Budget Year +2 2024/25 | L10: Budget Year +2 2025/26 | M10: Budget Year +2 2026/27 | N10: Budget Year +2 2027/28 | O10: Budget Year +2 2028/29 | Z10: 2010 FIFA World Cup Operating
A11: ='Template names'!C18 -> 1st yr of long term forecast | B11: ="Forecast "&B1+3&"/"&RIGHT(B1,2)+4 -> Forecast 2016/17 | C11: Forecast 2017/18 | D11: Forecast 2018/19 | E11: Forecast 2019/20 | F11: Forecast 2020/21 | G11: Forecast 2021/22 | H11: Forecast 2022/23 | I11: Forecast 2023/24 | J11: ="Forecast "&J1+3&"/"&RIGHT(J1,2)+4 -> Forecast 2024/25 | K11: Forecast 2025/26 | L11: Forecast 2026/27 | M11: Forecast 2027/28 | N11: Forecast 2028/29 | O11: Forecast 2029/30 | Z11: Electricity Demand Side Management
A12: ='Template names'!C19 -> Next yr of long term forecast | B12: ="Forecast "&B1+4&"/"&RIGHT(B1,2)+5 -> Forecast 2017/18 | C12: Forecast 2018/19 | D12: Forecast 2019/20 | E12: Forecast 2020/21 | F12: Forecast 2021/22 | G12: Forecast 2022/23 | H12: Forecast 2023/24 | I12: Forecast 2024/25 | J12: ="Forecast "&J1+4&"/"&RIGHT(J1,2)+5 -> Forecast 2025/26 | K12: Forecast 2026/27 | L12: Forecast 2027/28 | M12: Forecast 2028/29 | N12: Forecast 2029/30 | O12: Forecast 2030/31 | Z12: EPWP Incentive
A13: ='Template names'!C20 -> Next yr of long term forecast | B13: ="Forecast "&B1+5&"/"&RIGHT(B1,2)+6 -> Forecast 2018/19 | C13: Forecast 2019/20 | D13: Forecast 2020/21 | E13: Forecast 2021/22 | F13: Forecast 2022/23 | G13: Forecast 2023/24 | H13: Forecast 2024/25 | I13: Forecast 2025/26 | J13: ="Forecast "&J1+5&"/"&RIGHT(J1,2)+6 -> Forecast 2026/27 | K13: Forecast 2027/28 | L13: Forecast 2028/29 | M13: Forecast 2029/30 | N13: Forecast 2030/31 | O13: Forecast 2031/32
A14: ='Template names'!C21 -> Next yr of long term forecast | B14: ="Forecast "&B1+6&"/"&RIGHT(B1,2)+7 -> Forecast 2019/20 | C14: Forecast 2020/21 | D14: Forecast 2021/22 | E14: Forecast 2022/23 | F14: Forecast 2023/24 | G14: Forecast 2024/25 | H14: Forecast 2025/26 | I14: Forecast 2026/27 | J14: ="Forecast "&J1+6&"/"&RIGHT(J1,2)+7 -> Forecast 2027/28 | K14: Forecast 2028/29 | L14: Forecast 2029/30 | M14: Forecast 2030/31 | N14: Forecast 2031/32 | O14: Forecast 2032/33 | Z14: Asset Class | AA14: Asset sub-class old | AB14: Asset sub-class | AC14: IUDF | AD14: MTSF
A15: ='Template names'!C22 -> Next yr of long term forecast | B15: ="Forecast "&B1+7&"/"&RIGHT(B1,2)+8 -> Forecast 2020/21 | C15: Forecast 2021/22 | D15: Forecast 2022/23 | E15: Forecast 2023/24 | F15: Forecast 2024/25 | G15: Forecast 2025/26 | H15: Forecast 2026/27 | I15: Forecast 2027/28 | J15: ="Forecast "&J1+7&"/"&RIGHT(J1,2)+8 -> Forecast 2028/29 | K15: Forecast 2029/30 | L15: Forecast 2030/31 | M15: Forecast 2031/32 | N15: Forecast 2032/33 | O15: Forecast 2033/34
A16: ='Template names'!C23 -> Next yr of long term forecast | B16: ="Forecast "&B1+8&"/"&RIGHT(B1,2)+9 -> Forecast 2021/22 | C16: Forecast 2022/23 | D16: Forecast 2023/24 | E16: Forecast 2024/25 | F16: Forecast 2025/26 | G16: Forecast 2026/27 | H16: Forecast 2027/28 | I16: Forecast 2028/29 | J16: ="Forecast "&J1+8&"/"&RIGHT(J1,2)+9 -> Forecast 2029/30 | K16: Forecast 2030/31 | L16: Forecast 2031/32 | M16: Forecast 2032/33 | N16: Forecast 2033/34 | O16: Forecast 2034/35 | Z16: Roads Infrastructure | AA16: Roads, Pavements & Bridges | AB16: Roads | AC16: Spatial integration | AD16: Quality basic education
A17: ='Template names'!C24 -> Next yr of long term forecast | B17: ="Forecast "&B1+9&"/"&RIGHT(B1,2)+10 -> Forecast 2022/23 | C17: Forecast 2023/24 | D17: Forecast 2024/25 | E17: Forecast 2025/26 | F17: Forecast 2026/27 | G17: Forecast 2027/28 | H17: Forecast 2028/29 | I17: Forecast 2029/30 | J17: ="Forecast "&J1+9&"/"&RIGHT(J1,2)+10 -> Forecast 2030/31 | K17: Forecast 2031/32 | L17: Forecast 2032/33 | M17: Forecast 2033/34 | N17: Forecast 2034/35 | O17: Forecast 2035/36 | Z17: Storm water Infrastructure | AA17: Storm water | AB17: Road Structures | AC17: Inclusion and access | AD17: A long and healthy life for all South Africans
A18: ='Template names'!C25 -> Next yr of long term forecast | B18: ="Forecast "&B1+10&"/"&RIGHT(B1,2)+11 -> Forecast 2023/24 | C18: Forecast 2024/25 | D18: Forecast 2025/26 | E18: Forecast 2026/27 | F18: Forecast 2027/28 | G18: Forecast 2028/29 | H18: Forecast 2029/30 | I18: Forecast 2030/31 | J18: ="Forecast "&J1+10&"/"&RIGHT(J1,2)+11 -> Forecast 2031/32 | K18: Forecast 2032/33 | L18: Forecast 2033/34 | M18: Forecast 2034/35 | N18: Forecast 2035/36 | O18: Forecast 2036/37 | Z18: Electrical Infrastructure | AA18: Generation | AB18: Road Furniture | AC18: Growth | AD18: All people in South Africa are and feel safe
A19: ='Template names'!C26 -> Next yr of long term forecast | B19: ="Forecast "&B1+11&"/"&RIGHT(B1,2)+12 -> Forecast 2024/25 | C19: Forecast 2025/26 | D19: Forecast 2026/27 | E19: Forecast 2027/28 | F19: Forecast 2028/29 | G19: Forecast 2029/30 | H19: Forecast 2030/31 | I19: Forecast 2031/32 | J19: ="Forecast "&J1+11&"/"&RIGHT(J1,2)+12 -> Forecast 2032/33 | K19: Forecast 2033/34 | L19: Forecast 2034/35 | M19: Forecast 2035/36 | N19: Forecast 2036/37 | O19: Forecast 2037/38 | Z19: Water Supply Infrastructure | AA19: Transmission & Reticulation | AB19: Capital Spares | AC19: Governance | AD19: Decent employment through inclusive growth
A20: ='Template names'!C27 -> Next yr of long term forecast | B20: ="Forecast "&B1+12&"/"&RIGHT(B1,2)+13 -> Forecast 2025/26 | C20: Forecast 2026/27 | D20: Forecast 2027/28 | E20: Forecast 2028/29 | F20: Forecast 2029/30 | G20: Forecast 2030/31 | H20: Forecast 2031/32 | I20: Forecast 2032/33 | J20: ="Forecast "&J1+12&"/"&RIGHT(J1,2)+13 -> Forecast 2033/34 | K20: Forecast 2034/35 | L20: Forecast 2035/36 | M20: Forecast 2036/37 | N20: Forecast 2037/38 | O20: Forecast 2038/39 | Z20: Sanitation Infrastructure | AA20: Street Lighting | AB20: Drainage Collection | AD20: A skilled and capable workforce to support an inclusive growth path
A21: ='Template names'!C28 -> Next yr of long term forecast | B21: ="Forecast "&B1+13&"/"&RIGHT(B1,2)+14 -> Forecast 2026/27 | C21: Forecast 2027/28 | D21: Forecast 2028/29 | E21: Forecast 2029/30 | F21: Forecast 2030/31 | G21: Forecast 2031/32 | H21: Forecast 2032/33 | I21: Forecast 2033/34 | J21: ="Forecast "&J1+13&"/"&RIGHT(J1,2)+14 -> Forecast 2034/35 | K21: Forecast 2035/36 | L21: Forecast 2036/37 | M21: Forecast 2037/38 | N21: Forecast 2038/39 | O21: Forecast 2039/40 | Z21: Solid Waste Infrastructure | AA21: Dams & Reservoirs | AB21: Storm water Conveyance | AD21: An efficient, competitive and responsive economic infrastructure network
A22: ='Template names'!C29 -> Next yr of long term forecast | B22: ="Forecast "&B1+14&"/"&RIGHT(B1,2)+15 -> Forecast 2027/28 | C22: Forecast 2028/29 | D22: Forecast 2029/30 | E22: Forecast 2030/31 | F22: Forecast 2031/32 | G22: Forecast 2032/33 | H22: Forecast 2033/34 | I22: Forecast 2034/35 | J22: ="Forecast "&J1+14&"/"&RIGHT(J1,2)+15 -> Forecast 2035/36 | K22: Forecast 2036/37 | L22: Forecast 2037/38 | M22: Forecast 2038/39 | N22: Forecast 2039/40 | O22: Forecast 2040/41 | Z22: Rail Infrastructure | AA22: Water purification | AB22: Attenuation | AD22: Vibrant, equitable, sustainable rural communities contributing towards food security for all
A23: Adjustments Budget | B23: ="Annual target " & B1&"/"&RIGHT(B1,2)+1 -> Annual target 2013/14 | C23: Annual target 2014/15 | D23: Annual target 2015/16 | E23: Annual target 2016/17 | F23: Annual target 2017/18 | G23: Annual target 2018/19 | H23: Annual target 2019/20 | I23: Annual target 2020/21 | J23: ="Annual target " & J1&"/"&RIGHT(J1,2)+1 -> Annual target 2021/22 | K23: Annual target 2022/23 | L23: Annual target 2023/24 | M23: Annual target 2024/25 | N23: Annual target 2025/26 | O23: Annual target 2026/27 | Z23: Coastal Infrastructure | AA23: Reticulation | AB23: Power Plants | AD23: Sustainable human settlements and improved quality of household life
A24: =A23 -> Adjustments Budget | B24: ="Revised target "& B1&"/"&RIGHT(B1,2)+1 -> Revised target 2013/14 | C24: Revised target 2014/15 | D24: Revised target 2015/16 | E24: Revised target 2016/17 | F24: Revised target 2017/18 | G24: Revised target 2018/19 | H24: Revised target 2019/20 | I24: Revised target 2020/21 | J24: ="Revised target "& J1&"/"&RIGHT(J1,2)+1 -> Revised target 2021/22 | K24: Revised target 2022/23 | L24: Revised target 2023/24 | M24: Revised target 2024/25 | N24: Revised target 2025/26 | O24: Revised target 2026/27 | Z24: Information and Communication Infrastructure | AA24: Sewerage purification | AB24: HV Substations | AD24: Responsive, accountable, effective and efficient local government
A25: NOTE: This sheet should not be directly amended - select headings from sheet 'S' | Z25: Community Facilities | AA25: Waste Management | AB25: HV Switching Station | AD25: Protect and enhance our environmental assets and natural resources
Z26: Sport and Recreation Facilities | AA26: Transportation | AB26: HV Transmission Conductors | AD26: Create a better South Africa and contribute to a better Africa and a better world
A27: Name link | B27: 1 | Z27: Heritage assets | AA27: Gas | AB27: MV Substations | AD27: An efficient, effective and development-oriented public service
A28: Name of Muni | B28: =INDEX(B29:B307,B27,1) -> Choose name from list | Z28: Revenue Generating | AA28: Parks & gardens | AB28: MV Switching Stations | AD28: A comprehensive, responsive and sustainable social protection system
B29: Choose name from list | C29: Set name on 'Instructions' sheet | Z29: Non-revenue Generating | AA29: Sportsfields & stadia | AB29: MV Networks | AD29: A diverse, socially cohesive society with a common national identity
B30: BUF Buffalo City | C30: EC EASTERN CAPE | Z30: Operational Buildings | AA30: Swimming pools | AB30: LV Networks
B31: NMA Nelson Mandela Bay | C31: EC EASTERN CAPE | Z31: Housing | AA31: Community halls | AB31: Capital Spares
B32: EC101 Dr Beyers Naude | C32: EC EASTERN CAPE | Z32: Biological or Cultivated Assets | AA32: Libraries | AB32: Dams and Weirs
B33: EC102 Blue Crane Route | C33: EC EASTERN CAPE | Z33: Servitudes | AA33: Recreational facilities | AB33: Boreholes
B34: EC104 Makana | C34: EC EASTERN CAPE | Z34: Licences and Rights | AA34: Fire, safety & emergency | AB34: Reservoirs
B35: EC105 Ndlambe | C35: EC EASTERN CAPE | Z35: Computer Equipment | AA35: Security and policing | AB35: Pump Stations
B36: EC106 Sundays River Valley | C36: EC EASTERN CAPE | Z36: Furniture and Office Equipment | AA36: Buses | AB36: Water Treatment Works
B37: EC108 Kouga | C37: EC EASTERN CAPE | Z37: Machinery and Equipment | AA37: Clinics | AB37: Bulk Mains
B38: EC109 Kou-Kamma | C38: EC EASTERN CAPE | Z38: Transport Assets | AA38: Museums & Art Galleries | AB38: Distribution
B39: DC10 Sarah Baartman | C39: EC EASTERN CAPE | Z39: Land | AA39: Cemeteries | AB39: Distribution Points
B40: EC121 Mbhashe | C40: EC EASTERN CAPE | Z40: Zoo's, Marine and Non-biological Animals | AA40: Social rental housing | AB40: PRV Stations
B41: EC122 Mnquma | C41: EC EASTERN CAPE | AA41: Buildings | AB41: Capital Spares
B42: EC123 Great Kei | C42: EC EASTERN CAPE | AA42: Housing development | AB42: Pump Station
B43: EC124 Amahlathi | C43: EC EASTERN CAPE | AA43: General vehicles | AB43: Reticulation
B44: EC126 Ngqushwa | C44: EC EASTERN CAPE | AA44: Specialised vehicles - Refuse | AB44: Waste Water Treatment Works
B45: EC129 Raymond Mhlaba | C45: EC EASTERN CAPE | AA45: Specialised vehicles - Fire | AB45: Outfall Sewers
B46: DC12 Amathole | C46: EC EASTERN CAPE | AA46: Specialised vehicles - Conservancy | AB46: Toilet Facilities
B47: EC131 Inxuba Yethemba | C47: EC EASTERN CAPE | AA47: Specialised vehicles - Ambulances | AB47: Capital Spares
B48: EC135 Intsika Yethu | C48: EC EASTERN CAPE | AA48: Plant & equipment | AB48: Landfill Sites
B49: EC136 Emalahleni (Ec) | C49: EC EASTERN CAPE | AA49: Computers - hardware/equipment | AB49: Waste Transfer Stations
B50: EC137 Engcobo | C50: EC EASTERN CAPE | AA50: Furniture and other office equipment | AB50: Waste Processing Facilities
B51: EC138 Sakhisizwe | C51: EC EASTERN CAPE | AA51: Abattoirs | AB51: Waste Drop-off Points
B52: EC139 Enoch Mgijima | C52: EC EASTERN CAPE | AA52: Markets | AB52: Waste Separation Facilities
B53: DC13 Chris Hani | C53: EC EASTERN CAPE | AA53: Civic Land and Buildings | AB53: Electricity Generation Facilities
B54: EC141 Elundini | C54: EC EASTERN CAPE | AA54: Other Buildings | AB54: Capital Spares
B55: EC142 Senqu | C55: EC EASTERN CAPE | AA55: Other Land | AB55: Rail Lines
B56: EC145 Walter Sisulu | C56: EC EASTERN CAPE | AA56: Surplus Assets - (Investment or Inventory) | AB56: Rail Structures
B57: DC14 Joe Gqabi | C57: EC EASTERN CAPE | AA57: Computers - software & programming | AB57: Rail Furniture
B58: EC153 Ngquza Hills | C58: EC EASTERN CAPE | AA58: Other | AB58: Drainage Collection
B59: EC154 Port St Johns | C59: EC EASTERN CAPE | AB59: Storm water Conveyance
B60: EC155 Nyandeni | C60: EC EASTERN CAPE | Z60: SA16 - Investments | AB60: Attenuation
B61: EC156 Mhlontlo | C61: EC EASTERN CAPE | Z61: Security | AA61: Interest rate | AB61: MV Substations
B62: EC157 King Sabata Dalindyebo | C62: EC EASTERN CAPE | Z62: Yes | AA62: Fixed | AB62: LV Networks
B63: DC15 O .R. Tambo | C63: EC EASTERN CAPE | Z63: No | AA63: Variable | AB63: Capital Spares
B64: EC441 Matatiele | C64: EC EASTERN CAPE | AB64: Sand Pumps
B65: EC442 Umzimvubu | C65: EC EASTERN CAPE | AB65: Piers
B66: EC443 Mbizana | C66: EC EASTERN CAPE | Z66: SA36, SA37 - Capital projects | AB66: Revetments
B67: EC444 Ntabankulu | C67: EC EASTERN CAPE | Z67: Yes | AB67: Promenades
B68: DC44 Alfred Nzo | C68: EC EASTERN CAPE | Z68: No | AB68: Capital Spares
B69: MAN Mangaung | C69: FS FREE STATE | AB69: Data Centres
B70: FS161 Letsemeng | C70: FS FREE STATE | AB70: Core Layers
B71: FS162 Kopanong | C71: FS FREE STATE | AB71: Distribution Layers
B72: FS163 Mohokare | C72: FS FREE STATE | AB72: Capital Spares
B73: DC16 Xhariep | C73: FS FREE STATE | AB73: Halls
B74: FS181 Masilonyana | C74: FS FREE STATE | AB74: Centres
B75: FS182 Tokologo | C75: FS FREE STATE | AB75: Crèches
B76: FS183 Tswelopele | C76: FS FREE STATE | AB76: Clinics/Care Centres
B77: FS184 Matjhabeng | C77: FS FREE STATE | AB77: Fire/Ambulance Stations
B78: FS185 Nala | C78: FS FREE STATE | AB78: Testing Stations
B79: DC18 Lejweleputswa | C79: FS FREE STATE | AB79: Museums
B80: FS191 Setsoto | C80: FS FREE STATE | AB80: Galleries
B81: FS192 Dihlabeng | C81: FS FREE STATE | AB81: Theatres
B82: FS193 Nketoana | C82: FS FREE STATE | AB82: Libraries
B83: FS194 Maluti-a-Phofung | C83: FS FREE STATE | AB83: Cemeteries/Crematoria
B84: FS195 Phumelela | C84: FS FREE STATE | AB84: Police
B85: FS196 Mantsopa | C85: FS FREE STATE | AB85: Purls
B86: DC19 Thabo Mofutsanyana | C86: FS FREE STATE | AB86: Public Open Space
B87: FS201 Moqhaka | C87: FS FREE STATE | AB87: Nature Reserves
B88: FS203 Ngwathe | C88: FS FREE STATE | AB88: Public Ablution Facilities
B89: FS204 Metsimaholo | C89: FS FREE STATE | AB89: Markets
B90: FS205 Mafube | C90: FS FREE STATE | AB90: Stalls
B91: DC20 Fezile Dabi | C91: FS FREE STATE | AB91: Abattoirs
B92: EKU City of Ekurhuleni | C92: GT GAUTENG | AB92: Airports
B93: JHB City Of Johannesburg | C93: GT GAUTENG | AB93: Taxi Ranks/Bus Terminals
B94: TSH City Of Tshwane | C94: GT GAUTENG | AB94: Capital Spares
B95: GT421 Emfuleni | C95: GT GAUTENG | AB95: Indoor Facilities
B96: GT422 Midvaal | C96: GT GAUTENG | AB96: Outdoor Facilities
B97: GT423 Lesedi | C97: GT GAUTENG | AB97: Capital Spares
B98: DC42 Sedibeng | C98: GT GAUTENG | AB98: Monuments
B99: GT481 Mogale City | C99: GT GAUTENG | AB99: Historic Buildings
B100: GT484 Merafong City | C100: GT GAUTENG | AB100: Works of Art
B101: GT485 Rand West City | C101: GT GAUTENG | AB101: Conservation Areas
B102: DC48 West Rand | C102: GT GAUTENG | AB102: Other Heritage
B103: ETH eThekwini | C103: KZN KWAZULU-NATAL | AB103: Improved Property
B104: KZN212 Umdoni | C104: KZN KWAZULU-NATAL | AB104: Unimproved Property
B105: KZN213 Umzumbe | C105: KZN KWAZULU-NATAL | AB105: Municipal Offices
B106: KZN214 uMuziwabantu | C106: KZN KWAZULU-NATAL | AB106: Pay/Enquiry Points
B107: KZN216 Ray Nkonyeni | C107: KZN KWAZULU-NATAL | AB107: Building Plan Offices
B108: DC21 Ugu | C108: KZN KWAZULU-NATAL | AB108: Workshops
B109: KZN221 uMshwathi | C109: KZN KWAZULU-NATAL | AB109: Yards
B110: KZN222 uMngeni | C110: KZN KWAZULU-NATAL | AB110: Stores
B111: KZN223 Mpofana | C111: KZN KWAZULU-NATAL | AB111: Laboratories
B112: KZN224 Impendle | C112: KZN KWAZULU-NATAL | AB112: Training Centres
B113: KZN225 Msunduzi | C113: KZN KWAZULU-NATAL | AB113: Manufacturing Plant
B114: KZN226 Mkhambathini | C114: KZN KWAZULU-NATAL | AB114: Depots
B115: KZN227 Richmond | C115: KZN KWAZULU-NATAL | AB115: Capital Spares
B116: DC22 uMgungundlovu | C116: KZN KWAZULU-NATAL | AB116: Staff Housing
B117: KZN235 Okhahlamba | C117: KZN KWAZULU-NATAL | AB117: Social Housing
B118: KZN237 Inkosi Langalibalele | C118: KZN KWAZULU-NATAL | AB118: Capital Spares
B119: KZN238 Alfred Duma | C119: KZN KWAZULU-NATAL | AB119: Water Rights
B120: DC23 Uthukela | C120: KZN KWAZULU-NATAL | AB120: Effluent Licenses
B121: KZN241 Endumeni | C121: KZN KWAZULU-NATAL | AB121: Solid Waste Licenses
B122: KZN242 Nquthu | C122: KZN KWAZULU-NATAL | AB122: Computer Software and Applications
B123: KZN244 Msinga | C123: KZN KWAZULU-NATAL | AB123: Load Settlement Software Applications
B124: KZN245 Umvoti | C124: KZN KWAZULU-NATAL | AB124: Unspecified
B125: DC24 Umzinyathi | C125: KZN KWAZULU-NATAL
B126: KZN252 Newcastle | C126: KZN KWAZULU-NATAL
B127: KZN253 Emadlangeni | C127: KZN KWAZULU-NATAL
B128: KZN254 Dannhauser | C128: KZN KWAZULU-NATAL
B129: DC25 Amajuba | C129: KZN KWAZULU-NATAL
B130: KZN261 eDumbe | C130: KZN KWAZULU-NATAL
B131: KZN262 uPhongolo | C131: KZN KWAZULU-NATAL
B132: KZN263 Abaqulusi | C132: KZN KWAZULU-NATAL
B133: KZN265 Nongoma | C133: KZN KWAZULU-NATAL
B134: KZN266 Ulundi | C134: KZN KWAZULU-NATAL
B135: DC26 Zululand | C135: KZN KWAZULU-NATAL
B136: KZN271 Umhlabuyalingana | C136: KZN KWAZULU-NATAL
B137: KZN272 Jozini | C137: KZN KWAZULU-NATAL
B138: KZN275 Mtubatuba | C138: KZN KWAZULU-NATAL
B139: KZN276 Hlabisa Big Five | C139: KZN KWAZULU-NATAL
B140: DC27 Umkhanyakude | C140: KZN KWAZULU-NATAL
B141: KZN281 Mfolozi | C141: KZN KWAZULU-NATAL
B142: KZN282 uMhlathuze | C142: KZN KWAZULU-NATAL
B143: KZN284 uMlalazi | C143: KZN KWAZULU-NATAL
B144: KZN285 Mthonjaneni | C144: KZN KWAZULU-NATAL
B145: KZN286 Nkandla | C145: KZN KWAZULU-NATAL
B146: DC28 King Cetshwayo | C146: KZN KWAZULU-NATAL
B147: KZN291 Mandeni | C147: KZN KWAZULU-NATAL
B148: KZN292 KwaDukuza | C148: KZN KWAZULU-NATAL
B149: KZN293 Ndwedwe | C149: KZN KWAZULU-NATAL
B150: KZN294 Maphumulo | C150: KZN KWAZULU-NATAL
B151: DC29 iLembe | C151: KZN KWAZULU-NATAL
B152: KZN433 Greater Kokstad | C152: KZN KWAZULU-NATAL
B153: KZN434 Ubuhlebezwe | C153: KZN KWAZULU-NATAL
B154: KZN435 Umzimkhulu | C154: KZN KWAZULU-NATAL
B155: KZN436 Dr Nkosazana Dlamini Zuma | C155: KZN KWAZULU-NATAL
B156: DC43 Harry Gwala | C156: KZN KWAZULU-NATAL
B157: LIM331 Greater Giyani | C157: LIM LIMPOPO
B158: LIM332 Greater Letaba | C158: LIM LIMPOPO
B159: LIM333 Greater Tzaneen | C159: LIM LIMPOPO
B160: LIM334 Ba-Phalaborwa | C160: LIM LIMPOPO
B161: LIM335 Maruleng | C161: LIM LIMPOPO
B162: DC33 Mopani | C162: LIM LIMPOPO
B163: LIM341 Musina | C163: LIM LIMPOPO
B164: LIM343 Thulamela | C164: LIM LIMPOPO
B165: LIM344 Makhado | C165: LIM LIMPOPO
B166: LIM345 Collins Chabane | C166: LIM LIMPOPO
B167: DC34 Vhembe | C167: LIM LIMPOPO
B168: LIM351 Blouberg | C168: LIM LIMPOPO
B169: LIM353 Molemole | C169: LIM LIMPOPO
B170: LIM354 Polokwane | C170: LIM LIMPOPO
B171: LIM355 Lepelle-Nkumpi | C171: LIM LIMPOPO
B172: DC35 Capricorn | C172: LIM LIMPOPO
B173: LIM361 Thabazimbi | C173: LIM LIMPOPO
B174: LIM362 Lephalale | C174: LIM LIMPOPO
B175: LIM366 Bela Bela | C175: LIM LIMPOPO
B176: LIM367 Mogalakwena | C176: LIM LIMPOPO
B177: LIM368 Modimolle-Mookgopong | C177: LIM LIMPOPO
B178: DC36 Waterberg | C178: LIM LIMPOPO
B179: LIM471 Ephraim Mogale | C179: LIM LIMPOPO
B180: LIM472 Elias Motsoaledi | C180: LIM LIMPOPO
B181: LIM473 Makhuduthamaga | C181: LIM LIMPOPO
B182: LIM476 Tubatse Fetakgomo | C182: LIM LIMPOPO
B183: DC47 Sekhukhune | C183: LIM LIMPOPO
B184: MP301 Albert Luthuli | C184: MP MPUMALANGA
B185: MP302 Msukaligwa | C185: MP MPUMALANGA
B186: MP303 Mkhondo | C186: MP MPUMALANGA
B187: MP304 Pixley Ka Seme (MP) | C187: MP MPUMALANGA
B188: MP305 Lekwa | C188: MP MPUMALANGA
B189: MP306 Dipaleseng | C189: MP MPUMALANGA
B190: MP307 Govan Mbeki | C190: MP MPUMALANGA
B191: DC30 Gert Sibande | C191: MP MPUMALANGA
B192: MP311 Victor Khanye | C192: MP MPUMALANGA
B193: MP312 Emalahleni (Mp) | C193: MP MPUMALANGA
B194: MP313 Steve Tshwete | C194: MP MPUMALANGA
B195: MP314 Emakhazeni | C195: MP MPUMALANGA
B196: MP315 Thembisile Hani | C196: MP MPUMALANGA
B197: MP316 Dr J.S. Moroka | C197: MP MPUMALANGA
B198: DC31 Nkangala | C198: MP MPUMALANGA
B199: MP321 Thaba Chweu | C199: MP MPUMALANGA
B200: MP324 Nkomazi | C200: MP MPUMALANGA
... 87 more rows

Sheet Org structure
A1: Organisational Structure Votes | C1: Organisational Structure Sub-Votes | E1: Display Sub-Votes
A2: =B2&" - "&C2 -> Vote 1 - Executive & Council | B2: Vote 1 | C2: Executive & Council
A3: =B13&" - "& C13 -> Vote 2 - Planning and Economic Development | B3: 1.1 | C3: [Name of sub-vote] | D3: =CONCATENATE(B3, " - ", C3) -> 1.1 - [Name of sub-vote] | E3: 1.1 - [Name of sub-vote]
A4: =B24&" - "&C24 -> Vote 3 - Budget and Treasury | B4: 1.2 | C4: [Name of sub-vote] | D4: 1.2 - [Name of sub-vote]
A5: =B35&" - "&C35 -> Vote 4 - Corporate Services | B5: 1.3 | C5: [Name of sub-vote] | D5: 1.3 - [Name of sub-vote]
A6: =B46&" - "&C46 -> Vote 5 - Engineering Services | B6: 1.4 | C6: [Name of sub-vote] | D6: 1.4 - [Name of sub-vote]
A7: =B57&" - "&C57 -> Vote 6 - Community Services | B7: 1.5 | C7: [Name of sub-vote] | D7: 1.5 - [Name of sub-vote]
A8: =B68&" - "&C68 -> Vote 7 - Electrical Engineering | B8: 1.6 | C8: [Name of sub-vote] | D8: 1.6 - [Name of sub-vote]
A9: =B79&" - "&C79 -> Vote 8 - Office of the Speaker | B9: 1.7 | C9: [Name of sub-vote] | D9: 1.7 - [Name of sub-vote]
A10: =B90&" - "&C90 -> Vote 9 - COMMUNITY & SOCIAL SERVICES | B10: 1.8 | C10: [Name of sub-vote] | D10: 1.8 - [Name of sub-vote]
A11: =B101&" - "&C101 -> Vote 10 - Office of the Municipal Manager | B11: 1.9 | C11: [Name of sub-vote] | D11: 1.9 - [Name of sub-vote]
A12: =B112&" - "&C112 -> Vote 11 - [NAME OF VOTE 11] | B12: 1.10 | C12: [Name of sub-vote] | D12: 1.10 - [Name of sub-vote]
A13: =B123&" - "&C123 -> Vote 12 - [NAME OF VOTE 12] | B13: Vote 2 | C13: Planning and Economic Development
A14: =B134&" - "&C134 -> Vote 13 - [NAME OF VOTE 13] | B14: 2.1 | C14: [Name of sub-vote] | D14: =CONCATENATE(B14, " - ", C14) -> 2.1 - [Name of sub-vote] | E14: 2.1 - [Name of sub-vote]
A15: =B145&" - "&C145 -> Vote 14 - [NAME OF VOTE 14] | B15: 2.2 | C15: [Name of sub-vote] | D15: 2.2 - [Name of sub-vote]
A16: =B156&" - "&C156 -> Vote 15 - [NAME OF VOTE 15] | B16: 2.3 | C16: [Name of sub-vote] | D16: 2.3 - [Name of sub-vote]
B17: 2.4 | C17: [Name of sub-vote] | D17: 2.4 - [Name of sub-vote]
B18: 2.5 | C18: [Name of sub-vote] | D18: 2.5 - [Name of sub-vote]
B19: 2.6 | C19: [Name of sub-vote] | D19: 2.6 - [Name of sub-vote]
B20: 2.7 | C20: [Name of sub-vote] | D20: 2.7 - [Name of sub-vote]
B21: 2.8 | C21: [Name of sub-vote] | D21: 2.8 - [Name of sub-vote]
B22: 2.9 | C22: [Name of sub-vote] | D22: 2.9 - [Name of sub-vote]
B23: 2.10 | C23: [Name of sub-vote] | D23: 2.10 - [Name of sub-vote]
B24: Vote 3 | C24: Budget and Treasury
B25: 3.1 | C25: [Name of sub-vote] | D25: =CONCATENATE(B25, " - ", C25) -> 3.1 - [Name of sub-vote] | E25: 3.1 - [Name of sub-vote]
B26: 3.2 | C26: [Name of sub-vote] | D26: 3.2 - [Name of sub-vote]
B27: 3.3 | C27: [Name of sub-vote] | D27: 3.3 - [Name of sub-vote]
B28: 3.4 | C28: [Name of sub-vote] | D28: 3.4 - [Name of sub-vote]
B29: 3.5 | C29: [Name of sub-vote] | D29: 3.5 - [Name of sub-vote]
B30: 3.6 | C30: [Name of sub-vote] | D30: 3.6 - [Name of sub-vote]
B31: 3.7 | C31: [Name of sub-vote] | D31: 3.7 - [Name of sub-vote]
B32: 3.8 | C32: [Name of sub-vote] | D32: 3.8 - [Name of sub-vote]
B33: 3.9 | C33: [Name of sub-vote] | D33: 3.9 - [Name of sub-vote]
B34: 3.10 | C34: [Name of sub-vote] | D34: 3.10 - [Name of sub-vote]
B35: Vote 4 | C35: Corporate Services
B36: 4.1 | C36: [Name of sub-vote] | D36: =CONCATENATE(B36, " - ", C36) -> 4.1 - [Name of sub-vote] | E36: 4.1 - [Name of sub-vote]
B37: 4.2 | C37: [Name of sub-vote] | D37: 4.2 - [Name of sub-vote]
B38: 4.3 | C38: [Name of sub-vote] | D38: 4.3 - [Name of sub-vote]
B39: 4.4 | C39: [Name of sub-vote] | D39: 4.4 - [Name of sub-vote]
B40: 4.5 | C40: [Name of sub-vote] | D40: 4.5 - [Name of sub-vote]
B41: 4.6 | C41: [Name of sub-vote] | D41: 4.6 - [Name of sub-vote]
B42: 4.7 | C42: [Name of sub-vote] | D42: 4.7 - [Name of sub-vote]
B43: 4.8 | C43: [Name of sub-vote] | D43: 4.8 - [Name of sub-vote]
B44: 4.9 | C44: [Name of sub-vote] | D44: 4.9 - [Name of sub-vote]
B45: 4.10 | C45: [Name of sub-vote] | D45: 4.10 - [Name of sub-vote]
B46: Vote 5 | C46: Engineering Services
B47: 5.1 | C47: [Name of sub-vote] | D47: =CONCATENATE(B47, " - ", C47) -> 5.1 - [Name of sub-vote] | E47: 5.1 - [Name of sub-vote]
B48: 5.2 | C48: [Name of sub-vote] | D48: 5.2 - [Name of sub-vote]
B49: 5.3 | C49: [Name of sub-vote] | D49: 5.3 - [Name of sub-vote]
B50: 5.4 | C50: [Name of sub-vote] | D50: 5.4 - [Name of sub-vote]
B51: 5.5 | C51: [Name of sub-vote] | D51: 5.5 - [Name of sub-vote]
B52: 5.6 | C52: [Name of sub-vote] | D52: 5.6 - [Name of sub-vote]
B53: 5.7 | C53: [Name of sub-vote] | D53: 5.7 - [Name of sub-vote]
B54: 5.8 | C54: [Name of sub-vote] | D54: 5.8 - [Name of sub-vote]
B55: 5.9 | C55: [Name of sub-vote] | D55: 5.9 - [Name of sub-vote]
B56: 5.10 | C56: [Name of sub-vote] | D56: 5.10 - [Name of sub-vote]
B57: Vote 6 | C57: Community Services
B58: 6.1 | C58: [Name of sub-vote] | D58: =CONCATENATE(B58, " - ", C58) -> 6.1 - [Name of sub-vote] | E58: 6.1 - [Name of sub-vote]
B59: 6.2 | C59: [Name of sub-vote] | D59: 6.2 - [Name of sub-vote]
B60: 6.3 | C60: [Name of sub-vote] | D60: 6.3 - [Name of sub-vote]
B61: 6.4 | C61: [Name of sub-vote] | D61: 6.4 - [Name of sub-vote]
B62: 6.5 | C62: [Name of sub-vote] | D62: 6.5 - [Name of sub-vote]
B63: 6.6 | C63: [Name of sub-vote] | D63: 6.6 - [Name of sub-vote]
B64: 6.7 | C64: [Name of sub-vote] | D64: 6.7 - [Name of sub-vote]
B65: 6.8 | C65: [Name of sub-vote] | D65: 6.8 - [Name of sub-vote]
B66: 6.9 | C66: [Name of sub-vote] | D66: 6.9 - [Name of sub-vote]
B67: 6.10 | C67: [Name of sub-vote] | D67: 6.10 - [Name of sub-vote]
B68: Vote 7 | C68: Electrical Engineering
B69: 7.1 | C69: [Name of sub-vote] | D69: =CONCATENATE(B69, " - ", C69) -> 7.1 - [Name of sub-vote] | E69: 7.1 - [Name of sub-vote]
B70: 7.2 | C70: [Name of sub-vote] | D70: 7.2 - [Name of sub-vote]
B71: 7.3 | C71: [Name of sub-vote] | D71: 7.3 - [Name of sub-vote]
B72: 7.4 | C72: [Name of sub-vote] | D72: 7.4 - [Name of sub-vote]
B73: 7.5 | C73: [Name of sub-vote] | D73: 7.5 - [Name of sub-vote]
B74: 7.6 | C74: [Name of sub-vote] | D74: 7.6 - [Name of sub-vote]
B75: 7.7 | C75: [Name of sub-vote] | D75: 7.7 - [Name of sub-vote]
B76: 7.8 | C76: [Name of sub-vote] | D76: 7.8 - [Name of sub-vote]
B77: 7.9 | C77: [Name of sub-vote] | D77: 7.9 - [Name of sub-vote]
B78: 7.10 | C78: [Name of sub-vote] | D78: 7.10 - [Name of sub-vote]
B79: Vote 8 | C79: Office of the Speaker
B80: 8.1 | C80: [Name of sub-vote] | D80: =CONCATENATE(B80, " - ", C80) -> 8.1 - [Name of sub-vote] | E80: 8.1 - [Name of sub-vote]
B81: 8.2 | C81: [Name of sub-vote] | D81: 8.2 - [Name of sub-vote]
B82: 8.3 | C82: [Name of sub-vote] | D82: 8.3 - [Name of sub-vote]
B83: 8.4 | C83: [Name of sub-vote] | D83: 8.4 - [Name of sub-vote]
B84: 8.5 | C84: [Name of sub-vote] | D84: 8.5 - [Name of sub-vote]
B85: 8.6 | C85: [Name of sub-vote] | D85: 8.6 - [Name of sub-vote]
B86: 8.7 | C86: [Name of sub-vote] | D86: 8.7 - [Name of sub-vote]
B87: 8.8 | C87: [Name of sub-vote] | D87: 8.8 - [Name of sub-vote]
B88: 8.9 | C88: [Name of sub-vote] | D88: 8.9 - [Name of sub-vote]
B89: 8.10 | C89: [Name of sub-vote] | D89: 8.10 - [Name of sub-vote]
B90: Vote 9 | C90: COMMUNITY & SOCIAL SERVICES
B91: 9.1 | C91: [Name of sub-vote] | D91: =CONCATENATE(B91, " - ", C91) -> 9.1 - [Name of sub-vote] | E91: 9.1 - [Name of sub-vote]
B92: 9.2 | C92: [Name of sub-vote] | D92: 9.2 - [Name of sub-vote]
B93: 9.3 | C93: [Name of sub-vote] | D93: 9.3 - [Name of sub-vote]
B94: 9.4 | C94: [Name of sub-vote] | D94: 9.4 - [Name of sub-vote]
B95: 9.5 | C95: [Name of sub-vote] | D95: 9.5 - [Name of sub-vote]
B96: 9.6 | C96: [Name of sub-vote] | D96: 9.6 - [Name of sub-vote]
B97: 9.7 | C97: [Name of sub-vote] | D97: 9.7 - [Name of sub-vote]
B98: 9.8 | C98: [Name of sub-vote] | D98: 9.8 - [Name of sub-vote]
B99: 9.9 | C99: [Name of sub-vote] | D99: 9.9 - [Name of sub-vote]
B100: 9.10 | C100: [Name of sub-vote] | D100: 9.10 - [Name of sub-vote]
B101: Vote 10 | C101: Office of the Municipal Manager
B102: 10.1 | C102: [Name of sub-vote] | D102: =CONCATENATE(B102, " - ", C102) -> 10.1 - [Name of sub-vote] | E102: 10.1 - [Name of sub-vote]
B103: 10.2 | C103: [Name of sub-vote] | D103: 10.2 - [Name of sub-vote]
B104: 10.3 | C104: [Name of sub-vote] | D104: 10.3 - [Name of sub-vote]
B105: 10.4 | C105: [Name of sub-vote] | D105: 10.4 - [Name of sub-vote]
B106: 10.5 | C106: [Name of sub-vote] | D106: 10.5 - [Name of sub-vote]
B107: 10.6 | C107: [Name of sub-vote] | D107: 10.6 - [Name of sub-vote]
B108: 10.7 | C108: [Name of sub-vote] | D108: 10.7 - [Name of sub-vote]
B109: 10.8 | C109: [Name of sub-vote] | D109: 10.8 - [Name of sub-vote]
B110: 10.9 | C110: [Name of sub-vote] | D110: 10.9 - [Name of sub-vote]
B111: 10.10 | C111: [Name of sub-vote] | D111: 10.10 - [Name of sub-vote]
B112: Vote 11 | C112: [NAME OF VOTE 11]
B113: 11.1 | C113: [Name of sub-vote] | D113: =CONCATENATE(B113, " - ", C113) -> 11.1 - [Name of sub-vote] | E113: 11.1 - [Name of sub-vote]
B114: 11.2 | C114: [Name of sub-vote] | D114: 11.2 - [Name of sub-vote]
B115: 11.3 | C115: [Name of sub-vote] | D115: 11.3 - [Name of sub-vote]
B116: 11.4 | C116: [Name of sub-vote] | D116: 11.4 - [Name of sub-vote]
B117: 11.5 | C117: [Name of sub-vote] | D117: 11.5 - [Name of sub-vote]
B118: 11.6 | C118: [Name of sub-vote] | D118: 11.6 - [Name of sub-vote]
B119: 11.7 | C119: [Name of sub-vote] | D119: 11.7 - [Name of sub-vote]
B120: 11.8 | C120: [Name of sub-vote] | D120: 11.8 - [Name of sub-vote]
B121: 11.9 | C121: [Name of sub-vote] | D121: 11.9 - [Name of sub-vote]
B122: 11.10 | C122: [Name of sub-vote] | D122: 11.10 - [Name of sub-vote]
B123: Vote 12 | C123: [NAME OF VOTE 12]
B124: 12.1 | C124: [Name of sub-vote] | D124: =CONCATENATE(B124, " - ", C124) -> 12.1 - [Name of sub-vote] | E124: 12.1 - [Name of sub-vote]
B125: 12.2 | C125: [Name of sub-vote] | D125: 12.2 - [Name of sub-vote]
B126: 12.3 | C126: [Name of sub-vote] | D126: 12.3 - [Name of sub-vote]
B127: 12.4 | C127: [Name of sub-vote] | D127: 12.4 - [Name of sub-vote]
B128: 12.5 | C128: [Name of sub-vote] | D128: 12.5 - [Name of sub-vote]
B129: 12.6 | C129: [Name of sub-vote] | D129: 12.6 - [Name of sub-vote]
B130: 12.7 | C130: [Name of sub-vote] | D130: 12.7 - [Name of sub-vote]
B131: 12.8 | C131: [Name of sub-vote] | D131: 12.8 - [Name of sub-vote]
B132: 12.9 | C132: [Name of sub-vote] | D132: 12.9 - [Name of sub-vote]
B133: 12.10 | C133: [Name of sub-vote] | D133: 12.10 - [Name of sub-vote]
B134: Vote 13 | C134: [NAME OF VOTE 13]
B135: 13.1 | C135: [Name of sub-vote] | D135: =CONCATENATE(B135, " - ", C135) -> 13.1 - [Name of sub-vote] | E135: 13.1 - [Name of sub-vote]
B136: 13.2 | C136: [Name of sub-vote] | D136: 13.2 - [Name of sub-vote]
B137: 13.3 | C137: [Name of sub-vote] | D137: 13.3 - [Name of sub-vote]
B138: 13.4 | C138: [Name of sub-vote] | D138: 13.4 - [Name of sub-vote]
B139: 13.5 | C139: [Name of sub-vote] | D139: 13.5 - [Name of sub-vote]
B140: 13.6 | C140: [Name of sub-vote] | D140: 13.6 - [Name of sub-vote]
B141: 13.7 | C141: [Name of sub-vote] | D141: 13.7 - [Name of sub-vote]
B142: 13.8 | C142: [Name of sub-vote] | D142: 13.8 - [Name of sub-vote]
B143: 13.9 | C143: [Name of sub-vote] | D143: 13.9 - [Name of sub-vote]
B144: 13.10 | C144: [Name of sub-vote] | D144: 13.10 - [Name of sub-vote]
B145: Vote 14 | C145: [NAME OF VOTE 14]
B146: 14.1 | C146: [Name of sub-vote] | D146: =CONCATENATE(B146, " - ", C146) -> 14.1 - [Name of sub-vote] | E146: 14.1 - [Name of sub-vote]
B147: 14.2 | C147: [Name of sub-vote] | D147: 14.2 - [Name of sub-vote]
B148: 14.3 | C148: [Name of sub-vote] | D148: 14.3 - [Name of sub-vote]
B149: 14.4 | C149: [Name of sub-vote] | D149: 14.4 - [Name of sub-vote]
B150: 14.5 | C150: [Name of sub-vote] | D150: 14.5 - [Name of sub-vote]
B151: 14.6 | C151: [Name of sub-vote] | D151: 14.6 - [Name of sub-vote]
B152: 14.7 | C152: [Name of sub-vote] | D152: 14.7 - [Name of sub-vote]
B153: 14.8 | C153: [Name of sub-vote] | D153: 14.8 - [Name of sub-vote]
B154: 14.9 | C154: [Name of sub-vote] | D154: 14.9 - [Name of sub-vote]
B155: 14.10 | C155: [Name of sub-vote] | D155: 14.10 - [Name of sub-vote]
B156: Vote 15 | C156: [NAME OF VOTE 15]
B157: 15.1 | C157: [Name of sub-vote] | D157: =CONCATENATE(B157, " - ", C157) -> 15.1 - [Name of sub-vote] | E157: 15.1 - [Name of sub-vote]
B158: 15.2 | C158: [Name of sub-vote] | D158: 15.2 - [Name of sub-vote]
B159: 15.3 | C159: [Name of sub-vote] | D159: 15.3 - [Name of sub-vote]
B160: 15.4 | C160: [Name of sub-vote] | D160: 15.4 - [Name of sub-vote]
B161: 15.5 | C161: [Name of sub-vote] | D161: 15.5 - [Name of sub-vote]
B162: 15.6 | C162: [Name of sub-vote] | D162: 15.6 - [Name of sub-vote]
B163: 15.7 | C163: [Name of sub-vote] | D163: 15.7 - [Name of sub-vote]
B164: 15.8 | C164: [Name of sub-vote] | D164: 15.8 - [Name of sub-vote]
B165: 15.9 | C165: [Name of sub-vote] | D165: 15.9 - [Name of sub-vote]
B166: 15.10 | C166: [Name of sub-vote] | D166: 15.10 - [Name of sub-vote]

Sheet Contacts
A1: =muni&" - "&" Contact Information" -> Choose name from list - Contact Information
A3: A. GENERAL INFORMATION
A4: Municipality | B4: =muni -> Choose name from list | C4: =IF(B4="Choose name from List","Set name on 'Instructions' sheet", "") -> Set name on 'Instructions' sheet
A6: Grade | C6: 1 Grade in terms of the Remuneration of Public Office Bearers Act.
A8: Province | B8: =IF(B4>" ",VLOOKUP(B4,'Lookup and lists'!B29:C307,2, FALSE)," ") -> Set name on 'Instructions' sheet
A10: Web Address
A12: e-mail Address
A14: B. CONTACT INFORMATION
A15: Postal address:
A16: P.O. Box
A17: City / Town
A18: Postal Code
A20: Street address
A21: Building
A22: Street No. & Name
A23: City / Town
A24: Postal Code
A26: General Contacts
A27: Telephone number
A28: Fax number
A30: C. POLITICAL LEADERSHIP
A31: Speaker: | C31: Secretary/PA to the Speaker:
A32: ID Number | C32: ID Number
A33: Title | C33: Title
A34: Name | C34: Name
A35: Telephone number | C35: Telephone number
A36: Cell number | C36: Cell number
A37: Fax number | C37: Fax number
A38: E-mail address | C38: E-mail address
A40: Mayor/Executive Mayor: | C40: Secretary/PA to the Mayor/Executive Mayor:
A41: ID Number | C41: ID Number
A42: Title | C42: Title
A43: Name | C43: Name
A44: Telephone number | C44: Telephone number
A45: Cell number | C45: Cell number
A46: Fax number | C46: Fax number
A47: E-mail address | C47: E-mail address
A49: Deputy Mayor/Executive Mayor: | C49: Secretary/PA to the Deputy Mayor/Executive Mayor:
A50: ID Number | C50: ID Number
A51: Title | C51: Title
A52: Name | C52: Name
A53: Telephone number | C53: Telephone number
A54: Cell number | C54: Cell number
A55: Fax number | C55: Fax number
A56: E-mail address | C56: E-mail address
A58: D. MANAGEMENT LEADERSHIP
A59: Municipal Manager: | C59: Secretary/PA to the Municipal Manager:
A60: ID Number | C60: ID Number
A61: Title | C61: Title
A62: Name | C62: Name
A63: Telephone number | C63: Telephone number
A64: Cell number | C64: Cell number
A65: Fax number | C65: Fax number
A66: E-mail address | C66: E-mail address
A68: Chief Financial Officer | C68: Secretary/PA to the Chief Financial Officer
A69: ID Number | C69: ID Number
A70: Title | C70: Title
A71: Name | C71: Name
A72: Telephone number | C72: Telephone number
A73: Cell number | C73: Cell number
A74: Fax number | C74: Fax number
A75: E-mail address | C75: E-mail address
A77: Official responsible for submitting financial information | C77: Official responsible for submitting financial information
A78: ID Number | C78: ID Number
A79: Title | C79: Title
A80: Name | C80: Name
A81: Telephone number | C81: Telephone number
A82: Cell number | C82: Cell number
A83: Fax number | C83: Fax number
A84: E-mail address | C84: E-mail address
A85: Official responsible for submitting financial information | C85: Official responsible for submitting financial information
A86: ID Number | C86: ID Number
A87: Title | C87: Title
A88: Name | C88: Name
A89: Telephone number | C89: Telephone number
A90: Cell number | C90: Cell number
A91: Fax number | C91: Fax number
A92: E-mail address | C92: E-mail address
A93: Official responsible for submitting financial information | C93: Official responsible for submitting financial information
A94: ID Number | C94: ID Number
A95: Title | C95: Title
A96: Name | C96: Name
A97: Telephone number | C97: Telephone number
A98: Cell number | C98: Cell number
A99: Fax number | C99: Fax number
A100: E-mail address | C100: E-mail address
A101: Official responsible for submitting financial information | C101: Official responsible for submitting financial information
A102: ID Number | C102: ID Number
A103: Title | C103: Title
A104: Name | C104: Name
A105: Telephone number | C105: Telephone number
A106: Cell number | C106: Cell number
A107: Fax number | C107: Fax number
A108: E-mail address | C108: E-mail address
A109: Official responsible for submitting financial information | C109: Official responsible for submitting financial information
A110: ID Number | C110: ID Number
A111: Title | C111: Title
A112: Name | C112: Name
A113: Telephone number | C113: Telephone number
A114: Cell number | C114: Cell number
A115: Fax number | C115: Fax number
A116: E-mail address | C116: E-mail address
A117: Official responsible for submitting financial information | C117: Official responsible for submitting financial information
A118: ID Number | C118: ID Number
A119: Title | C119: Title
A120: Name | C120: Name
A121: Telephone number | C121: Telephone number
A122: Cell number | C122: Cell number
A123: Fax number | C123: Fax number
A124: E-mail address | C124: E-mail address
A125: Official responsible for submitting financial information | C125: Official responsible for submitting financial information
A126: ID Number | C126: ID Number
A127: Title | C127: Title
A128: Name | C128: Name
A129: Telephone number | C129: Telephone number
A130: Cell number | C130: Cell number
A131: Fax number | C131: Fax number
A132: E-mail address | C132: E-mail address
A133: Official responsible for submitting financial information
A134: ID Number
A135: Title
A136: Name
A137: Telephone number
A138: Cell number
A139: Fax number
A140: E-mail address

Sheet A1-Sum
A1: =muni&" - "&Approve1 -> Choose name from list - Table A1 Budget Summary
A2: =desc -> Description | B2: =head1b -> 2017/18 | C2: =head1A -> 2018/19 | D2: =Head1 -> 2019/20 | E2: =Head2 -> Current Year 2020/21 | I2: =Head3 -> 2021/22 Medium Term Revenue & Expenditure Framework
A3: R thousands | B3: =Head5 -> Audited Outcome | C3: =Head5 -> Audited Outcome | D3: =Head5 -> Audited Outcome | E3: =Head6 -> Original Budget | F3: =Head7 -> Adjusted Budget | G3: =Head8 -> Full Year Forecast | H3: =Head5b -> Pre-audit outcome | I3: =Head9 -> Budget Year 2021/22 | J3: =Head10 -> Budget Year +1 2022/23 | K3: =Head11 -> Budget Year +2 2023/24
A4: Financial Performance
A5: Property rates | B5: ='A4-FinPerf RE'!C5 -> 99289522.36 | C5: ='A4-FinPerf RE'!D5 -> 109163925 | D5: ='A4-FinPerf RE'!E5 -> 114746520.2 | E5: ='A4-FinPerf RE'!F5 -> 132500000 | F5: ='A4-FinPerf RE'!G5 -> 132500000 | G5: ='A4-FinPerf RE'!H5 -> 132500000 | H5: ='A4-FinPerf RE'!I5 -> 132500000 | I5: ='A4-FinPerf RE'!J5 -> 137500000 | J5: ='A4-FinPerf RE'!K5 -> 143275000 | K5: ='A4-FinPerf RE'!L5 -> 149579106
A6: Service charges | B6: =SUM('A4-FinPerf RE'!C6:C9) -> 483013588 | C6: =SUM('A4-FinPerf RE'!D6:D9) -> 486306408.3 | D6: =SUM('A4-FinPerf RE'!E6:E9) -> 556451662.5 | E6: =SUM('A4-FinPerf RE'!F6:F9) -> 606617132 | F6: =SUM('A4-FinPerf RE'!G6:G9) -> 616159132 | G6: =SUM('A4-FinPerf RE'!H6:H9) -> 616159132 | H6: =SUM('A4-FinPerf RE'!I6:I9) -> 621559132 | I6: =SUM('A4-FinPerf RE'!J6:J9) -> 705528611 | J6: =SUM('A4-FinPerf RE'!K6:K9) -> 776411072 | K6: =SUM('A4-FinPerf RE'!L6:L9) -> 842620899
A7: Investment revenue | B7: ='A4-FinPerf RE'!C12 -> 4427275 | C7: ='A4-FinPerf RE'!D12 -> 9615814.76 | D7: ='A4-FinPerf RE'!E12 -> 8677864.51 | E7: ='A4-FinPerf RE'!F12 -> 4301000 | F7: ='A4-FinPerf RE'!G12 -> 4301000 | G7: ='A4-FinPerf RE'!H12 -> 4301000 | H7: ='A4-FinPerf RE'!I12 -> 4301000 | I7: ='A4-FinPerf RE'!J12 -> 3500000 | J7: ='A4-FinPerf RE'!K12 -> 3647000 | K7: ='A4-FinPerf RE'!L12 -> 3807470
A8: Transfers recognised - operational | B8: ='A4-FinPerf RE'!C18 -> 349037100 | C8: ='A4-FinPerf RE'!D18 -> 369600821 | D8: ='A4-FinPerf RE'!E18 -> 418870589.6 | E8: ='A4-FinPerf RE'!F18 -> 443963950 | F8: ='A4-FinPerf RE'!G18 -> 530963950 | G8: ='A4-FinPerf RE'!H18 -> 530963950 | H8: ='A4-FinPerf RE'!I18 -> 530963950 | I8: ='A4-FinPerf RE'!J18 -> 514088050 | J8: ='A4-FinPerf RE'!K18 -> 479030200 | K8: ='A4-FinPerf RE'!L18 -> 473161852
A9: Other own revenue | B9: ='A4-FinPerf RE'!C11+'A4-FinPerf RE'!C13+'A4-FinPerf RE'!C14+'A4-FinPerf RE'!C15+'A4-FinPerf RE'!C16+'A4-FinPerf RE'!C17+'A4-FinPerf RE'!C19+'A4-FinPerf RE'!C20 -> 104007218.5 | C9: ='A4-FinPerf RE'!D11+'A4-FinPerf RE'!D13+'A4-FinPerf RE'!D14+'A4-FinPerf RE'!D15+'A4-FinPerf RE'!D16+'A4-FinPerf RE'!D17+'A4-FinPerf RE'!D19+'A4-FinPerf RE'!D20 -> 85377889.39 | D9: ='A4-FinPerf RE'!E11+'A4-FinPerf RE'!E13+'A4-FinPerf RE'!E14+'A4-FinPerf RE'!E15+'A4-FinPerf RE'!E16+'A4-FinPerf RE'!E17+'A4-FinPerf RE'!E19+'A4-FinPerf RE'!E20 -> 132340935.5 | E9: ='A4-FinPerf RE'!F11+'A4-FinPerf RE'!F13+'A4-FinPerf RE'!F14+'A4-FinPerf RE'!F15+'A4-FinPerf RE'!F16+'A4-FinPerf RE'!F17+'A4-FinPerf RE'!F19+'A4-FinPerf RE'!F20 -> 129325100 | F9: ='A4-FinPerf RE'!G11+'A4-FinPerf RE'!G13+'A4-FinPerf RE'!G14+'A4-FinPerf RE'!G15+'A4-FinPerf RE'!G16+'A4-FinPerf RE'!G17+'A4-FinPerf RE'!G19+'A4-FinPerf RE'!G20 -> 94555233 | G9: ='A4-FinPerf RE'!H11+'A4-FinPerf RE'!H13+'A4-FinPerf RE'!H14+'A4-FinPerf RE'!H15+'A4-FinPerf RE'!H16+'A4-FinPerf RE'!H17+'A4-FinPerf RE'!H19+'A4-FinPerf RE'!H20 -> 94555233 | H9: ='A4-FinPerf RE'!I11+'A4-FinPerf RE'!I13+'A4-FinPerf RE'!I14+'A4-FinPerf RE'!I15+'A4-FinPerf RE'!I16+'A4-FinPerf RE'!I17+'A4-FinPerf RE'!I19+'A4-FinPerf RE'!I20 -> 94555233 | I9: ='A4-FinPerf RE'!J11+'A4-FinPerf RE'!J13+'A4-FinPerf RE'!J14+'A4-FinPerf RE'!J15+'A4-FinPerf RE'!J16+'A4-FinPerf RE'!J17+'A4-FinPerf RE'!J19+'A4-FinPerf RE'!J20 -> 93325103 | J9: ='A4-FinPerf RE'!K11+'A4-FinPerf RE'!K13+'A4-FinPerf RE'!K14+'A4-FinPerf RE'!K15+'A4-FinPerf RE'!K16+'A4-FinPerf RE'!K17+'A4-FinPerf RE'!K19+'A4-FinPerf RE'!K20 -> 97244770 | K9: ='A4-FinPerf RE'!L11+'A4-FinPerf RE'!L13+'A4-FinPerf RE'!L14+'A4-FinPerf RE'!L15+'A4-FinPerf RE'!L16+'A4-FinPerf RE'!L17+'A4-FinPerf RE'!L19+'A4-FinPerf RE'!L20 -> 101523558
A10: ='A4-FinPerf RE'!A21 -> Total Revenue (excluding capital transfers and contributions) | B10: =SUM(B5:B9) -> 1039774704 | C10: 1060064858 | D10: 1231087572 | E10: 1316707182 | F10: 1378479315 | G10: 1378479315 | H10: 1383879315 | I10: 1453941764 | J10: 1499608042 | K10: 1570692885
A11: Employee costs | B11: ='A4-FinPerf RE'!C24 -> 267621581 | C11: ='A4-FinPerf RE'!D24 -> 214266310 | D11: ='A4-FinPerf RE'!E24 -> 311114595.2 | E11: ='A4-FinPerf RE'!F24 -> 345564119 | F11: ='A4-FinPerf RE'!G24 -> 339639118 | G11: ='A4-FinPerf RE'!H24 -> 339639118 | H11: ='A4-FinPerf RE'!I24 -> 339639118 | I11: ='A4-FinPerf RE'!J24 -> 349870066 | J11: ='A4-FinPerf RE'!K24 -> 364564780 | K11: ='A4-FinPerf RE'!L24 -> 380605749
A12: Remuneration of councillors | B12: ='A4-FinPerf RE'!C25 -> 24432411.04 | C12: ='A4-FinPerf RE'!D25 -> 26136302.58 | D12: ='A4-FinPerf RE'!E25 -> 26976533.73 | E12: ='A4-FinPerf RE'!F25 -> 29034983 | F12: ='A4-FinPerf RE'!G25 -> 29034983 | G12: ='A4-FinPerf RE'!H25 -> 29034983 | H12: ='A4-FinPerf RE'!I25 -> 29034983 | I12: ='A4-FinPerf RE'!J25 -> 28405898 | J12: ='A4-FinPerf RE'!K25 -> 29598958 | K12: ='A4-FinPerf RE'!L25 -> 30901317
A13: Depreciation & asset impairment | B13: ='A4-FinPerf RE'!C27 -> 130493937.2 | C13: ='A4-FinPerf RE'!D27 -> 132641263.5 | D13: ='A4-FinPerf RE'!E27 -> 107614714.9 | E13: ='A4-FinPerf RE'!F27 -> 132970807 | F13: ='A4-FinPerf RE'!G27 -> 132970807 | G13: ='A4-FinPerf RE'!H27 -> 132970807 | H13: ='A4-FinPerf RE'!I27 -> 132970807 | I13: ='A4-FinPerf RE'!J27 -> 129972562 | J13: ='A4-FinPerf RE'!K27 -> 135431430 | K13: ='A4-FinPerf RE'!L27 -> 141390421
A14: Finance charges | B14: ='A4-FinPerf RE'!C28 -> 11974271.19 | C14: ='A4-FinPerf RE'!D28 -> 11973760 | D14: ='A4-FinPerf RE'!E28 -> 14906807.83 | E14: ='A4-FinPerf RE'!F28 -> 15728808 | F14: ='A4-FinPerf RE'!G28 -> 16728808 | G14: ='A4-FinPerf RE'!H28 -> 16728808 | H14: ='A4-FinPerf RE'!I28 -> 16728808 | I14: ='A4-FinPerf RE'!J28 -> 17826562 | J14: ='A4-FinPerf RE'!K28 -> 18575280 | K14: ='A4-FinPerf RE'!L28 -> 19392600
A15: Inventory consumed and bulk purchases | B15: ='A4-FinPerf RE'!C29+'A4-FinPerf RE'!C30 -> 384782777.3 | C15: ='A4-FinPerf RE'!D29+'A4-FinPerf RE'!D30 -> 464167680 | D15: ='A4-FinPerf RE'!E29+'A4-FinPerf RE'!E30 -> 427059194.6 | E15: ='A4-FinPerf RE'!F29+'A4-FinPerf RE'!F30 -> 463508585 | F15: ='A4-FinPerf RE'!G29+'A4-FinPerf RE'!G30 -> 477046665 | G15: ='A4-FinPerf RE'!H29+'A4-FinPerf RE'!H30 -> 477046665 | H15: ='A4-FinPerf RE'!I29+'A4-FinPerf RE'!I30 -> 477046665 | I15: ='A4-FinPerf RE'!J29+'A4-FinPerf RE'!J30 -> 528796568 | J15: ='A4-FinPerf RE'!K29+'A4-FinPerf RE'!K30 -> 556193263 | K15: ='A4-FinPerf RE'!L29+'A4-FinPerf RE'!L30 -> 603854201
A16: Transfers and grants | B16: ='A4-FinPerf RE'!C32 -> 112420696.4 | C16: ='A4-FinPerf RE'!D32 -> 57132145 | D16: ='A4-FinPerf RE'!E32 -> 36987650.1 | E16: ='A4-FinPerf RE'!F32 -> 30919000 | F16: ='A4-FinPerf RE'!G32 -> 31351814 | G16: ='A4-FinPerf RE'!H32 -> 31351814 | H16: ='A4-FinPerf RE'!I32 -> 31351814 | I16: ='A4-FinPerf RE'!J32 -> 32118000 | J16: ='A4-FinPerf RE'!K32 -> 7871670 | K16: ='A4-FinPerf RE'!L32 -> 8130053
A17: Other expenditure | B17: ='A4-FinPerf RE'!C26+'A4-FinPerf RE'!C31+'A4-FinPerf RE'!C33+'A4-FinPerf RE'!C34 -> 293285096.6 | C17: ='A4-FinPerf RE'!D26+'A4-FinPerf RE'!D31+'A4-FinPerf RE'!D33+'A4-FinPerf RE'!D34 -> 292670337.6 | D17: ='A4-FinPerf RE'!E26+'A4-FinPerf RE'!E31+'A4-FinPerf RE'!E33+'A4-FinPerf RE'!E34 -> 181692880.9 | E17: ='A4-FinPerf RE'!F26+'A4-FinPerf RE'!F31+'A4-FinPerf RE'!F33+'A4-FinPerf RE'!F34 -> 269628739 | F17: ='A4-FinPerf RE'!G26+'A4-FinPerf RE'!G31+'A4-FinPerf RE'!G33+'A4-FinPerf RE'!G34 -> 253948855 | G17: ='A4-FinPerf RE'!H26+'A4-FinPerf RE'!H31+'A4-FinPerf RE'!H33+'A4-FinPerf RE'!H34 -> 253948855 | H17: ='A4-FinPerf RE'!I26+'A4-FinPerf RE'!I31+'A4-FinPerf RE'!I33+'A4-FinPerf RE'!I34 -> 253948855 | I17: ='A4-FinPerf RE'!J26+'A4-FinPerf RE'!J31+'A4-FinPerf RE'!J33+'A4-FinPerf RE'!J34 -> 235182985 | J17: ='A4-FinPerf RE'!K26+'A4-FinPerf RE'!K31+'A4-FinPerf RE'!K33+'A4-FinPerf RE'!K34 -> 245060857 | K17: ='A4-FinPerf RE'!L26+'A4-FinPerf RE'!L31+'A4-FinPerf RE'!L33+'A4-FinPerf RE'!L34 -> 255843688
A18: ='A4-FinPerf RE'!A35 -> Total Expenditure | B18: =SUM(B11:B17) -> 1225010771 | C18: =SUM(C11:C17) -> 1198987799 | D18: 1106352377 | E18: 1287355041 | F18: 1280721050 | G18: 1280721050 | H18: 1280721050 | I18: 1322172641 | J18: 1357296238 | K18: 1440118029
A19: ='A4-FinPerf RE'!A37 -> Surplus/(Deficit) | B19: =B10-B18 -> -185236066.9 | C19: -138922940.2 | D19: 124735195.1 | E19: 29352141 | F19: 97758265 | G19: 97758265 | H19: 103158265 | I19: 131769123 | J19: 142311804 | K19: 130574856
A20: ='A4-FinPerf RE'!A38 -> Transfers and subsidies - capital (monetary allocations) (National / Provincial and District) | B20: ='A4-FinPerf RE'!C38 -> 96944900 | C20: ='A4-FinPerf RE'!D38 -> 76150621.19 | D20: ='A4-FinPerf RE'!E38 -> 77869317.11 | E20: ='A4-FinPerf RE'!F38 -> 88938050 | F20: ='A4-FinPerf RE'!G38 -> 88938050 | G20: ='A4-FinPerf RE'!H38 -> 88938050 | H20: ='A4-FinPerf RE'!I38 -> 88938050 | I20: ='A4-FinPerf RE'!J38 -> 94753950 | J20: ='A4-FinPerf RE'!K38 -> 102603800 | K20: ='A4-FinPerf RE'!L38 -> 107290150
A21: ='A4-FinPerf RE'!A39&" & "&'A4-FinPerf RE'!A40 -> Transfers and subsidies - capital (monetary allocations) (National / Provincial Departmental Agencies, Households, Non-profit Institutions, Private Enterprises, Public Corporatons, Higher Educational Institutions) & Transfers and subsidies - capital (in-kind - all) | B21: ='A4-FinPerf RE'!C39+'A4-FinPerf RE'!C40 -> 0 | C21: ='A4-FinPerf RE'!D39+'A4-FinPerf RE'!D40 -> 0 | D21: ='A4-FinPerf RE'!E39+'A4-FinPerf RE'!E40 -> 10000000 | E21: ='A4-FinPerf RE'!F39+'A4-FinPerf RE'!F40 -> 0 | F21: ='A4-FinPerf RE'!G39+'A4-FinPerf RE'!G40 -> 0 | G21: ='A4-FinPerf RE'!H39+'A4-FinPerf RE'!H40 -> 0 | H21: ='A4-FinPerf RE'!I39+'A4-FinPerf RE'!I40 -> 0 | I21: ='A4-FinPerf RE'!J39+'A4-FinPerf RE'!J40 -> 0 | J21: ='A4-FinPerf RE'!K39+'A4-FinPerf RE'!K40 -> 0 | K21: ='A4-FinPerf RE'!L39+'A4-FinPerf RE'!L40 -> 1
A22: ='A4-FinPerf RE'!A41 -> Surplus/(Deficit) after capital transfers & contributions | B22: =B19+SUM(B20:B21) -> -88291166.91 | C22: =C19+SUM(C20:C21) -> -62772319 | E22: 118290191 | F22: 186696315 | G22: 186696315 | H22: 192096315 | I22: 226523073 | J22: 244915604 | K22: 237865007
A23: ='A4-FinPerf RE'!A46 -> Share of surplus/ (deficit) of associate | B23: ='A4-FinPerf RE'!C46 -> 0 | C23: ='A4-FinPerf RE'!D46 -> 0 | D23: ='A4-FinPerf RE'!E46 -> 0 | E23: ='A4-FinPerf RE'!F46 -> 0 | F23: ='A4-FinPerf RE'!G46 -> 0 | G23: ='A4-FinPerf RE'!H46 -> 0 | H23: ='A4-FinPerf RE'!I46 -> 0 | I23: ='A4-FinPerf RE'!J46 -> 0 | J23: ='A4-FinPerf RE'!K46 -> 0 | K23: ='A4-FinPerf RE'!L46 -> 0
A24: ='A4-FinPerf RE'!A47 -> Surplus/(Deficit) for the year | B24: =B22+B23 -> -88291166.91 | C24: =C22+C23 -> -62772319 | D24: 0 | E24: 118290191 | F24: 186696315 | G24: 186696315 | H24: 192096315 | I24: 226523073 | J24: 244915604 | K24: 237865007
A26: Capital expenditure & funds sources
A27: Capital expenditure | B27: ='A5-Capex'!C63 -> 126531358 | C27: ='A5-Capex'!D63 -> 103482439 | D27: ='A5-Capex'!E63 -> 190258111.3 | E27: ='A5-Capex'!F63 -> 130973034 | F27: ='A5-Capex'!G63 -> 161492943 | G27: ='A5-Capex'!H63 -> 161492943 | H27: ='A5-Capex'!I63 -> 161492943 | I27: ='A5-Capex'!J63 -> 130857450 | J27: ='A5-Capex'!K63 -> 160103800 | K27: ='A5-Capex'!L63 -> 176675282
A28: Transfers recognised - capital | B28: ='A5-Capex'!C70 -> 96944900 | C28: ='A5-Capex'!D70 -> 86451929 | D28: ='A5-Capex'!E70 -> 99549850.99 | E28: ='A5-Capex'!F70 -> 88938034 | F28: ='A5-Capex'!G70 -> 97289054 | G28: ='A5-Capex'!H70 -> 97289054 | H28: ='A5-Capex'!I70 -> 97289054 | I28: ='A5-Capex'!J70 -> 94753950 | J28: ='A5-Capex'!K70 -> 102603800 | K28: ='A5-Capex'!L70 -> 107290191
A30: ='A5-Capex'!A72 -> Borrowing | B30: ='A5-Capex'!C72 -> 12113986 | C30: ='A5-Capex'!D72 -> 17030510 | D30: ='A5-Capex'!E72 -> 32847672.04 | E30: ='A5-Capex'!F72 -> 22000000 | F30: ='A5-Capex'!G72 -> 34828543 | G30: ='A5-Capex'!H72 -> 34828543 | H30: ='A5-Capex'!I72 -> 34828543 | I30: ='A5-Capex'!J72 -> 0 | J30: ='A5-Capex'!K72 -> 0 | K30: ='A5-Capex'!L72 -> 56
A31: ='A5-Capex'!A73 -> Internally generated funds | B31: ='A5-Capex'!C73 -> 17472472 | C31: ='A5-Capex'!D73 -> 0 | D31: ='A5-Capex'!E73 -> 57860588.31 | E31: ='A5-Capex'!F73 -> 20035000 | F31: ='A5-Capex'!G73 -> 29375346 | G31: ='A5-Capex'!H73 -> 29375346 | H31: ='A5-Capex'!I73 -> 29375346 | I31: ='A5-Capex'!J73 -> 36103500 | J31: ='A5-Capex'!K73 -> 57500000 | K31: ='A5-Capex'!L73 -> 69385035
A32: Total sources of capital funds | B32: =+B28+B30+B31 -> 126531358 | C32: =+C28+C30+C31 -> 103482439 | D32: 190258111.3 | E32: 130973034 | F32: 161492943 | G32: 161492943 | H32: 161492943 | I32: 130857450 | J32: 160103800 | K32: 176675282
A34: Financial position
A35: ='A6-FinPos'!A12 -> Total current assets | B35: ='A6-FinPos'!C12 -> 441830127 | C35: ='A6-FinPos'!D12 -> 473169178.8 | D35: ='A6-FinPos'!E12 -> 679168794.2 | E35: ='A6-FinPos'!F12 -> 465244041 | F35: ='A6-FinPos'!G12 -> 455244040 | G35: ='A6-FinPos'!H12 -> 455244040 | H35: ='A6-FinPos'!I12 -> 455244040 | I35: ='A6-FinPos'!J12 -> 587244041 | J35: ='A6-FinPos'!K12 -> 612364291 | K35: ='A6-FinPos'!L12 -> 629809269
A36: ='A6-FinPos'!A24 -> Total non current assets | B36: ='A6-FinPos'!C24 -> 1696376440 | C36: ='A6-FinPos'!D24 -> 1671375273 | D36: ='A6-FinPos'!E24 -> 1690419002 | E36: ='A6-FinPos'!F24 -> 1977531938 | F36: ='A6-FinPos'!G24 -> 2008051887 | G36: ='A6-FinPos'!H24 -> 2008051887 | H36: ='A6-FinPos'!I24 -> 2008051887 | I36: ='A6-FinPos'!J24 -> 2821424602 | J36: ='A6-FinPos'!K24 -> 3333223494 | K36: ='A6-FinPos'!L24 -> 3536675971
A37: ='A6-FinPos'!A34 -> Total current liabilities | B37: ='A6-FinPos'!C34 -> 287027105 | C37: ='A6-FinPos'!D34 -> 330258143 | D37: ='A6-FinPos'!E34 -> 335036243.7 | E37: ='A6-FinPos'!F34 -> 318852673 | F37: ='A6-FinPos'!G34 -> 332830069 | G37: ='A6-FinPos'!H34 -> 332830069 | H37: ='A6-FinPos'!I34 -> 275723989 | I37: ='A6-FinPos'!J34 -> 82175175 | J37: ='A6-FinPos'!K34 -> 84445657 | K37: ='A6-FinPos'!L34 -> -215639003
A38: ='A6-FinPos'!A39 -> Total non current liabilities | B38: ='A6-FinPos'!C39 -> 181507281 | C38: ='A6-FinPos'!D39 -> 196474919 | D38: ='A6-FinPos'!E39 -> 204135550 | E38: ='A6-FinPos'!F39 -> 232079631 | F38: ='A6-FinPos'!G39 -> 232079688 | G38: ='A6-FinPos'!H39 -> 232079688 | H38: ='A6-FinPos'!I39 -> 232079688 | I38: ='A6-FinPos'!J39 -> 233360365 | J38: ='A6-FinPos'!K39 -> 236404157 | K38: ='A6-FinPos'!L39 -> 246484180
A39: Community wealth/Equity | B39: ='A6-FinPos'!C48 -> 1669672181 | C39: ='A6-FinPos'!D48 -> 1617811390 | D39: ='A6-FinPos'!E48 -> 1830416003 | E39: ='A6-FinPos'!F48 -> 1891843675 | F39: ='A6-FinPos'!G48 -> 1898386170 | G39: ='A6-FinPos'!H48 -> 1898386170 | H39: ='A6-FinPos'!I48 -> 0 | I39: ='A6-FinPos'!J48 -> 3093133103 | J39: ='A6-FinPos'!K48 -> 3624737971 | K39: ='A6-FinPos'!L48 -> 4135640054
A41: Cash flows
A42: Net cash from (used) operating | B42: ='A7-CFlow'!C17 -> 119277967 | C42: ='A7-CFlow'!D17 -> 143031413 | D42: ='A7-CFlow'!E17 -> 181782418.5 | E42: ='A7-CFlow'!F17 -> 1261310008 | F42: ='A7-CFlow'!G17 -> 102304273 | G42: ='A7-CFlow'!H17 -> 102304273 | H42: ='A7-CFlow'!I17 -> 102304273 | I42: ='A7-CFlow'!J17 -> 139305597 | J42: ='A7-CFlow'!K17 -> 149915639 | K42: ='A7-CFlow'!L17 -> 162520863
A43: Net cash from (used) investing | B43: ='A7-CFlow'!C27 -> -122314811 | C43: ='A7-CFlow'!D27 -> -142853946 | D43: ='A7-CFlow'!E27 -> -153383488.7 | E43: ='A7-CFlow'!F27 -> -128700833 | F43: ='A7-CFlow'!G27 -> -152904284 | G43: ='A7-CFlow'!H27 -> -152904284 | H43: ='A7-CFlow'!I27 -> -152904284 | I43: ='A7-CFlow'!J27 -> -130407450 | J43: ='A7-CFlow'!K27 -> -138803802 | K43: ='A7-CFlow'!L27 -> -149075194
A44: Net cash from (used) financing | B44: ='A7-CFlow'!C36 -> -21312438 | C44: ='A7-CFlow'!D36 -> 34364879 | D44: ='A7-CFlow'!E36 -> -216174.21 | E44: ='A7-CFlow'!F36 -> 29675955 | F44: ='A7-CFlow'!G36 -> 29675952 | G44: ='A7-CFlow'!H36 -> 29675952 | H44: ='A7-CFlow'!I36 -> 29675952 | I44: ='A7-CFlow'!J36 -> -8898147 | J44: ='A7-CFlow'!K36 -> -9683837 | K44: ='A7-CFlow'!L36 -> -13314839
A45: =LEFT('A7-CFlow'!A40,37) -> Cash/cash equivalents at the year end | B45: ='A7-CFlow'!C40 -> 7489881 | C45: ='A7-CFlow'!D40 -> 42033011 | D45: ='A7-CFlow'!E40 -> 70215766.17 | E45: ='A7-CFlow'!F40 -> 1205795982 | F45: ='A7-CFlow'!G40 -> 49291708 | G45: ='A7-CFlow'!H40 -> 49291708 | H45: ='A7-CFlow'!I40 -> 49291708 | I45: ='A7-CFlow'!J40 -> 34000000 | J45: ='A7-CFlow'!K40 -> 35428000 | K45: ='A7-CFlow'!L40 -> 35558830
A47: Cash backing/surplus reconciliation
A48: ='A8-ResRecon'!A4 -> Cash and investments available | B48: ='A8-ResRecon'!C8 -> 34378063 | C48: ='A8-ResRecon'!D8 -> 73558093.84 | D48: ='A8-ResRecon'!E8 -> 91329164.52 | E48: ='A8-ResRecon'!F8 -> 65995950 | F48: ='A8-ResRecon'!G8 -> 55995976 | G48: ='A8-ResRecon'!H8 -> 55995976 | H48: ='A8-ResRecon'!I8 -> 55995976 | I48: ='A8-ResRecon'!J8 -> 52482970 | J48: ='A8-ResRecon'!K8 -> 54366127 | K48: ='A8-ResRecon'!L8 -> 54971129
A49: ='A8-ResRecon'!A10 -> Application of cash and investments | B49: ='A8-ResRecon'!C18 -> -75830731 | C49: ='A8-ResRecon'!D18 -> -54983760 | D49: ='A8-ResRecon'!E18 -> -193105881.1 | E49: ='A8-ResRecon'!F18 -> -59668070 | F49: ='A8-ResRecon'!G18 -> -55772730 | G49: ='A8-ResRecon'!H18 -> -55772730 | H49: ='A8-ResRecon'!I18 -> -53564730 | I49: ='A8-ResRecon'!J18 -> -372596590 | J49: ='A8-ResRecon'!K18 -> -390362176 | K49: ='A8-ResRecon'!L18 -> -859085779
A50: Balance - surplus (shortfall) | B50: =B48-B49 -> 110208794 | C50: =C48-C49 -> 128541853.8 | D50: 284435045.6 | E50: 125664020 | F50: 111768706 | G50: 111768706 | H50: 109560706 | I50: 425079560 | J50: 444728303 | K50: 914056908
A52: Asset management
A53: Asset register summary (WDV) | B53: ='A9-Asset'!C165 -> 1669489042 | C53: ='A9-Asset'!D165 -> 1639850190 | D53: ='A9-Asset'!E165 -> 1569928216 | E53: ='A9-Asset'!F165 -> 1955535988 | F53: ='A9-Asset'!G165 -> 1982055911 | G53: ='A9-Asset'!H165 -> 1982055911 | H53: ='A9-Asset'!H165 -> 1982055911 | I53: ='A9-Asset'!I165 -> 2802941632 | J53: ='A9-Asset'!J165 -> 3314285367 | K53: ='A9-Asset'!K165 -> 3517263679
A54: ='A9-Asset'!A168 -> Depreciation | B54: ='A9-Asset'!C168 -> 130493937.2 | C54: ='A9-Asset'!D168 -> 128241991.2 | D54: ='A9-Asset'!E168 -> 98378041.76 | E54: ='A9-Asset'!F168 -> 132970807 | F54: ='A9-Asset'!G168 -> 132970807 | G54: ='A9-Asset'!H168 -> 132970807 | H54: ='A9-Asset'!H168 -> 132970807 | I54: ='A9-Asset'!I168 -> 129972562 | J54: ='A9-Asset'!J168 -> 135431430 | K54: ='A9-Asset'!K168 -> 141390421
A55: Renewal and Upgrading of Existing Assets | B55: ='A9-Asset'!C37+'A9-Asset'!C69 -> 99363728 | C55: ='A9-Asset'!D37+'A9-Asset'!D69 -> 17531610 | D55: ='A9-Asset'!E37+'A9-Asset'!E69 -> 82302328.06 | E55: ='A9-Asset'!F37+'A9-Asset'!F69 -> 106938034 | F55: ='A9-Asset'!G37+'A9-Asset'!G69 -> 125961405 | G55: ='A9-Asset'!H37+'A9-Asset'!H69 -> 125961405 | H55: ='A9-Asset'!H37+'A9-Asset'!H69 -> 125961405 | I55: ='A9-Asset'!I37+'A9-Asset'!I69 -> 105153950 | J55: ='A9-Asset'!J37+'A9-Asset'!J69 -> 137703800 | K55: ='A9-Asset'!K37+'A9-Asset'!K69 -> 143390209
A56: Repairs and Maintenance | B56: ='A9-Asset'!C169 -> 59154216.31 | C56: ='A9-Asset'!D169 -> 107508345 | D56: ='A9-Asset'!E169 -> 36103874.4 | E56: ='A9-Asset'!F169 -> 56241085 | F56: ='A9-Asset'!G169 -> 65967085 | G56: ='A9-Asset'!H169 -> 65967085 | H56: ='A9-Asset'!H169 -> 65967085 | I56: ='A9-Asset'!I169 -> 137360644 | J56: ='A9-Asset'!J169 -> 143585709 | K56: ='A9-Asset'!K169 -> 150564327
A58: Free services
A59: Cost of Free Basic Services provided | B59: ='A10-SerDel'!C60 -> 0 | C59: ='A10-SerDel'!D60 -> 0 | D59: ='A10-SerDel'!E60 -> 0 | E59: ='A10-SerDel'!F60 -> 0 | F59: ='A10-SerDel'!G60 -> 0 | G59: ='A10-SerDel'!H60 -> 0 | H59: ='A10-SerDel'!I60 -> 0 | I59: ='A10-SerDel'!I60 -> 0 | J59: ='A10-SerDel'!J60 -> 0 | K59: ='A10-SerDel'!K60 -> 0
A60: Revenue cost of free services provided | B60: ='A10-SerDel'!C79 -> 0 | C60: ='A10-SerDel'!D79 -> 0 | D60: ='A10-SerDel'!E79 -> 0 | E60: ='A10-SerDel'!F79 -> 0 | F60: ='A10-SerDel'!G79 -> 0 | G60: ='A10-SerDel'!H79 -> 0 | H60: ='A10-SerDel'!I79 -> 0 | I60: ='A10-SerDel'!I79 -> 0 | J60: ='A10-SerDel'!J79 -> 0 | K60: ='A10-SerDel'!K79 -> 0
A61: Households below minimum service level
A62: ='A10-SerDel'!A5 -> Water: | B62: ='A10-SerDel'!C14 -> 23511 | C62: ='A10-SerDel'!D14 -> 150561 | D62: ='A10-SerDel'!E14 -> 0 | E62: ='A10-SerDel'!F14 -> 150561 | F62: ='A10-SerDel'!G14 -> 150561 | G62: ='A10-SerDel'!H14 -> 150561 | H62: ='A10-SerDel'!I14 -> 23511 | I62: ='A10-SerDel'!I14 -> 23511 | J62: ='A10-SerDel'!J14 -> 23511 | K62: ='A10-SerDel'!K14 -> 23511
A63: ='A10-SerDel'!A16 -> Sanitation/sewerage: | B63: ='A10-SerDel'!C26 -> 27058 | C63: ='A10-SerDel'!D26 -> 150561 | D63: ='A10-SerDel'!E26 -> 0 | E63: ='A10-SerDel'!F26 -> 150561 | F63: ='A10-SerDel'!G26 -> 150561 | G63: ='A10-SerDel'!H26 -> 150561 | H63: ='A10-SerDel'!I26 -> 27058 | I63: ='A10-SerDel'!I26 -> 27058 | J63: ='A10-SerDel'!J26 -> 27058 | K63: ='A10-SerDel'!K26 -> 27058
A64: ='A10-SerDel'!A28 -> Energy: | B64: ='A10-SerDel'!C35 -> 0 | C64: ='A10-SerDel'!D35 -> 150561 | D64: ='A10-SerDel'!E35 -> 0 | E64: ='A10-SerDel'!F35 -> 150561 | F64: ='A10-SerDel'!G35 -> 150561 | G64: ='A10-SerDel'!H35 -> 150561 | H64: ='A10-SerDel'!I35 -> 0 | I64: ='A10-SerDel'!I35 -> 0 | J64: ='A10-SerDel'!J35 -> 0 | K64: ='A10-SerDel'!K35 -> 0
A65: ='A10-SerDel'!A37 -> Refuse: | B65: ='A10-SerDel'!C45 -> 99992 | C65: ='A10-SerDel'!D45 -> 99992 | D65: ='A10-SerDel'!E45 -> 0 | E65: ='A10-SerDel'!F45 -> 99992 | F65: ='A10-SerDel'!G45 -> 99992 | G65: ='A10-SerDel'!H45 -> 99992 | H65: ='A10-SerDel'!I45 -> 150561 | I65: ='A10-SerDel'!I45 -> 150561 | J65: ='A10-SerDel'!J45 -> 150561 | K65: ='A10-SerDel'!K45 -> 150561

Sheet A2-FinPerf SC
A1: =muni&" - "&Approve3 -> Choose name from list - Table A2 Budgeted Financial Performance (revenue and expenditure by functional classification)
A2: ="Functional Classification "&desc -> Functional Classification Description | B2: =head27 -> Ref | C2: =head1b -> 2017/18 | D2: =head1A -> 2018/19 | E2: =Head1 -> 2019/20 | F2: =Head2 -> Current Year 2020/21 | I2: =Head3 -> 2021/22 Medium Term Revenue & Expenditure Framework
A3: R thousand | B3: 1 | C3: =Head5 -> Audited Outcome | D3: =Head5 -> Audited Outcome | E3: =Head5 -> Audited Outcome | F3: =Head6 -> Original Budget | G3: =Head7 -> Adjusted Budget | H3: =Head8 -> Full Year Forecast | I3: =Head9 -> Budget Year 2021/22 | J3: =Head10 -> Budget Year +1 2022/23 | K3: =Head11 -> Budget Year +2 2023/24
A4: Revenue - Functional
A5: Governance and administration | C5: =SUM(C6:C8) -> 364427892 | D5: =SUM(D6:D8) -> 468166271.8 | E5: 573827117.9 | F5: 552813082 | G5: 646043213 | H5: 646043213 | I5: 575471457 | J5: 606399306 | K5: 604742202
A6: Executive and council | C6: =A2A!C6 -> 0 | D6: =A2A!D6 -> 0 | E6: =A2A!E6 -> 298000 | F6: =A2A!F6 -> 1100 | G6: =A2A!G6 -> 1100 | H6: =A2A!H6 -> 1100 | I6: =A2A!I6 -> 1100 | J6: =A2A!J6 -> 1147 | K6: =A2A!K6 -> 1197
A7: Finance and administration | C7: =A2A!C9 -> 364427892 | D7: =A2A!D9 -> 468166271.8 | E7: =A2A!E9 -> 573529117.9 | F7: =A2A!F9 -> 552811982 | G7: =A2A!G9 -> 646042113 | H7: =A2A!H9 -> 646042113 | I7: =A2A!I9 -> 575470357 | J7: =A2A!J9 -> 606398159 | K7: =A2A!K9 -> 604741005
A8: Internal audit | C8: =A2A!C23 -> 0 | D8: =A2A!D23 -> 0 | E8: =A2A!E23 -> 0 | F8: =A2A!F23 -> 0 | G8: =A2A!G23 -> 0 | H8: =A2A!H23 -> 0 | I8: =A2A!I23 -> 0 | J8: =A2A!J23 -> 0 | K8: =A2A!K23 -> 0
A9: Community and public safety | C9: =SUM(C10:C14) -> 56107950.85 | D9: =SUM(D10:D14) -> 35072212.84 | E9: 27834887.6 | F9: 40390127 | G9: 40390127 | H9: 40390127 | I9: 40390127 | J9: 42086516 | K9: 43938324
A10: Community and social services | C10: =A2A!C26 -> 45523.5 | D10: =A2A!D26 -> 9603 | E10: =A2A!E26 -> 32515 | F10: =A2A!F26 -> 56136 | G10: =A2A!G26 -> 56136 | H10: =A2A!H26 -> 56136 | I10: =A2A!I26 -> 56136 | J10: =A2A!J26 -> 58495 | K10: =A2A!K26 -> 61070
A11: Sport and recreation | C11: =A2A!C48 -> 149130 | D11: =A2A!D48 -> 0 | E11: =A2A!E48 -> 359180.41 | F11: =A2A!F48 -> 660766 | G11: =A2A!G48 -> 660766 | H11: =A2A!H48 -> 660766 | I11: =A2A!I48 -> 660766 | J11: =A2A!J48 -> 688519 | K11: =A2A!K48 -> 718814
A12: Public safety | C12: =A2A!C54 -> 45442703 | D12: =A2A!D54 -> 31736170 | E12: =A2A!E54 -> 25556445 | F12: =A2A!F54 -> 38001000 | G12: =A2A!G54 -> 38001000 | H12: =A2A!H54 -> 38001000 | I12: =A2A!I54 -> 38001000 | J12: =A2A!J54 -> 39597042 | K12: =A2A!K54 -> 41339312
A13: Housing | C13: =A2A!C63 -> 1822418.98 | D13: =A2A!D63 -> 2724137.92 | E13: =A2A!E63 -> 1866536.49 | F13: =A2A!F63 -> 1659225 | G13: =A2A!G63 -> 1659225 | H13: =A2A!H63 -> 1659225 | I13: =A2A!I63 -> 1659225 | J13: =A2A!J63 -> 1728914 | K13: =A2A!K63 -> 1804985
A14: Health | C14: =A2A!C66 -> 8648175.37 | D14: =A2A!D66 -> 602301.92 | E14: =A2A!E66 -> 20210.7 | F14: =A2A!F66 -> 13000 | G14: =A2A!G66 -> 13000 | H14: =A2A!H66 -> 13000 | I14: =A2A!I66 -> 13000 | J14: =A2A!J66 -> 13546 | K14: =A2A!K66 -> 14143
A15: Economic and environmental services | C15: =SUM(C16:C18) -> 196404602 | D15: =SUM(D16:D18) -> 129228294.3 | E15: 107011252.1 | F15: 152700516 | G15: 116700517 | H15: 116700517 | I15: 122822518 | J15: 132054946 | K15: 138046189
A16: Planning and development | C16: =A2A!C75 -> 11015460 | D16: =A2A!D75 -> 3372625 | E16: =A2A!E75 -> 355705.99 | F16: =A2A!F75 -> 400125 | G16: =A2A!G75 -> 400125 | H16: =A2A!H75 -> 400125 | I16: =A2A!I75 -> 400126 | J16: =A2A!J75 -> 416933 | K16: =A2A!K75 -> 435278
A17: Road transport | C17: =A2A!C86 -> 185389142 | D17: =A2A!D86 -> 125855669.3 | E17: =A2A!E86 -> 106655546.1 | F17: =A2A!F86 -> 152300391 | G17: =A2A!G86 -> 116300392 | H17: =A2A!H86 -> 116300392 | I17: =A2A!I86 -> 122422392 | J17: =A2A!J86 -> 131638013 | K17: =A2A!K86 -> 137610911
A18: Environmental protection | C18: =A2A!C91 -> 0 | D18: =A2A!D91 -> 0 | E18: =A2A!E91 -> 0 | F18: =A2A!F91 -> 0 | G18: =A2A!G91 -> 0 | H18: =A2A!H91 -> 0 | I18: =A2A!I91 -> 0 | J18: =A2A!J91 -> 0 | K18: =A2A!K91 -> 0
A19: Trading services | C19: =SUM(C20:C23) -> 519779159 | D19: =SUM(D20:D23) -> 503748700.7 | E19: 610283631.9 | F19: 659741507 | G19: 664283509 | H19: 664283509 | I19: 810011612 | J19: =SUM(J20:J23) -> 821671074 | K19: 891256321
A20: Energy sources | C20: =A2A!C99 -> 457445097 | D20: =A2A!D99 -> 452008851 | E20: =A2A!E99 -> 577155264.6 | F20: =A2A!F99 -> 586201000 | G20: =A2A!G99 -> 590743000 | H20: =A2A!H99 -> 590743000 | I20: =A2A!I99 -> 735641250 | J20: =A2A!J99 -> 752995601 | K20: =A2A!K99 -> 819559128
A21: Water management | C21: =A2A!C103 -> 0 | D21: =A2A!D103 -> 0 | E21: =A2A!E103 -> 0 | F21: =A2A!F103 -> 0 | G21: =A2A!G103 -> 1 | H21: =A2A!H103 -> 1 | I21: =A2A!I103 -> 1 | J21: =A2A!J103 -> 2 | K21: =A2A!K103 -> 2
A22: Waste water management | C22: =A2A!C107 -> 1425748 | D22: =A2A!D107 -> 0 | E22: =A2A!E107 -> 0 | F22: =A2A!F107 -> 0 | G22: =A2A!G107 -> 0 | H22: =A2A!H107 -> 0 | I22: =A2A!I107 -> 0 | J22: =A2A!J107 -> 0 | K22: =A2A!K107 -> 0
A23: Waste management | C23: =A2A!C112 -> 60908314 | D23: =A2A!D112 -> 51739849.69 | E23: =A2A!E112 -> 33128367.25 | F23: =A2A!F112 -> 73540507 | G23: =A2A!G112 -> 73540508 | H23: =A2A!H112 -> 73540508 | I23: =A2A!I112 -> 74370361 | J23: =A2A!J112 -> 68675471 | K23: =A2A!K112 -> 71697191
A24: Other | B24: 4 | C24: =A2A!C117 -> 0 | D24: =A2A!D117 -> 0 | E24: =A2A!E117 -> 0 | F24: =A2A!F117 -> 0 | G24: =A2A!G117 -> 0 | H24: =A2A!H117 -> 0 | I24: =A2A!I117 -> 0 | J24: =A2A!J117 -> 0 | K24: =A2A!K117 -> 0
A25: ="Total "&A4 -> Total Revenue - Functional | B25: 2 | C25: =C5+C9+C15+C19+C24 -> 1136719604 | D25: =D5+D9+D15+D19+D24 -> 1136215480 | E25: =E5+E9+E15+E19+E24 -> 1318956889 | F25: 1405645232 | G25: 1467417366 | H25: 1467417366 | I25: =I5+I9+I15+I19+I24 -> 1548695714 | J25: 1602211842 | K25: 1677983036
A27: Expenditure - Functional
A28: Governance and administration | C28: =SUM(C29:C31) -> 359621877.4 | D28: =SUM(D29:D31) -> 383658892.3 | E28: 277922868.6 | F28: 288154389 | G28: 300918491 | H28: 300918491 | I28: 316742137 | J28: 329622756 | K28: 343683451
A29: Executive and council | C29: =A2A!C128 -> 34109919.44 | D29: =A2A!D128 -> 42526739.66 | E29: =A2A!E128 -> 47362541.41 | F29: =A2A!F128 -> 44674724 | G29: =A2A!G128 -> 44774387 | H29: =A2A!H128 -> 44774387 | I29: =A2A!I128 -> 47525810 | J29: =A2A!J128 -> 49406034 | K29: =A2A!K128 -> 51458517
A30: Finance and administration | C30: =A2A!C131 -> 320880909.9 | D30: =A2A!D131 -> 336837691.7 | E30: =A2A!E131 -> 225722018.6 | F30: =A2A!F131 -> 237609210 | G30: =A2A!G131 -> 250323649 | H30: =A2A!H131 -> 250323649 | I30: =A2A!I131 -> 263481478 | J30: =A2A!J131 -> 274241000 | K30: =A2A!K131 -> 285986273
A31: Internal audit | C31: =A2A!C145 -> 4631048.06 | D31: =A2A!D145 -> 4294460.96 | E31: =A2A!E145 -> 4838308.57 | F31: =A2A!F145 -> 5870455 | G31: =A2A!G145 -> 5820455 | H31: =A2A!H145 -> 5820455 | I31: =A2A!I145 -> 5734849 | J31: =A2A!J145 -> 5975722 | K31: =A2A!K145 -> 6238661
A32: Community and public safety | C32: =SUM(C33:C37) -> 40981172.89 | D32: =SUM(D33:D37) -> 58016588.24 | E32: 76939452.91 | F32: 120243047 | G32: 120352998 | H32: 120352998 | I32: 87148830 | J32: 90624254 | K32: 94418074
A33: Community and social services | C33: =A2A!C148 -> 11652126.03 | D33: =A2A!D148 -> 10934244.24 | E33: =A2A!E148 -> 13453079.92 | F33: =A2A!F148 -> 13290578 | G33: =A2A!G148 -> 13470578 | H33: =A2A!H148 -> 13470578 | I33: =A2A!I148 -> 14064027 | J33: =A2A!J148 -> 14650792 | K33: =A2A!K148 -> 15291322
A34: Sport and recreation | C34: =A2A!C170 -> 3186009.59 | D34: =A2A!D170 -> 13223660 | E34: =A2A!E170 -> 22565404.38 | F34: =A2A!F170 -> 25601180 | G34: =A2A!G170 -> 26279558 | H34: =A2A!H170 -> 26279558 | I34: =A2A!I170 -> 28000708 | J34: =A2A!J170 -> 29008030 | K34: =A2A!K170 -> 30107645
A35: Public safety | C35: =A2A!C176 -> 22286815 | D35: =A2A!D176 -> 16742070 | E35: =A2A!E176 -> 18165575.59 | F35: =A2A!F176 -> 51032724 | G35: =A2A!G176 -> 50235198 | H35: =A2A!H176 -> 50235198 | I35: =A2A!I176 -> 18297616 | J35: =A2A!J176 -> 19053890 | K35: =A2A!K176 -> 19879440
A36: Housing | C36: =A2A!C185 -> 3100429.96 | D36: =A2A!D185 -> 7917952 | E36: =A2A!E185 -> 12113183.55 | F36: =A2A!F185 -> 18596061 | G36: =A2A!G185 -> 18645160 | H36: =A2A!H185 -> 18645160 | I36: =A2A!I185 -> 15936528 | J36: =A2A!J185 -> 16605872 | K36: =A2A!K185 -> 17336537
A37: Health | C37: =A2A!C188 -> 755792.31 | D37: =A2A!D188 -> 9198662 | E37: =A2A!E188 -> 10642209.47 | F37: =A2A!F188 -> 11722504 | G37: =A2A!G188 -> 11722504 | H37: =A2A!H188 -> 11722504 | I37: =A2A!I188 -> 10849951 | J37: =A2A!J188 -> 11305670 | K37: =A2A!K188 -> 11803130
A38: Economic and environmental services | C38: =SUM(C39:C41) -> 287838164.6 | D38: =SUM(D39:D41) -> 157357878.4 | E38: 145494753.6 | F38: 215242849 | G38: 185144739 | H38: 185144739 | I38: 194796743 | J38: 204438526 | K38: 215055346
A39: Planning and development | C39: =A2A!C197 -> 19315113.29 | D39: =A2A!D197 -> 15559417.92 | E39: =A2A!E197 -> 15835955.4 | F39: =A2A!F197 -> 28248926 | G39: =A2A!G197 -> 31860280 | H39: =A2A!H197 -> 31860280 | I39: =A2A!I197 -> 29816905 | J39: =A2A!J197 -> 31065649 | K39: =A2A!K197 -> 32428897
A40: Road transport | C40: =A2A!C208 -> 268523051.3 | D40: =A2A!D208 -> 141798460.5 | E40: =A2A!E208 -> 129658798.2 | F40: =A2A!F208 -> 186993923 | G40: =A2A!G208 -> 153284459 | H40: =A2A!H208 -> 153284459 | I40: =A2A!I208 -> 164979838 | J40: =A2A!J208 -> 173372877 | K40: =A2A!K208 -> 182626449
A41: Environmental protection | C41: =A2A!C213 -> 0 | D41: =A2A!D213 -> 0 | E41: =A2A!E213 -> 0 | F41: =A2A!F213 -> 0 | G41: =A2A!G213 -> 0 | H41: =A2A!H213 -> 0 | I41: =A2A!I213 -> 0 | J41: =A2A!J213 -> 0 | K41: =A2A!K213 -> 0
A42: Trading services | C42: =SUM(C43:C46) -> 536569555.8 | D42: =SUM(D43:D46) -> 599954439.7 | E42: 605995302.1 | F42: =SUM(F43:F46) -> 663714756 | G42: 674304822 | H42: 674304822 | I42: 723484931 | J42: 732610702 | K42: =SUM(K43:K46) -> 786961157
A43: Energy sources | C43: =A2A!C221 -> 448420239.7 | D43: =A2A!D221 -> 511714738.9 | E43: =A2A!E221 -> 520103946.3 | F43: =A2A!F221 -> 572684922 | G43: =A2A!G221 -> 583826089 | H43: =A2A!H221 -> 583826089 | I43: =A2A!I221 -> 628353359 | J43: =A2A!J221 -> 642482423 | K43: =A2A!K221 -> 693056217
A44: Water management | C44: =A2A!C225 -> 0 | D44: =A2A!D225 -> 0 | E44: =A2A!E225 -> 0 | F44: =A2A!F225 -> 0 | G44: =A2A!G225 -> 0 | H44: =A2A!H225 -> 0 | I44: =A2A!I225 -> 0 | J44: =A2A!J225 -> 0 | K44: =A2A!K225 -> 0
A45: Waste water management | C45: =A2A!C229 -> 5972911 | D45: =A2A!D229 -> 3852436 | E45: =A2A!E229 -> 4297092.04 | F45: =A2A!F229 -> 5125814 | G45: =A2A!G229 -> 5125814 | H45: =A2A!H229 -> 5125814 | I45: =A2A!I229 -> 8780470 | J45: =A2A!J229 -> 8983100 | K45: =A2A!K229 -> 9204285
A46: Waste management | C46: =A2A!C234 -> 82176405.16 | D46: =A2A!D234 -> 84387264.82 | E46: =A2A!E234 -> 81594263.84 | F46: =A2A!F234 -> 85904020 | G46: =A2A!G234 -> 85352919 | H46: =A2A!H234 -> 85352919 | I46: =A2A!I234 -> 86351102 | J46: =A2A!J234 -> 81145179 | K46: =A2A!K234 -> 84700655
A47: Other | B47: 4 | C47: =A2A!C239 -> 0 | D47: =A2A!D239 -> 0 | E47: =A2A!E239 -> 0 | F47: =A2A!F239 -> 0 | G47: =A2A!G239 -> 0 | H47: =A2A!H239 -> 0 | I47: =A2A!I239 -> 0 | J47: =A2A!J239 -> 0 | K47: =A2A!K239 -> 0
A48: ="Total "&A27 -> Total Expenditure - Functional | B48: 3 | C48: =C28+C32+C38+C42+C47 -> 1225010771 | D48: =D28+D32+D38+D42+D47 -> 1198987799 | E48: =E28+E32+E38+E42+E47 -> 1106352377 | F48: =F28+F32+F38+F42+F47 -> 1287355041 | G48: 1280721050 | H48: 1280721050 | I48: 1322172641 | J48: 1357296238 | K48: 1440118028
A49: =result -> Surplus/(Deficit) for the year | C49: =C25-C48 -> -88291166.91 | D49: =D25-D48 -> -62772319 | E49: 212604512.2 | F49: 118290191 | G49: 186696316 | H49: 186696316 | I49: 226523073 | J49: 244915604 | K49: 237865008
A50: =head27a -> References
A51: 1. Government Finance Statistics Functions and Sub-functions are standardised to assist the compilation of national and international accounts for comparison purposes
A52: 2. Total Revenue by functional classification must reconcile to Total Operating Revenue shown in Budgeted Financial Performance (revenue and expenditure)
A53: 3. Total Expenditure by Functional Classification must reconcile to Total Operating Expenditure shown in Budgeted Financial Performance (revenue and expenditure)
A54: 4. All amounts must be classified under a functional classification . The GFS function 'Other' is only for Abbatoirs, Air Transport, Forestry, Licensing and Regulation, Markets and Tourism - and if used must be supported by footnotes. Nothing else may be placed under 'Other'. Assign associate share to relevant classification.
A57: check oprev balance | C57: =C25-'A4-FinPerf RE'!C59 -> 0 | D57: =D25-'A4-FinPerf RE'!D59 -> 0 | E57: =E25-'A4-FinPerf RE'!E59 -> 0 | F57: =F25-'A4-FinPerf RE'!F59 -> 0 | G57: =G25-'A4-FinPerf RE'!G59 -> 1 | H57: =H25-'A4-FinPerf RE'!H59 -> 1 | I57: =I25-'A4-FinPerf RE'!J59 -> 0 | J57: =J25-'A4-FinPerf RE'!K59 -> 0 | K57: =K25-'A4-FinPerf RE'!L59 -> 0
A58: check opexp balance | C58: =C48-'A4-FinPerf RE'!C35 -> 0 | D58: =D48-'A4-FinPerf RE'!D35 -> 0 | E58: =E48-'A4-FinPerf RE'!E35 -> 0 | F58: =F48-'A4-FinPerf RE'!F35 -> 0 | G58: =G48-'A4-FinPerf RE'!G35 -> 0 | H58: =H48-'A4-FinPerf RE'!H35 -> 0 | I58: =I48-'A4-FinPerf RE'!J35 -> 0 | J58: =J48-'A4-FinPerf RE'!K35 -> 0 | K58: =K48-'A4-FinPerf RE'!L35 -> -1

Sheet A2A
A1: =muni&" - "&Approve3 -> Choose name from list - Table A2 Budgeted Financial Performance (revenue and expenditure by functional classification)
A2: ="Functional Classification "&desc -> Functional Classification Description | B2: =head27 -> Ref | C2: =head1b -> 2017/18 | D2: =head1A -> 2018/19 | E2: =Head1 -> 2019/20 | F2: =Head2 -> Current Year 2020/21 | I2: =Head3 -> 2021/22 Medium Term Revenue & Expenditure Framework
A3: R thousand | B3: 1 | C3: =Head5 -> Audited Outcome | D3: =Head5 -> Audited Outcome | E3: =Head5 -> Audited Outcome | F3: =Head6 -> Original Budget | G3: =Head7 -> Adjusted Budget | H3: =Head8 -> Full Year Forecast | I3: =Head9 -> Budget Year 2021/22 | J3: =Head10 -> Budget Year +1 2022/23 | K3: =Head11 -> Budget Year +2 2023/24
A4: Revenue - Functional
A5: Municipal governance and administration | C5: =C6+C9+C23 -> 364427892 | D5: 468166271.8 | E5: 573827117.9 | F5: 552813082 | G5: 646043213 | H5: 646043213 | I5: 575471457 | J5: 606399306 | K5: 604742202
A6: Executive and council | C6: =SUM(C7:C8) -> 0 | D6: =SUM(D7:D8) -> 0 | E6: 298000 | F6: 1100 | G6: 1100 | H6: 1100 | I6: 1100 | J6: 1147 | K6: 1197
A7: Mayor and Council | C7: 0 | D7: 0 | E7: 0 | F7: 0 | G7: 0 | H7: 0 | I7: 0 | J7: 0 | K7: 0
A8: Municipal Manager, Town Secretary and Chief Executive | C8: 0 | D8: 0 | E8: 298000 | F8: 1100 | G8: 1100 | H8: 1100 | I8: 1100 | J8: 1147 | K8: 1197
A9: Finance and administration | C9: =SUM(C10:C22) -> 364427892 | D9: 468166271.8 | E9: 573529117.9 | F9: 552811982 | G9: 646042113 | H9: 646042113 | I9: 575470357 | J9: 606398159 | K9: 604741005
A10: Administrative and Corporate Support | C10: 52717840.63 | D10: 76582673.44 | E10: 0 | F10: 0 | G10: 0 | H10: 0 | I10: 0 | J10: 0 | K10: 0
A11: Asset Management | C11: 0 | D11: 0 | E11: 0 | F11: 0 | G11: 0 | H11: 0 | I11: 0 | J11: 0 | K11: 1
A12: Finance | C12: 311710051.4 | D12: 377972911.8 | E12: 572128627.8 | F12: 551611853 | G12: 644841984 | H12: 644841984 | I12: 575470228 | J12: 606398024 | K12: 604740862
A13: Fleet Management | C13: 0 | D13: 0 | E13: 0 | F13: 0 | G13: 0 | H13: 0 | I13: 0 | J13: 0 | K13: 0
A14: Human Resources | C14: 0 | D14: 13499700.07 | E14: 1400490.07 | F14: 1200000 | G14: 1200000 | H14: 1200000 | I14: 0 | J14: 0 | K14: 1
A15: Information Technology | C15: 0 | D15: 110986.5 | E15: 0 | F15: 0 | G15: 0 | H15: 0 | I15: 0 | J15: 0 | K15: 0
A16: Legal Services | C16: 0 | D16: 0 | E16: 0 | F16: 129 | G16: 129 | H16: 129 | I16: 129 | J16: 135 | K16: 141
A17: Marketing, Customer Relations, Publicity and Media Co-ordination | C17: 0 | D17: 0 | E17: 0 | F17: 0 | G17: 0 | H17: 0 | I17: 0 | J17: 0 | K17: 0
A18: Property Services | C18: 0 | D18: 0 | E18: 0 | F18: 0 | G18: 0 | H18: 0 | I18: 0 | J18: 0 | K18: 0
A19: Risk Management | C19: 0 | D19: 0 | E19: 0 | F19: 0 | G19: 0 | H19: 0 | I19: 0 | J19: 0 | K19: 0
A20: Security Services | C20: 0 | D20: 0 | E20: 0 | F20: 0 | G20: 0 | H20: 0 | I20: 0 | J20: 0 | K20: 0
A21: Supply Chain Management | C21: 0 | D21: 0 | E21: 0 | F21: 0 | G21: 0 | H21: 0 | I21: 0 | J21: 0 | K21: 0
A22: Valuation Service | C22: 0 | D22: 0 | E22: 0 | F22: 0 | G22: 0 | H22: 0 | I22: 0 | J22: 0 | K22: 0
A23: Internal audit | C23: =SUM(C24:C24) -> 0 | D23: 0 | E23: 0 | F23: 0 | G23: 0 | H23: 0 | I23: 0 | J23: 0 | K23: 0
A24: Governance Function | C24: 0 | D24: 0 | E24: 0 | F24: 0 | G24: 0 | H24: 0 | I24: 0 | J24: 0 | K24: 0
A25: Community and public safety | C25: =C26+C48+C54+C63+C66 -> 56107950.85 | D25: 35072212.84 | E25: 27834887.6 | F25: 40390127 | G25: 40390127 | H25: 40390127 | I25: 40390127 | J25: 42086516 | K25: 43938324
A26: Community and social services | C26: =SUM(C27:C47) -> 45523.5 | D26: =SUM(D27:D47) -> 9603 | E26: 32515 | F26: 56136 | G26: 56136 | H26: 56136 | I26: 56136 | J26: 58495 | K26: 61070
A27: Aged Care | C27: 0 | D27: 0 | E27: 0 | F27: 0 | G27: 0 | H27: 0 | I27: 0 | J27: 0 | K27: 0
A28: Agricultural | C28: 0 | D28: 0 | E28: 0 | F28: 0 | G28: 0 | H28: 0 | I28: 0 | J28: 0 | K28: 0
A29: Animal Care and Diseases | C29: 0 | D29: 0 | E29: 0 | F29: 0 | G29: 0 | H29: 0 | I29: 0 | J29: 0 | K29: 0
A30: Cemeteries, Funeral Parlours and Crematoriums | C30: 0 | D30: 0 | E30: 0 | F30: 0 | G30: 0 | H30: 0 | I30: 0 | J30: 0 | K30: 0
A31: Child Care Facilities | C31: 0 | D31: 0 | E31: 0 | F31: 0 | G31: 0 | H31: 0 | I31: 0 | J31: 0 | K31: 0
A32: Community Halls and Facilities | C32: 45523.5 | D32: 0 | E32: 0 | F32: 0 | G32: 0 | H32: 0 | I32: 0 | J32: 0 | K32: 0
A33: Consumer Protection | C33: 0 | D33: 0 | E33: 0 | F33: 0 | G33: 0 | H33: 0 | I33: 0 | J33: 0 | K33: 0
A34: Cultural Matters | C34: 0 | D34: 0 | E34: 0 | F34: 0 | G34: 0 | H34: 0 | I34: 0 | J34: 0 | K34: 0
A35: Disaster Management | C35: 0 | D35: 0 | E35: 0 | F35: 0 | G35: 0 | H35: 0 | I35: 0 | J35: 0 | K35: 0
A36: Education | C36: 0 | D36: 0 | E36: 0 | F36: 0 | G36: 0 | H36: 0 | I36: 0 | J36: 0 | K36: 0
A37: Indigenous and Customary Law | C37: 0 | D37: 0 | E37: 0 | F37: 0 | G37: 0 | H37: 0 | I37: 0 | J37: 0 | K37: 0
A38: Industrial Promotion | C38: 0 | D38: 0 | E38: 0 | F38: 0 | G38: 0 | H38: 0 | I38: 0 | J38: 0 | K38: 0
A39: Language Policy | C39: 0 | D39: 0 | E39: 0 | F39: 0 | G39: 0 | H39: 0 | I39: 0 | J39: 0 | K39: 0
A40: Libraries and Archives | C40: 0 | D40: 9603 | E40: 32515 | F40: 56136 | G40: 56136 | H40: 56136 | I40: 56136 | J40: 58495 | K40: 61070
A41: Literacy Programmes | C41: 0 | D41: 0 | E41: 0 | F41: 0 | G41: 0 | H41: 0 | I41: 0 | J41: 0 | K41: 0
A42: Media Services | C42: 0 | D42: 0 | E42: 0 | F42: 0 | G42: 0 | H42: 0 | I42: 0 | J42: 0 | K42: 0
A43: Museums and Art Galleries | C43: 0 | D43: 0 | E43: 0 | F43: 0 | G43: 0 | H43: 0 | I43: 0 | J43: 0 | K43: 0
A44: Population Development | C44: 0 | D44: 0 | E44: 0 | F44: 0 | G44: 0 | H44: 0 | I44: 0 | J44: 0 | K44: 0
A45: Provincial Cultural Matters | C45: 0 | D45: 0 | E45: 0 | F45: 0 | G45: 0 | H45: 0 | I45: 0 | J45: 0 | K45: 0
A46: Theatres | C46: 0 | D46: 0 | E46: 0 | F46: 0 | G46: 0 | H46: 0 | I46: 0 | J46: 0 | K46: 0
A47: Zoo's | C47: 0 | D47: 0 | E47: 0 | F47: 0 | G47: 0 | H47: 0 | I47: 0 | J47: 0 | K47: 0
A48: Sport and recreation | C48: =SUM(C49:C53) -> 149130 | D48: =SUM(D49:D53) -> 0 | E48: 359180.41 | F48: 660766 | G48: 660766 | H48: 660766 | I48: 660766 | J48: 688519 | K48: 718814
A49: Beaches and Jetties | C49: 0 | D49: 0 | E49: 0 | F49: 0 | G49: 0 | H49: 0 | I49: 0 | J49: 0 | K49: 0
A50: Casinos, Racing, Gambling, Wagering | C50: 0 | D50: 0 | E50: 0 | F50: 0 | G50: 0 | H50: 0 | I50: 0 | J50: 0 | K50: 0
A51: Community Parks (including Nurseries) | C51: 149130 | D51: 0 | E51: 0 | F51: 0 | G51: 0 | H51: 0 | I51: 0 | J51: 0 | K51: 0
A52: Recreational Facilities | C52: 0 | D52: 0 | E52: 359180.41 | F52: 660766 | G52: 660766 | H52: 660766 | I52: 660766 | J52: 688519 | K52: 718814
A53: Sports Grounds and Stadiums | C53: 0 | D53: 0 | E53: 0 | F53: 0 | G53: 0 | H53: 0 | I53: 0 | J53: 0 | K53: 0
A54: Public safety | C54: =SUM(C55:C62) -> 45442703 | D54: 31736170 | E54: 25556445 | F54: 38001000 | G54: 38001000 | H54: 38001000 | I54: 38001000 | J54: 39597042 | K54: 41339312
A55: Civil Defence | C55: 0 | D55: 0 | E55: 0 | F55: 0 | G55: 0 | H55: 0 | I55: 0 | J55: 0 | K55: 0
A56: Cleansing | C56: 0 | D56: 0 | E56: 0 | F56: 0 | G56: 0 | H56: 0 | I56: 0 | J56: 0 | K56: 0
A57: Control of Public Nuisances | C57: 0 | D57: 31736170 | E57: 25556445 | F57: 38001000 | G57: 38001000 | H57: 38001000 | I57: 38001000 | J57: 39597042 | K57: 41339312
A58: Fencing and Fences | C58: 0 | D58: 0 | E58: 0 | F58: 0 | G58: 0 | H58: 0 | I58: 0 | J58: 0 | K58: 0
A59: Fire Fighting and Protection | C59: 45442703 | D59: 0 | E59: 0 | F59: 0 | G59: 0 | H59: 0 | I59: 0 | J59: 0 | K59: 0
A60: Licensing and Control of Animals | C60: 0 | D60: 0 | E60: 0 | F60: 0 | G60: 0 | H60: 0 | I60: 0 | J60: 0 | K60: 0
A61: Police Forces, Traffic and Street Parking Control | C61: 0 | D61: 0 | E61: 0 | F61: 0 | G61: 0 | H61: 0 | I61: 0 | J61: 0 | K61: 0
A62: Pounds | C62: 0 | D62: 0 | E62: 0 | F62: 0 | G62: 0 | H62: 0 | I62: 0 | J62: 0 | K62: 0
A63: Housing | C63: =SUM(C64:C65) -> 1822418.98 | D63: =SUM(D64:D65) -> 2724137.92 | E63: 1866536.49 | F63: 1659225 | G63: 1659225 | H63: 1659225 | I63: 1659225 | J63: 1728914 | K63: 1804985
A64: Housing | C64: 1822418.98 | D64: 2724137.92 | E64: 1866536.49 | F64: 1659225 | G64: 1659225 | H64: 1659225 | I64: 1659225 | J64: 1728914 | K64: 1804985
A65: Informal Settlements | C65: 0 | D65: 0 | E65: 0 | F65: 0 | G65: 0 | H65: 0 | I65: 0 | J65: 0 | K65: 0
A66: Health | C66: =SUM(C67:C73) -> 8648175.37 | D66: =SUM(D67:D73) -> 602301.92 | E66: 20210.7 | F66: 13000 | G66: 13000 | H66: 13000 | I66: 13000 | J66: 13546 | K66: 14143
A67: Ambulance | C67: 0 | D67: 0 | E67: 0 | F67: 0 | G67: 0 | H67: 0 | I67: 0 | J67: 0 | K67: 0
A68: Health Services | C68: 8648175.37 | D68: 602301.92 | E68: 20210.7 | F68: 13000 | G68: 13000 | H68: 13000 | I68: 13000 | J68: 13546 | K68: 14143
A69: Laboratory Services | C69: 0 | D69: 0 | E69: 0 | F69: 0 | G69: 0 | H69: 0 | I69: 0 | J69: 0 | K69: 0
A70: Food Control | C70: 0 | D70: 0 | E70: 0 | F70: 0 | G70: 0 | H70: 0 | I70: 0 | J70: 0 | K70: 0
A71: Health Surveillance and Prevention of Communicable Diseases including immunizations | C71: 0 | D71: 0 | E71: 0 | F71: 0 | G71: 0 | H71: 0 | I71: 0 | J71: 0 | K71: 0
A72: Vector Control | C72: 0 | D72: 0 | E72: 0 | F72: 0 | G72: 0 | H72: 0 | I72: 0 | J72: 0 | K72: 0
A73: Chemical Safety | C73: 0 | D73: 0 | E73: 0 | F73: 0 | G73: 0 | H73: 0 | I73: 0 | J73: 0 | K73: 0
A74: Economic and environmental services | C74: =C75+C86+C91 -> 196404602 | D74: 129228294.3 | E74: 107011252.1 | F74: 152700516 | G74: 116700517 | H74: 116700517 | I74: 122822518 | J74: 132054946 | K74: 138046189
A75: Planning and development | C75: =SUM(C76:C85) -> 11015460 | D75: =SUM(D76:D85) -> 3372625 | E75: 355705.99 | F75: 400125 | G75: 400125 | H75: 400125 | I75: 400126 | J75: 416933 | K75: 435278
A76: Billboards | C76: 0 | D76: 0 | E76: 0 | F76: 0 | G76: 0 | H76: 0 | I76: 1 | J76: 2 | K76: 2
A77: Corporate Wide Strategic Planning (IDPs, LEDs) | C77: 11015460 | D77: 3139120 | E77: 72920 | F77: 200125 | G77: 200125 | H77: 200125 | I77: 200125 | J77: 208531 | K77: 217706
A78: Central City Improvement District | C78: 0 | D78: 0 | E78: 0 | F78: 0 | G78: 0 | H78: 0 | I78: 0 | J78: 0 | K78: 0
A79: Development Facilitation | C79: 0 | D79: 0 | E79: 0 | F79: 0 | G79: 0 | H79: 0 | I79: 0 | J79: 0 | K79: 0
A80: Economic Development/Planning | C80: 0 | D80: 0 | E80: 0 | F80: 0 | G80: 0 | H80: 0 | I80: 0 | J80: 0 | K80: 0
A81: Regional Planning and Development | C81: 0 | D81: 0 | E81: 0 | F81: 0 | G81: 0 | H81: 0 | I81: 0 | J81: 0 | K81: 0
A82: Town Planning, Building Regulations and Enforcement, and City Engineer | C82: 0 | D82: 233505 | E82: 282785.99 | F82: 200000 | G82: 200000 | H82: 200000 | I82: 200000 | J82: 208400 | K82: 217570
A83: Project Management Unit | C83: 0 | D83: 0 | E83: 0 | F83: 0 | G83: 0 | H83: 0 | I83: 0 | J83: 0 | K83: 0
A84: Provincial Planning | C84: 0 | D84: 0 | E84: 0 | F84: 0 | G84: 0 | H84: 0 | I84: 0 | J84: 0 | K84: 0
A85: Support to Local Municipalities | C85: 0 | D85: 0 | E85: 0 | F85: 0 | G85: 0 | H85: 0 | I85: 0 | J85: 0 | K85: 0
A86: Road transport | C86: =SUM(C87:C90) -> 185389142 | D86: 125855669.3 | E86: 106655546.1 | F86: 152300391 | G86: 116300392 | H86: 116300392 | I86: 122422392 | J86: 131638013 | K86: 137610911
A87: Public Transport | C87: 0 | D87: 0 | E87: 0 | F87: 0 | G87: 0 | H87: 0 | I87: 0 | J87: 0 | K87: 0
A88: Road and Traffic Regulation | C88: 0 | D88: 0 | E88: 0 | F88: 0 | G88: 0 | H88: 0 | I88: 0 | J88: 0 | K88: 0
A89: Roads | C89: 185389142 | D89: 125855669.3 | E89: 106655546.1 | F89: 152300391 | G89: 116300392 | H89: 116300392 | I89: 122422392 | J89: 131638013 | K89: 137610911
A90: Taxi Ranks | C90: 0 | D90: 0 | E90: 0 | F90: 0 | G90: 0 | H90: 0 | I90: 0 | J90: 0 | K90: 0
A91: Environmental protection | C91: =SUM(C92:C97) -> 0 | D91: =SUM(D92:D97) -> 0 | E91: 0 | F91: 0 | G91: 0 | H91: 0 | I91: 0 | J91: 0 | K91: 0
A92: Biodiversity and Landscape | C92: 0 | D92: 0 | E92: 0 | F92: 0 | G92: 0 | H92: 0 | I92: 0 | J92: 0 | K92: 0
A93: Coastal Protection | C93: 0 | D93: 0 | E93: 0 | F93: 0 | G93: 0 | H93: 0 | I93: 0 | J93: 0 | K93: 0
A94: Indigenous Forests | C94: 0 | D94: 0 | E94: 0 | F94: 0 | G94: 0 | H94: 0 | I94: 0 | J94: 0 | K94: 0
A95: Nature Conservation | C95: 0 | D95: 0 | E95: 0 | F95: 0 | G95: 0 | H95: 0 | I95: 0 | J95: 0 | K95: 0
A96: Pollution Control | C96: 0 | D96: 0 | E96: 0 | F96: 0 | G96: 0 | H96: 0 | I96: 0 | J96: 0 | K96: 0
A97: Soil Conservation | C97: 0 | D97: 0 | E97: 0 | F97: 0 | G97: 0 | H97: 0 | I97: 0 | J97: 0 | K97: 0
A98: Trading services | C98: =C99+C103+C107+C112 -> 519779159 | D98: =D99+D103+D107+D112 -> 503748700.7 | E98: 610283631.9 | F98: 659741507 | G98: 664283509 | H98: 664283509 | I98: 810011612 | J98: 821671074 | K98: =K99+K103+K107+K112 -> 891256321
A99: Energy sources | C99: =SUM(C100:C102) -> 457445097 | D99: =SUM(D100:D102) -> 452008851 | E99: 577155264.6 | F99: 586201000 | G99: 590743000 | H99: 590743000 | I99: 735641250 | J99: 752995601 | K99: 819559128
A100: Electricity | C100: 457445097 | D100: 452008851 | E100: 577155264.6 | F100: 586201000 | G100: 590743000 | H100: 590743000 | I100: 735641250 | J100: 752995601 | K100: 819559128
A101: Street Lighting and Signal Systems | C101: 0 | D101: 0 | E101: 0 | F101: 0 | G101: 0 | H101: 0 | I101: 0 | J101: 0 | K101: 0
A102: Nonelectric Energy | C102: 0 | D102: 0 | E102: 0 | F102: 0 | G102: 0 | H102: 0 | I102: 0 | J102: 0 | K102: 0
A103: Water management | C103: =SUM(C104:C106) -> 0 | D103: =SUM(D104:D106) -> 0 | E103: 0 | F103: 0 | G103: 1 | H103: 1 | I103: 1 | J103: 2 | K103: 2
A104: Water Treatment | C104: 0 | D104: 0 | E104: 0 | F104: 0 | G104: 1 | H104: 1 | I104: 1 | J104: 2 | K104: 2
A105: Water Distribution | C105: 0 | D105: 0 | E105: 0 | F105: 0 | G105: 0 | H105: 0 | I105: 0 | J105: 0 | K105: 0
A106: Water Storage | C106: 0 | D106: 0 | E106: 0 | F106: 0 | G106: 0 | H106: 0 | I106: 0 | J106: 0 | K106: 0
A107: Waste water management | C107: =SUM(C108:C111) -> 1425748 | D107: =SUM(D108:D111) -> 0 | E107: 0 | F107: 0 | G107: 0 | H107: 0 | I107: 0 | J107: 0 | K107: 0
A108: Public Toilets | C108: 1425748 | D108: 0 | E108: 0 | F108: 0 | G108: 0 | H108: 0 | I108: 0 | J108: 0 | K108: 0
A109: Sewerage | C109: 0 | D109: 0 | E109: 0 | F109: 0 | G109: 0 | H109: 0 | I109: 0 | J109: 0 | K109: 0
A110: Storm Water Management | C110: 0 | D110: 0 | E110: 0 | F110: 0 | G110: 0 | H110: 0 | I110: 0 | J110: 0 | K110: 0
A111: Waste Water Treatment | C111: 0 | D111: 0 | E111: 0 | F111: 0 | G111: 0 | H111: 0 | I111: 0 | J111: 0 | K111: 0
A112: Waste management | C112: =SUM(C113:C116) -> 60908314 | D112: =SUM(D113:D116) -> 51739849.69 | E112: 33128367.25 | F112: 73540507 | G112: 73540508 | H112: 73540508 | I112: 74370361 | J112: 68675471 | K112: 71697191
A113: Recycling | C113: 0 | D113: 0 | E113: 0 | F113: 0 | G113: 0 | H113: 0 | I113: 0 | J113: 0 | K113: 0
A114: Solid Waste Disposal (Landfill Sites) | C114: 60908314 | D114: 0 | E114: 0 | F114: 0 | G114: 0 | H114: 0 | I114: 0 | J114: 0 | K114: 0
A115: Solid Waste Removal | C115: 0 | D115: 51739849.69 | E115: 33128367.25 | F115: 73540507 | G115: 73540508 | H115: 73540508 | I115: 74370361 | J115: 68675471 | K115: 71697191
A116: Street Cleaning | C116: 0 | D116: 0 | E116: 0 | F116: 0 | G116: 0 | H116: 0 | I116: 0 | J116: 0 | K116: 0
A117: Other | C117: =SUM(C118:C123) -> 0 | D117: =SUM(D118:D123) -> 0 | E117: 0 | F117: 0 | G117: 0 | H117: 0 | I117: 0 | J117: 0 | K117: 0
A118: Abattoirs | C118: 0 | D118: 0 | E118: 0 | F118: 0 | G118: 0 | H118: 0 | I118: 0 | J118: 0 | K118: 0
A119: Air Transport | C119: 0 | D119: 0 | E119: 0 | F119: 0 | G119: 0 | H119: 0 | I119: 0 | J119: 0 | K119: 0
A120: Forestry | C120: 0 | D120: 0 | E120: 0 | F120: 0 | G120: 0 | H120: 0 | I120: 0 | J120: 0 | K120: 0
A121: Licensing and Regulation | C121: 0 | D121: 0 | E121: 0 | F121: 0 | G121: 0 | H121: 0 | I121: 0 | J121: 0 | K121: 0
A122: Markets | C122: 0 | D122: 0 | E122: 0 | F122: 0 | G122: 0 | H122: 0 | I122: 0 | J122: 0 | K122: 0
A123: Tourism | C123: 0 | D123: 0 | E123: 0 | F123: 0 | G123: 0 | H123: 0 | I123: 0 | J123: 0 | K123: 0
A124: ="Total "&A4 -> Total Revenue - Functional | B124: 2 | C124: =C5+C25+C74+C98+C117 -> 1136719604 | D124: 1136215480 | E124: 1318956889 | F124: 1405645232 | G124: 1467417366 | H124: 1467417366 | I124: 1548695714 | J124: 1602211842 | K124: 1677983036
A126: Expenditure - Functional
A127: =A5 -> Municipal governance and administration | C127: =C128+C131+C145 -> 359621877.4 | D127: 383658892.3 | E127: 277922868.6 | F127: 288154389 | G127: 300918491 | H127: 300918491 | I127: 316742137 | J127: 329622756 | K127: 343683451
A128: Executive and council | C128: =SUM(C129:C130) -> 34109919.44 | D128: 42526739.66 | E128: 47362541.41 | F128: 44674724 | G128: 44774387 | H128: 44774387 | I128: 47525810 | J128: 49406034 | K128: 51458517
A129: Mayor and Council | C129: 33039732.51 | D129: 26136302.58 | E129: 27192533.38 | F129: 29534983 | G129: 29639983 | H129: 29639983 | I129: 28905898 | J129: 30119958 | K129: 31445242
A130: Municipal Manager, Town Secretary and Chief Executive | C130: 1070186.93 | D130: 16390437.08 | E130: 20170008.03 | F130: 15139741 | G130: 15134404 | H130: 15134404 | I130: 18619912 | J130: 19286076 | K130: 20013275
A131: Finance and administration | C131: =SUM(C132:C144) -> 320880909.9 | D131: 336837691.7 | E131: 225722018.6 | F131: 237609210 | G131: 250323649 | H131: 250323649 | I131: 263481478 | J131: 274241000 | K131: 285986273
A132: Administrative and Corporate Support | C132: 35759 | D132: 204217612.8 | E132: 27717877.75 | F132: 27393800 | G132: 26718238 | H132: 26718238 | I132: 31248354 | J132: 32555228 | K132: 33981834
A133: Asset Management | C133: 28182464.52 | D133: 7831239 | E133: 8896676.53 | F133: 6105960 | G133: 5650709 | H133: 5650709 | I133: 6848340 | J133: 7135984 | K133: 7449971
A134: Finance | C134: 259411020.2 | D134: 32871271.58 | E134: 97189138.92 | F134: 102133089 | G134: 109348183 | H134: 109348183 | I134: 116272988 | J134: 121067068 | K134: 126300401
A135: Fleet Management | C135: 9419096.95 | D135: 14882296 | E135: 18731808.82 | F135: 37088599 | G135: 36576499 | H135: 36576499 | I135: 29043172 | J135: 30263000 | K135: 31594580
A136: Human Resources | C136: 2998587.9 | D136: 10138781.8 | E136: 10366525.41 | F136: 17230604 | G136: 17378064 | H136: 17378064 | I136: 20890371 | J136: 21767779 | K136: 22725568
A137: Information Technology | C137: 3586418.47 | D137: 25149509.74 | E137: 11015762.6 | F137: 15465345 | G137: 16610345 | H137: 16610345 | I137: 17667418 | J137: 18197589 | K137: 18776332
A138: Legal Services | C138: 17072219.45 | D138: 20662405 | E138: 25904474.07 | F138: 13604572 | G138: 19654572 | H138: 19654572 | I138: 22084330 | J138: 23011882 | K138: 24024412
A139: Marketing, Customer Relations, Publicity and Media Co-ordination | C139: 0 | D139: 8052100 | E139: 3489090.81 | F139: 3883421 | G139: 4103421 | H139: 4103421 | I139: 4652696 | J139: 4848121 | K139: 5061444
A140: Property Services | C140: 0 | D140: 6849848 | E140: 16053700.23 | F140: 7481318 | G140: 7471318 | H140: 7471318 | I140: 7465766 | J140: 7779346 | K140: 8121661
A141: Risk Management | C141: 175343.45 | D141: 1998596.76 | E141: 1981241.55 | F141: 2266056 | G141: 2266056 | H141: 2266056 | I141: 2283280 | J141: 2379188 | K141: 2483875
A142: Security Services | C142: 0 | D142: 0 | E142: 0 | F142: 0 | G142: 0 | H142: 0 | I142: 0 | J142: 0 | K142: 0
A143: Supply Chain Management | C143: 0 | D143: 4184031 | E143: 4375721.94 | F143: 4956446 | G143: 4546244 | H143: 4546244 | I143: 5024763 | J143: 5235815 | K143: 5466195
A144: Valuation Service | C144: 0 | D144: 0 | E144: 0 | F144: 0 | G144: 0 | H144: 0 | I144: 0 | J144: 0 | K144: 0
A145: Internal audit | C145: =SUM(C146:C146) -> 4631048.06 | D145: 4294460.96 | E145: 4838308.57 | F145: 5870455 | G145: 5820455 | H145: 5820455 | I145: 5734849 | J145: 5975722 | K145: 6238661
A146: Governance Function | C146: 4631048.06 | D146: 4294460.96 | E146: 4838308.57 | F146: 5870455 | G146: 5820455 | H146: 5820455 | I146: 5734849 | J146: 5975722 | K146: 6238661
A147: Community and public safety | C147: =C148+C170+C176+C185+C188 -> 40981172.89 | D147: 58016588.24 | E147: 76939452.91 | F147: 120243047 | G147: 120352998 | H147: 120352998 | I147: 87148830 | J147: 90624254 | K147: 94418074
A148: Community and social services | C148: =SUM(C149:C169) -> 11652126.03 | D148: =SUM(D149:D169) -> 10934244.24 | E148: 13453079.92 | F148: 13290578 | G148: 13470578 | H148: 13470578 | I148: 14064027 | J148: 14650792 | K148: 15291322
A149: Aged Care | C149: 0 | D149: 0 | E149: 0 | F149: 0 | G149: 0 | H149: 0 | I149: 0 | J149: 0 | K149: 0
A150: Agricultural | C150: 0 | D150: 0 | E150: 0 | F150: 0 | G150: 0 | H150: 0 | I150: 0 | J150: 0 | K150: 0
A151: Animal Care and Diseases | C151: 0 | D151: 0 | E151: 0 | F151: 0 | G151: 0 | H151: 0 | I151: 0 | J151: 0 | K151: 0
A152: Cemeteries, Funeral Parlours and Crematoriums | C152: 0 | D152: 0 | E152: 0 | F152: 0 | G152: 0 | H152: 0 | I152: 0 | J152: 0 | K152: 0
A153: Child Care Facilities | C153: 0 | D153: 0 | E153: 0 | F153: 0 | G153: 0 | H153: 0 | I153: 0 | J153: 0 | K153: 0
A154: Community Halls and Facilities | C154: 11010031 | D154: 0 | E154: 0 | F154: 0 | G154: 0 | H154: 0 | I154: 32727 | J154: 32727 | K154: 32727
A155: Consumer Protection | C155: 0 | D155: 0 | E155: 0 | F155: 0 | G155: 0 | H155: 0 | I155: 0 | J155: 0 | K155: 0
A156: Cultural Matters | C156: 0 | D156: 0 | E156: 0 | F156: 0 | G156: 0 | H156: 0 | I156: 0 | J156: 0 | K156: 0
A157: Disaster Management | C157: 641115.03 | D157: 2074940.24 | E157: 3813595.18 | F157: 2711398 | G157: 2891398 | H157: 2891398 | I157: 3400046 | J157: 3542854 | K157: 3698746
A158: Education | C158: 0 | D158: 0 | E158: 0 | F158: 0 | G158: 0 | H158: 0 | I158: 0 | J158: 0 | K158: 0
A159: =A37 -> Indigenous and Customary Law | C159: 0 | D159: 0 | E159: 0 | F159: 0 | G159: 0 | H159: 0 | I159: 0 | J159: 0 | K159: 0
A160: Industrial Promotion | C160: 0 | D160: 0 | E160: 0 | F160: 0 | G160: 0 | H160: 0 | I160: 0 | J160: 0 | K160: 0
A161: Language Policy | C161: 0 | D161: 0 | E161: 0 | F161: 0 | G161: 0 | H161: 0 | I161: 0 | J161: 0 | K161: 0
A162: Libraries and Archives | C162: 980 | D162: 8859304 | E162: 9639484.74 | F162: 10579180 | G162: 10579180 | H162: 10579180 | I162: 10631254 | J162: 11075211 | K162: 11559849
A163: Literacy Programmes | C163: 0 | D163: 0 | E163: 0 | F163: 0 | G163: 0 | H163: 0 | I163: 0 | J163: 0 | K163: 0
A164: Media Services | C164: 0 | D164: 0 | E164: 0 | F164: 0 | G164: 0 | H164: 0 | I164: 0 | J164: 0 | K164: 0
A165: Museums and Art Galleries | C165: 0 | D165: 0 | E165: 0 | F165: 0 | G165: 0 | H165: 0 | I165: 0 | J165: 0 | K165: 0
A166: Population Development | C166: 0 | D166: 0 | E166: 0 | F166: 0 | G166: 0 | H166: 0 | I166: 0 | J166: 0 | K166: 0
A167: Provincial Cultural Matters | C167: 0 | D167: 0 | E167: 0 | F167: 0 | G167: 0 | H167: 0 | I167: 0 | J167: 0 | K167: 0
A168: Theatres | C168: 0 | D168: 0 | E168: 0 | F168: 0 | G168: 0 | H168: 0 | I168: 0 | J168: 0 | K168: 0
A169: Zoo's | C169: 0 | D169: 0 | E169: 0 | F169: 0 | G169: 0 | H169: 0 | I169: 0 | J169: 0 | K169: 0
A170: Sport and recreation | C170: =SUM(C171:C175) -> 3186009.59 | D170: 13223660 | E170: 22565404.38 | F170: 25601180 | G170: 26279558 | H170: 26279558 | I170: 28000708 | J170: 29008030 | K170: 30107645
A171: Beaches and Jetties | C171: 0 | D171: 0 | E171: 0 | F171: 0 | G171: 0 | H171: 0 | I171: 0 | J171: 0 | K171: 0
A172: Casinos, Racing, Gambling, Wagering | C172: 0 | D172: 0 | E172: 0 | F172: 0 | G172: 0 | H172: 0 | I172: 0 | J172: 0 | K172: 0
A173: Community Parks (including Nurseries) | C173: 3186009.59 | D173: 0 | E173: 0 | F173: 0 | G173: 0 | H173: 0 | I173: 0 | J173: 0 | K173: 0
A174: Recreational Facilities | C174: 0 | D174: 13223660 | E174: 22565404.38 | F174: 25601180 | G174: 26279558 | H174: 26279558 | I174: 28000708 | J174: 29008030 | K174: 30107645
A175: Sports Grounds and Stadiums | C175: 0 | D175: 0 | E175: 0 | F175: 0 | G175: 0 | H175: 0 | I175: 0 | J175: 0 | K175: 0
A176: Public safety | C176: =SUM(C177:C184) -> 22286815 | D176: 16742070 | E176: 18165575.59 | F176: 51032724 | G176: 50235198 | H176: 50235198 | I176: 18297616 | J176: 19053890 | K176: 19879440
A177: Civil Defence | C177: 0 | D177: 0 | E177: 0 | F177: 0 | G177: 0 | H177: 0 | I177: 0 | J177: 0 | K177: 0
A178: Cleansing | C178: 0 | D178: 0 | E178: 0 | F178: 0 | G178: 0 | H178: 0 | I178: 0 | J178: 0 | K178: 0
A179: =A57 -> Control of Public Nuisances | C179: 15787821 | D179: 16742070 | E179: 18165575.59 | F179: 51032724 | G179: 50235198 | H179: 50235198 | I179: 18297616 | J179: 19053890 | K179: 19879440
A180: Fencing and Fences | C180: 0 | D180: 0 | E180: 0 | F180: 0 | G180: 0 | H180: 0 | I180: 0 | J180: 0 | K180: 0
A181: Fire Fighting and Protection | C181: 6498994 | D181: 0 | E181: 0 | F181: 0 | G181: 0 | H181: 0 | I181: 0 | J181: 0 | K181: 0
A182: Licensing and Control of Animals | C182: 0 | D182: 0 | E182: 0 | F182: 0 | G182: 0 | H182: 0 | I182: 0 | J182: 0 | K182: 0
A183: Police Forces, Traffic and Street Parking Control | C183: 0 | D183: 0 | E183: 0 | F183: 0 | G183: 0 | H183: 0 | I183: 0 | J183: 0 | K183: 0
A184: Pounds | C184: 0 | D184: 0 | E184: 0 | F184: 0 | G184: 0 | H184: 0 | I184: 0 | J184: 0 | K184: 0
A185: =A63 -> Housing | C185: =SUM(C186:C187) -> 3100429.96 | D185: 7917952 | E185: 12113183.55 | F185: 18596061 | G185: 18645160 | H185: 18645160 | I185: 15936528 | J185: 16605872 | K185: 17336537
A186: Housing | C186: 3100429.96 | D186: 7917952 | E186: 12113183.55 | F186: 18596061 | G186: 18645160 | H186: 18645160 | I186: 15936528 | J186: 16605872 | K186: 17336537
A187: Informal Settlements | C187: 0 | D187: 0 | E187: 0 | F187: 0 | G187: 0 | H187: 0 | I187: 0 | J187: 0 | K187: 0
A188: Health | C188: =SUM(C189:C195) -> 755792.31 | D188: =SUM(D189:D195) -> 9198662 | E188: 10642209.47 | F188: 11722504 | G188: 11722504 | H188: 11722504 | I188: 10849951 | J188: 11305670 | K188: 11803130
A189: Ambulance | C189: 0 | D189: 0 | E189: 0 | F189: 0 | G189: 0 | H189: 0 | I189: 0 | J189: 0 | K189: 0
A190: Health Services | C190: 755792.31 | D190: 9198662 | E190: 10642209.47 | F190: 11722504 | G190: 11722504 | H190: 11722504 | I190: 10849951 | J190: 11305670 | K190: 11803130
A191: Laboratory Services | C191: 0 | D191: 0 | E191: 0 | F191: 0 | G191: 0 | H191: 0 | I191: 0 | J191: 0 | K191: 0
A192: Food Control | C192: 0 | D192: 0 | E192: 0 | F192: 0 | G192: 0 | H192: 0 | I192: 0 | J192: 0 | K192: 0
A193: Health Surveillance and Prevention of Communicable Diseases including immunizations | C193: 0 | D193: 0 | E193: 0 | F193: 0 | G193: 0 | H193: 0 | I193: 0 | J193: 0 | K193: 0
A194: Vector Control | C194: 0 | D194: 0 | E194: 0 | F194: 0 | G194: 0 | H194: 0 | I194: 0 | J194: 0 | K194: 0
A195: Chemical Safety | C195: 0 | D195: 0 | E195: 0 | F195: 0 | G195: 0 | H195: 0 | I195: 0 | J195: 0 | K195: 0
A196: Economic and environmental services | C196: =C197+C208+C213 -> 287838164.6 | D196: 157357878.4 | E196: 145494753.6 | F196: 215242849 | G196: 185144739 | H196: 185144739 | I196: 194796743 | J196: 204438526 | K196: 215055346
A197: Planning and development | C197: =SUM(C198:C207) -> 19315113.29 | D197: =SUM(D198:D207) -> 15559417.92 | E197: 15835955.4 | F197: 28248926 | G197: 31860280 | H197: 31860280 | I197: 29816905 | J197: 31065649 | K197: 32428897
A198: Billboards | C198: 0 | D198: 0 | E198: 0 | F198: 0 | G198: 0 | H198: 0 | I198: 0 | J198: 0 | K198: 0
A199: Corporate Wide Strategic Planning (IDPs, LEDs) | C199: 17721905.34 | D199: 9193476.92 | E199: 9336842.74 | F199: 19361812 | G199: 24058697 | H199: 24058697 | I199: 20962946 | J199: 21843409 | K199: 22804640
A200: Central City Improvement District | C200: 0 | D200: 0 | E200: 0 | F200: 0 | G200: 0 | H200: 0 | I200: 0 | J200: 0 | K200: 0
A201: Development Facilitation | C201: 0 | D201: 0 | E201: 0 | F201: 0 | G201: 0 | H201: 0 | I201: 0 | J201: 0 | K201: 0
... 53 more rows

Sheet A3-FinPerf V
A1: =muni&" - "&Approve2 -> Choose name from list - Table A3 Budgeted Financial Performance (revenue and expenditure by municipal vote)
A2: =Vdesc -> Vote Description | B2: =head27 -> Ref | C2: =head1b -> 2017/18 | D2: =head1A -> 2018/19 | E2: =Head1 -> 2019/20 | F2: =Head2 -> Current Year 2020/21 | I2: =Head3 -> 2021/22 Medium Term Revenue & Expenditure Framework | L2: =Head4 -> LTFS
A3: R thousand | C3: =Head5 -> Audited Outcome | D3: =Head5 -> Audited Outcome | E3: =Head5 -> Audited Outcome | F3: =Head6 -> Original Budget | G3: =Head7 -> Adjusted Budget | H3: =Head8 -> Full Year Forecast | I3: =Head9 -> Budget Year 2021/22 | J3: =Head10 -> Budget Year +1 2022/23 | K3: =Head11 -> Budget Year +2 2023/24 | L3: =Head12 -> Forecast 2024/25 | M3: =Head13 -> Forecast 2025/26 | N3: =Head14 -> Forecast 2026/27 | O3: =Head15 -> Forecast 2027/28 | P3: =Head16 -> Forecast 2028/29 | Q3: =Head17 -> Forecast 2029/30 | R3: =Head18 -> Forecast 2030/31 | S3: =Head19 -> Forecast 2031/32 | T3: =Head20 -> Forecast 2032/33 | U3: =Head21 -> Forecast 2033/34 | V3: =Head22 -> Forecast 2034/35 | W3: =Head23 -> Forecast 2035/36
A4: Revenue by Vote | B4: 1
A5: =A3A!A5 -> Vote 1 - Executive & Council | C5: =A3A!C5 -> 52717840.63 | D5: =A3A!D5 -> 76693659.94 | E5: =A3A!E5 -> 0 | F5: =A3A!F5 -> 0 | G5: =A3A!G5 -> 0 | H5: =A3A!H5 -> 0 | I5: =A3A!I5 -> 0 | J5: =A3A!J5 -> 0 | K5: =A3A!K5 -> 0
A6: =A3A!A16 -> Vote 2 - Planning and Economic Development | C6: =A3A!C16 -> 1833578.98 | D6: =A3A!D16 -> 2957642.92 | E6: =A3A!E16 -> 355705.99 | F6: =A3A!F16 -> 400125 | G6: =A3A!G16 -> 400125 | H6: =A3A!H16 -> 400125 | I6: =A3A!I16 -> 400126 | J6: =A3A!J16 -> 416933 | K6: =A3A!K16 -> 435278
A7: =A3A!A27 -> Vote 3 - Budget and Treasury | C7: =A3A!C27 -> 445240576.4 | D7: =A3A!D27 -> 391472611.8 | E7: =A3A!E27 -> 572128627.8 | F7: =A3A!F27 -> 551611853 | G7: =A3A!G27 -> 644841984 | H7: =A3A!H27 -> 644841984 | I7: =A3A!I27 -> 575470228 | J7: =A3A!J27 -> 606398024 | K7: =A3A!K27 -> 604740863
A8: =A3A!A38 -> Vote 4 - Corporate Services | C8: =A3A!C38 -> 0 | D8: =A3A!D38 -> 36842335 | E8: =A3A!E38 -> 1400490.07 | F8: =A3A!F38 -> 1200000 | G8: =A3A!G38 -> 1200000 | H8: =A3A!H38 -> 1200000 | I8: =A3A!I38 -> 0 | J8: =A3A!J38 -> 0 | K8: =A3A!K38 -> 1
A9: =A3A!A49 -> Vote 5 - Engineering Services | C9: =A3A!C49 -> 101742000 | D9: =A3A!D49 -> 92348531.29 | E9: =A3A!E49 -> 93962050.6 | F9: =A3A!F49 -> 95278325 | G9: =A3A!G49 -> 95278327 | H9: =A3A!H49 -> 95278327 | I9: =A3A!I49 -> 101400327 | J9: =A3A!J49 -> 109733023 | K9: =A3A!K49 -> 114742099
A10: =A3A!A60 -> Vote 6 - Community Services | C10: =A3A!C60 -> 81017333.89 | D10: =A3A!D60 -> 74287164.22 | E10: =A3A!E60 -> 73656750.35 | F10: =A3A!F60 -> 170952700 | G10: =A3A!G60 -> 134952701 | H10: =A3A!H60 -> 134952701 | I10: =A3A!I60 -> 135782554 | J10: =A3A!J60 -> 132666979 | K10: =A3A!K60 -> 138504329
A11: =A3A!A71 -> Vote 7 - Electrical Engineering | C11: =A3A!C71 -> 454168274 | D11: =A3A!D71 -> 461613534.4 | E11: =A3A!E71 -> 577155264.6 | F11: =A3A!F71 -> 586201000 | G11: =A3A!G71 -> 590743000 | H11: =A3A!H71 -> 590743000 | I11: =A3A!I71 -> 735641250 | J11: =A3A!J71 -> 752995601 | K11: =A3A!K71 -> 819559128
A12: =A3A!A82 -> Vote 8 - Office of the Speaker | C12: =A3A!C82 -> 0 | D12: =A3A!D82 -> 0 | E12: =A3A!E82 -> 0 | F12: =A3A!F82 -> 0 | G12: =A3A!G82 -> 0 | H12: =A3A!H82 -> 0 | I12: =A3A!I82 -> 0 | J12: =A3A!J82 -> 0 | K12: =A3A!K82 -> 0
A13: =A3A!A93 -> Vote 9 - COMMUNITY & SOCIAL SERVICES | C13: =A3A!C93 -> 0 | D13: =A3A!D93 -> 0 | E13: =A3A!E93 -> 0 | F13: =A3A!F93 -> 0 | G13: =A3A!G93 -> 0 | H13: =A3A!H93 -> 0 | I13: =A3A!I93 -> 0 | J13: =A3A!J93 -> 0 | K13: =A3A!K93 -> 0
A14: =A3A!A104 -> Vote 10 - Office of the Municipal Manager | C14: =A3A!C104 -> 0 | D14: =A3A!D104 -> 0 | E14: =A3A!E104 -> 298000 | F14: =A3A!F104 -> 1229 | G14: =A3A!G104 -> 1229 | H14: =A3A!H104 -> 1229 | I14: =A3A!I104 -> 1229 | J14: =A3A!J104 -> 1282 | K14: =A3A!K104 -> 1338
A15: =A3A!A115 -> Vote 11 - [NAME OF VOTE 11] | C15: =A3A!C115 -> 0 | D15: =A3A!D115 -> 0 | E15: =A3A!E115 -> 0 | F15: =A3A!F115 -> 0 | G15: =A3A!G115 -> 0 | H15: =A3A!H115 -> 0 | I15: =A3A!I115 -> 0 | J15: =A3A!J115 -> 0 | K15: =A3A!K115 -> 0 | L15: =A5A!L115 -> 0
A16: =A3A!A126 -> Vote 12 - [NAME OF VOTE 12] | C16: =A3A!C126 -> 0 | D16: =A3A!D126 -> 0 | E16: =A3A!E126 -> 0 | F16: =A3A!F126 -> 0 | G16: =A3A!G126 -> 0 | H16: =A3A!H126 -> 0 | I16: =A3A!I126 -> 0 | J16: =A3A!J126 -> 0 | K16: =A3A!K126 -> 0 | L16: =A5A!L126 -> 0
A17: =A3A!A137 -> Vote 13 - [NAME OF VOTE 13] | C17: =A3A!C137 -> 0 | D17: =A3A!D137 -> 0 | E17: =A3A!E137 -> 0 | F17: =A3A!F137 -> 0 | G17: =A3A!G137 -> 0 | H17: =A3A!H137 -> 0 | I17: =A3A!I137 -> 0 | J17: =A3A!J137 -> 0 | K17: =A3A!K137 -> 0 | L17: =A5A!L137 -> 0
A18: =A3A!A148 -> Vote 14 - [NAME OF VOTE 14] | C18: =A3A!C148 -> 0 | D18: =A3A!D148 -> 0 | E18: =A3A!E148 -> 0 | F18: =A3A!F148 -> 0 | G18: =A3A!G148 -> 0 | H18: =A3A!H148 -> 0 | I18: =A3A!I148 -> 0 | J18: =A3A!J148 -> 0 | K18: =A3A!K148 -> 0 | L18: =A5A!L148 -> 0
A19: =A3A!A159 -> Vote 15 - [NAME OF VOTE 15] | C19: =A3A!C159 -> 0 | D19: =A3A!D159 -> 0 | E19: =A3A!E159 -> 0 | F19: =A3A!F159 -> 0 | G19: =A3A!G159 -> 0 | H19: =A3A!H159 -> 0 | I19: =A3A!I159 -> 0 | J19: =A3A!J159 -> 0 | K19: =A3A!K159 -> 0 | L19: =A5A!L159 -> 0
A20: Total Revenue by Vote | B20: 2 | C20: =SUM(C5:C19) -> 1136719604 | D20: =SUM(D5:D19) -> 1136215480 | E20: 1318956889 | F20: 1405645232 | G20: 1467417366 | H20: 1467417366 | I20: 1548695714 | J20: 1602211842 | K20: 1677983036
A22: Expenditure by Vote to be appropriated | B22: 1
A23: =A3A!A173 -> Vote 1 - Executive & Council | C23: =A3A!C173 -> 346769164.7 | D23: =A3A!D173 -> 281786216.1 | E23: =A3A!E173 -> 0 | F23: =A3A!F173 -> 0 | G23: =A3A!G173 -> 0 | H23: =A3A!H173 -> 0 | I23: =A3A!I173 -> 0 | J23: =A3A!J173 -> 0 | K23: =A3A!K173 -> 0
A24: =A3A!A184 -> Vote 2 - Planning and Economic Development | C24: =A3A!C184 -> 4054727.78 | D24: =A3A!D184 -> 30327217.92 | E24: =A3A!E184 -> 27696566.36 | F24: =A3A!F184 -> 31351190 | G24: =A3A!G184 -> 34702544 | H24: =A3A!H184 -> 34702544 | I24: =A3A!I184 -> 32421715 | J24: =A3A!J184 -> 33779872 | K24: =A3A!K184 -> 35262560
A25: =A3A!A195 -> Vote 3 - Budget and Treasury | C25: =A3A!C195 -> 287720462.7 | D25: =A3A!D195 -> 59768837.58 | E25: =A3A!E195 -> 110504122.4 | F25: =A3A!F195 -> 113337111 | G25: =A3A!G195 -> 119686752 | H25: =A3A!H195 -> 119686752 | I25: =A3A!I195 -> 128287707 | J25: =A3A!J195 -> 133586431 | K25: =A3A!K195 -> 139370625
A26: =A3A!A206 -> Vote 4 - Corporate Services | C26: =A3A!C206 -> 0 | D26: =A3A!D206 -> 18751167.8 | E26: =A3A!E206 -> 52589256.57 | F26: =A3A!F206 -> 63973170 | G26: =A3A!G206 -> 64810068 | H26: =A3A!H206 -> 64810068 | I26: =A3A!I206 -> 74458839 | J26: =A3A!J206 -> 77368717 | K26: =A3A!K206 -> 80545178
A27: =A3A!A217 -> Vote 5 - Engineering Services | C27: =A3A!C217 -> 214355149.2 | D27: =A3A!D217 -> 141798460.5 | E27: =A3A!E217 -> 119608009.9 | F27: =A3A!F217 -> 162934326 | G27: =A3A!G217 -> 161273441 | H27: =A3A!H217 -> 161273441 | I27: =A3A!I217 -> 158869158 | J27: =A3A!J217 -> 167005548 | K27: =A3A!K217 -> 175978961
A28: =A3A!A228 -> Vote 6 - Community Services | C28: =A3A!C228 -> 19782561.75 | D28: =A3A!D228 -> 137079915.8 | E28: =A3A!E228 -> 187459225.7 | F28: =A3A!F228 -> 269568063 | G28: =A3A!G228 -> 236386234 | H28: =A3A!H228 -> 236386234 | I28: =A3A!I228 -> 213892592 | J28: =A3A!J228 -> 213692444 | K28: =A3A!K228 -> 222712278
A29: =A3A!A239 -> Vote 7 - Electrical Engineering | C29: =A3A!C239 -> 352328704.7 | D29: =A3A!D239 -> 508866589.9 | E29: =A3A!E239 -> 520103946.3 | F29: =A3A!F239 -> 572684922 | G29: =A3A!G239 -> 583826089 | H29: =A3A!H239 -> 583826089 | I29: =A3A!I239 -> 628353359 | J29: =A3A!J239 -> 642482423 | K29: =A3A!K239 -> 693056217
A30: =A3A!A250 -> Vote 8 - Office of the Speaker | C30: =A3A!C250 -> 0 | D30: =A3A!D250 -> 20609393.08 | E30: =A3A!E250 -> 0 | F30: =A3A!F250 -> 0 | G30: =A3A!G250 -> 0 | H30: =A3A!H250 -> 0 | I30: =A3A!I250 -> 0 | J30: =A3A!J250 -> 0 | K30: =A3A!K250 -> 0
A31: =A3A!A261 -> Vote 9 - COMMUNITY & SOCIAL SERVICES | C31: =A3A!C261 -> 0 | D31: =A3A!D261 -> 0 | E31: =A3A!E261 -> 0 | F31: =A3A!F261 -> 0 | G31: =A3A!G261 -> 0 | H31: =A3A!H261 -> 0 | I31: =A3A!I261 -> 0 | J31: =A3A!J261 -> 0 | K31: =A3A!K261 -> 0
A32: =A3A!A272 -> Vote 10 - Office of the Municipal Manager | C32: =A3A!C272 -> 0 | D32: =A3A!D272 -> 0 | E32: =A3A!E272 -> 88391250.05 | F32: =A3A!F272 -> 73506259 | G32: =A3A!G272 -> 80035922 | H32: =A3A!H272 -> 80035922 | I32: =A3A!I272 -> 85889271 | J32: =A3A!J272 -> 89380803 | K32: =A3A!K272 -> 93192209
A33: =A3A!A283 -> Vote 11 - [NAME OF VOTE 11] | C33: =A3A!C283 -> 0 | D33: =A3A!D283 -> 0 | E33: =A3A!E283 -> 0 | F33: =A3A!F283 -> 0 | G33: =A3A!G283 -> 0 | H33: =A3A!H283 -> 0 | I33: =A3A!I283 -> 0 | J33: =A3A!J283 -> 0 | K33: =A3A!K283 -> 0 | L33: =A3A!L284 -> 0
A34: =A3A!A294 -> Vote 12 - [NAME OF VOTE 12] | C34: =A3A!C294 -> 0 | D34: =A3A!D294 -> 0 | E34: =A3A!E294 -> 0 | F34: =A3A!F294 -> 0 | G34: =A3A!G294 -> 0 | H34: =A3A!H294 -> 0 | I34: =A3A!I294 -> 0 | J34: =A3A!J294 -> 0 | K34: =A3A!K294 -> 0 | L34: =A3A!L295 -> 0
A35: =A3A!A305 -> Vote 13 - [NAME OF VOTE 13] | C35: =A3A!C305 -> 0 | D35: =A3A!D305 -> 0 | E35: =A3A!E305 -> 0 | F35: =A3A!F305 -> 0 | G35: =A3A!G305 -> 0 | H35: =A3A!H305 -> 0 | I35: =A3A!I305 -> 0 | J35: =A3A!J305 -> 0 | K35: =A3A!K305 -> 0 | L35: =A3A!L306 -> 0
A36: =A3A!A316 -> Vote 14 - [NAME OF VOTE 14] | C36: =A3A!C316 -> 0 | D36: =A3A!D316 -> 0 | E36: =A3A!E316 -> 0 | F36: =A3A!F316 -> 0 | G36: =A3A!G316 -> 0 | H36: =A3A!H316 -> 0 | I36: =A3A!I316 -> 0 | J36: =A3A!J316 -> 0 | K36: =A3A!K316 -> 0 | L36: =A3A!L317 -> 0
A37: =A3A!A327 -> Vote 15 - [NAME OF VOTE 15] | C37: =A3A!C327 -> 0 | D37: =A3A!D327 -> 0 | E37: =A3A!E327 -> 0 | F37: =A3A!F327 -> 0 | G37: =A3A!G327 -> 0 | H37: =A3A!H327 -> 0 | I37: =A3A!I327 -> 0 | J37: =A3A!J327 -> 0 | K37: =A3A!K327 -> 0 | L37: =A3A!L328 -> 0
A38: Total Expenditure by Vote | B38: 2 | C38: =SUM(C23:C37) -> 1225010771 | D38: =SUM(D23:D37) -> 1198987799 | E38: 1106352377 | F38: 1287355041 | G38: 1280721050 | H38: 1280721050 | I38: 1322172641 | J38: 1357296238 | K38: 1440118028 | L38: =SUM(L23:L29) -> 0 | M38: 0 | N38: 0 | O38: 0 | P38: 0 | Q38: 0 | R38: 0 | S38: 0 | T38: 0 | U38: 0 | V38: 0 | W38: 0
A39: =result -> Surplus/(Deficit) for the year | B39: 2 | C39: =C20-C38 -> -88291166.91 | D39: -62772319 | E39: 212604512.2 | F39: 118290191 | G39: 186696316 | H39: 186696316 | I39: 226523073 | J39: 244915604 | K39: 237865008 | L39: 0 | M39: 0 | N39: 0 | O39: 0 | P39: 0 | Q39: 0 | R39: 0 | S39: 0 | T39: 0 | U39: 0 | V39: 0 | W39: 0
A40: =head27a -> References
A41: 1. Insert 'Vote'; e.g. department, if different to functional classification structure
A42: 2. Must reconcile to Budgeted Financial Performance (revenue and expenditure)
A43: 3. Assign share in 'associate' to relevant Vote
A45: ="check "&A39 -> check Surplus/(Deficit) for the year | C45: =C39-A3A!C340 -> 0 | D45: =D39-A3A!D340 -> 0 | E45: =E39-A3A!E340 -> 0 | F45: =F39-A3A!F340 -> 0 | G45: =G39-A3A!G340 -> 0 | H45: =H39-A3A!H340 -> 0 | I45: =I39-A3A!I340 -> 0 | J45: =J39-A3A!J340 -> 0 | K45: =K39-A3A!K340 -> 0

Sheet A3A
A1: =muni&" - "&Approve2&"A" -> Choose name from list - Table A3 Budgeted Financial Performance (revenue and expenditure by municipal vote)A
A2: =Vdesc -> Vote Description | B2: =head27 -> Ref | C2: =head1b -> 2017/18 | D2: =head1A -> 2018/19 | E2: =Head1 -> 2019/20 | F2: =Head2 -> Current Year 2020/21 | I2: =Head3 -> 2021/22 Medium Term Revenue & Expenditure Framework | L2: =Head4 -> LTFS
A3: R thousand | C3: =Head5 -> Audited Outcome | D3: =Head5 -> Audited Outcome | E3: =Head5 -> Audited Outcome | F3: =Head6 -> Original Budget | G3: =Head7 -> Adjusted Budget | H3: =Head8 -> Full Year Forecast | I3: =Head9 -> Budget Year 2021/22 | J3: =Head10 -> Budget Year +1 2022/23 | K3: =Head11 -> Budget Year +2 2023/24 | L3: =Head12 -> Forecast 2024/25 | M3: =Head13 -> Forecast 2025/26 | N3: =Head14 -> Forecast 2026/27 | O3: =Head15 -> Forecast 2027/28 | P3: =Head16 -> Forecast 2028/29 | Q3: =Head17 -> Forecast 2029/30 | R3: =Head18 -> Forecast 2030/31 | S3: =Head19 -> Forecast 2031/32 | T3: =Head20 -> Forecast 2032/33 | U3: =Head21 -> Forecast 2033/34 | V3: =Head22 -> Forecast 2034/35 | W3: =Head23 -> Forecast 2035/36
A4: Revenue by Vote | B4: 1
A5: ='Org structure'!A2 -> Vote 1 - Executive & Council | C5: 52717840.63 | D5: 76693659.94 | E5: 0 | F5: 0 | G5: 0 | H5: 0 | I5: 0 | J5: 0 | K5: 0
A6: ='Org structure'!E3 -> 1.1 - [Name of sub-vote]
A7: ='Org structure'!E4 -> 0
A8: ='Org structure'!E5 -> 0
A9: ='Org structure'!E6 -> 0
A10: ='Org structure'!E7 -> 0
A11: ='Org structure'!E8 -> 0
A12: ='Org structure'!E9 -> 0
A13: ='Org structure'!E10 -> 0
A14: ='Org structure'!E11 -> 0
A15: ='Org structure'!E12 -> 0
A16: ='Org structure'!A3 -> Vote 2 - Planning and Economic Development | C16: 1833578.98 | D16: 2957642.92 | E16: 355705.99 | F16: 400125 | G16: 400125 | H16: 400125 | I16: 400126 | J16: 416933 | K16: 435278
A17: ='Org structure'!E14 -> 2.1 - [Name of sub-vote]
A18: ='Org structure'!E15 -> 0
A19: ='Org structure'!E16 -> 0
A20: ='Org structure'!E17 -> 0
A21: ='Org structure'!E18 -> 0
A22: ='Org structure'!E19 -> 0
A23: ='Org structure'!E20 -> 0
A24: ='Org structure'!E21 -> 0
A25: ='Org structure'!E22 -> 0
A26: ='Org structure'!E23 -> 0
A27: ='Org structure'!A4 -> Vote 3 - Budget and Treasury | C27: 445240576.4 | D27: 391472611.8 | E27: 572128627.8 | F27: 551611853 | G27: 644841984 | H27: 644841984 | I27: 575470228 | J27: 606398024 | K27: 604740863
A28: ='Org structure'!E25 -> 3.1 - [Name of sub-vote]
A29: ='Org structure'!E26 -> 0
A30: ='Org structure'!E27 -> 0
A31: ='Org structure'!E28 -> 0
A32: ='Org structure'!E29 -> 0
A33: ='Org structure'!E30 -> 0
A34: ='Org structure'!E31 -> 0
A35: ='Org structure'!E32 -> 0
A36: ='Org structure'!E33 -> 0
A37: ='Org structure'!E34 -> 0
A38: ='Org structure'!A5 -> Vote 4 - Corporate Services | C38: 0 | D38: 36842335 | E38: 1400490.07 | F38: 1200000 | G38: 1200000 | H38: 1200000 | I38: 0 | J38: 0 | K38: 1
A39: ='Org structure'!E36 -> 4.1 - [Name of sub-vote]
A40: ='Org structure'!E37 -> 0
A41: ='Org structure'!E38 -> 0
A42: ='Org structure'!E39 -> 0
A43: ='Org structure'!E40 -> 0
A44: ='Org structure'!E41 -> 0
A45: ='Org structure'!E42 -> 0
A46: ='Org structure'!E43 -> 0
A47: ='Org structure'!E44 -> 0
A48: ='Org structure'!E45 -> 0
A49: ='Org structure'!A6 -> Vote 5 - Engineering Services | C49: 101742000 | D49: 92348531.29 | E49: 93962050.6 | F49: 95278325 | G49: 95278327 | H49: 95278327 | I49: 101400327 | J49: 109733023 | K49: 114742099
A50: ='Org structure'!E47 -> 5.1 - [Name of sub-vote]
A51: ='Org structure'!E48 -> 0
A52: ='Org structure'!E49 -> 0
A53: ='Org structure'!E50 -> 0
A54: ='Org structure'!E51 -> 0
A55: ='Org structure'!E52 -> 0
A56: ='Org structure'!E53 -> 0
A57: ='Org structure'!E54 -> 0
A58: ='Org structure'!E55 -> 0
A59: ='Org structure'!E56 -> 0
A60: ='Org structure'!A7 -> Vote 6 - Community Services | C60: 81017333.89 | D60: 74287164.22 | E60: 73656750.35 | F60: 170952700 | G60: 134952701 | H60: 134952701 | I60: 135782554 | J60: 132666979 | K60: 138504329
A61: ='Org structure'!E58 -> 6.1 - [Name of sub-vote]
A62: ='Org structure'!E59 -> 0
A63: ='Org structure'!E60 -> 0
A64: ='Org structure'!E61 -> 0
A65: ='Org structure'!E62 -> 0
A66: ='Org structure'!E63 -> 0
A67: ='Org structure'!E64 -> 0
A68: ='Org structure'!E65 -> 0
A69: ='Org structure'!E66 -> 0
A70: ='Org structure'!E67 -> 0
A71: ='Org structure'!A8 -> Vote 7 - Electrical Engineering | C71: 454168274 | D71: 461613534.4 | E71: 577155264.6 | F71: 586201000 | G71: 590743000 | H71: 590743000 | I71: 735641250 | J71: 752995601 | K71: 819559128
A72: ='Org structure'!E69 -> 7.1 - [Name of sub-vote]
A73: ='Org structure'!E70 -> 0
A74: ='Org structure'!E71 -> 0
A75: ='Org structure'!E72 -> 0
A76: ='Org structure'!E73 -> 0
A77: ='Org structure'!E74 -> 0
A78: ='Org structure'!E75 -> 0
A79: ='Org structure'!E76 -> 0
A80: ='Org structure'!E77 -> 0
A81: ='Org structure'!E78 -> 0
A82: ='Org structure'!A9 -> Vote 8 - Office of the Speaker | C82: 0 | D82: 0 | E82: 0 | F82: 0 | G82: 0 | H82: 0 | I82: 0 | J82: 0 | K82: 0
A83: ='Org structure'!E80 -> 8.1 - [Name of sub-vote]
A84: ='Org structure'!E81 -> 0
A85: ='Org structure'!E82 -> 0
A86: ='Org structure'!E83 -> 0
A87: ='Org structure'!E84 -> 0
A88: ='Org structure'!E85 -> 0
A89: ='Org structure'!E86 -> 0
A90: ='Org structure'!E87 -> 0
A91: ='Org structure'!E88 -> 0
A92: ='Org structure'!E89 -> 0
A93: ='Org structure'!A10 -> Vote 9 - COMMUNITY & SOCIAL SERVICES | C93: 0 | D93: 0 | E93: 0 | F93: 0 | G93: 0 | H93: 0 | I93: 0 | J93: 0 | K93: 0
A94: ='Org structure'!E91 -> 9.1 - [Name of sub-vote]
A95: ='Org structure'!E92 -> 0
A96: ='Org structure'!E93 -> 0
A97: ='Org structure'!E94 -> 0
A98: ='Org structure'!E95 -> 0
A99: ='Org structure'!E96 -> 0
A100: ='Org structure'!E97 -> 0
A101: ='Org structure'!E98 -> 0
A102: ='Org structure'!E99 -> 0
A103: ='Org structure'!E100 -> 0
A104: ='Org structure'!A11 -> Vote 10 - Office of the Municipal Manager | C104: 0 | D104: 0 | E104: 298000 | F104: 1229 | G104: 1229 | H104: 1229 | I104: 1229 | J104: 1282 | K104: 1338
A105: ='Org structure'!E102 -> 10.1 - [Name of sub-vote]
A106: ='Org structure'!E103 -> 0
A107: ='Org structure'!E104 -> 0
A108: ='Org structure'!E105 -> 0
A109: ='Org structure'!E106 -> 0
A110: ='Org structure'!E107 -> 0
A111: ='Org structure'!E108 -> 0
A112: ='Org structure'!E109 -> 0
A113: ='Org structure'!E110 -> 0
A114: ='Org structure'!E111 -> 0
A115: ='Org structure'!A12 -> Vote 11 - [NAME OF VOTE 11] | C115: =SUM(C116:C125) -> 0 | D115: =SUM(D116:D125) -> 0 | E115: 0 | F115: 0 | G115: 0 | H115: 0 | I115: 0 | J115: 0 | K115: 0
A116: ='Org structure'!E113 -> 11.1 - [Name of sub-vote]
A117: ='Org structure'!E114 -> 0
A118: ='Org structure'!E115 -> 0
A119: ='Org structure'!E116 -> 0
A120: ='Org structure'!E117 -> 0
A121: ='Org structure'!E118 -> 0
A122: ='Org structure'!E119 -> 0
A123: ='Org structure'!E120 -> 0
A124: ='Org structure'!E121 -> 0
A125: ='Org structure'!E122 -> 0
A126: ='Org structure'!A13 -> Vote 12 - [NAME OF VOTE 12] | C126: =SUM(C127:C136) -> 0 | D126: =SUM(D127:D136) -> 0 | E126: 0 | F126: 0 | G126: 0 | H126: 0 | I126: 0 | J126: 0 | K126: 0
A127: ='Org structure'!E124 -> 12.1 - [Name of sub-vote]
A128: ='Org structure'!E125 -> 0
A129: ='Org structure'!E126 -> 0
A130: ='Org structure'!E127 -> 0
A131: ='Org structure'!E128 -> 0
A132: ='Org structure'!E129 -> 0
A133: ='Org structure'!E130 -> 0
A134: ='Org structure'!E131 -> 0
A135: ='Org structure'!E132 -> 0
A136: ='Org structure'!E133 -> 0
A137: ='Org structure'!A14 -> Vote 13 - [NAME OF VOTE 13] | C137: =SUM(C138:C147) -> 0 | D137: =SUM(D138:D147) -> 0 | E137: 0 | F137: 0 | G137: 0 | H137: 0 | I137: 0 | J137: 0 | K137: 0
A138: ='Org structure'!E135 -> 13.1 - [Name of sub-vote]
A139: ='Org structure'!E136 -> 0
A140: ='Org structure'!E137 -> 0
A141: ='Org structure'!E138 -> 0
A142: ='Org structure'!E139 -> 0
A143: ='Org structure'!E140 -> 0
A144: ='Org structure'!E141 -> 0
A145: ='Org structure'!E142 -> 0
A146: ='Org structure'!E143 -> 0
A147: ='Org structure'!E144 -> 0
A148: ='Org structure'!A15 -> Vote 14 - [NAME OF VOTE 14] | C148: =SUM(C149:C158) -> 0 | D148: =SUM(D149:D158) -> 0 | E148: 0 | F148: 0 | G148: 0 | H148: 0 | I148: 0 | J148: 0 | K148: 0
A149: ='Org structure'!E146 -> 14.1 - [Name of sub-vote]
A150: ='Org structure'!E147 -> 0
A151: ='Org structure'!E148 -> 0
A152: ='Org structure'!E149 -> 0
A153: ='Org structure'!E150 -> 0
A154: ='Org structure'!E151 -> 0
A155: ='Org structure'!E152 -> 0
A156: ='Org structure'!E153 -> 0
A157: ='Org structure'!E154 -> 0
A158: ='Org structure'!E155 -> 0
A159: ='Org structure'!A16 -> Vote 15 - [NAME OF VOTE 15] | C159: =SUM(C160:C169) -> 0 | D159: =SUM(D160:D169) -> 0 | E159: 0 | F159: 0 | G159: 0 | H159: 0 | I159: 0 | J159: 0 | K159: 0
A160: ='Org structure'!E157 -> 15.1 - [Name of sub-vote]
A161: ='Org structure'!E158 -> 0
A162: ='Org structure'!E159 -> 0
A163: ='Org structure'!E160 -> 0
A164: ='Org structure'!E161 -> 0
A165: ='Org structure'!E162 -> 0
A166: ='Org structure'!E163 -> 0
A167: ='Org structure'!E164 -> 0
A168: ='Org structure'!E165 -> 0
A169: ='Org structure'!E166 -> 0
A170: Total Revenue by Vote | B170: 2 | C170: =C5+C16+C27+C38+C49+C60+C71+C82+C93+C104+C115+C126+C137+C148+C159 -> 1136719604 | D170: =D5+D16+D27+D38+D49+D60+D71+D82+D93+D104+D115+D126+D137+D148+D159 -> 1136215480 | E170: =E5+E16+E27+E38+E49+E60+E71+E82+E93+E104+E115+E126+E137+E148+E159 -> 1318956889 | F170: 1405645232 | G170: 1467417366 | H170: 1467417366 | I170: =I5+I16+I27+I38+I49+I60+I71+I82+I93+I104+I115+I126+I137+I148+I159 -> 1548695714 | J170: 1602211842 | K170: 1677983036 | L170: =SUM(L78:L81) -> 0 | M170: 0 | N170: 0 | O170: 0 | P170: 0 | Q170: 0 | R170: 0 | S170: 0 | T170: 0 | U170: 0 | V170: 0 | W170: 0
A172: Expenditure by Vote | B172: 1
A173: =A5 -> Vote 1 - Executive & Council | C173: 346769164.7 | D173: 281786216.1 | E173: 0 | F173: 0 | G173: 0 | H173: 0 | I173: 0 | J173: 0 | K173: 0
A174: =A6 -> 1.1 - [Name of sub-vote]
A175: 0
A176: 0
A177: 0
A178: 0
A179: 0
A180: 0
A181: 0
A182: 0
A183: 0
A184: =A16 -> Vote 2 - Planning and Economic Development | C184: 4054727.78 | D184: 30327217.92 | E184: 27696566.36 | F184: 31351190 | G184: 34702544 | H184: 34702544 | I184: 32421715 | J184: 33779872 | K184: 35262560
A185: =A17 -> 2.1 - [Name of sub-vote]
A186: 0
A187: 0
A188: 0
A189: 0
A190: 0
A191: 0
A192: 0
A193: 0
A194: 0
A195: =A27 -> Vote 3 - Budget and Treasury | C195: 287720462.7 | D195: 59768837.58 | E195: 110504122.4 | F195: 113337111 | G195: 119686752 | H195: 119686752 | I195: 128287707 | J195: 133586431 | K195: 139370625
A196: 3.1 - [Name of sub-vote]
A197: 0
A198: 0
A199: 0
A200: 0
A201: 0
... 144 more rows

Sheet A4-FinPerf RE
A1: =muni&" - "&Approve4 -> Choose name from list - Table A4 Budgeted Financial Performance (revenue and expenditure)
A2: =desc -> Description | B2: =head27 -> Ref | C2: =head1b -> 2017/18 | D2: =head1A -> 2018/19 | E2: =Head1 -> 2019/20 | F2: =Head2 -> Current Year 2020/21 | J2: =Head3 -> 2021/22 Medium Term Revenue & Expenditure Framework | M2: =Head4 -> LTFS
A3: R thousand | B3: 1 | C3: =Head5 -> Audited Outcome | D3: =Head5 -> Audited Outcome | E3: =Head5 -> Audited Outcome | F3: =Head6 -> Original Budget | G3: =Head7 -> Adjusted Budget | H3: =Head8 -> Full Year Forecast | I3: =Head5b -> Pre-audit outcome | J3: =Head9 -> Budget Year 2021/22 | K3: =Head10 -> Budget Year +1 2022/23 | L3: =Head11 -> Budget Year +2 2023/24 | M3: =Head12 -> Forecast 2024/25 | N3: =Head13 -> Forecast 2025/26 | O3: =Head14 -> Forecast 2026/27 | P3: =Head15 -> Forecast 2027/28 | Q3: =Head16 -> Forecast 2028/29 | R3: =Head17 -> Forecast 2029/30 | S3: =Head18 -> Forecast 2030/31 | T3: =Head19 -> Forecast 2031/32 | U3: =Head20 -> Forecast 2032/33 | V3: =Head21 -> Forecast 2033/34 | W3: =Head22 -> Forecast 2034/35 | X3: =Head23 -> Forecast 2035/36
A4: Revenue By Source
A5: Property rates | B5: 2 | C5: ='SA1'!C9 -> 99289522.36 | D5: ='SA1'!D9 -> 109163925 | E5: ='SA1'!E9 -> 114746520.2 | F5: ='SA1'!F9 -> 132500000 | G5: ='SA1'!G9 -> 132500000 | H5: ='SA1'!H9 -> 132500000 | I5: ='SA1'!I9 -> 132500000 | J5: ='SA1'!J9 -> 137500000 | K5: ='SA1'!K9 -> 143275000 | L5: ='SA1'!L9 -> 149579106
A6: Service charges - electricity revenue | B6: 2 | C6: ='SA1'!C15 -> 452023274 | D6: ='SA1'!D15 -> 449863851 | E6: ='SA1'!E15 -> 523323295.3 | F6: ='SA1'!F15 -> 571201000 | G6: ='SA1'!G15 -> 580743000 | H6: ='SA1'!H15 -> 580743000 | I6: ='SA1'!I15 -> 584943000 | J6: ='SA1'!J15 -> 669621250 | K6: ='SA1'!K15 -> 738995601 | L6: ='SA1'!L15 -> 803559143
A7: Service charges - water revenue | B7: 2 | C7: ='SA1'!C21 -> 0 | D7: ='SA1'!D21 -> 0 | E7: ='SA1'!E21 -> 0 | F7: ='SA1'!F21 -> 0 | G7: ='SA1'!G21 -> 0 | H7: ='SA1'!H21 -> 0 | I7: ='SA1'!I21 -> 0 | J7: ='SA1'!J21 -> 0 | K7: ='SA1'!K21 -> 0 | L7: ='SA1'!L21 -> 4
A8: Service charges - sanitation revenue | B8: 2 | C8: ='SA1'!C27 -> 0 | D8: ='SA1'!D27 -> 0 | E8: ='SA1'!E27 -> 0 | F8: ='SA1'!F27 -> 0 | G8: ='SA1'!G27 -> 0 | H8: ='SA1'!H27 -> 0 | I8: ='SA1'!I27 -> 0 | J8: ='SA1'!J27 -> 0 | K8: ='SA1'!K27 -> 0 | L8: ='SA1'!L27 -> 1
A9: Service charges - refuse revenue | B9: 2 | C9: ='SA1'!C34 -> 30990314 | D9: ='SA1'!D34 -> 36442557.3 | E9: ='SA1'!E34 -> 33128367.25 | F9: ='SA1'!F34 -> 35416132 | G9: ='SA1'!G34 -> 35416132 | H9: ='SA1'!H34 -> 35416132 | I9: ='SA1'!I34 -> 36616132 | J9: ='SA1'!J34 -> 35907361 | K9: ='SA1'!K34 -> 37415471 | L9: ='SA1'!L34 -> 39061751
A11: Rental of facilities and equipment | C11: 1781895 | D11: 2132695.52 | E11: 1152232.67 | F11: 1170100 | G11: 1170100 | H11: 1170100 | I11: 1170100 | J11: 1170100 | K11: 1219245 | L11: 1272892
A12: Interest earned - external investments | C12: 4427275 | D12: 9615814.76 | E12: 8677864.51 | F12: 4301000 | G12: 4301000 | H12: 4301000 | I12: 4301000 | J12: 3500000 | K12: 3647000 | L12: 3807470
A13: Interest earned - outstanding debtors | C13: 18395501.29 | D13: 17826054 | E13: 30117078.6 | F13: 23600000 | G13: 23600000 | H13: 23600000 | I13: 23600000 | J13: 23600000 | K13: 24591200 | L13: 25673219
A14: Dividends received | C14: 0 | D14: 0 | E14: 0 | F14: 0 | G14: 0 | H14: 0 | I14: 0 | J14: 0 | K14: 0 | L14: 0
A15: Fines, penalties and forfeits | C15: 46190261.66 | D15: 42312789.01 | E15: 26199829.77 | F15: 38501136 | G15: 38501136 | H15: 38501136 | I15: 38501136 | J15: 38501136 | K15: 40118185 | L15: 41883385
A16: Licences and permits | C16: 1005866 | D16: 1020675 | E16: 1231991.52 | F16: 917000 | G16: 917000 | H16: 917000 | I16: 917000 | J16: 917000 | K16: 955514 | L16: 997559
A17: Agency services | C17: 7988116 | D17: 9254074 | E17: 9118576.13 | F17: 58664291 | G17: 22664291 | H17: 22664291 | I17: 22664291 | J17: 22664291 | K17: 23616192 | L17: 24655304
A18: Transfers and subsidies | C18: 349037100 | D18: 369600821 | E18: 418870589.6 | F18: 443963950 | G18: 530963950 | H18: 530963950 | I18: 530963950 | J18: 514088050 | K18: 479030200 | L18: 473161852
A19: Other revenue | B19: 2 | C19: ='SA1'!C49 -> 17574075.81 | D19: ='SA1'!D49 -> 12831601.86 | E19: ='SA1'!E49 -> 64521226.85 | F19: ='SA1'!F49 -> 6472573 | G19: ='SA1'!G49 -> 7702706 | H19: ='SA1'!H49 -> 7702706 | I19: ='SA1'!I49 -> 7702706 | J19: ='SA1'!J49 -> 6472576 | K19: ='SA1'!K49 -> 6744434 | L19: ='SA1'!L49 -> 7041199
A20: Gains | C20: 11071502.75 | D20: 0 | E20: 0 | F20: 0 | G20: 0 | H20: 0 | I20: 0 | J20: 0 | K20: 0 | L20: 0
A21: Total Revenue (excluding capital transfers and contributions) | C21: =SUM(C5:C9)+SUM(C11:C20) -> 1039774704 | D21: =SUM(D5:D9)+SUM(D11:D20) -> 1060064858 | E21: 1231087572 | F21: 1316707182 | G21: 1378479315 | H21: 1378479315 | I21: 1383879315 | J21: 1453941764 | K21: 1499608042 | L21: 1570692885 | M21: =SUM(M5:M20) -> 0 | N21: 0 | O21: 0 | P21: 0 | Q21: 0 | R21: 0 | S21: 0 | T21: 0 | U21: 0 | V21: 0 | W21: 0 | X21: 0
A23: Expenditure By Type
A24: Employee related costs | B24: 2 | C24: ='SA1'!C67 -> 267621581 | D24: ='SA1'!D67 -> 214266310 | E24: ='SA1'!E67 -> 311114595.2 | F24: ='SA1'!F67 -> 345564119 | G24: ='SA1'!G67 -> 339639118 | H24: ='SA1'!H67 -> 339639118 | I24: ='SA1'!I67 -> 339639118 | J24: ='SA1'!J67 -> 349870066 | K24: ='SA1'!K67 -> 364564780 | L24: ='SA1'!L67 -> 380605749
A25: Remuneration of councillors | C25: 24432411.04 | D25: 26136302.58 | E25: 26976533.73 | F25: 29034983 | G25: 29034983 | H25: 29034983 | I25: 29034983 | J25: 28405898 | K25: 29598958 | L25: 30901317
A26: Debt impairment | B26: 3 | C26: 114324552.8 | D26: 123718681.4 | E26: 22971746.32 | F26: 70035699 | G26: 70035704 | H26: 70035704 | I26: 70035704 | J26: 39690308 | K26: 41357301 | L26: 43177025
A27: Depreciation & asset impairment | B27: 2 | C27: ='SA1'!C83 -> 130493937.2 | D27: ='SA1'!D83 -> 132641263.5 | E27: ='SA1'!E83 -> 107614714.9 | F27: ='SA1'!F83 -> 132970807 | G27: ='SA1'!G83 -> 132970807 | H27: ='SA1'!H83 -> 132970807 | I27: ='SA1'!I83 -> 132970807 | J27: ='SA1'!J83 -> 129972562 | K27: ='SA1'!K83 -> 135431430 | L27: ='SA1'!L83 -> 141390421
A28: Finance charges | C28: 11974271.19 | D28: 11973760 | E28: 14906807.83 | F28: 15728808 | G28: 16728808 | H28: 16728808 | I28: 16728808 | J28: 17826562 | K28: 18575280 | L28: 19392600
A29: Bulk purchases - electricity | B29: 2 | C29: ='SA1'!C88 -> 325455992 | D29: ='SA1'!D88 -> 348443870 | E29: ='SA1'!E88 -> 389694217.1 | F29: ='SA1'!F88 -> 406187500 | G29: ='SA1'!G88 -> 406187500 | H29: ='SA1'!H88 -> 406187500 | I29: ='SA1'!I88 -> 406187500 | J29: ='SA1'!J88 -> 456871250 | K29: ='SA1'!K88 -> 480289000 | L29: ='SA1'!L88 -> 523698000
A30: Inventory consumed | B30: 8 | C30: 59326785.31 | D30: 115723810 | E30: 37364977.51 | F30: 57321085 | G30: 70859165 | H30: 70859165 | I30: 70859165 | J30: 71925318 | K30: 75904263 | L30: 80156201
A31: Contracted services | C31: ='SA1'!C127 -> 48050547 | D31: ='SA1'!D127 -> 50079765.55 | E31: ='SA1'!E127 -> 59253544.77 | F31: ='SA1'!F127 -> 71525209 | G31: ='SA1'!G127 -> 63702209 | H31: ='SA1'!H127 -> 63702209 | I31: ='SA1'!I127 -> 63702209 | J31: ='SA1'!J127 -> 75215209 | K31: ='SA1'!K127 -> 78374252 | L31: ='SA1'!L127 -> 81822756
A32: Transfers and subsidies | C32: ='SA1'!C93 -> 112420696.4 | D32: ='SA1'!D93 -> 57132145 | E32: ='SA1'!E93 -> 36987650.1 | F32: ='SA1'!F93 -> 30919000 | G32: ='SA1'!G93 -> 31351814 | H32: ='SA1'!H93 -> 31351814 | I32: ='SA1'!I93 -> 31351814 | J32: ='SA1'!J93 -> 32118000 | K32: ='SA1'!K93 -> 7871670 | L32: ='SA1'!L93 -> 8130053
A33: Other expenditure | B33: 4, 5 | C33: ='SA1'!C157 -> 102600554.3 | D33: ='SA1'!D157 -> 116035686.6 | E33: ='SA1'!E157 -> 95744310.39 | F33: ='SA1'!F157 -> 128067831 | G33: ='SA1'!G157 -> 120210942 | H33: ='SA1'!H157 -> 120210942 | I33: ='SA1'!I157 -> 120210942 | J33: ='SA1'!J157 -> 120277468 | K33: ='SA1'!K157 -> 125329304 | L33: ='SA1'!L157 -> 130843906
A34: Losses | C34: 28309442.52 | D34: 2836204 | E34: 3723279.38 | F34: 0 | G34: 0 | H34: 0 | I34: 0 | J34: 0 | K34: 0 | L34: 1
A35: Total Expenditure | C35: =SUM(C24:C34) -> 1225010771 | D35: =SUM(D24:D34) -> 1198987799 | E35: 1106352377 | F35: 1287355041 | G35: 1280721050 | H35: 1280721050 | I35: 1280721050 | J35: 1322172641 | K35: 1357296238 | L35: 1440118029 | M35: =SUM(M24:M34) -> 0 | N35: 0 | O35: 0 | P35: 0 | Q35: 0 | R35: 0 | S35: 0 | T35: 0 | U35: 0 | V35: 0 | W35: 0 | X35: 0
A37: Surplus/(Deficit) | C37: =C21-C35 -> -185236066.9 | D37: -138922940.2 | E37: 124735195.1 | F37: 29352141 | G37: 97758265 | H37: 97758265 | I37: 103158265 | J37: 131769123 | K37: 142311804 | L37: 130574856 | M37: =M21+M35 -> 0 | N37: 0 | O37: 0 | P37: 0 | Q37: 0 | R37: 0 | S37: 0 | T37: 0 | U37: 0 | V37: 0 | W37: 0 | X37: 0
A38: Transfers and subsidies - capital (monetary allocations) (National / Provincial and District) | C38: 96944900 | D38: 76150621.19 | E38: 77869317.11 | F38: 88938050 | G38: 88938050 | H38: 88938050 | I38: 88938050 | J38: 94753950 | K38: 102603800 | L38: 107290150
A39: Transfers and subsidies - capital (monetary allocations) (National / Provincial Departmental Agencies, Households, Non-profit Institutions, Private Enterprises, Public Corporatons, Higher Educational Institutions) | B39: 6 | C39: 0 | D39: 0 | E39: 10000000 | F39: 0 | G39: 0 | H39: 0 | I39: 0 | J39: 0 | K39: 0 | L39: 1
A40: Transfers and subsidies - capital (in-kind - all) | C40: 0 | D40: 0 | E40: 0 | F40: 0 | G40: 0 | H40: 0 | I40: 0 | J40: 0 | K40: 0 | L40: 0
A41: Surplus/(Deficit) after capital transfers & contributions | C41: =SUM(C37:C40) -> -88291166.91 | D41: -62772319 | E41: 212604512.2 | F41: 118290191 | G41: 186696315 | H41: 186696315 | I41: 192096315 | J41: 226523073 | K41: 244915604 | L41: 237865007
A42: Taxation | C42: 0 | D42: 0 | E42: 0 | F42: 0 | G42: 0 | H42: 0 | I42: 0 | J42: 0 | K42: 0 | L42: 0
A43: Surplus/(Deficit) after taxation | C43: =C41-C42 -> -88291166.91 | D43: -62772319 | E43: 212604512.2 | F43: 118290191 | G43: 186696315 | H43: 186696315 | I43: 192096315 | J43: 226523073 | K43: 244915604 | L43: 237865007
A44: Attributable to minorities | C44: 0 | D44: 0 | E44: 0 | F44: 0 | G44: 0 | H44: 0 | I44: 0 | J44: 0 | K44: 0 | L44: 0
A45: Surplus/(Deficit) attributable to municipality | C45: =SUM(C43:C44) -> -88291166.91 | D45: -62772319 | E45: 212604512.2 | F45: 118290191 | G45: 186696315 | H45: 186696315 | I45: 192096315 | J45: 226523073 | K45: 244915604 | L45: 237865007
A46: Share of surplus/ (deficit) of associate | B46: 7 | C46: 0 | D46: 0 | E46: 0 | F46: 0 | G46: 0 | H46: 0 | I46: 0 | J46: 0 | K46: 0 | L46: 0
A47: =result -> Surplus/(Deficit) for the year | C47: =SUM(C45:C46) -> -88291166.91 | D47: -62772319 | E47: 212604512.2 | F47: 118290191 | G47: 186696315 | H47: 186696315 | I47: 192096315 | J47: 226523073 | K47: 244915604 | L47: 237865007 | M47: =M25+M46 -> 0 | N47: 0 | O47: 0 | P47: 0 | Q47: 0 | R47: 0 | S47: 0 | T47: 0 | U47: 0 | V47: 0 | W47: 0 | X47: 0
A48: =head27a -> References
A49: 1. Classifications are revenue sources and expenditure type
A50: 2. Detail to be provided in Table SA1
A51: 3. Previously described as 'bad or doubtful debts' - amounts shown should reflect the change in the provision for debt impairment
A52: 4. Expenditure type components previously shown under repairs and maintenance should be allocated back to the originating expenditure group/item; e.g. employee costs
A53: 5. Repairs & maintenance detailed in Table A9 and Table SA34c
A54: 6. Contributions are funds provided by external organisations to assist with infrastructure development; e.g. developer contributions (detail to be provided in Table SA1)
A55: 7. Equity method ( Includes Joint Ventures)
A56: 8. All materials not part of 'bulk' e.g road making materials, pipe, cable etc.
A57: check balance | C57: =C45-'A3-FinPerf V'!C39 -> -1.192092896e-07 | D57: =D45-'A3-FinPerf V'!D39 -> 5.960464478e-08 | E57: =E45-'A3-FinPerf V'!E39 -> -3.576278687e-07 | F57: =F45-'A3-FinPerf V'!F39 -> 0 | G57: =G45-'A3-FinPerf V'!G39 -> -1 | H57: =H45-'A3-FinPerf V'!H39 -> -1 | J57: =J45-'A3-FinPerf V'!I39 -> 0 | K57: =K45-'A3-FinPerf V'!J39 -> 0 | L57: =L45-'A3-FinPerf V'!K39 -> -1
A59: Total revenue | C59: =C21+SUM(C38:C40) -> 1136719604 | D59: 1136215480 | E59: 1318956889 | F59: 1405645232 | G59: 1467417365 | H59: 1467417365 | I59: 1472817365 | J59: 1548695714 | K59: 1602211842 | L59: 1677983036

Sheet A5-Capex
A2: =Vdesc -> Vote Description | B2: =head27 -> Ref | C2: =head1b -> 2017/18 | D2: =head1A -> 2018/19 | E2: =Head1 -> 2019/20 | F2: =Head2 -> Current Year 2020/21 | J2: =Head3 -> 2021/22 Medium Term Revenue & Expenditure Framework
A3: R thousand | B3: 1 | C3: =Head5 -> Audited Outcome | D3: =Head5 -> Audited Outcome | E3: =Head5 -> Audited Outcome | F3: =Head6 -> Original Budget | G3: =Head7 -> Adjusted Budget | H3: =Head8 -> Full Year Forecast | I3: =Head5b -> Pre-audit outcome | J3: =Head9 -> Budget Year 2021/22 | K3: =Head10 -> Budget Year +1 2022/23 | L3: =Head11 -> Budget Year +2 2023/24
A4: Capital expenditure - Vote
A5: Multi-year expenditure to be appropriated | B5: 2
A6: =A5A!A6 -> Vote 1 - Executive & Council | C6: =A5A!C6 -> 0 | D6: =A5A!D6 -> 0 | E6: =A5A!E6 -> 0 | F6: =A5A!F6 -> 0 | G6: =A5A!G6 -> 0 | H6: =A5A!H6 -> 0 | I6: =A5A!I6 -> 0 | J6: =A5A!J6 -> 0 | K6: =A5A!K6 -> 0 | L6: =A5A!L6 -> 0
A7: =A5A!A17 -> Vote 2 - Planning and Economic Development | C7: =A5A!C17 -> 0 | D7: =A5A!D17 -> 0 | E7: =A5A!E17 -> 0 | F7: =A5A!F17 -> 0 | G7: =A5A!G17 -> 0 | H7: =A5A!H17 -> 0 | I7: =A5A!I17 -> 0 | J7: =A5A!J17 -> 6558500 | K7: =A5A!K17 -> 4000000 | L7: =A5A!L17 -> 29085000
A8: =A5A!A28 -> Vote 3 - Budget and Treasury | C8: =A5A!C28 -> 0 | D8: =A5A!D28 -> 0 | E8: =A5A!E28 -> 0 | F8: =A5A!F28 -> 0 | G8: =A5A!G28 -> 0 | H8: =A5A!H28 -> 0 | I8: =A5A!I28 -> 0 | J8: =A5A!J28 -> 700000 | K8: =A5A!K28 -> 0 | L8: =A5A!L28 -> 0
A9: =A5A!A39 -> Vote 4 - Corporate Services | C9: =A5A!C39 -> 0 | D9: =A5A!D39 -> 0 | E9: =A5A!E39 -> 0 | F9: =A5A!F39 -> 0 | G9: =A5A!G39 -> 0 | H9: =A5A!H39 -> 0 | I9: =A5A!I39 -> 0 | J9: =A5A!J39 -> 0 | K9: =A5A!K39 -> 0 | L9: =A5A!L39 -> 0
A10: =A5A!A50 -> Vote 5 - Engineering Services | C10: =A5A!C50 -> 0 | D10: =A5A!D50 -> 0 | E10: =A5A!E50 -> 0 | F10: =A5A!F50 -> 0 | G10: =A5A!G50 -> 0 | H10: =A5A!H50 -> 0 | I10: =A5A!I50 -> 0 | J10: =A5A!J50 -> 106123950 | K10: =A5A!K50 -> 146103800 | L10: =A5A!L50 -> 135590150
A11: =A5A!A61 -> Vote 6 - Community Services | C11: =A5A!C61 -> 0 | D11: =A5A!D61 -> 0 | E11: =A5A!E61 -> 0 | F11: =A5A!F61 -> 0 | G11: =A5A!G61 -> 0 | H11: =A5A!H61 -> 0 | I11: =A5A!I61 -> 0 | J11: =A5A!J61 -> 1325000 | K11: =A5A!K61 -> 0 | L11: =A5A!L61 -> 0
A12: =A5A!A72 -> Vote 7 - Electrical Engineering | C12: =A5A!C72 -> 0 | D12: =A5A!D72 -> 0 | E12: =A5A!E72 -> 0 | F12: =A5A!F72 -> 0 | G12: =A5A!G72 -> 0 | H12: =A5A!H72 -> 0 | I12: =A5A!I72 -> 0 | J12: =A5A!J72 -> 14550000 | K12: =A5A!K72 -> 10000000 | L12: =A5A!L72 -> 12000000
A13: =A5A!A83 -> Vote 8 - Office of the Speaker | C13: =A5A!C83 -> 0 | D13: =A5A!D83 -> 0 | E13: =A5A!E83 -> 0 | F13: =A5A!F83 -> 0 | G13: =A5A!G83 -> 0 | H13: =A5A!H83 -> 0 | I13: =A5A!I83 -> 0 | J13: =A5A!J83 -> 0 | K13: =A5A!K83 -> 0 | L13: =A5A!L83 -> 0
A14: =A5A!A94 -> Vote 9 - COMMUNITY & SOCIAL SERVICES | C14: =A5A!C94 -> 0 | D14: =A5A!D94 -> 0 | E14: =A5A!E94 -> 0 | F14: =A5A!F94 -> 0 | G14: =A5A!G94 -> 0 | H14: =A5A!H94 -> 0 | I14: =A5A!I94 -> 0 | J14: =A5A!J94 -> 0 | K14: =A5A!K94 -> 0 | L14: =A5A!L94 -> 0
A15: =A5A!A105 -> Vote 10 - Office of the Municipal Manager | C15: =A5A!C105 -> 0 | D15: =A5A!D105 -> 0 | E15: =A5A!E105 -> 0 | F15: =A5A!F105 -> 0 | G15: =A5A!G105 -> 0 | H15: =A5A!H105 -> 0 | I15: =A5A!I105 -> 0 | J15: =A5A!J105 -> 0 | K15: =A5A!K105 -> 0 | L15: =A5A!L105 -> 0
A16: =A5A!A116 -> Vote 11 - [NAME OF VOTE 11] | C16: =A5A!C116 -> 0 | D16: =A5A!D116 -> 0 | E16: =A5A!E116 -> 0 | F16: =A5A!F116 -> 0 | G16: =A5A!G116 -> 0 | H16: =A5A!H116 -> 0 | I16: =A5A!I116 -> 0 | J16: =A5A!J116 -> 0 | K16: =A5A!K116 -> 0 | L16: =A5A!L116 -> 0
A17: =A5A!A127 -> Vote 12 - [NAME OF VOTE 12] | C17: =A5A!C127 -> 0 | D17: =A5A!D127 -> 0 | E17: =A5A!E127 -> 0 | F17: =A5A!F127 -> 0 | G17: =A5A!G127 -> 0 | H17: =A5A!H127 -> 0 | I17: =A5A!I127 -> 0 | J17: =A5A!J127 -> 0 | K17: =A5A!K127 -> 0 | L17: =A5A!L127 -> 0
A18: =A5A!A138 -> Vote 13 - [NAME OF VOTE 13] | C18: =A5A!C138 -> 0 | D18: =A5A!D138 -> 0 | E18: =A5A!E138 -> 0 | F18: =A5A!F138 -> 0 | G18: =A5A!G138 -> 0 | H18: =A5A!H138 -> 0 | I18: =A5A!I138 -> 0 | J18: =A5A!J138 -> 0 | K18: =A5A!K138 -> 0 | L18: =A5A!L138 -> 0
A19: =A5A!A149 -> Vote 14 - [NAME OF VOTE 14] | C19: =A5A!C149 -> 0 | D19: =A5A!D149 -> 0 | E19: =A5A!E149 -> 0 | F19: =A5A!F149 -> 0 | G19: =A5A!G149 -> 0 | H19: =A5A!H149 -> 0 | I19: =A5A!I149 -> 0 | J19: =A5A!J149 -> 0 | K19: =A5A!K149 -> 0 | L19: =A5A!L149 -> 0
A20: =A5A!A160 -> Vote 15 - [NAME OF VOTE 15] | C20: =A5A!C160 -> 0 | D20: =A5A!D160 -> 0 | E20: =A5A!E160 -> 0 | F20: =A5A!F160 -> 0 | G20: =A5A!G160 -> 0 | H20: =A5A!H160 -> 0 | I20: =A5A!I160 -> 0 | J20: =A5A!J160 -> 0 | K20: =A5A!K160 -> 0 | L20: =A5A!L160 -> 0
A21: Capital multi-year expenditure sub-total | B21: 7 | C21: =SUM(C6:C20) -> 0 | D21: =SUM(D6:D20) -> 0 | E21: 0 | F21: 0 | G21: 0 | H21: =SUM(H6:H20) -> 0 | I21: 0 | J21: 129257450 | K21: 160103800 | L21: 176675150
A23: Single-year expenditure to be appropriated | B23: 2
A24: =A6 -> Vote 1 - Executive & Council | C24: =A5A!C175 -> 0 | D24: =A5A!D175 -> 0 | E24: =A5A!E175 -> 0 | F24: =A5A!F175 -> 0 | G24: =A5A!G175 -> 0 | H24: =A5A!H175 -> 0 | I24: =A5A!I175 -> 0 | J24: =A5A!J175 -> 0 | K24: =A5A!K175 -> 0 | L24: =A5A!L175 -> 0
A25: =A7 -> Vote 2 - Planning and Economic Development | C25: =A5A!C186 -> 826160 | D25: =A5A!D186 -> 0 | E25: =A5A!E186 -> 235000 | F25: =A5A!F186 -> 1235000 | G25: =A5A!G186 -> 1235000 | H25: =A5A!H186 -> 1235000 | I25: =A5A!I186 -> 1235000 | J25: =A5A!J186 -> 0 | K25: =A5A!K186 -> 0 | L25: =A5A!L186 -> 2
A26: Vote 3 - Budget and Treasury | C26: =A5A!C197 -> 0 | D26: =A5A!D197 -> 0 | E26: =A5A!E197 -> 309131.63 | F26: =A5A!F197 -> 500000 | G26: =A5A!G197 -> 500000 | H26: =A5A!H197 -> 500000 | I26: =A5A!I197 -> 500000 | J26: =A5A!J197 -> 0 | K26: =A5A!K197 -> 0 | L26: =A5A!L197 -> 1
A27: Vote 4 - Corporate Services | C27: =A5A!C208 -> 0 | D27: =A5A!D208 -> 0 | E27: =A5A!E208 -> 0 | F27: =A5A!F208 -> 0 | G27: =A5A!G208 -> 400000 | H27: =A5A!H208 -> 400000 | I27: =A5A!I208 -> 400000 | J27: =A5A!J208 -> 0 | K27: =A5A!K208 -> 0 | L27: =A5A!L208 -> 2
A28: Vote 5 - Engineering Services | C28: =A5A!C219 -> 97207476 | D28: =A5A!D219 -> 0 | E28: =A5A!E219 -> 109509558.6 | F28: =A5A!F219 -> 96938034 | G28: =A5A!G219 -> 113545044 | H28: =A5A!H219 -> 113545044 | I28: =A5A!I219 -> 113545044 | J28: =A5A!J219 -> 0 | K28: =A5A!K219 -> 0 | L28: =A5A!L219 -> 56
A29: Vote 6 - Community Services | C29: =A5A!C230 -> 0 | D29: =A5A!D230 -> 0 | E29: =A5A!E230 -> 3589484.72 | F29: =A5A!F230 -> 2300000 | G29: =A5A!G230 -> 2800000 | H29: =A5A!H230 -> 2800000 | I29: =A5A!I230 -> 2800000 | J29: =A5A!J230 -> 0 | K29: =A5A!K230 -> 0 | L29: =A5A!L230 -> 8
A30: Vote 7 - Electrical Engineering | C30: =A5A!C241 -> 13444078 | D30: =A5A!D241 -> 35543715 | E30: =A5A!E241 -> 76614936.4 | F30: =A5A!F241 -> 30000000 | G30: =A5A!G241 -> 43012899 | H30: =A5A!H241 -> 43012899 | I30: =A5A!I241 -> 43012899 | J30: =A5A!J241 -> 1600000 | K30: =A5A!K241 -> 0 | L30: =A5A!L241 -> 62
A31: Vote 8 - Office of the Speaker | C31: =A5A!C252 -> 15053644 | D31: =A5A!D252 -> 67938724 | E31: =A5A!E252 -> 0 | F31: =A5A!F252 -> 0 | G31: =A5A!G252 -> 0 | H31: =A5A!H252 -> 0 | I31: =A5A!I252 -> 0 | J31: =A5A!J252 -> 0 | K31: =A5A!K252 -> 0 | L31: =A5A!L252 -> 0
A32: Vote 9 - COMMUNITY & SOCIAL SERVICES | C32: =A5A!C263 -> 0 | D32: =A5A!D263 -> 0 | E32: =A5A!E263 -> 0 | F32: =A5A!F263 -> 0 | G32: =A5A!G263 -> 0 | H32: =A5A!H263 -> 0 | I32: =A5A!I263 -> 0 | J32: =A5A!J263 -> 0 | K32: =A5A!K263 -> 0 | L32: =A5A!L263 -> 0
A33: Vote 10 - Office of the Municipal Manager | C33: =A5A!C274 -> 0 | D33: =A5A!D274 -> 0 | E33: =A5A!E274 -> 0 | F33: =A5A!F274 -> 0 | G33: =A5A!G274 -> 0 | H33: =A5A!H274 -> 0 | I33: =A5A!I274 -> 0 | J33: =A5A!J274 -> 0 | K33: =A5A!K274 -> 0 | L33: =A5A!L274 -> 1
A34: Vote 11 - [NAME OF VOTE 11] | C34: =A5A!C285 -> 0 | D34: =A5A!D285 -> 0 | E34: =A5A!E285 -> 0 | F34: =A5A!F285 -> 0 | G34: =A5A!G285 -> 0 | H34: =A5A!H285 -> 0 | I34: =A5A!I285 -> 0 | J34: =A5A!J285 -> 0 | K34: =A5A!K285 -> 0 | L34: =A5A!L285 -> 0
A35: Vote 12 - [NAME OF VOTE 12] | C35: =A5A!C296 -> 0 | D35: =A5A!D296 -> 0 | E35: =A5A!E296 -> 0 | F35: =A5A!F296 -> 0 | G35: =A5A!G296 -> 0 | H35: =A5A!H296 -> 0 | I35: =A5A!I296 -> 0 | J35: =A5A!J296 -> 0 | K35: =A5A!K296 -> 0 | L35: =A5A!L296 -> 0
A36: Vote 13 - [NAME OF VOTE 13] | C36: =A5A!C307 -> 0 | D36: =A5A!D307 -> 0 | E36: =A5A!E307 -> 0 | F36: =A5A!F307 -> 0 | G36: =A5A!G307 -> 0 | H36: =A5A!H307 -> 0 | I36: =A5A!I307 -> 0 | J36: =A5A!J307 -> 0 | K36: =A5A!K307 -> 0 | L36: =A5A!L307 -> 0
A37: Vote 14 - [NAME OF VOTE 14] | C37: =A5A!C318 -> 0 | D37: =A5A!D318 -> 0 | E37: =A5A!E318 -> 0 | F37: =A5A!F318 -> 0 | G37: =A5A!G318 -> 0 | H37: =A5A!H318 -> 0 | I37: =A5A!I318 -> 0 | J37: =A5A!J318 -> 0 | K37: =A5A!K318 -> 0 | L37: =A5A!L318 -> 0
A38: =A20 -> Vote 15 - [NAME OF VOTE 15] | C38: =A5A!C329 -> 0 | D38: =A5A!D329 -> 0 | E38: =A5A!E329 -> 0 | F38: =A5A!F329 -> 0 | G38: =A5A!G329 -> 0 | H38: =A5A!H329 -> 0 | I38: =A5A!I329 -> 0 | J38: =A5A!J329 -> 0 | K38: =A5A!K329 -> 0 | L38: =A5A!L329 -> 0
A39: Capital single-year expenditure sub-total | C39: =SUM(C24:C38) -> 126531358 | D39: =SUM(D24:D38) -> 103482439 | E39: 190258111.3 | F39: 130973034 | G39: 161492943 | H39: 161492943 | I39: 161492943 | J39: 1600000 | K39: 0 | L39: 132
A40: Total Capital Expenditure - Vote | C40: =C39+C21 -> 126531358 | D40: =D39+D21 -> 103482439 | E40: 190258111.3 | F40: 130973034 | G40: 161492943 | H40: 161492943 | I40: 161492943 | J40: 130857450 | K40: 160103800 | L40: 176675282
A42: Capital Expenditure - Functional
A43: Governance and administration | C43: =SUM(C44:C46) -> 0 | D43: =SUM(D44:D46) -> 11545415 | E43: 309131.63 | F43: 500000 | G43: 900000 | H43: 900000 | I43: 900000 | J43: 8600000 | K43: 5600000 | L43: 4300004
A44: Executive and council | C44: 0 | D44: 6059 | E44: 0 | F44: 0 | G44: 0 | H44: 0 | I44: 0 | J44: 0 | K44: 0 | L44: 1
A45: Finance and administration | C45: 0 | D45: 11539356 | E45: 309131.63 | F45: 500000 | G45: 900000 | H45: 900000 | I45: 900000 | J45: 8600000 | K45: 5600000 | L45: 4300003
A46: Internal audit | C46: 0 | D46: 0 | E46: 0 | F46: 0 | G46: 0 | H46: 0 | I46: 0 | J46: 0 | K46: 0 | L46: 0
A47: Community and public safety | C47: =SUM(C48:C52) -> 826160 | D47: =SUM(D48:D52) -> 1605684 | E47: 9204484.72 | F47: 3800000 | G47: 6919990 | H47: 6919990 | I47: 6919990 | J47: 4825000 | K47: 0 | L47: 24850011
A48: Community and social services | C48: 0 | D48: 0 | E48: 1704484.72 | F48: 0 | G48: 500000 | H48: 500000 | I48: 500000 | J48: 1325000 | K48: 0 | L48: 1
A49: Sport and recreation | C49: 0 | D49: 349001 | E49: 1800000 | F49: 2300000 | G49: 2300000 | H49: 2300000 | I49: 2300000 | J49: 0 | K49: 0 | L49: 5
A50: Public safety | C50: 0 | D50: 0 | E50: 0 | F50: 0 | G50: 0 | H50: 0 | I50: 0 | J50: 0 | K50: 0 | L50: 0
A51: Housing | C51: 826160 | D51: 1066513 | E51: 5700000 | F51: 1500000 | G51: 4119990 | H51: 4119990 | I51: 4119990 | J51: 3500000 | K51: 0 | L51: 24850004
A52: Health | C52: 0 | D52: 190170 | E52: 0 | F52: 0 | G52: 0 | H52: 0 | I52: 0 | J52: 0 | K52: 0 | L52: 1
A53: Economic and environmental services | C53: =SUM(C54:C56) -> 112261120 | D53: =SUM(D54:D56) -> 54245202 | E53: 106564558.6 | F53: 96673034 | G53: 110660054 | H53: 110660054 | I53: 110660054 | J53: 101282450 | K53: 144503800 | L53: 135525205
A54: Planning and development | C54: 0 | D54: 48501 | E54: 235000 | F54: 1235000 | G54: 1235000 | H54: 1235000 | I54: 1235000 | J54: 3058500 | K54: 4000000 | L54: 4235002
A55: Road transport | C55: 112261120 | D55: 54196701 | E55: 106329558.6 | F55: 95438034 | G55: 109425054 | H55: 109425054 | I55: 109425054 | J55: 98223950 | K55: 140503800 | L55: 131290203
A56: Environmental protection | C56: 0 | D56: 0 | E56: 0 | F56: 0 | G56: 0 | H56: 0 | I56: 0 | J56: 0 | K56: 0 | L56: 0
A57: Trading services | C57: =SUM(C58:C61) -> 13444078 | D57: =SUM(D58:D61) -> 36086138 | E57: 74179936.4 | F57: 30000000 | G57: 43012899 | H57: 43012899 | I57: 43012899 | J57: 16150000 | K57: 10000000 | L57: 12000062
A58: Energy sources | C58: 13444078 | D58: 36071006 | E58: 74094936.4 | F58: 30000000 | G58: 43012899 | H58: 43012899 | I58: 43012899 | J58: 16150000 | K58: 10000000 | L58: 12000061
A59: Water management | C59: 0 | D59: 0 | E59: 0 | F59: 0 | G59: 0 | H59: 0 | I59: 0 | J59: 0 | K59: 0 | L59: 0
A60: Waste water management | C60: 0 | D60: 0 | E60: 0 | F60: 0 | G60: 0 | H60: 0 | I60: 0 | J60: 0 | K60: 0 | L60: 0
A61: Waste management | C61: 0 | D61: 15132 | E61: 85000 | F61: 0 | G61: 0 | H61: 0 | I61: 0 | J61: 0 | K61: 0 | L61: 1
A62: Other | C62: 0 | D62: 0 | E62: 0 | F62: 0 | G62: 0 | H62: 0 | I62: 0 | J62: 0 | K62: 0 | L62: 0
A63: Total Capital Expenditure - Functional | B63: 3 | C63: =C43+C47+C53+C57+C62 -> 126531358 | D63: =D43+D47+D53+D57+D62 -> 103482439 | E63: 190258111.3 | F63: 130973034 | G63: 161492943 | H63: 161492943 | I63: 161492943 | J63: 130857450 | K63: 160103800 | L63: =L43+L47+L53+L57+L62 -> 176675282
A65: Funded by:
A66: National Government | C66: 96944900 | D66: 86451929 | E66: 89549850.99 | F66: 88938034 | G66: 97289054 | H66: 97289054 | I66: 97289054 | J66: 94753950 | K66: 102603800 | L66: 107290187
A67: Provincial Government | C67: 0 | D67: 0 | E67: 0 | F67: 0 | G67: 0 | H67: 0 | I67: 0 | J67: 0 | K67: 0 | L67: 0
A68: District Municipality | C68: 0 | D68: 0 | E68: 0 | F68: 0 | G68: 0 | H68: 0 | I68: 0 | J68: 0 | K68: 0 | L68: 0
A69: ='A4-FinPerf RE'!A39 -> Transfers and subsidies - capital (monetary allocations) (National / Provincial Departmental Agencies, Households, Non-profit Institutions, Private Enterprises, Public Corporatons, Higher Educational Institutions) | C69: 0 | D69: 0 | E69: 10000000 | F69: 0 | G69: 0 | H69: 0 | I69: 0 | J69: 0 | K69: 0 | L69: 4
A70: Transfers recognised - capital | B70: 4 | C70: =SUM(C66:C69) -> 96944900 | D70: 86451929 | E70: 99549850.99 | F70: 88938034 | G70: 97289054 | H70: 97289054 | I70: 97289054 | J70: 94753950 | K70: 102603800 | L70: 107290191
A72: Borrowing | B72: 6 | C72: 12113986 | D72: 17030510 | E72: 32847672.04 | F72: 22000000 | G72: 34828543 | H72: 34828543 | I72: 34828543 | J72: 0 | K72: 0 | L72: 56
A73: Internally generated funds | C73: 17472472 | D73: 0 | E73: 57860588.31 | F73: 20035000 | G73: 29375346 | H73: 29375346 | I73: 29375346 | J73: 36103500 | K73: 57500000 | L73: 69385035
A74: Total Capital Funding | B74: 7 | C74: =+C70+C72+C73 -> 126531358 | D74: =+D70+D72+D73 -> 103482439 | E74: 190258111.3 | F74: 130973034 | G74: 161492943 | H74: 161492943 | I74: 161492943 | J74: 130857450 | K74: 160103800 | L74: 176675282
A75: =head27a -> References
A76: 1. Municipalities may choose to appropriate for capital expenditure for three years or for one year (if one year appropriation projected expenditure required for yr2 and yr3).
A77: 2. Include capital component of PPP unitary payment. Note that capital transfers are only appropriated to municipalities for the budget year
A78: 3. Capital expenditure by functional classification must reconcile to the appropriations by vote
A79: 4. Must reconcile to supporting table SA20 and to Budgeted Financial Performance (revenue and expenditure)
A81: 6. Include finance leases and PPP capital funding component of unitary payment - total borrowing/repayments to reconcile to changes in Table SA17
A82: 7. Total Capital Funding must balance with Total Capital Expenditure
A83: 8. Include any capitalised interest (MFMA section 46) as part of relevant capital budget
A85: check balance | C85: =IF((C63-C74)=0,0,"Unbalanced") -> 0 | D85: =IF((D63-D74)=0,0,"Unbalanced") -> 0 | E85: 0 | F85: 0 | G85: 0 | H85: 0 | I85: 0 | J85: 0 | K85: 0 | L85: 0

Sheet A5A
A1: =muni&" - "&Approve5 -> Choose name from list - Table A5 Budgeted Capital Expenditure by vote, functional classification and funding
A2: =Vdesc -> Vote Description | B2: =head27 -> Ref | C2: =head1b -> 2017/18 | D2: =head1A -> 2018/19 | E2: =Head1 -> 2019/20 | F2: =Head2 -> Current Year 2020/21 | J2: =Head3 -> 2021/22 Medium Term Revenue & Expenditure Framework | N2: ="Multi-year appropriation for "&Head9& " in the "&Head2A&" Annual Budget" -> Multi-year appropriation for Budget Year 2021/22 in the 2020/21 Annual Budget | R2: ="Multi-year appropriation for "&RIGHT(Head10,7)& " in the "&Head2A&" Annual Budget" -> Multi-year appropriation for 2022/23 in the 2020/21 Annual Budget | V2: New multi-year appropriations (funds for new and existing projects)
A3: R thousand | B3: 1 | C3: =Head5 -> Audited Outcome | D3: =Head5 -> Audited Outcome | E3: =Head5 -> Audited Outcome | F3: =Head6 -> Original Budget | G3: =Head7 -> Adjusted Budget | H3: =Head8 -> Full Year Forecast | I3: =Head5b -> Pre-audit outcome | J3: =Head9 -> Budget Year 2021/22 | K3: =Head10 -> Budget Year +1 2022/23 | L3: =Head11 -> Budget Year +2 2023/24 | N3: ="Appropriation for "&RIGHT(Head9,7) -> Appropriation for 2021/22 | O3: ="Adjustments in "&Head2A -> Adjustments in 2020/21 | P3: ="Downward adjustments for "&RIGHT(Head9,7) -> Downward adjustments for 2021/22 | Q3: Appropriation carried forward | R3: ="Appropriation for "&RIGHT(Head9,7) -> Appropriation for 2021/22 | S3: ="Adjustments in "&Head2A -> Adjustments in 2020/21 | T3: ="Downward adjustments for "&RIGHT(Head9,7) -> Downward adjustments for 2021/22 | U3: Appropriation carried forward | V3: =Head9 -> Budget Year 2021/22 | W3: =Head10 -> Budget Year +1 2022/23 | X3: =Head11 -> Budget Year +2 2023/24
A4: Capital expenditure - Municipal Vote
A5: Multi-year expenditure appropriation | B5: 2
A6: ='Org structure'!A2 -> Vote 1 - Executive & Council | C6: 0 | D6: 0 | E6: 0 | F6: 0 | G6: 0 | H6: 0 | I6: 0 | J6: 0 | K6: 0 | L6: 0 | N6: =SUM(N7:N16) -> 0 | O6: 0 | P6: 0 | Q6: 0 | R6: 0 | S6: 0 | T6: 0 | U6: 0 | V6: =SUM(V7:V16) -> 0 | W6: =SUM(W7:W16) -> 0 | X6: =SUM(X7:X16) -> 0
A7: ='Org structure'!E3 -> 1.1 - [Name of sub-vote] | J7: =Q7+V7 -> 0 | K7: =U7+W7 -> 0 | L7: =X7 -> 0 | Q7: =SUM(N7:P7) -> 0 | U7: =SUM(R7:T7) -> 0
A8: ='Org structure'!E4 -> 0 | J8: =Q8+V8 -> 0 | K8: =U8+W8 -> 0 | L8: =X8 -> 0 | Q8: =SUM(N8:P8) -> 0 | U8: =SUM(R8:T8) -> 0
A9: ='Org structure'!E5 -> 0 | J9: =Q9+V9 -> 0 | K9: =U9+W9 -> 0 | L9: 0 | Q9: 0 | U9: 0
A10: ='Org structure'!E6 -> 0 | J10: 0 | K10: 0 | L10: 0 | Q10: 0 | U10: 0
A11: ='Org structure'!E7 -> 0 | J11: 0 | K11: 0 | L11: =X11 -> 0 | Q11: 0 | U11: 0
A12: ='Org structure'!E8 -> 0 | J12: 0 | K12: 0 | L12: 0 | Q12: 0 | U12: 0
A13: ='Org structure'!E9 -> 0 | J13: 0 | K13: 0 | L13: 0 | Q13: 0 | U13: 0
A14: ='Org structure'!E10 -> 0 | J14: 0 | K14: 0 | L14: 0 | Q14: 0 | U14: 0
A15: ='Org structure'!E11 -> 0 | J15: 0 | K15: 0 | L15: 0 | Q15: 0 | U15: 0
A16: ='Org structure'!E12 -> 0 | J16: 0 | K16: 0 | L16: 0 | Q16: 0 | U16: 0
A17: ='Org structure'!A3 -> Vote 2 - Planning and Economic Development | C17: 0 | D17: 0 | E17: 0 | F17: 0 | G17: 0 | H17: 0 | I17: 0 | J17: 6558500 | K17: 4000000 | L17: 29085000 | N17: =SUM(N18:N27) -> 0 | O17: 0 | P17: 0 | Q17: 0 | R17: 0 | S17: 0 | T17: 0 | U17: 0 | V17: 0 | W17: 0 | X17: 0
A18: ='Org structure'!E14 -> 2.1 - [Name of sub-vote] | J18: =Q18+V18 -> 0 | K18: =U18+W18 -> 0 | L18: =X18 -> 0 | Q18: =SUM(N18:P18) -> 0 | U18: 0
A19: ='Org structure'!E15 -> 0 | J19: =Q19+V19 -> 0 | K19: =U19+W19 -> 0 | L19: 0 | Q19: 0 | U19: 0
A20: ='Org structure'!E16 -> 0 | J20: 0 | K20: 0 | L20: 0 | Q20: 0 | U20: 0
A21: ='Org structure'!E17 -> 0 | J21: 0 | K21: =U21+W21 -> 0 | L21: 0 | Q21: 0 | U21: 0
A22: ='Org structure'!E18 -> 0 | J22: 0 | K22: 0 | L22: 0 | Q22: 0 | U22: 0
A23: ='Org structure'!E19 -> 0 | J23: 0 | K23: 0 | L23: 0 | Q23: 0 | U23: 0
A24: ='Org structure'!E20 -> 0 | J24: 0 | K24: 0 | L24: 0 | Q24: 0 | U24: 0
A25: ='Org structure'!E21 -> 0 | J25: 0 | K25: 0 | L25: 0 | Q25: 0 | U25: 0
A26: ='Org structure'!E22 -> 0 | J26: 0 | K26: 0 | L26: 0 | Q26: 0 | U26: 0
A27: ='Org structure'!E23 -> 0 | J27: 0 | K27: 0 | L27: 0 | Q27: 0 | U27: 0
A28: ='Org structure'!A4 -> Vote 3 - Budget and Treasury | C28: 0 | D28: 0 | E28: 0 | F28: 0 | G28: 0 | H28: 0 | I28: 0 | J28: 700000 | K28: 0 | L28: 0 | N28: =SUM(N29:N38) -> 0 | O28: 0 | P28: 0 | Q28: 0 | R28: 0 | S28: 0 | T28: 0 | U28: 0 | V28: 0 | W28: 0 | X28: 0
A29: ='Org structure'!E25 -> 3.1 - [Name of sub-vote] | J29: =Q29+V29 -> 0 | K29: =U29+W29 -> 0 | L29: =X29 -> 0 | Q29: =SUM(N29:P29) -> 0 | U29: 0
A30: ='Org structure'!E26 -> 0 | J30: 0 | K30: 0 | L30: 0 | Q30: 0 | U30: 0
A31: ='Org structure'!E27 -> 0 | J31: 0 | K31: 0 | L31: 0 | Q31: 0 | U31: =SUM(R31:T31) -> 0
A32: ='Org structure'!E28 -> 0 | J32: 0 | K32: =U32+W32 -> 0 | L32: 0 | Q32: 0 | U32: 0
A33: ='Org structure'!E29 -> 0 | J33: =Q33+V33 -> 0 | K33: 0 | L33: 0 | Q33: 0 | U33: 0
A34: ='Org structure'!E30 -> 0 | J34: 0 | K34: 0 | L34: 0 | Q34: 0 | U34: 0
A35: ='Org structure'!E31 -> 0 | J35: 0 | K35: 0 | L35: 0 | Q35: 0 | U35: 0
A36: ='Org structure'!E32 -> 0 | J36: 0 | K36: 0 | L36: 0 | Q36: 0 | U36: 0
A37: ='Org structure'!E33 -> 0 | J37: 0 | K37: 0 | L37: 0 | Q37: 0 | U37: 0
A38: ='Org structure'!E34 -> 0 | J38: 0 | K38: 0 | L38: 0 | Q38: 0 | U38: 0
A39: ='Org structure'!A5 -> Vote 4 - Corporate Services | C39: 0 | D39: 0 | E39: 0 | F39: 0 | G39: 0 | H39: 0 | I39: 0 | J39: 0 | K39: 0 | L39: 0 | N39: =SUM(N40:N49) -> 0 | O39: 0 | P39: 0 | Q39: 0 | R39: 0 | S39: 0 | T39: 0 | U39: 0 | V39: 0 | W39: 0 | X39: 0
A40: ='Org structure'!E36 -> 4.1 - [Name of sub-vote] | J40: =Q40+V40 -> 0 | K40: =U40+W40 -> 0 | L40: =X40 -> 0 | Q40: =SUM(N40:P40) -> 0 | U40: 0
A41: ='Org structure'!E37 -> 0 | J41: 0 | K41: 0 | L41: 0 | Q41: 0 | U41: 0
A42: ='Org structure'!E38 -> 0 | J42: 0 | K42: 0 | L42: 0 | Q42: 0 | U42: 0
A43: ='Org structure'!E39 -> 0 | J43: 0 | K43: 0 | L43: 0 | Q43: 0 | U43: 0
A44: ='Org structure'!E40 -> 0 | J44: 0 | K44: 0 | L44: 0 | Q44: 0 | U44: 0
A45: ='Org structure'!E41 -> 0 | J45: 0 | K45: 0 | L45: 0 | Q45: 0 | U45: 0
A46: ='Org structure'!E42 -> 0 | J46: 0 | K46: 0 | L46: 0 | Q46: 0 | U46: 0
A47: ='Org structure'!E43 -> 0 | J47: 0 | K47: 0 | L47: 0 | Q47: 0 | U47: 0
A48: ='Org structure'!E44 -> 0 | J48: 0 | K48: 0 | L48: 0 | Q48: 0 | U48: 0
A49: ='Org structure'!E45 -> 0 | J49: 0 | K49: 0 | L49: 0 | Q49: 0 | U49: 0
A50: ='Org structure'!A6 -> Vote 5 - Engineering Services | C50: 0 | D50: 0 | E50: 0 | F50: 0 | G50: 0 | H50: 0 | I50: 0 | J50: 106123950 | K50: 146103800 | L50: 135590150 | N50: =SUM(N51:N60) -> 0 | O50: 0 | P50: 0 | Q50: 0 | R50: 0 | S50: 0 | T50: 0 | U50: 0 | V50: 0 | W50: 0 | X50: 0
A51: ='Org structure'!E47 -> 5.1 - [Name of sub-vote] | J51: =Q51+V51 -> 0 | K51: =U51+W51 -> 0 | L51: =X51 -> 0 | Q51: =SUM(N51:P51) -> 0 | U51: 0
A52: ='Org structure'!E48 -> 0 | J52: 0 | K52: 0 | L52: 0 | Q52: 0 | U52: 0
A53: ='Org structure'!E49 -> 0 | J53: 0 | K53: 0 | L53: 0 | Q53: 0 | U53: 0
A54: ='Org structure'!E50 -> 0 | J54: 0 | K54: 0 | L54: 0 | Q54: 0 | U54: 0
A55: ='Org structure'!E51 -> 0 | J55: 0 | K55: 0 | L55: 0 | Q55: 0 | U55: 0
A56: ='Org structure'!E52 -> 0 | J56: 0 | K56: 0 | L56: 0 | Q56: 0 | U56: 0
A57: ='Org structure'!E53 -> 0 | J57: 0 | K57: 0 | L57: 0 | Q57: 0 | U57: 0
A58: ='Org structure'!E54 -> 0 | J58: 0 | K58: 0 | L58: 0 | Q58: 0 | U58: 0
A59: ='Org structure'!E55 -> 0 | J59: 0 | K59: 0 | L59: 0 | Q59: 0 | U59: 0
A60: ='Org structure'!E56 -> 0 | J60: 0 | K60: 0 | L60: 0 | Q60: 0 | U60: 0
A61: ='Org structure'!A7 -> Vote 6 - Community Services | C61: 0 | D61: 0 | E61: 0 | F61: 0 | G61: 0 | H61: 0 | I61: 0 | J61: 1325000 | K61: 0 | L61: 0 | N61: =SUM(N62:N71) -> 0 | O61: 0 | P61: 0 | Q61: 0 | R61: 0 | S61: 0 | T61: 0 | U61: 0 | V61: 0 | W61: 0 | X61: 0
A62: ='Org structure'!E58 -> 6.1 - [Name of sub-vote] | J62: =Q62+V62 -> 0 | K62: =U62+W62 -> 0 | L62: =X62 -> 0 | Q62: =SUM(N62:P62) -> 0 | U62: 0
A63: ='Org structure'!E59 -> 0 | J63: 0 | K63: 0 | L63: 0 | Q63: 0 | U63: 0
A64: ='Org structure'!E60 -> 0 | J64: 0 | K64: 0 | L64: 0 | Q64: 0 | U64: 0
A65: ='Org structure'!E61 -> 0 | J65: 0 | K65: 0 | L65: 0 | Q65: 0 | U65: 0
A66: ='Org structure'!E62 -> 0 | J66: 0 | K66: 0 | L66: 0 | Q66: 0 | U66: 0
A67: ='Org structure'!E63 -> 0 | J67: 0 | K67: 0 | L67: 0 | Q67: 0 | U67: 0
A68: ='Org structure'!E64 -> 0 | J68: 0 | K68: 0 | L68: 0 | Q68: 0 | U68: 0
A69: ='Org structure'!E65 -> 0 | J69: 0 | K69: 0 | L69: 0 | Q69: 0 | U69: 0
A70: ='Org structure'!E66 -> 0 | J70: 0 | K70: 0 | L70: 0 | Q70: 0 | U70: 0
A71: ='Org structure'!E67 -> 0 | J71: 0 | K71: 0 | L71: 0 | Q71: 0 | U71: 0
A72: ='Org structure'!A8 -> Vote 7 - Electrical Engineering | C72: 0 | D72: 0 | E72: 0 | F72: 0 | G72: 0 | H72: 0 | I72: 0 | J72: 14550000 | K72: 10000000 | L72: 12000000 | N72: =SUM(N73:N82) -> 0 | O72: 0 | P72: 0 | Q72: 0 | R72: 0 | S72: 0 | T72: 0 | U72: 0 | V72: 0 | W72: 0 | X72: 0
A73: ='Org structure'!E69 -> 7.1 - [Name of sub-vote] | J73: =Q73+V73 -> 0 | K73: =U73+W73 -> 0 | L73: =X73 -> 0 | Q73: =SUM(N73:P73) -> 0 | U73: =SUM(R73:T73) -> 0
A74: ='Org structure'!E70 -> 0 | J74: 0 | K74: 0 | L74: 0 | Q74: 0 | U74: 0
A75: ='Org structure'!E71 -> 0 | J75: 0 | K75: 0 | L75: 0 | Q75: 0 | U75: 0
A76: ='Org structure'!E72 -> 0 | J76: 0 | K76: 0 | L76: 0 | Q76: 0 | U76: 0
A77: ='Org structure'!E73 -> 0 | J77: 0 | K77: 0 | L77: 0 | Q77: 0 | U77: 0
A78: ='Org structure'!E74 -> 0 | J78: 0 | K78: 0 | L78: 0 | Q78: 0 | U78: 0
A79: ='Org structure'!E75 -> 0 | J79: 0 | K79: 0 | L79: 0 | Q79: 0 | U79: 0
A80: ='Org structure'!E76 -> 0 | J80: 0 | K80: 0 | L80: 0 | Q80: 0 | U80: 0
A81: ='Org structure'!E77 -> 0 | J81: 0 | K81: 0 | L81: 0 | Q81: 0 | U81: 0
A82: ='Org structure'!E78 -> 0 | J82: 0 | K82: 0 | L82: 0 | Q82: 0 | U82: 0
A83: ='Org structure'!A9 -> Vote 8 - Office of the Speaker | C83: 0 | D83: 0 | E83: 0 | F83: 0 | G83: 0 | H83: 0 | I83: 0 | J83: 0 | K83: 0 | L83: 0 | N83: =SUM(N84:N93) -> 0 | O83: 0 | P83: 0 | Q83: 0 | R83: 0 | S83: 0 | T83: 0 | U83: 0 | V83: 0 | W83: 0 | X83: 0
A84: ='Org structure'!E80 -> 8.1 - [Name of sub-vote] | J84: =Q84+V84 -> 0 | K84: =U84+W84 -> 0 | L84: =X84 -> 0 | Q84: =SUM(N84:P84) -> 0 | U84: 0
A85: ='Org structure'!E81 -> 0 | J85: 0 | K85: 0 | L85: 0 | Q85: 0 | U85: 0
A86: ='Org structure'!E82 -> 0 | J86: 0 | K86: 0 | L86: 0 | Q86: 0 | U86: 0
A87: ='Org structure'!E83 -> 0 | J87: 0 | K87: 0 | L87: 0 | Q87: 0 | U87: 0
A88: ='Org structure'!E84 -> 0 | J88: 0 | K88: 0 | L88: 0 | Q88: 0 | U88: 0
A89: ='Org structure'!E85 -> 0 | J89: 0 | K89: 0 | L89: 0 | Q89: 0 | U89: 0
A90: ='Org structure'!E86 -> 0 | J90: 0 | K90: 0 | L90: 0 | Q90: 0 | U90: 0
A91: ='Org structure'!E87 -> 0 | J91: 0 | K91: 0 | L91: 0 | Q91: 0 | U91: 0
A92: ='Org structure'!E88 -> 0 | J92: 0 | K92: 0 | L92: 0 | Q92: 0 | U92: 0
A93: ='Org structure'!E89 -> 0 | J93: 0 | K93: 0 | L93: 0 | Q93: 0 | U93: 0
A94: ='Org structure'!A10 -> Vote 9 - COMMUNITY & SOCIAL SERVICES | C94: 0 | D94: 0 | E94: 0 | F94: 0 | G94: 0 | H94: 0 | I94: 0 | J94: 0 | K94: 0 | L94: 0 | N94: =SUM(N95:N104) -> 0 | O94: 0 | P94: 0 | Q94: 0 | R94: 0 | S94: 0 | T94: 0 | U94: 0 | V94: 0 | W94: 0 | X94: 0
A95: ='Org structure'!E91 -> 9.1 - [Name of sub-vote] | J95: =Q95+V95 -> 0 | K95: =U95+W95 -> 0 | L95: =X95 -> 0 | Q95: =SUM(N95:P95) -> 0 | U95: 0
A96: ='Org structure'!E92 -> 0 | J96: 0 | K96: 0 | L96: 0 | Q96: 0 | U96: 0
A97: ='Org structure'!E93 -> 0 | J97: 0 | K97: 0 | L97: 0 | Q97: 0 | U97: 0
A98: ='Org structure'!E94 -> 0 | J98: 0 | K98: 0 | L98: 0 | Q98: 0 | U98: 0
A99: ='Org structure'!E95 -> 0 | J99: 0 | K99: 0 | L99: 0 | Q99: 0 | U99: 0
A100: ='Org structure'!E96 -> 0 | J100: 0 | K100: 0 | L100: 0 | Q100: 0 | U100: 0
A101: ='Org structure'!E97 -> 0 | J101: 0 | K101: 0 | L101: 0 | Q101: 0 | U101: 0
A102: ='Org structure'!E98 -> 0 | J102: 0 | K102: 0 | L102: 0 | Q102: 0 | U102: 0
A103: ='Org structure'!E99 -> 0 | J103: 0 | K103: 0 | L103: 0 | Q103: 0 | U103: 0
A104: ='Org structure'!E100 -> 0 | J104: 0 | K104: 0 | L104: 0 | Q104: 0 | U104: 0
A105: ='Org structure'!A11 -> Vote 10 - Office of the Municipal Manager | C105: 0 | D105: 0 | E105: 0 | F105: 0 | G105: 0 | H105: 0 | I105: 0 | J105: 0 | K105: 0 | L105: 0 | N105: =SUM(N106:N115) -> 0 | O105: 0 | P105: 0 | Q105: 0 | R105: 0 | S105: 0 | T105: 0 | U105: 0 | V105: 0 | W105: 0 | X105: 0
A106: ='Org structure'!E102 -> 10.1 - [Name of sub-vote] | J106: =Q106+V106 -> 0 | K106: =U106+W106 -> 0 | L106: =X106 -> 0 | Q106: =SUM(N106:P106) -> 0 | U106: 0
A107: ='Org structure'!E103 -> 0 | J107: 0 | K107: 0 | L107: 0 | Q107: 0 | U107: 0
A108: ='Org structure'!E104 -> 0 | J108: 0 | K108: 0 | L108: 0 | Q108: 0 | U108: 0
A109: ='Org structure'!E105 -> 0 | J109: 0 | K109: 0 | L109: 0 | Q109: 0 | U109: 0
A110: ='Org structure'!E106 -> 0 | J110: 0 | K110: 0 | L110: 0 | Q110: 0 | U110: 0
A111: ='Org structure'!E107 -> 0 | J111: 0 | K111: 0 | L111: 0 | Q111: 0 | U111: 0
A112: ='Org structure'!E108 -> 0 | J112: 0 | K112: 0 | L112: 0 | Q112: 0 | U112: 0
A113: ='Org structure'!E109 -> 0 | J113: 0 | K113: 0 | L113: 0 | Q113: 0 | U113: 0
A114: ='Org structure'!E110 -> 0 | J114: 0 | K114: 0 | L114: 0 | Q114: 0 | U114: 0
A115: ='Org structure'!E111 -> 0 | J115: 0 | K115: 0 | L115: 0 | Q115: 0 | U115: 0
A116: ='Org structure'!A12 -> Vote 11 - [NAME OF VOTE 11] | C116: =SUM(C117:C126) -> 0 | D116: 0 | E116: 0 | F116: 0 | G116: 0 | H116: 0 | I116: 0 | J116: 0 | K116: 0 | L116: 0 | N116: =SUM(N117:N126) -> 0 | O116: 0 | P116: 0 | Q116: 0 | R116: 0 | S116: 0 | T116: 0 | U116: 0 | V116: 0 | W116: 0 | X116: 0
A117: ='Org structure'!E113 -> 11.1 - [Name of sub-vote] | J117: =Q117+V117 -> 0 | K117: =U117+W117 -> 0 | L117: =X117 -> 0 | Q117: =SUM(N117:P117) -> 0 | U117: 0
A118: ='Org structure'!E114 -> 0 | J118: 0 | K118: 0 | L118: 0 | Q118: 0 | U118: 0
A119: ='Org structure'!E115 -> 0 | J119: 0 | K119: 0 | L119: 0 | Q119: 0 | U119: 0
A120: ='Org structure'!E116 -> 0 | J120: 0 | K120: 0 | L120: 0 | Q120: 0 | U120: 0
A121: ='Org structure'!E117 -> 0 | J121: 0 | K121: 0 | L121: 0 | Q121: 0 | U121: 0
A122: ='Org structure'!E118 -> 0 | J122: 0 | K122: 0 | L122: 0 | Q122: 0 | U122: 0
A123: ='Org structure'!E119 -> 0 | J123: 0 | K123: 0 | L123: 0 | Q123: 0 | U123: 0
A124: ='Org structure'!E120 -> 0 | J124: 0 | K124: 0 | L124: 0 | Q124: 0 | U124: 0
A125: ='Org structure'!E121 -> 0 | J125: 0 | K125: 0 | L125: 0 | Q125: 0 | U125: 0
A126: ='Org structure'!E122 -> 0 | J126: 0 | K126: 0 | L126: 0 | Q126: 0 | U126: 0
A127: ='Org structure'!A13 -> Vote 12 - [NAME OF VOTE 12] | C127: =SUM(C128:C137) -> 0 | D127: 0 | E127: 0 | F127: 0 | G127: 0 | H127: 0 | I127: 0 | J127: 0 | K127: 0 | L127: 0 | N127: =SUM(N128:N137) -> 0 | O127: 0 | P127: 0 | Q127: 0 | R127: 0 | S127: 0 | T127: 0 | U127: 0 | V127: 0 | W127: 0 | X127: 0
A128: ='Org structure'!E124 -> 12.1 - [Name of sub-vote] | J128: =Q128+V128 -> 0 | K128: =U128+W128 -> 0 | L128: =X128 -> 0 | Q128: =SUM(N128:P128) -> 0 | U128: 0
A129: ='Org structure'!E125 -> 0 | J129: 0 | K129: 0 | L129: 0 | Q129: 0 | U129: 0
A130: ='Org structure'!E126 -> 0 | J130: 0 | K130: 0 | L130: 0 | Q130: 0 | U130: 0
A131: ='Org structure'!E127 -> 0 | J131: 0 | K131: 0 | L131: 0 | Q131: 0 | U131: 0
A132: ='Org structure'!E128 -> 0 | J132: 0 | K132: 0 | L132: 0 | Q132: 0 | U132: 0
A133: ='Org structure'!E129 -> 0 | J133: =Q133+V133 -> 0 | K133: 0 | L133: 0 | Q133: 0 | U133: 0
A134: ='Org structure'!E130 -> 0 | J134: 0 | K134: 0 | L134: 0 | Q134: 0 | U134: 0
A135: ='Org structure'!E131 -> 0 | J135: 0 | K135: 0 | L135: 0 | Q135: 0 | U135: 0
A136: ='Org structure'!E132 -> 0 | J136: 0 | K136: 0 | L136: 0 | Q136: 0 | U136: =SUM(R136:T136) -> 0
A137: ='Org structure'!E133 -> 0 | J137: 0 | K137: 0 | L137: 0 | Q137: 0 | U137: 0
A138: ='Org structure'!A14 -> Vote 13 - [NAME OF VOTE 13] | C138: =SUM(C139:C148) -> 0 | D138: 0 | E138: 0 | F138: 0 | G138: 0 | H138: 0 | I138: 0 | J138: 0 | K138: 0 | L138: 0 | N138: =SUM(N139:N148) -> 0 | O138: 0 | P138: 0 | Q138: 0 | R138: 0 | S138: 0 | T138: 0 | U138: 0 | V138: 0 | W138: 0 | X138: 0
A139: ='Org structure'!E135 -> 13.1 - [Name of sub-vote] | J139: =Q139+V139 -> 0 | K139: =U139+W139 -> 0 | L139: =X139 -> 0 | Q139: =SUM(N139:P139) -> 0 | U139: 0
A140: ='Org structure'!E136 -> 0 | J140: 0 | K140: 0 | L140: 0 | Q140: 0 | U140: 0
A141: ='Org structure'!E137 -> 0 | J141: 0 | K141: 0 | L141: 0 | Q141: 0 | U141: 0
A142: ='Org structure'!E138 -> 0 | J142: 0 | K142: 0 | L142: 0 | Q142: 0 | U142: 0
A143: ='Org structure'!E139 -> 0 | J143: 0 | K143: 0 | L143: 0 | Q143: 0 | U143: 0
A144: ='Org structure'!E140 -> 0 | J144: 0 | K144: 0 | L144: 0 | Q144: 0 | U144: 0
A145: ='Org structure'!E141 -> 0 | J145: 0 | K145: 0 | L145: 0 | Q145: 0 | U145: 0
A146: ='Org structure'!E142 -> 0 | J146: 0 | K146: 0 | L146: 0 | Q146: 0 | U146: 0
A147: ='Org structure'!E143 -> 0 | J147: 0 | K147: 0 | L147: 0 | Q147: 0 | U147: 0
A148: ='Org structure'!E144 -> 0 | J148: 0 | K148: 0 | L148: 0 | Q148: 0 | U148: 0
A149: ='Org structure'!A15 -> Vote 14 - [NAME OF VOTE 14] | C149: =SUM(C150:C159) -> 0 | D149: 0 | E149: 0 | F149: 0 | G149: 0 | H149: 0 | I149: 0 | J149: 0 | K149: 0 | L149: 0 | N149: =SUM(N150:N159) -> 0 | O149: 0 | P149: 0 | Q149: 0 | R149: 0 | S149: 0 | T149: 0 | U149: 0 | V149: 0 | W149: 0 | X149: 0
A150: ='Org structure'!E146 -> 14.1 - [Name of sub-vote] | J150: =Q150+V150 -> 0 | K150: =U150+W150 -> 0 | L150: =X150 -> 0 | Q150: =SUM(N150:P150) -> 0 | U150: 0
A151: ='Org structure'!E147 -> 0 | J151: 0 | K151: 0 | L151: 0 | Q151: 0 | U151: 0
A152: ='Org structure'!E148 -> 0 | J152: 0 | K152: 0 | L152: 0 | Q152: 0 | U152: 0
A153: ='Org structure'!E149 -> 0 | J153: 0 | K153: 0 | L153: 0 | Q153: 0 | U153: 0
A154: ='Org structure'!E150 -> 0 | J154: 0 | K154: 0 | L154: 0 | Q154: 0 | U154: 0
A155: ='Org structure'!E151 -> 0 | J155: 0 | K155: 0 | L155: 0 | Q155: 0 | U155: 0
A156: ='Org structure'!E152 -> 0 | J156: 0 | K156: 0 | L156: 0 | Q156: 0 | U156: 0
A157: ='Org structure'!E153 -> 0 | J157: 0 | K157: 0 | L157: 0 | Q157: 0 | U157: 0
A158: ='Org structure'!E154 -> 0 | J158: 0 | K158: 0 | L158: 0 | Q158: 0 | U158: 0
A159: ='Org structure'!E155 -> 0 | J159: 0 | K159: 0 | L159: 0 | Q159: 0 | U159: 0
A160: ='Org structure'!A16 -> Vote 15 - [NAME OF VOTE 15] | C160: =SUM(C161:C170) -> 0 | D160: 0 | E160: 0 | F160: 0 | G160: 0 | H160: 0 | I160: 0 | J160: 0 | K160: 0 | L160: 0 | N160: =SUM(N161:N170) -> 0 | O160: 0 | P160: 0 | Q160: 0 | R160: 0 | S160: 0 | T160: 0 | U160: 0 | V160: 0 | W160: 0 | X160: 0
A161: ='Org structure'!E157 -> 15.1 - [Name of sub-vote] | J161: =Q161+V161 -> 0 | K161: =U161+W161 -> 0 | L161: =X161 -> 0 | Q161: =SUM(N161:P161) -> 0 | U161: 0
A162: ='Org structure'!E158 -> 0 | J162: 0 | K162: 0 | L162: 0 | Q162: 0 | U162: 0
A163: ='Org structure'!E159 -> 0 | J163: 0 | K163: 0 | L163: 0 | Q163: 0 | U163: 0
A164: ='Org structure'!E160 -> 0 | J164: 0 | K164: 0 | L164: 0 | Q164: 0 | U164: 0
A165: ='Org structure'!E161 -> 0 | J165: 0 | K165: 0 | L165: 0 | Q165: 0 | U165: 0
A166: ='Org structure'!E162 -> 0 | J166: 0 | K166: 0 | L166: 0 | Q166: 0 | U166: 0
A167: ='Org structure'!E163 -> 0 | J167: 0 | K167: 0 | L167: 0 | Q167: 0 | U167: 0
A168: ='Org structure'!E164 -> 0 | J168: 0 | K168: 0 | L168: 0 | Q168: 0 | U168: 0
A169: ='Org structure'!E165 -> 0 | J169: 0 | K169: 0 | L169: 0 | Q169: 0 | U169: 0
A170: ='Org structure'!E166 -> 0 | J170: 0 | K170: 0 | L170: 0 | Q170: 0 | U170: 0
A171: Capital multi-year expenditure sub-total | C171: =C6+C17+C28+C39+C50+C61+C72+C83+C94+C105+C116+C127+C138+C149+C160 -> 0 | D171: =D6+D17+D28+D39+D50+D61+D72+D83+D94+D105+D116+D127+D138+D149+D160 -> 0 | E171: 0 | F171: 0 | G171: 0 | H171: 0 | I171: 0 | J171: 129257450 | K171: 160103800 | L171: 176675150 | N171: =N6+N17+N28+N39+N50+N61+N72+N83+N94+N105+N116+N127+N138+N149+N160 -> 0 | O171: 0 | P171: 0 | Q171: 0 | R171: 0 | S171: 0 | U171: 0 | V171: =V6+V17+V28+V39+V50+V61+V72+V83+V94+V105+V116+V127+V138+V149+V160 -> 0 | W171: =W6+W17+W28+W39+W50+W61+W72+W83+W94+W105+W116+W127+W138+W149+W160 -> 0
A173: Capital expenditure - Municipal Vote
A174: Single-year expenditure appropriation | B174: 2
A175: =A6 -> Vote 1 - Executive & Council | C175: 0 | D175: 0 | E175: 0 | F175: 0 | G175: 0 | H175: 0 | I175: 0 | J175: 0 | K175: 0 | L175: 0
A176: =A7 -> 1.1 - [Name of sub-vote]
A177: 0
A178: 0
A179: 0
A180: 0
A181: 0
A182: 0
A183: 0
A184: 0
A185: 0
A186: Vote 2 - Planning and Economic Development | C186: 826160 | D186: 0 | E186: 235000 | F186: 1235000 | G186: 1235000 | H186: 1235000 | I186: 1235000 | J186: 0 | K186: 0 | L186: 2
A187: 2.1 - [Name of sub-vote]
A188: 0
A189: 0
A190: 0
A191: 0
A192: 0
A193: 0
A194: 0
A195: 0
A196: 0
A197: Vote 3 - Budget and Treasury | C197: 0 | D197: 0 | E197: 309131.63 | F197: 500000 | G197: 500000 | H197: 500000 | I197: 500000 | J197: 0 | K197: 0 | L197: 1
A198: 3.1 - [Name of sub-vote]
A199: 0
A200: 0
A201: 0
... 140 more rows

Sheet A6-FinPos
A1: =muni&" - "&Approve6 -> Choose name from list - Table A6 Budgeted Financial Position
A2: =desc -> Description | B2: =head27 -> Ref | C2: =head1b -> 2017/18 | D2: =head1A -> 2018/19 | E2: =Head1 -> 2019/20 | F2: =Head2 -> Current Year 2020/21 | J2: =Head3 -> 2021/22 Medium Term Revenue & Expenditure Framework
A3: R thousand | C3: =Head5 -> Audited Outcome | D3: =Head5 -> Audited Outcome | E3: =Head5 -> Audited Outcome | F3: =Head6 -> Original Budget | G3: =Head7 -> Adjusted Budget | H3: =Head8 -> Full Year Forecast | I3: =Head5b -> Pre-audit outcome | J3: =Head9 -> Budget Year 2021/22 | K3: =Head10 -> Budget Year +1 2022/23 | L3: =Head11 -> Budget Year +2 2023/24
A4: ASSETS
A5: Current assets
A6: Cash | C6: 7490665 | D6: 42033010.84 | E6: 70215766.21 | F6: 44000000 | G6: 34000000 | H6: 34000000 | I6: 34000000 | J6: 34000000 | K6: 35428000 | L6: 35558830
A7: Call investment deposits | B7: 1 | C7: 0 | D7: 0 | E7: 0 | F7: 0 | G7: 0 | H7: 0 | I7: 0 | J7: 0 | K7: 0 | L7: 11
A8: Consumer debtors | B8: 1 | C8: ='SA3'!C14 -> 137321124 | D8: ='SA3'!D14 -> 82703229 | E8: ='SA3'!E14 -> 546854056.9 | F8: ='SA3'!F14 -> 99048522 | G8: ='SA3'!G14 -> 99048516 | H8: ='SA3'!H14 -> 99048516 | I8: ='SA3'!I14 -> 99048516 | J8: ='SA3'!J14 -> 132000000 | K8: ='SA3'!K14 -> 138000000 | L8: ='SA3'!L14 -> 136000319
A9: Other debtors | C9: 277853918 | D9: 330270604 | E9: 39767189.5 | F9: 302706723 | G9: 302706732 | H9: 302706732 | I9: 302706732 | J9: 401755245 | K9: 418628966 | L9: 437049259
A10: Current portion of long-term receivables | C10: 0 | D10: 0 | E10: 0 | F10: 0 | G10: 0 | H10: 0 | I10: 0 | J10: 0 | K10: 0 | L10: 0
A11: Inventory | B11: 2 | C11: 19164420 | D11: 18162335 | E11: 22331781.61 | F11: 19488796 | G11: 19488792 | H11: 19488792 | I11: 19488792 | J11: 19488796 | K11: 20307325 | L11: 21200850
A12: Total current assets | C12: =SUM(C6:C11) -> 441830127 | D12: 473169178.8 | E12: 679168794.2 | F12: 465244041 | G12: 455244040 | H12: 455244040 | I12: 455244040 | J12: 587244041 | K12: 612364291 | L12: 629809269
A14: Non current assets
A15: Long-term receivables | C15: 0 | D15: 0 | E15: 0 | F15: 0 | G15: 0 | H15: 0 | I15: 0 | J15: 0 | K15: 0 | L15: 1
A16: Investments | C16: 26887398 | D16: 31525083 | E16: 21113398.31 | F16: 21995950 | G16: 21995976 | H16: 21995976 | I16: 21995976 | J16: 18482970 | K16: 18938127 | L16: 19412288
A17: Investment property | C17: 181377053 | D17: 181746803 | E17: 181586803.4 | F17: 187377053 | G17: 189377060 | H17: 189377060 | I17: 189377060 | J17: 189377053 | K17: 197330889 | L17: 206013451
A18: Investment in Associate | C18: 0 | D18: 0 | E18: 0 | F18: 0 | G18: 0 | H18: 0 | I18: 0 | J18: 0 | K18: 0 | L18: 0
A19: Property, plant and equipment | B19: 3 | C19: ='SA3'!C121 -> 1486313521 | D19: ='SA3'!D121 -> 1456773250 | E19: ='SA3'!E121 -> 1486773373 | F19: ='SA3'!F121 -> 1766960930 | G19: ='SA3'!G121 -> 1795480855 | H19: ='SA3'!H121 -> 1795480855 | I19: ='SA3'!I121 -> 1795480855 | J19: ='SA3'!J121 -> 2612366574 | K19: ='SA3'!K121 -> 3115706157 | L19: ='SA3'!L121 -> 3309946986
A21: Biological | C21: 0 | D21: 0 | E21: 0 | F21: 0 | G21: 0 | H21: 0 | I21: 0 | J21: 0 | K21: 0 | L21: 0
A22: Intangible | C22: 1603468 | D22: 1135137 | E22: 744470 | F22: 1003005 | G22: 1002996 | H22: 1002996 | I22: 1002996 | J22: 1003005 | K22: 1045131 | L22: 1091115
A23: Other non-current assets | C23: 195000 | D23: 195000 | E23: 200958.15 | F23: 195000 | G23: 195000 | H23: 195000 | I23: 195000 | J23: 195000 | K23: 203190 | L23: 212130
A24: Total non current assets | C24: =SUM(C15:C19)+SUM(C21:C23) -> 1696376440 | D24: =SUM(D15:D19)+SUM(D21:D23) -> 1671375273 | E24: 1690419002 | F24: 1977531938 | G24: 2008051887 | H24: 2008051887 | I24: 2008051887 | J24: 2821424602 | K24: 3333223494 | L24: 3536675971
A25: TOTAL ASSETS | C25: =C12+C24 -> 2138206567 | D25: =D12+D24 -> 2144544452 | E25: =E12+E24 -> 2369587797 | F25: =F12+F24 -> 2442775979 | G25: 2463295927 | H25: 2463295927 | I25: 2463295927 | J25: 3408668643 | K25: 3945587785 | L25: 4166485240
A27: LIABILITIES
A28: Current liabilities
A29: Bank overdraft | B29: 1 | C29: 0 | D29: 0 | E29: 0 | F29: 0 | G29: 0 | H29: 0 | I29: 0 | J29: 0 | K29: 0 | L29: 0
A30: Borrowing | B30: 4 | C30: ='SA3'!C127 -> 10725007 | D30: ='SA3'!D127 -> 22810651 | E30: ='SA3'!E127 -> 9851649 | F30: ='SA3'!F127 -> 12994722 | G30: ='SA3'!G127 -> 12994752 | H30: ='SA3'!H127 -> 12994752 | I30: ='SA3'!I127 -> 12994752 | J30: ='SA3'!J127 -> 1714477 | K30: ='SA3'!K127 -> 1420718 | L30: ='SA3'!L127 -> -1673277
A31: Consumer deposits | C31: 26858463 | D31: 27068007 | E31: 27396999.46 | F31: 27487095 | G31: 27487104 | H31: 27487104 | I31: -27487104 | J31: 1100000 | K31: 1100000 | L31: 1100001
A32: Trade and other payables | B32: 4 | C32: ='SA3'!C134 -> 248997911 | D32: ='SA3'!D134 -> 279430815 | E32: ='SA3'!E134 -> 296817119 | F32: ='SA3'!F134 -> 277304930 | G32: ='SA3'!G134 -> 291282277 | H32: ='SA3'!H134 -> 291282277 | I32: ='SA3'!I134 -> 291282277 | J32: ='SA3'!J134 -> 78293410 | K32: ='SA3'!K134 -> 80812824 | L32: ='SA3'!L134 -> -216226779
A33: Provisions | C33: 445724 | D33: 948670 | E33: 970476.28 | F33: 1065926 | G33: 1065936 | H33: 1065936 | I33: -1065936 | J33: 1067288 | K33: 1112115 | L33: 1161052
A34: Total current liabilities | C34: =SUM(C29:C33) -> 287027105 | D34: 330258143 | E34: 335036243.7 | F34: 318852673 | G34: 332830069 | H34: 332830069 | I34: 275723989 | J34: 82175175 | K34: 84445657 | L34: -215639003
A36: Non current liabilities
A37: Borrowing | C37: ='SA3'!C139 -> 93059239 | D37: ='SA3'!D139 -> 114196650 | E37: ='SA3'!E139 -> 127366462 | F37: ='SA3'!F139 -> 145477166 | G37: ='SA3'!G139 -> 145477212 | H37: ='SA3'!H139 -> 145477212 | I37: ='SA3'!I139 -> 145477212 | J37: ='SA3'!J139 -> 146759262 | K37: ='SA3'!K139 -> 152923152 | L37: ='SA3'!L139 -> 159651776
A38: Provisions | C38: ='SA3'!C146 -> 88448042 | D38: ='SA3'!D146 -> 82278269 | E38: ='SA3'!E146 -> 76769088.02 | F38: ='SA3'!F146 -> 86602465 | G38: ='SA3'!G146 -> 86602476 | H38: ='SA3'!H146 -> 86602476 | I38: ='SA3'!I146 -> 86602476 | J38: ='SA3'!J146 -> 86601103 | K38: ='SA3'!K146 -> 83481005 | L38: ='SA3'!L146 -> 86832404
A39: Total non current liabilities | C39: =SUM(C37:C38) -> 181507281 | D39: =SUM(D37:D38) -> 196474919 | E39: =SUM(E37:E38) -> 204135550 | F39: =SUM(F37:F38) -> 232079631 | G39: 232079688 | H39: 232079688 | I39: 232079688 | J39: 233360365 | K39: =SUM(K37:K38) -> 236404157 | L39: 246484180
A40: TOTAL LIABILITIES | C40: =C34+C39 -> 468534386 | D40: =D34+D39 -> 526733062 | E40: =E34+E39 -> 539171793.7 | F40: =F34+F39 -> 550932304 | G40: 564909757 | H40: 564909757 | I40: 507803677 | J40: 315535540 | K40: =K34+K39 -> 320849814 | L40: 30845177
A42: NET ASSETS | B42: 5 | C42: =C25-C40 -> 1669672181 | D42: 1617811390 | E42: 1830416003 | F42: 1891843675 | G42: 1898386170 | H42: 1898386170 | I42: 1955492250 | J42: 3093133103 | K42: 3624737971 | L42: 4135640063
A44: COMMUNITY WEALTH/EQUITY
A45: Accumulated Surplus/(Deficit) | C45: 1669672181 | D45: 1617811390 | E45: 1830416003 | F45: 1891843675 | G45: 1898386170 | H45: 1898386170 | J45: 3093133103 | K45: 3624737971 | L45: 4135640054
A46: Reserves | B46: 4 | C46: ='SA3'!C165 -> 0 | D46: ='SA3'!D165 -> 0 | E46: ='SA3'!E165 -> 0 | F46: ='SA3'!F165 -> 0 | G46: ='SA3'!G165 -> 0 | H46: ='SA3'!H165 -> 0 | I46: ='SA3'!I165 -> 0 | J46: ='SA3'!J165 -> 0 | K46: ='SA3'!K165 -> 0 | L46: ='SA3'!L165 -> 0
A48: TOTAL COMMUNITY WEALTH/EQUITY | B48: 5 | C48: =SUM(C45:C46) -> 1669672181 | D48: =SUM(D45:D46) -> 1617811390 | E48: 1830416003 | F48: 1891843675 | G48: 1898386170 | H48: 1898386170 | I48: 0 | J48: 3093133103 | K48: 3624737971 | L48: 4135640054
A49: =head27a -> References
A50: 1. Detail to be provided in Table SA3
A51: 2. Include completed low cost housing to be transferred to beneficiaries within 12 months
A52: 3. Include 'Construction-work-in-progress' (disclosed separately in annual financial statements)
A53: 4. Detail to be provided in Table SA3. Includes reserves to be funded by statute.
A54: 5. Net assets must balance with Total Community Wealth/Equity
A55: check balance | C55: =IF((C42-C48)=0,0,"Unbalanced") -> Unbalanced | D55: =IF((D42-D48)=0,0,"Unbalanced") -> Unbalanced | E55: Unbalanced | F55: 0 | G55: 0 | H55: 0 | I55: Unbalanced | J55: 0 | K55: 0 | L55: Unbalanced

Sheet A7-CFlow
A1: =muni&" - "&Approve7 -> Choose name from list - Table A7 Budgeted Cash Flows
A2: =desc -> Description | B2: =head27 -> Ref | C2: =head1b -> 2017/18 | D2: =head1A -> 2018/19 | E2: =Head1 -> 2019/20 | F2: =Head2 -> Current Year 2020/21 | J2: =Head3 -> 2021/22 Medium Term Revenue & Expenditure Framework
A3: R thousand | C3: =Head5 -> Audited Outcome | D3: =Head5 -> Audited Outcome | E3: =Head5 -> Audited Outcome | F3: =Head6 -> Original Budget | G3: =Head7 -> Adjusted Budget | H3: =Head8 -> Full Year Forecast | I3: =Head5b -> Pre-audit outcome | J3: =Head9 -> Budget Year 2021/22 | K3: =Head10 -> Budget Year +1 2022/23 | L3: =Head11 -> Budget Year +2 2023/24
A4: CASH FLOW FROM OPERATING ACTIVITIES
A5: Receipts
A6: Property rates | C6: 79408159 | D6: 119183219 | E6: 125629532 | F6: 119250000 | G6: 119250000 | H6: 119250000 | I6: 119250000 | J6: ='SA30'!N5 -> 123750000 | K6: ='SA30'!O5 -> 128947500 | L6: ='SA30'!P5 -> 134621190
A7: Service charges | C7: 473073828 | D7: 482916173 | E7: 533445052 | F7: 545955418 | G7: 545955432 | H7: 545955432 | I7: 545955432 | J7: ='SA30'!N6+'SA30'!N7+'SA30'!N8+'SA30'!N9 -> 638655346 | K7: ='SA30'!O6+'SA30'!O7+'SA30'!O8+'SA30'!O9 -> 702282973 | L7: ='SA30'!P6+'SA30'!P7+'SA30'!P8+'SA30'!P9 -> 1061667260
A8: Other revenue | C8: 34217947 | D8: 13193096 | E8: 12010084 | F8: 63202590 | G8: 63202596 | H8: 63202596 | I8: 63202596 | J8: ='SA30'!N11+'SA30'!N15+'SA30'!N16+'SA30'!N17+'SA30'!N19 -> 28579313 | K8: ='SA30'!O11+'SA30'!O15+'SA30'!O16+'SA30'!O17+'SA30'!O19 -> 29580357 | L8: ='SA30'!P11+'SA30'!P15+'SA30'!P16+'SA30'!P17+'SA30'!P19 -> 30673117
A9: Transfers and Subsidies - Operational | B9: 1 | C9: 372581395 | D9: 406469973 | E9: 367386877 | F9: 443963950 | G9: 530963976 | H9: 530963976 | I9: 530963976 | J9: ='SA30'!N18 -> 464088050 | K9: ='SA30'!O18 -> 479030200 | L9: ='SA30'!P18 -> 473161853
A10: Transfers and Subsidies - Capital | B10: 1 | C10: 113005208 | D10: 87699250 | E10: 87869317.09 | F10: 88938050 | G10: 88938060 | H10: 88938060 | I10: 88938060 | J10: ='SA30'!N23 -> 94753950 | K10: ='SA30'!O23 -> 102603800 | L10: ='SA30'!P23 -> 107290150
A11: Interest | C11: 4427276 | D11: 9615814 | E11: 8677865 | F11: 0 | G11: 0 | H11: 0 | I11: 0 | J11: ='SA30'!N12+'SA30'!N13 -> 31940000 | K11: ='SA30'!O12+'SA30'!O13 -> 33281480 | L11: ='SA30'!P12+'SA30'!P13 -> 34745865
A12: Dividends | C12: 0 | D12: 0 | E12: 0 | F12: 0 | G12: 0 | H12: 0 | I12: 0 | J12: ='SA30'!N14 -> 0 | K12: ='SA30'!O14 -> 0 | L12: ='SA30'!P14 -> 0
A13: Payments
A14: Suppliers and employees | C14: -833907497 | D14: -907952256 | E14: -902352816 | F14: 0 | G14: -1215857951 | H14: -1215857951 | I14: -1215857951 | J14: =-('SA30'!N35+'SA30'!N36+'SA30'!N38+'SA30'!N39+'SA30'!N40+'SA30'!N41+'SA30'!N44+'SA30'!N50) -> -1210036500 | K14: =-('SA30'!O35+'SA30'!O36+'SA30'!O38+'SA30'!O39+'SA30'!O40+'SA30'!O41+'SA30'!O44+'SA30'!O50) -> -1300926724 | L14: =-('SA30'!P35+'SA30'!P36+'SA30'!P38+'SA30'!P39+'SA30'!P40+'SA30'!P41+'SA30'!P44+'SA30'!P50) -> -1653747725
A15: Finance charges | C15: -11107653 | D15: -10961350 | E15: -13571398 | F15: 0 | G15: -16228812 | H15: -16228812 | I15: -16228812 | J15: =-('SA30'!N37) -> -16326562 | K15: =-('SA30'!O37) -> -17012277 | L15: =-('SA30'!P37) -> -17760818
A16: Transfers and Grants | B16: 1 | C16: -112420696 | D16: -57132506 | E16: -37312094.57 | F16: 0 | G16: -13919028 | H16: -13919028 | I16: -13919028 | J16: =-('SA30'!N42+'SA30'!N43) -> -16098000 | K16: =-('SA30'!O42+'SA30'!O43) -> -7871670 | L16: =-('SA30'!P42+'SA30'!P43) -> -8130029
A17: NET CASH FROM/(USED) OPERATING ACTIVITIES | C17: =SUM(C6:C12)+SUM(C14:C16) -> 119277967 | D17: 143031413 | E17: 181782418.5 | F17: 1261310008 | G17: 102304273 | H17: 102304273 | I17: 102304273 | J17: 139305597 | K17: 149915639 | L17: 162520863
A19: CASH FLOWS FROM INVESTING ACTIVITIES
A20: Receipts
A21: Proceeds on disposal of PPE | C21: 3260581 | D21: 676890 | E21: 0 | F21: 1500000 | G21: 1500000 | H21: 1500000 | I21: 1500000 | J21: ='SA30'!N24+'SA30'!N25 -> 0 | K21: ='SA30'!O24+'SA30'!O25 -> 0 | L21: ='SA30'!P24+'SA30'!P25 -> 1
C22: 0 | D22: 0 | E22: 0 | F22: 0 | G22: 0 | H22: 0 | I22: 0
A23: Decrease (increase) in non-current receivables | C23: 0 | D23: 0 | E23: 0 | F23: 0 | G23: 0 | H23: 0 | I23: 0 | J23: ='SA30'!N30 -> 0 | K23: ='SA30'!O30 -> 0 | L23: ='SA30'!P30 -> 0
A24: Decrease (increase) in non-current investments | C24: 955966 | D24: -4637684 | E24: 10411685.29 | F24: -1262783 | G24: -1262772 | H24: -1262772 | I24: -1262772 | J24: ='SA30'!N31 -> 0 | K24: ='SA30'!O31 -> 0 | L24: ='SA30'!P31 -> 0
A25: Payments
A26: Capital assets | C26: -126531358 | D26: -138893152 | E26: -163795174 | F26: -128938050 | G26: -153141512 | H26: -153141512 | I26: -153141512 | J26: =-('SA30'!N48) -> -130407450 | K26: =-('SA30'!O48) -> -138803802 | L26: =-('SA30'!P48) -> -149075195
A27: NET CASH FROM/(USED) INVESTING ACTIVITIES | C27: =+C21+C23+C24+C26 -> -122314811 | D27: =+D21+D23+D24+D26 -> -142853946 | E27: -153383488.7 | F27: -128700833 | G27: -152904284 | H27: -152904284 | I27: -152904284 | J27: -130407450 | K27: -138803802 | L27: -149075194
A29: CASH FLOWS FROM FINANCING ACTIVITIES
A30: Receipts
A31: Short term loans | C31: 0 | D31: 0 | E31: 0 | F31: 0 | G31: 0 | H31: 0 | I31: 0 | J31: ='SA30'!N26 -> 0 | K31: ='SA30'!O26 -> 0 | L31: ='SA30'!P26 -> 0
A32: Borrowing long term/refinancing | C32: 0 | D32: 40000000 | E32: 20000000 | F32: 30000000 | G32: 30000000 | H32: 30000000 | I32: 30000000 | J32: ='SA30'!N27 -> 0 | K32: ='SA30'!O27 -> 0 | L32: ='SA30'!P27 -> 1
A33: Increase (decrease) in consumer deposits | C33: 0 | D33: 0 | E33: 0 | F33: 0 | G33: 0 | H33: 0 | I33: 0 | J33: ='SA30'!N28 -> 1100000 | K33: ='SA30'!O28 -> 1100000 | L33: ='SA30'!P28 -> 1100000
A34: Payments
A35: Repayment of borrowing | C35: -21312438 | D35: -5635121 | E35: -20216174.21 | F35: -324045 | G35: -324048 | H35: -324048 | I35: -324048 | J35: =-('SA30'!N49) -> -9998147 | K35: =-('SA30'!O49) -> -10783837 | L35: =-('SA30'!P49) -> -14414840
A36: NET CASH FROM/(USED) FINANCING ACTIVITIES | C36: =SUM(C31:C33)+C35 -> -21312438 | D36: =SUM(D31:D33)+D35 -> 34364879 | E36: -216174.21 | F36: 29675955 | G36: 29675952 | H36: 29675952 | I36: 29675952 | J36: -8898147 | K36: -9683837 | L36: -13314839
A38: NET INCREASE/ (DECREASE) IN CASH HELD | C38: =C17+C27+C36 -> -24349282 | D38: =D17+D27+D36 -> 34542346 | E38: 28182755.62 | F38: 1162285130 | G38: -20924059 | H38: -20924059 | I38: -20924059 | J38: 0 | K38: 1428000 | L38: 130830
A39: Cash/cash equivalents at the year begin: | B39: 2 | C39: 31839163 | D39: 7490665 | E39: 42033010.55 | F39: 43510852 | G39: 70215767 | H39: 70215767 | I39: 70215767 | J39: ='SA30'!N54 -> 34000000 | K39: =J40 -> 34000000 | L39: =K40 -> 35428000
A40: Cash/cash equivalents at the year end: | B40: 2 | C40: =C38+C39 -> 7489881 | D40: =D38+D39 -> 42033011 | E40: =E38+E39 -> 70215766.17 | F40: =F38+F39 -> 1205795982 | G40: 49291708 | H40: 49291708 | I40: 49291708 | J40: 34000000 | K40: 35428000 | L40: 35558830
A41: =head27a -> References
A42: 1. Local/District municipalities to include transfers from/to District/Local Municipalities
A43: 2. Cash equivalents includes investments with maturities of 3 months or less
A44: 3. The MTREF is populated directly from SA30.
A45: Total receipts | C45: =SUM(C6:C12)+SUM(C21:C23) -> 1079974394 | D45: 1119754415 | E45: 1135018727 | F45: 1262810008 | G45: 1349810064 | H45: 1349810064 | I45: 1349810064 | J45: 1381766659 | K45: 1475726310 | L45: 1842159436
A46: Total payments | C46: =SUM(C14:C16)+C26 -> -1083967204 | D46: =SUM(D14:D16)+D26 -> -1114939264 | E46: -1117031483 | F46: -128938050 | G46: -1399147303 | H46: -1399147303 | I46: -1399147303 | J46: -1372868512 | K46: -1464614473 | L46: -1828713767
C47: =C45+C46 -> -3992810 | D47: =D45+D46 -> 4815151 | E47: 17987244.54 | F47: 1133871958 | G47: -49337239 | H47: -49337239 | I47: -49337239 | J47: 8898147 | K47: 11111837 | L47: 13445669
A48: Borrowings & investments & c.deposits | C48: =C24+C32+C33 -> 955966 | D48: =D24+D32+D33 -> 35362316 | E48: 30411685.29 | F48: 28737217 | G48: 28737228 | H48: 28737228 | I48: 28737228 | J48: 1100000 | K48: 1100000 | L48: 1100001
A49: =A35 -> Repayment of borrowing | C49: =C35 -> -21312438 | D49: =D35 -> -5635121 | E49: -20216174.21 | F49: -324045 | G49: -324048 | H49: -324048 | I49: =I35 -> -324048 | J49: -9998147 | K49: -10783837 | L49: -14414840
C50: =C47+C48+C49 -> -24349282 | D50: =D47+D48+D49 -> 34542346 | E50: 28182755.62 | F50: 1162285130 | G50: -20924059 | H50: -20924059 | I50: -20924059 | J50: 0 | K50: 1428000 | L50: 130830
C51: =C38-C50 -> 0 | D51: 0 | E51: -9.685754776e-08 | F51: 0 | G51: 0 | H51: 0 | I51: 0 | J51: 0 | K51: 0 | L51: 0

Sheet A8-ResRecon
A1: =muni&" - "&Approve8 -> Choose name from list - Table A8 Cash backed reserves/accumulated surplus reconciliation
A2: =desc -> Description | B2: =head27 -> Ref | C2: =head1b -> 2017/18 | D2: =head1A -> 2018/19 | E2: =Head1 -> 2019/20 | F2: =Head2 -> Current Year 2020/21 | J2: =Head3 -> 2021/22 Medium Term Revenue & Expenditure Framework
A3: R thousand | C3: =Head5 -> Audited Outcome | D3: =Head5 -> Audited Outcome | E3: =Head5 -> Audited Outcome | F3: =Head6 -> Original Budget | G3: =Head7 -> Adjusted Budget | H3: =Head8 -> Full Year Forecast | I3: =Head5b -> Pre-audit outcome | J3: =Head9 -> Budget Year 2021/22 | K3: =Head10 -> Budget Year +1 2022/23 | L3: =Head11 -> Budget Year +2 2023/24
A4: Cash and investments available
A5: =LEFT('A7-CFlow'!A40,37) -> Cash/cash equivalents at the year end | B5: 1 | C5: ='A7-CFlow'!C40 -> 7489881 | D5: ='A7-CFlow'!D40 -> 42033011 | E5: ='A7-CFlow'!E40 -> 70215766.17 | F5: ='A7-CFlow'!F40 -> 1205795982 | G5: ='A7-CFlow'!G40 -> 49291708 | H5: ='A7-CFlow'!H40 -> 49291708 | I5: ='A7-CFlow'!I40 -> 49291708 | J5: ='A7-CFlow'!J40 -> 34000000 | K5: ='A7-CFlow'!K40 -> 35428000 | L5: ='A7-CFlow'!L40 -> 35558830
A6: Other current investments > 90 days | C6: ='A6-FinPos'!C6+'A6-FinPos'!C7-'A6-FinPos'!C29-'A8-ResRecon'!C5 -> 784 | D6: ='A6-FinPos'!D6+'A6-FinPos'!D7-'A6-FinPos'!D29-'A8-ResRecon'!D5 -> -0.1599999964 | E6: ='A6-FinPos'!E6+'A6-FinPos'!E7-'A6-FinPos'!E29-'A8-ResRecon'!E5 -> 0.04000012577 | F6: ='A6-FinPos'!F6+'A6-FinPos'!F7-'A6-FinPos'!F29-'A8-ResRecon'!F5 -> -1161795982 | G6: ='A6-FinPos'!G6+'A6-FinPos'!G7-'A6-FinPos'!G29-'A8-ResRecon'!G5 -> -15291708 | H6: ='A6-FinPos'!H6+'A6-FinPos'!H7-'A6-FinPos'!H29-'A8-ResRecon'!H5 -> -15291708 | I6: ='A6-FinPos'!I6+'A6-FinPos'!I7-'A6-FinPos'!I29-'A8-ResRecon'!I5 -> -15291708 | J6: ='A6-FinPos'!J6+'A6-FinPos'!J7-'A6-FinPos'!J29-'A8-ResRecon'!J5 -> 0 | K6: ='A6-FinPos'!K6+'A6-FinPos'!K7-'A6-FinPos'!K29-'A8-ResRecon'!K5 -> 0 | L6: ='A6-FinPos'!L6+'A6-FinPos'!L7-'A6-FinPos'!L29-'A8-ResRecon'!L5 -> 11
A7: ='A6-FinPos'!A14&" - "&'A6-FinPos'!A16 -> Non current assets - Investments | B7: 1 | C7: ='A6-FinPos'!C16 -> 26887398 | D7: ='A6-FinPos'!D16 -> 31525083 | E7: ='A6-FinPos'!E16 -> 21113398.31 | F7: ='A6-FinPos'!F16 -> 21995950 | G7: ='A6-FinPos'!G16 -> 21995976 | H7: ='A6-FinPos'!H16 -> 21995976 | I7: ='A6-FinPos'!I16 -> 21995976 | J7: ='A6-FinPos'!J16 -> 18482970 | K7: ='A6-FinPos'!K16 -> 18938127 | L7: ='A6-FinPos'!L16 -> 19412288
A8: Cash and investments available: | C8: =SUM(C5:C7) -> 34378063 | D8: =SUM(D5:D7) -> 73558093.84 | E8: 91329164.52 | F8: 65995950 | G8: 55995976 | H8: 55995976 | I8: 55995976 | J8: 52482970 | K8: 54366127 | L8: 54971129
A10: Application of cash and investments
A11: ='SA3'!A132 -> Unspent conditional transfers | C11: ='SA3'!C132 -> 3900000 | D11: ='SA3'!D132 -> 5076496 | E11: ='SA3'!E132 -> 5455826.2 | F11: ='SA3'!F132 -> 0 | G11: ='SA3'!G132 -> 0 | H11: ='SA3'!H132 -> 0 | I11: ='SA3'!I132 -> 0 | J11: ='SA3'!J132 -> 0 | K11: ='SA3'!K132 -> 0 | L11: ='SA3'!L132 -> 3
A12: Unspent borrowing | C12: 0 | D12: 0 | E12: 0 | F12: 0 | G12: 0 | H12: 0 | I12: 0 | J12: 0 | K12: 0 | L12: 0
A13: Statutory requirements | B13: 2 | C13: 36353082 | D13: 39744095 | E13: 43987929 | F13: 41982845 | G13: 41982845 | H13: 41982845 | I13: 41982845 | J13: 41982845 | K13: 43746124 | L13: 45670954
A14: Other working capital requirements | B14: 3 | C14: =-C32 -> -116083813 | D14: =-D32 -> -99804351 | E14: -242549636.3 | F14: =-F32 -> -101650915 | G14: -97755575 | H14: -97755575 | I14: -95547575 | J14: -414579435 | K14: -434108300 | L14: -904756736
A15: Other provisions | C15: 0 | D15: 0 | E15: 0 | F15: 0 | G15: 0 | H15: 0 | I15: 0 | J15: 0 | K15: 0 | L15: 0
A16: Long term investments committed | B16: 4 | C16: =C52 -> 0 | D16: =D52 -> 0 | E16: 0 | F16: 0 | G16: 0 | H16: 0 | I16: 0 | J16: 0 | K16: 0 | L16: 0
A17: Reserves to be backed by cash/investments | B17: 5 | C17: 0 | D17: 0 | E17: 0 | F17: 0 | G17: 0 | H17: 0 | I17: 0 | J17: 0 | K17: 0 | L17: 0
A18: ="Total "&A10&":" -> Total Application of cash and investments: | C18: =SUM(C11:C17) -> -75830731 | D18: =SUM(D11:D17) -> -54983760 | E18: -193105881.1 | F18: -59668070 | G18: -55772730 | H18: -55772730 | I18: -53564730 | J18: -372596590 | K18: -390362176 | L18: -859085779
A19: Surplus(shortfall) | C19: =C8-C18 -> 110208794 | D19: =D8-D18 -> 128541853.8 | E19: 284435045.6 | F19: 125664020 | G19: 111768706 | H19: 111768706 | I19: 109560706 | J19: 425079560 | K19: 444728303 | L19: 914056908
A20: =head27a -> References
A21: 1. Must reconcile with Budgeted Cash Flows
A22: 2. For example: VAT, taxation
A23: 3. Council approval for policy required - include sufficient working capital (e.g. allowing for a % of current debtors > 90 days as uncollectable)
A24: 4. For example: sinking fund requirements for borrowing
A25: 5. Council approval required for each reserve created and basis of cash backing of reserves
A28: Other working capital requirements
A29: Debtors | C29: =IF(ISERROR(ROUND(C35*C36,-3)),0,(ROUND(C35*C36,-3))) -> 360736000 | D29: =IF(ISERROR(ROUND(D35*D36,-3)),0,(ROUND(D35*D36,-3))) -> 373210000 | E29: 489923000 | F29: 336973000 | G29: 347055000 | H29: 347055000 | I29: 344847000 | J29: 450890000 | K29: 471175000 | L29: 642859000
A31: Creditors due | C31: ='SA3'!C130+'SA3'!C131 -> 244652187 | D31: ='SA3'!D130+'SA3'!D131 -> 273405649 | E31: ='SA3'!E130+'SA3'!E131 -> 247373363.7 | F31: ='SA3'!F130+'SA3'!F131 -> 235322085 | G31: ='SA3'!G130+'SA3'!G131 -> 249299425 | H31: ='SA3'!H130+'SA3'!H131 -> 249299425 | I31: ='SA3'!I130+'SA3'!I131 -> 249299425 | J31: ='SA3'!J130+'SA3'!J131 -> 36310565 | K31: ='SA3'!K130+'SA3'!K131 -> 37066700 | L31: ='SA3'!L130+'SA3'!L131 -> -261897736
A32: Total | C32: =C29-C31 -> 116083813 | D32: =D29-D31 -> 99804351 | E32: 242549636.3 | F32: 101650915 | G32: 97755575 | H32: 97755575 | I32: 95547575 | J32: 414579435 | K32: 434108300 | L32: 904756736
A34: Debtors collection assumptions
A35: Balance outstanding - debtors | C35: ='A6-FinPos'!C8+'A6-FinPos'!C9+'A6-FinPos'!C15 -> 415175042 | D35: ='A6-FinPos'!D8+'A6-FinPos'!D9+'A6-FinPos'!D15 -> 412973833 | E35: ='A6-FinPos'!E8+'A6-FinPos'!E9+'A6-FinPos'!E15 -> 586621246.4 | F35: ='A6-FinPos'!F8+'A6-FinPos'!F9+'A6-FinPos'!F15 -> 401755245 | G35: ='A6-FinPos'!G8+'A6-FinPos'!G9+'A6-FinPos'!G15 -> 401755248 | H35: ='A6-FinPos'!H8+'A6-FinPos'!H9+'A6-FinPos'!H15 -> 401755248 | I35: ='A6-FinPos'!I8+'A6-FinPos'!I9+'A6-FinPos'!I15 -> 401755248 | J35: ='A6-FinPos'!J8+'A6-FinPos'!J9+'A6-FinPos'!J15 -> 533755245 | K35: ='A6-FinPos'!K8+'A6-FinPos'!K9+'A6-FinPos'!K15 -> 556628966 | L35: ='A6-FinPos'!L8+'A6-FinPos'!L9+'A6-FinPos'!L15 -> 573049579
A36: Estimate of debtors collection rate | C36: =IF(ISERROR('SA10'!D10),0,('SA10'!D10)) -> 0.8688776642 | D36: =IF(ISERROR('SA10'!E10),0,('SA10'!E10)) -> 0.9037146129 | E36: =IF(ISERROR('SA10'!F10),0,('SA10'!F10)) -> 0.8351611673 | F36: =IF(ISERROR('SA10'!G10),0,('SA10'!G10)) -> 0.8387524019 | G36: =IF(ISERROR('SA10'!H10),0,('SA10'!H10)) -> 0.8638467965 | H36: =IF(ISERROR('SA10'!I10),0,('SA10'!I10)) -> 0.8638467965 | I36: =IF(ISERROR('SA10'!J10),0,('SA10'!J10)) -> 0.8583498678 | J36: =IF(ISERROR('SA10'!K10),0,('SA10'!K10)) -> 0.8447498495 | K36: =IF(ISERROR('SA10'!L10),0,('SA10'!L10)) -> 0.846479224 | L36: =IF(ISERROR('SA10'!M10),0,('SA10'!M10)) -> 1.121820548
K39: `
A40: =A16 -> Long term investments committed
A41: Balance (Insert description; eg sinking fund) | C41: 0 | D41: 0 | E41: 0 | F41: 0 | G41: 0 | H41: 0 | I41: 0 | J41: 0 | K41: 0 | L41: 0
C52: =SUM(C41:C51) -> 0 | D52: =SUM(D41:D51) -> 0 | E52: 0 | F52: 0 | G52: 0 | H52: 0 | I52: 0 | J52: 0 | K52: 0 | L52: 0
A53: =A17 -> Reserves to be backed by cash/investments
A54: ='SA3'!A160 -> Housing Development Fund | C54: ='SA3'!C160 -> 0 | D54: ='SA3'!D160 -> 0 | E54: ='SA3'!E160 -> 0 | F54: ='SA3'!F160 -> 0 | G54: ='SA3'!G160 -> 0 | H54: ='SA3'!H160 -> 0 | I54: ='SA3'!I160 -> 0 | J54: ='SA3'!J160 -> 0 | K54: ='SA3'!K160 -> 0 | L54: ='SA3'!L160 -> 0
A55: ='SA3'!A161 -> Capital replacement
A56: ='SA3'!A162 -> Self-insurance
A57: Other (list)
C67: =SUM(C54:C65) -> 0 | D67: 0 | E67: 0 | F67: 0 | G67: 0 | H67: 0 | I67: 0 | J67: 0 | K67: 0 | L67: 0

Sheet A9-Asset
A1: =muni&" - "&Approve9 -> Choose name from list - Table A9 Asset Management
A2: =desc -> Description | B2: =head27 -> Ref | C2: =head1b -> 2017/18 | D2: =head1A -> 2018/19 | E2: =Head1 -> 2019/20 | F2: =Head2 -> Current Year 2020/21 | I2: =Head3 -> 2021/22 Medium Term Revenue & Expenditure Framework
A3: R thousand | C3: =Head5 -> Audited Outcome | D3: =Head5 -> Audited Outcome | E3: =Head5 -> Audited Outcome | F3: =Head6 -> Original Budget | G3: =Head7 -> Adjusted Budget | H3: =Head8 -> Full Year Forecast | I3: =Head9 -> Budget Year 2021/22 | J3: =Head10 -> Budget Year +1 2022/23 | K3: =Head11 -> Budget Year +2 2023/24
A4: CAPITAL EXPENDITURE
A5: Total New Assets | B5: 1 | C5: =C15+C18+C19+C22+C25+C26+SUM(C29:C35) -> 27167630 | D5: =D15+D18+D19+D22+D25+D26+SUM(D29:D35) -> 85950829 | E5: 107955783.3 | F5: 24035000 | G5: 35531538 | H5: 35531538 | I5: 25703500 | J5: 22400000 | K5: 33285073
A6: Roads Infrastructure | C6: =SA34a!C7 -> 6981726 | D6: =SA34a!D7 -> 53816542 | E6: =SA34a!E7 -> 42551348 | F6: =SA34a!F7 -> 1500000 | G6: =SA34a!G7 -> 1636000 | H6: =SA34a!H7 -> 1636000 | I6: =SA34a!I7 -> 500000 | J6: =SA34a!J7 -> 5000000 | K6: =SA34a!K7 -> 3000008
A7: Storm water Infrastructure | C7: =SA34a!C12 -> 0 | D7: =SA34a!D12 -> 0 | E7: =SA34a!E12 -> 561967 | F7: =SA34a!F12 -> 0 | G7: =SA34a!G12 -> 0 | H7: =SA34a!H12 -> 0 | I7: =SA34a!I12 -> 0 | J7: =SA34a!J12 -> 0 | K7: =SA34a!K12 -> 2
A8: Electrical Infrastructure | C8: =SA34a!C16 -> 12113986 | D8: =SA34a!D16 -> 16764784 | E8: =SA34a!E16 -> 42957028.36 | F8: =SA34a!F16 -> 12000000 | G8: =SA34a!G16 -> 14920140 | H8: =SA34a!H16 -> 14920140 | I8: =SA34a!I16 -> 10000000 | J8: =SA34a!J16 -> 10000000 | K8: =SA34a!K16 -> 10000016
A9: Water Supply Infrastructure | C9: =SA34a!C26 -> 0 | D9: =SA34a!D26 -> 0 | E9: =SA34a!E26 -> 0 | F9: =SA34a!F26 -> 0 | G9: =SA34a!G26 -> 0 | H9: =SA34a!H26 -> 0 | I9: =SA34a!I26 -> 0 | J9: =SA34a!J26 -> 0 | K9: =SA34a!K26 -> 0
A10: Sanitation Infrastructure | C10: =SA34a!C37 -> 0 | D10: =SA34a!D37 -> 0 | E10: =SA34a!E37 -> 0 | F10: =SA34a!F37 -> 0 | G10: =SA34a!G37 -> 0 | H10: =SA34a!H37 -> 0 | I10: =SA34a!I37 -> 0 | J10: =SA34a!J37 -> 0 | K10: =SA34a!K37 -> 0
A11: Solid Waste Infrastructure | C11: =SA34a!C44 -> 0 | D11: =SA34a!D44 -> 1247321 | E11: =SA34a!E44 -> 0 | F11: =SA34a!F44 -> 0 | G11: =SA34a!G44 -> 0 | H11: =SA34a!H44 -> 0 | I11: =SA34a!I44 -> 0 | J11: =SA34a!J44 -> 0 | K11: =SA34a!K44 -> 0
A12: Rail Infrastructure | C12: =SA34a!C52 -> 0 | D12: =SA34a!D52 -> 0 | E12: =SA34a!E52 -> 8150000.01 | F12: =SA34a!F52 -> 0 | G12: =SA34a!G52 -> 5451116 | H12: =SA34a!H52 -> 5451116 | I12: =SA34a!I52 -> 0 | J12: =SA34a!J52 -> 0 | K12: =SA34a!K52 -> 15
A13: Coastal Infrastructure | C13: =SA34a!C62 -> 0 | D13: =SA34a!D62 -> 0 | E13: =SA34a!E62 -> 0 | F13: =SA34a!F62 -> 0 | G13: =SA34a!G62 -> 0 | H13: =SA34a!H62 -> 0 | I13: =SA34a!I62 -> 0 | J13: =SA34a!J62 -> 0 | K13: =SA34a!K62 -> 0
A14: Information and Communication Infrastructure | C14: =SA34a!C68 -> 0 | D14: =SA34a!D68 -> 0 | E14: =SA34a!E68 -> 0 | F14: =SA34a!F68 -> 0 | G14: =SA34a!G68 -> 0 | H14: =SA34a!H68 -> 0 | I14: =SA34a!I68 -> 0 | J14: =SA34a!J68 -> 0 | K14: =SA34a!K68 -> 0
A15: Infrastructure | C15: =SUM(C6:C14) -> 19095712 | D15: =SUM(D6:D14) -> 71828647 | E15: 94220343.37 | F15: 13500000 | G15: 22007256 | H15: 22007256 | I15: 10500000 | J15: 15000000 | K15: 13000041
A16: Community Facilities | C16: =SA34a!C75 -> 0 | D16: =SA34a!D75 -> 0 | E16: =SA34a!E75 -> 5269900 | F16: =SA34a!F75 -> 0 | G16: =SA34a!G75 -> 0 | H16: =SA34a!H75 -> 0 | I16: =SA34a!I75 -> 1000000 | J16: =SA34a!J75 -> 0 | K16: =SA34a!K75 -> 4450001
A17: Sport and Recreation Facilities | C17: =SA34a!C98 -> 7522051 | D17: =SA34a!D98 -> 0 | E17: =SA34a!E98 -> 0 | F17: =SA34a!F98 -> 0 | G17: =SA34a!G98 -> 0 | H17: =SA34a!H98 -> 0 | I17: =SA34a!I98 -> 0 | J17: =SA34a!J98 -> 0 | K17: =SA34a!K98 -> 9000000
A18: Community Assets | C18: =SUM(C16:C17) -> 7522051 | D18: =SUM(D16:D17) -> 0 | E18: 5269900 | F18: 0 | G18: 0 | H18: 0 | I18: 1000000 | J18: 0 | K18: 13450001
A19: Heritage Assets | C19: =SA34a!C103 -> 0 | D19: =SA34a!D103 -> 0 | E19: =SA34a!E103 -> 0 | F19: =SA34a!F103 -> 0 | G19: =SA34a!G103 -> 0 | H19: =SA34a!H103 -> 0 | I19: =SA34a!I103 -> 0 | J19: =SA34a!J103 -> 0 | K19: =SA34a!K103 -> 0
A20: Revenue Generating | C20: =SA34a!C111 -> 0 | D20: =SA34a!D111 -> 0 | E20: =SA34a!E111 -> 0 | F20: =SA34a!F111 -> 0 | G20: =SA34a!G111 -> 0 | H20: =SA34a!H111 -> 0 | I20: =SA34a!I111 -> 0 | J20: =SA34a!J111 -> 0 | K20: =SA34a!K111 -> 0
A21: Non-revenue Generating | C21: =SA34a!C114 -> 0 | D21: =SA34a!D114 -> 0 | E21: =SA34a!E114 -> 0 | F21: =SA34a!F114 -> 0 | G21: =SA34a!G114 -> 0 | H21: =SA34a!H114 -> 0 | I21: =SA34a!I114 -> 0 | J21: =SA34a!J114 -> 0 | K21: =SA34a!K114 -> 0
A22: Investment properties | C22: =SUM(C20:C21) -> 0 | D22: =SUM(D20:D21) -> 0 | E22: 0 | F22: 0 | G22: 0 | H22: 0 | I22: 0 | J22: 0 | K22: 0
A23: Operational Buildings | C23: =SA34a!C119 -> 0 | D23: =SA34a!D119 -> 0 | E23: =SA34a!E119 -> 3131923.57 | F23: =SA34a!F119 -> 3800000 | G23: =SA34a!G119 -> 4419990 | H23: =SA34a!H119 -> 4419990 | I23: =SA34a!I119 -> 2000000 | J23: =SA34a!J119 -> 0 | K23: =SA34a!K119 -> 1500003
A24: Housing | C24: =SA34a!C131 -> 0 | D24: =SA34a!D131 -> 0 | E24: =SA34a!E131 -> 0 | F24: =SA34a!F131 -> 0 | G24: =SA34a!G131 -> 400000 | H24: =SA34a!H131 -> 400000 | I24: =SA34a!I131 -> 0 | J24: =SA34a!J131 -> 0 | K24: =SA34a!K131 -> 2
A25: Other Assets | C25: =SUM(C23:C24) -> 0 | D25: =SUM(D23:D24) -> 0 | E25: 3131923.57 | F25: 3800000 | G25: 4819990 | H25: 4819990 | I25: 2000000 | J25: 0 | K25: 1500005
A26: Biological or Cultivated Assets | C26: =SA34a!C136 -> 0 | D26: =SA34a!D136 -> 0 | E26: =SA34a!E136 -> 0 | F26: =SA34a!F136 -> 0 | G26: =SA34a!G136 -> 0 | H26: =SA34a!H136 -> 0 | I26: =SA34a!I136 -> 0 | J26: =SA34a!J136 -> 0 | K26: =SA34a!K136 -> 0
A27: Servitudes | C27: =SA34a!C140 -> 0 | D27: =SA34a!D140 -> 0 | E27: =SA34a!E140 -> 0 | F27: =SA34a!F140 -> 0 | G27: =SA34a!G140 -> 0 | H27: =SA34a!H140 -> 0 | I27: =SA34a!I140 -> 0 | J27: =SA34a!J140 -> 0 | K27: =SA34a!K140 -> 0
A28: Licences and Rights | C28: =SA34a!C141 -> 0 | D28: =SA34a!D141 -> 0 | E28: =SA34a!E141 -> 0 | F28: =SA34a!F141 -> 0 | G28: =SA34a!G141 -> 0 | H28: =SA34a!H141 -> 0 | I28: =SA34a!I141 -> 0 | J28: =SA34a!J141 -> 0 | K28: =SA34a!K141 -> 0
A29: Intangible Assets | C29: =SUM(C27:C28) -> 0 | D29: =SUM(D27:D28) -> 0 | E29: 0 | F29: 0 | G29: 0 | H29: 0 | I29: 0 | J29: 0 | K29: 0
A30: Computer Equipment | C30: =SA34a!C149 -> 0 | D30: =SA34a!D149 -> 0 | E30: =SA34a!E149 -> 264520.47 | F30: =SA34a!F149 -> 0 | G30: =SA34a!G149 -> 0 | H30: =SA34a!H149 -> 0 | I30: =SA34a!I149 -> 333500 | J30: =SA34a!J149 -> 0 | K30: =SA34a!K149 -> 235000
A31: Furniture and Office Equipment | C31: =SA34a!C152 -> 549867 | D31: =SA34a!D152 -> 10276400 | E31: =SA34a!E152 -> 344131.63 | F31: =SA34a!F152 -> 735000 | G31: =SA34a!G152 -> 735000 | H31: =SA34a!H152 -> 735000 | I31: =SA34a!I152 -> 700000 | J31: =SA34a!J152 -> 0 | K31: =SA34a!K152 -> 300002
A32: Machinery and Equipment | C32: =SA34a!C155 -> 0 | D32: =SA34a!D155 -> 345882 | E32: =SA34a!E155 -> 4724964.24 | F32: =SA34a!F155 -> 1000000 | G32: =SA34a!G155 -> 2969292 | H32: =SA34a!H155 -> 2969292 | I32: =SA34a!I155 -> 1350000 | J32: =SA34a!J155 -> 0 | K32: =SA34a!K155 -> 500022
A33: Transport Assets | C33: =SA34a!C158 -> 0 | D33: =SA34a!D158 -> 3499900 | E33: =SA34a!E158 -> 0 | F33: =SA34a!F158 -> 5000000 | G33: =SA34a!G158 -> 5000000 | H33: =SA34a!H158 -> 5000000 | I33: =SA34a!I158 -> 9820000 | J33: =SA34a!J158 -> 7400000 | K33: =SA34a!K158 -> 4300002
A34: Land | C34: =SA34a!C161 -> 0 | D34: =SA34a!D161 -> 0 | E34: =SA34a!E161 -> 0 | F34: =SA34a!F161 -> 0 | G34: =SA34a!G161 -> 0 | H34: =SA34a!H161 -> 0 | I34: =SA34a!I161 -> 0 | J34: =SA34a!J161 -> 0 | K34: =SA34a!K161 -> 0
A35: Zoo's, Marine and Non-biological Animals | C35: =SA34a!C164 -> 0 | D35: =SA34a!D164 -> 0 | E35: =SA34a!E164 -> 0 | F35: =SA34a!F164 -> 0 | G35: =SA34a!G164 -> 0 | H35: =SA34a!H164 -> 0 | I35: =SA34a!I164 -> 0 | J35: =SA34a!J164 -> 0 | K35: =SA34a!K164 -> 0
A37: Total Renewal of Existing Assets | B37: 2 | C37: =C47+C50+C51+C54+C57+C58+SUM(C61:C67) -> 0 | D37: =D47+D50+D51+D54+D57+D58+SUM(D61:D67) -> 0 | E37: 13254834.03 | F37: 600000 | G37: 6607856 | H37: 6607856 | I37: 3400000 | J37: 25300000 | K37: 14800010
A38: Roads Infrastructure | C38: =SA34b!C7 -> 0 | D38: =SA34b!D7 -> 0 | E38: =SA34b!E7 -> 0 | F38: =SA34b!F7 -> 0 | G38: =SA34b!G7 -> 4300000 | H38: =SA34b!H7 -> 4300000 | I38: =SA34b!I7 -> 0 | J38: =SA34b!J7 -> 21300000 | K38: =SA34b!K7 -> 9700001
A39: Storm water Infrastructure | C39: =SA34b!C12 -> 0 | D39: =SA34b!D12 -> 0 | E39: =SA34b!E12 -> 0 | F39: =SA34b!F12 -> 0 | G39: =SA34b!G12 -> 0 | H39: =SA34b!H12 -> 0 | I39: =SA34b!I12 -> 0 | J39: =SA34b!J12 -> 0 | K39: =SA34b!K12 -> 0
A40: Electrical Infrastructure | C40: =SA34b!C16 -> 0 | D40: =SA34b!D16 -> 0 | E40: =SA34b!E16 -> 6404834.03 | F40: =SA34b!F16 -> 600000 | G40: =SA34b!G16 -> 2307856 | H40: =SA34b!H16 -> 2307856 | I40: =SA34b!I16 -> 600000 | J40: =SA34b!J16 -> 0 | K40: =SA34b!K16 -> 9
A41: Water Supply Infrastructure | C41: =SA34b!C26 -> 0 | D41: =SA34b!D26 -> 0 | E41: =SA34b!E26 -> 0 | F41: =SA34b!F26 -> 0 | G41: =SA34b!G26 -> 0 | H41: =SA34b!H26 -> 0 | I41: =SA34b!I26 -> 0 | J41: =SA34b!J26 -> 0 | K41: =SA34b!K26 -> 0
A42: Sanitation Infrastructure | C42: =SA34b!C37 -> 0 | D42: =SA34b!D37 -> 0 | E42: =SA34b!E37 -> 0 | F42: =SA34b!F37 -> 0 | G42: =SA34b!G37 -> 0 | H42: =SA34b!H37 -> 0 | I42: =SA34b!I37 -> 0 | J42: =SA34b!J37 -> 0 | K42: =SA34b!K37 -> 0
A43: Solid Waste Infrastructure | C43: =SA34b!C44 -> 0 | D43: =SA34b!D44 -> 0 | E43: =SA34b!E44 -> 0 | F43: =SA34b!F44 -> 0 | G43: =SA34b!G44 -> 0 | H43: =SA34b!H44 -> 0 | I43: =SA34b!I44 -> 0 | J43: =SA34b!J44 -> 0 | K43: =SA34b!K44 -> 0
A44: Rail Infrastructure | C44: =SA34b!C52 -> 0 | D44: =SA34b!D52 -> 0 | E44: =SA34b!E52 -> 0 | F44: =SA34b!F52 -> 0 | G44: =SA34b!G52 -> 0 | H44: =SA34b!H52 -> 0 | I44: =SA34b!I52 -> 0 | J44: =SA34b!J52 -> 0 | K44: =SA34b!K52 -> 0
A45: Coastal Infrastructure | C45: =SA34b!C62 -> 0 | D45: =SA34b!D62 -> 0 | E45: =SA34b!E62 -> 0 | F45: =SA34b!F62 -> 0 | G45: =SA34b!G62 -> 0 | H45: =SA34b!H62 -> 0 | I45: =SA34b!I62 -> 0 | J45: =SA34b!J62 -> 0 | K45: =SA34b!K62 -> 0
A46: Information and Communication Infrastructure | C46: =SA34b!C68 -> 0 | D46: =SA34b!D68 -> 0 | E46: =SA34b!E68 -> 0 | F46: =SA34b!F68 -> 0 | G46: =SA34b!G68 -> 0 | H46: =SA34b!H68 -> 0 | I46: =SA34b!I68 -> 2800000 | J46: =SA34b!J68 -> 4000000 | K46: =SA34b!K68 -> 4000000
A47: Infrastructure | C47: =SUM(C38:C46) -> 0 | D47: =SUM(D38:D46) -> 0 | E47: 6404834.03 | F47: 600000 | G47: 6607856 | H47: 6607856 | I47: 3400000 | J47: 25300000 | K47: 13700010
A48: Community Facilities | C48: =SA34b!C75 -> 0 | D48: =SA34b!D75 -> 0 | E48: =SA34b!E75 -> 0 | F48: =SA34b!F75 -> 0 | G48: =SA34b!G75 -> 0 | H48: =SA34b!H75 -> 0 | I48: =SA34b!I75 -> 0 | J48: =SA34b!J75 -> 0 | K48: =SA34b!K75 -> 1100000
A49: Sport and Recreation Facilities | C49: =SA34b!C98 -> 0 | D49: =SA34b!D98 -> 0 | E49: =SA34b!E98 -> 0 | F49: =SA34b!F98 -> 0 | G49: =SA34b!G98 -> 0 | H49: =SA34b!H98 -> 0 | I49: =SA34b!I98 -> 0 | J49: =SA34b!J98 -> 0 | K49: =SA34b!K98 -> 0
A50: Community Assets | C50: =SUM(C48:C49) -> 0 | D50: =SUM(D48:D49) -> 0 | E50: 0 | F50: 0 | G50: 0 | H50: 0 | I50: 0 | J50: 0 | K50: 1100000
A51: Heritage Assets | C51: =SA34b!C103 -> 0 | D51: =SA34b!D103 -> 0 | E51: =SA34b!E103 -> 0 | F51: =SA34b!F103 -> 0 | G51: =SA34b!G103 -> 0 | H51: =SA34b!H103 -> 0 | I51: =SA34b!I103 -> 0 | J51: =SA34b!J103 -> 0 | K51: =SA34b!K103 -> 0
A52: Revenue Generating | C52: =SA34b!C111 -> 0 | D52: =SA34b!D111 -> 0 | E52: =SA34b!E111 -> 0 | F52: =SA34b!F111 -> 0 | G52: =SA34b!G111 -> 0 | H52: =SA34b!H111 -> 0 | I52: =SA34b!I111 -> 0 | J52: =SA34b!J111 -> 0 | K52: =SA34b!K111 -> 0
A53: Non-revenue Generating | C53: =SA34b!C114 -> 0 | D53: =SA34b!D114 -> 0 | E53: =SA34b!E114 -> 0 | F53: =SA34b!F114 -> 0 | G53: =SA34b!G114 -> 0 | H53: =SA34b!H114 -> 0 | I53: =SA34b!I114 -> 0 | J53: =SA34b!J114 -> 0 | K53: =SA34b!K114 -> 0
A54: Investment properties | C54: =SUM(C52:C53) -> 0 | D54: =SUM(D52:D53) -> 0 | E54: 0 | F54: 0 | G54: 0 | H54: 0 | I54: 0 | J54: 0 | K54: 0
A55: Operational Buildings | C55: =SA34b!C119 -> 0 | D55: =SA34b!D119 -> 0 | E55: =SA34b!E119 -> 0 | F55: =SA34b!F119 -> 0 | G55: =SA34b!G119 -> 0 | H55: =SA34b!H119 -> 0 | I55: =SA34b!I119 -> 0 | J55: =SA34b!J119 -> 0 | K55: =SA34b!K119 -> 0
A56: Housing | C56: =SA34b!C131 -> 0 | D56: =SA34b!D131 -> 0 | E56: =SA34b!E131 -> 0 | F56: =SA34b!F131 -> 0 | G56: =SA34b!G131 -> 0 | H56: =SA34b!H131 -> 0 | I56: =SA34b!I131 -> 0 | J56: =SA34b!J131 -> 0 | K56: =SA34b!K131 -> 0
A57: Other Assets | C57: =SUM(C55:C56) -> 0 | D57: =SUM(D55:D56) -> 0 | E57: 0 | F57: 0 | G57: 0 | H57: 0 | I57: 0 | J57: 0 | K57: 0
A58: Biological or Cultivated Assets | C58: =SA34b!C136 -> 0 | D58: =SA34b!D136 -> 0 | E58: =SA34b!E136 -> 0 | F58: =SA34b!F136 -> 0 | G58: =SA34b!G136 -> 0 | H58: =SA34b!H136 -> 0 | I58: =SA34b!I136 -> 0 | J58: =SA34b!J136 -> 0 | K58: =SA34b!K136 -> 0
A59: Servitudes | C59: =SA34b!C140 -> 0 | D59: =SA34b!D140 -> 0 | E59: =SA34b!E140 -> 0 | F59: =SA34b!F140 -> 0 | G59: =SA34b!G140 -> 0 | H59: =SA34b!H140 -> 0 | I59: =SA34b!I140 -> 0 | J59: =SA34b!J140 -> 0 | K59: =SA34b!K140 -> 0
A60: Licences and Rights | C60: =SA34b!C141 -> 0 | D60: =SA34b!D141 -> 0 | E60: =SA34b!E141 -> 0 | F60: =SA34b!F141 -> 0 | G60: =SA34b!G141 -> 0 | H60: =SA34b!H141 -> 0 | I60: =SA34b!I141 -> 0 | J60: =SA34b!J141 -> 0 | K60: =SA34b!K141 -> 0
A61: Intangible Assets | C61: =SUM(C59:C60) -> 0 | D61: =SUM(D59:D60) -> 0 | E61: 0 | F61: 0 | G61: 0 | H61: 0 | I61: 0 | J61: 0 | K61: 0
A62: Computer Equipment | C62: =SA34b!C149 -> 0 | D62: =SA34b!D149 -> 0 | E62: =SA34b!E149 -> 0 | F62: =SA34b!F149 -> 0 | G62: =SA34b!G149 -> 0 | H62: =SA34b!H149 -> 0 | I62: =SA34b!I149 -> 0 | J62: =SA34b!J149 -> 0 | K62: =SA34b!K149 -> 0
A63: Furniture and Office Equipment | C63: =SA34b!C152 -> 0 | D63: =SA34b!D152 -> 0 | E63: =SA34b!E152 -> 0 | F63: =SA34b!F152 -> 0 | G63: =SA34b!G152 -> 0 | H63: =SA34b!H152 -> 0 | I63: =SA34b!I152 -> 0 | J63: =SA34b!J152 -> 0 | K63: =SA34b!K152 -> 0
A64: Machinery and Equipment | C64: =SA34b!C155 -> 0 | D64: =SA34b!D155 -> 0 | E64: =SA34b!E155 -> 6850000 | F64: =SA34b!F155 -> 0 | G64: =SA34b!G155 -> 0 | H64: =SA34b!H155 -> 0 | I64: =SA34b!I155 -> 0 | J64: =SA34b!J155 -> 0 | K64: =SA34b!K155 -> 0
A65: Transport Assets | C65: =SA34b!C158 -> 0 | D65: =SA34b!D158 -> 0 | E65: =SA34b!E158 -> 0 | F65: =SA34b!F158 -> 0 | G65: =SA34b!G158 -> 0 | H65: =SA34b!H158 -> 0 | I65: =SA34b!I158 -> 0 | J65: =SA34b!J158 -> 0 | K65: =SA34b!K158 -> 0
A66: Land | C66: =SA34b!C161 -> 0 | D66: =SA34b!D161 -> 0 | E66: =SA34b!E161 -> 0 | F66: =SA34b!F161 -> 0 | G66: =SA34b!G161 -> 0 | H66: =SA34b!H161 -> 0 | I66: =SA34b!I161 -> 0 | J66: =SA34b!J161 -> 0 | K66: =SA34b!K161 -> 0
A67: Zoo's, Marine and Non-biological Animals | C67: =SA34b!C164 -> 0 | D67: =SA34b!D164 -> 0 | E67: =SA34b!E164 -> 0 | F67: =SA34b!F164 -> 0 | G67: =SA34b!G164 -> 0 | H67: =SA34b!H164 -> 0 | I67: =SA34b!I164 -> 0 | J67: =SA34b!J164 -> 0 | K67: =SA34b!K164 -> 0
A69: Total Upgrading of Existing Assets | B69: 6 | C69: =C79+C82+C83+C86+C89+C90+SUM(C93:C99) -> 99363728 | D69: =D79+D82+D83+D86+D89+D90+SUM(D93:D99) -> 17531610 | E69: 69047494.03 | F69: 106338034 | G69: 119353549 | H69: 119353549 | I69: 101753950 | J69: 112403800 | K69: 128590199
A70: Roads Infrastructure | C70: =SA34e!C7 -> 0 | D70: =SA34e!D7 -> 0 | E70: =SA34e!E7 -> 52193576.03 | F70: =SA34e!F7 -> 88938034 | G70: =SA34e!G7 -> 97989054 | H70: =SA34e!H7 -> 97989054 | I70: =SA34e!I7 -> 92753950 | J70: =SA34e!J7 -> 111603800 | K70: =SA34e!K7 -> 101290177
A71: Storm water Infrastructure | C71: =SA34e!C12 -> 0 | D71: =SA34e!D12 -> 0 | E71: =SA34e!E12 -> 0 | F71: =SA34e!F12 -> 0 | G71: =SA34e!G12 -> 2000000 | H71: =SA34e!H12 -> 2000000 | I71: =SA34e!I12 -> 3500000 | J71: =SA34e!J12 -> 0 | K71: =SA34e!K12 -> 2
A72: Electrical Infrastructure | C72: =SA34e!C16 -> 1330092 | D72: =SA34e!D16 -> 17531610 | E72: =SA34e!E16 -> 10153918 | F72: =SA34e!F16 -> 17400000 | G72: =SA34e!G16 -> 19364495 | H72: =SA34e!H16 -> 19364495 | I72: =SA34e!I16 -> 0 | J72: =SA34e!J16 -> 0 | K72: =SA34e!K16 -> 15
A73: Water Supply Infrastructure | C73: =SA34e!C26 -> 0 | D73: =SA34e!D26 -> 0 | E73: =SA34e!E26 -> 0 | F73: =SA34e!F26 -> 0 | G73: =SA34e!G26 -> 0 | H73: =SA34e!H26 -> 0 | I73: =SA34e!I26 -> 0 | J73: =SA34e!J26 -> 0 | K73: =SA34e!K26 -> 0
A74: Sanitation Infrastructure | C74: =SA34e!C37 -> 0 | D74: =SA34e!D37 -> 0 | E74: =SA34e!E37 -> 0 | F74: =SA34e!F37 -> 0 | G74: =SA34e!G37 -> 0 | H74: =SA34e!H37 -> 0 | I74: =SA34e!I37 -> 0 | J74: =SA34e!J37 -> 0 | K74: =SA34e!K37 -> 0
A75: Solid Waste Infrastructure | C75: =SA34e!C44 -> 0 | D75: =SA34e!D44 -> 0 | E75: =SA34e!E44 -> 0 | F75: =SA34e!F44 -> 0 | G75: =SA34e!G44 -> 0 | H75: =SA34e!H44 -> 0 | I75: =SA34e!I44 -> 0 | J75: =SA34e!J44 -> 0 | K75: =SA34e!K44 -> 0
A76: Rail Infrastructure | C76: =SA34e!C52 -> 0 | D76: =SA34e!D52 -> 0 | E76: =SA34e!E52 -> 0 | F76: =SA34e!F52 -> 0 | G76: =SA34e!G52 -> 0 | H76: =SA34e!H52 -> 0 | I76: =SA34e!I52 -> 0 | J76: =SA34e!J52 -> 0 | K76: =SA34e!K52 -> 0
A77: Coastal Infrastructure | C77: =SA34e!C62 -> 826160 | D77: =SA34e!D62 -> 0 | E77: =SA34e!E62 -> 0 | F77: =SA34e!F62 -> 0 | G77: =SA34e!G62 -> 0 | H77: =SA34e!H62 -> 0 | I77: =SA34e!I62 -> 0 | J77: =SA34e!J62 -> 0 | K77: =SA34e!K62 -> 0
A78: Information and Communication Infrastructure | C78: =SA34e!C68 -> 0 | D78: =SA34e!D68 -> 0 | E78: =SA34e!E68 -> 0 | F78: =SA34e!F68 -> 0 | G78: =SA34e!G68 -> 0 | H78: =SA34e!H68 -> 0 | I78: =SA34e!I68 -> 0 | J78: =SA34e!J68 -> 0 | K78: =SA34e!K68 -> 0
A79: Infrastructure | C79: =SUM(C70:C78) -> 2156252 | D79: 17531610 | E79: 62347494.03 | F79: 106338034 | G79: 119353549 | H79: 119353549 | I79: 96253950 | J79: 111603800 | K79: 101290194
A80: Community Facilities | C80: =SA34e!C75 -> 0 | D80: =SA34e!D75 -> 0 | E80: =SA34e!E75 -> 850000 | F80: =SA34e!F75 -> 0 | G80: =SA34e!G75 -> 0 | H80: =SA34e!H75 -> 0 | I80: =SA34e!I75 -> 2000000 | J80: =SA34e!J75 -> 0 | K80: =SA34e!K75 -> 13700001
A81: Sport and Recreation Facilities | C81: =SA34e!C98 -> 97207476 | D81: =SA34e!D98 -> 0 | E81: =SA34e!E98 -> 0 | F81: =SA34e!F98 -> 0 | G81: =SA34e!G98 -> 0 | H81: =SA34e!H98 -> 0 | I81: =SA34e!I98 -> 0 | J81: =SA34e!J98 -> 0 | K81: =SA34e!K98 -> 2000001
A82: Community Assets | C82: =SUM(C80:C81) -> 97207476 | D82: 0 | E82: 850000 | F82: 0 | G82: 0 | H82: 0 | I82: 2000000 | J82: 0 | K82: 15700002
A83: Heritage Assets | C83: =SA34e!C103 -> 0 | D83: =SA34e!D103 -> 0 | E83: =SA34e!E103 -> 0 | F83: =SA34e!F103 -> 0 | G83: =SA34e!G103 -> 0 | H83: =SA34e!H103 -> 0 | I83: =SA34e!I103 -> 0 | J83: =SA34e!J103 -> 0 | K83: =SA34e!K103 -> 0
A84: Revenue Generating | C84: =SA34e!C111 -> 0 | D84: =SA34e!D111 -> 0 | E84: =SA34e!E111 -> 0 | F84: =SA34e!F111 -> 0 | G84: =SA34e!G111 -> 0 | H84: =SA34e!H111 -> 0 | I84: =SA34e!I111 -> 0 | J84: =SA34e!J111 -> 0 | K84: =SA34e!K111 -> 0
A85: Non-revenue Generating | C85: =SA34e!C114 -> 0 | D85: =SA34e!D114 -> 0 | E85: =SA34e!E114 -> 0 | F85: =SA34e!F114 -> 0 | G85: =SA34e!G114 -> 0 | H85: =SA34e!H114 -> 0 | I85: =SA34e!I114 -> 0 | J85: =SA34e!J114 -> 0 | K85: =SA34e!K114 -> 0
A86: Investment properties | C86: =SUM(C84:C85) -> 0 | D86: 0 | E86: 0 | F86: 0 | G86: 0 | H86: 0 | I86: 0 | J86: 0 | K86: 0
A87: Operational Buildings | C87: =SA34e!C119 -> 0 | D87: =SA34e!D119 -> 0 | E87: =SA34e!E119 -> 5700000 | F87: =SA34e!F119 -> 0 | G87: =SA34e!G119 -> 0 | H87: =SA34e!H119 -> 0 | I87: =SA34e!I119 -> 3500000 | J87: =SA34e!J119 -> 800000 | K87: =SA34e!K119 -> 11600002
A88: Housing | C88: =SA34e!C131 -> 0 | D88: =SA34e!D131 -> 0 | E88: =SA34e!E131 -> 0 | F88: =SA34e!F131 -> 0 | G88: =SA34e!G131 -> 0 | H88: =SA34e!H131 -> 0 | I88: =SA34e!I131 -> 0 | J88: =SA34e!J131 -> 0 | K88: =SA34e!K131 -> 0
A89: Other Assets | C89: =SUM(C87:C88) -> 0 | D89: 0 | E89: 5700000 | F89: 0 | G89: 0 | H89: 0 | I89: 3500000 | J89: 800000 | K89: 11600002
A90: Biological or Cultivated Assets | C90: =SA34e!C136 -> 0 | D90: =SA34e!D136 -> 0 | E90: =SA34e!E136 -> 0 | F90: =SA34e!F136 -> 0 | G90: =SA34e!G136 -> 0 | H90: =SA34e!H136 -> 0 | I90: =SA34e!I136 -> 0 | J90: =SA34e!J136 -> 0 | K90: =SA34e!K136 -> 0
A91: Servitudes | C91: =SA34e!C140 -> 0 | D91: =SA34e!D140 -> 0 | E91: =SA34e!E140 -> 0 | F91: =SA34e!F140 -> 0 | G91: =SA34e!G140 -> 0 | H91: =SA34e!H140 -> 0 | I91: =SA34e!I140 -> 0 | J91: =SA34e!J140 -> 0 | K91: =SA34e!K140 -> 0
A92: Licences and Rights | C92: =SA34e!C141 -> 0 | D92: =SA34e!D141 -> 0 | E92: =SA34e!E141 -> 0 | F92: =SA34e!F141 -> 0 | G92: =SA34e!G141 -> 0 | H92: =SA34e!H141 -> 0 | I92: =SA34e!I141 -> 0 | J92: =SA34e!J141 -> 0 | K92: =SA34e!K141 -> 0
A93: Intangible Assets | C93: =SUM(C91:C92) -> 0 | D93: 0 | E93: 0 | F93: 0 | G93: 0 | H93: 0 | I93: 0 | J93: 0 | K93: 0
A94: Computer Equipment | C94: =SA34e!C149 -> 0 | D94: =SA34e!D149 -> 0 | E94: =SA34e!E149 -> 0 | F94: =SA34e!F149 -> 0 | G94: =SA34e!G149 -> 0 | H94: =SA34e!H149 -> 0 | I94: =SA34e!I149 -> 0 | J94: =SA34e!J149 -> 0 | K94: =SA34e!K149 -> 0
A95: Furniture and Office Equipment | C95: =SA34e!C152 -> 0 | D95: =SA34e!D152 -> 0 | E95: =SA34e!E152 -> 150000 | F95: =SA34e!F152 -> 0 | G95: =SA34e!G152 -> 0 | H95: =SA34e!H152 -> 0 | I95: =SA34e!I152 -> 0 | J95: =SA34e!J152 -> 0 | K95: =SA34e!K152 -> 1
A96: Machinery and Equipment | C96: =SA34e!C155 -> 0 | D96: =SA34e!D155 -> 0 | E96: =SA34e!E155 -> 0 | F96: =SA34e!F155 -> 0 | G96: =SA34e!G155 -> 0 | H96: =SA34e!H155 -> 0 | I96: =SA34e!I155 -> 0 | J96: =SA34e!J155 -> 0 | K96: =SA34e!K155 -> 0
A97: Transport Assets | C97: =SA34e!C158 -> 0 | D97: =SA34e!D158 -> 0 | E97: =SA34e!E158 -> 0 | F97: =SA34e!F158 -> 0 | G97: =SA34e!G158 -> 0 | H97: =SA34e!H158 -> 0 | I97: =SA34e!I158 -> 0 | J97: =SA34e!J158 -> 0 | K97: =SA34e!K158 -> 0
A98: Land | C98: =SA34e!C161 -> 0 | D98: =SA34e!D161 -> 0 | E98: =SA34e!E161 -> 0 | F98: =SA34e!F161 -> 0 | G98: =SA34e!G161 -> 0 | H98: =SA34e!H161 -> 0 | I98: =SA34e!I161 -> 0 | J98: =SA34e!J161 -> 0 | K98: =SA34e!K161 -> 0
A99: Zoo's, Marine and Non-biological Animals | C99: =SA34e!C164 -> 0 | D99: =SA34e!D164 -> 0 | E99: =SA34e!E164 -> 0 | F99: =SA34e!F164 -> 0 | G99: =SA34e!G164 -> 0 | H99: =SA34e!H164 -> 0 | I99: =SA34e!I164 -> 0 | J99: =SA34e!J164 -> 0 | K99: =SA34e!K164 -> 0
A101: Total Capital Expenditure | B101: 4 | C101: =+C5+C37+C69 -> 126531358 | D101: =+D5+D37+D69 -> 103482439 | E101: 190258111.3 | F101: 130973034 | G101: 161492943 | H101: 161492943 | I101: 130857450 | J101: 160103800 | K101: 176675282
A102: Roads Infrastructure | C102: =+C6+C38+C70 -> 6981726 | D102: =+D6+D38+D70 -> 53816542 | E102: 94744924.03 | F102: 90438034 | G102: 103925054 | H102: 103925054 | I102: 93253950 | J102: 137903800 | K102: 113990186
A103: Storm water Infrastructure | C103: =+C7+C39+C71 -> 0 | D103: 0 | E103: 561967 | F103: 0 | G103: 2000000 | H103: 2000000 | I103: 3500000 | J103: 0 | K103: 4
A104: Electrical Infrastructure | C104: 13444078 | D104: 34296394 | E104: 59515780.39 | F104: 30000000 | G104: 36592491 | H104: 36592491 | I104: 10600000 | J104: 10000000 | K104: 10000040
A105: Water Supply Infrastructure | C105: 0 | D105: 0 | E105: 0 | F105: 0 | G105: 0 | H105: 0 | I105: 0 | J105: 0 | K105: 0
A106: Sanitation Infrastructure | C106: 0 | D106: 0 | E106: 0 | F106: 0 | G106: 0 | H106: 0 | I106: 0 | J106: 0 | K106: 0
A107: Solid Waste Infrastructure | C107: 0 | D107: 1247321 | E107: 0 | F107: 0 | G107: 0 | H107: 0 | I107: 0 | J107: 0 | K107: 0
A108: Rail Infrastructure | C108: 0 | D108: 0 | E108: 8150000.01 | F108: 0 | G108: 5451116 | H108: 5451116 | I108: 0 | J108: 0 | K108: 15
A109: Coastal Infrastructure | C109: 826160 | D109: 0 | E109: 0 | F109: 0 | G109: 0 | H109: 0 | I109: 0 | J109: 0 | K109: 0
A110: Information and Communication Infrastructure | C110: 0 | D110: 0 | E110: 0 | F110: 0 | G110: 0 | H110: 0 | I110: 2800000 | J110: 4000000 | K110: 4000000
A111: Infrastructure | C111: =SUM(C102:C110) -> 21251964 | D111: =SUM(D102:D110) -> 89360257 | E111: 162972671.4 | F111: 120438034 | G111: 147968661 | H111: 147968661 | I111: 110153950 | J111: 151903800 | K111: 127990245
A112: Community Facilities | C112: =+C16+C48+C80 -> 0 | D112: =+D16+D48+D80 -> 0 | E112: 6119900 | F112: 0 | G112: 0 | H112: 0 | I112: 3000000 | J112: 0 | K112: 19250002
A113: Sport and Recreation Facilities | C113: =+C17+C49+C81 -> 104729527 | D113: =+D17+D49+D81 -> 0 | E113: 0 | F113: 0 | G113: 0 | H113: 0 | I113: 0 | J113: 0 | K113: 11000001
A114: Community Assets | C114: =SUM(C112:C113) -> 104729527 | D114: =SUM(D112:D113) -> 0 | E114: 6119900 | F114: 0 | G114: 0 | H114: 0 | I114: 3000000 | J114: 0 | K114: 30250003
A115: Heritage Assets | C115: =+C19+C51+C83 -> 0 | D115: =+D19+D51+D83 -> 0 | E115: 0 | F115: 0 | G115: 0 | H115: 0 | I115: 0 | J115: 0 | K115: 0
A116: Revenue Generating | C116: =+C20+C52+C84 -> 0 | D116: =+D20+D52+D84 -> 0 | E116: 0 | F116: 0 | G116: 0 | H116: 0 | I116: 0 | J116: 0 | K116: 0
A117: Non-revenue Generating | C117: =+C21+C53+C85 -> 0 | D117: =+D21+D53+D85 -> 0 | E117: 0 | F117: 0 | G117: 0 | H117: 0 | I117: 0 | J117: 0 | K117: 0
A118: Investment properties | C118: =SUM(C116:C117) -> 0 | D118: =SUM(D116:D117) -> 0 | E118: 0 | F118: 0 | G118: 0 | H118: 0 | I118: 0 | J118: 0 | K118: 0
A119: Operational Buildings | C119: =+C23+C55+C87 -> 0 | D119: =+D23+D55+D87 -> 0 | E119: 8831923.57 | F119: 3800000 | G119: 4419990 | H119: 4419990 | I119: 5500000 | J119: 800000 | K119: 13100005
A120: Housing | C120: =+C24+C56+C88 -> 0 | D120: =+D24+D56+D88 -> 0 | E120: 0 | F120: 0 | G120: 400000 | H120: 400000 | I120: 0 | J120: 0 | K120: 2
A121: Other Assets | C121: =SUM(C119:C120) -> 0 | D121: 0 | E121: 8831923.57 | F121: 3800000 | G121: 4819990 | H121: 4819990 | I121: 5500000 | J121: 800000 | K121: 13100007
A122: Biological or Cultivated Assets | C122: =+C26+C58+C90 -> 0 | D122: =+D26+D58+D90 -> 0 | E122: 0 | F122: 0 | G122: 0 | H122: 0 | I122: 0 | J122: 0 | K122: 0
A123: Servitudes | C123: =+C27+C59+C91 -> 0 | D123: =+D27+D59+D91 -> 0 | E123: 0 | F123: 0 | G123: 0 | H123: 0 | I123: 0 | J123: 0 | K123: 0
A124: Licences and Rights | C124: =+C28+C60+C92 -> 0 | D124: =+D28+D60+D92 -> 0 | E124: 0 | F124: 0 | G124: 0 | H124: 0 | I124: 0 | J124: 0 | K124: 0
A125: Intangible Assets | C125: =SUM(C123:C124) -> 0 | D125: =SUM(D123:D124) -> 0 | E125: 0 | F125: 0 | G125: 0 | H125: 0 | I125: 0 | J125: 0 | K125: 0
A126: Computer Equipment | C126: =+C30+C62+C94 -> 0 | D126: =+D30+D62+D94 -> 0 | E126: 264520.47 | F126: 0 | G126: 0 | H126: 0 | I126: 333500 | J126: 0 | K126: 235000
A127: Furniture and Office Equipment | C127: =+C31+C63+C95 -> 549867 | D127: 10276400 | E127: 494131.63 | F127: 735000 | G127: 735000 | H127: 735000 | I127: 700000 | J127: 0 | K127: 300003
A128: Machinery and Equipment | C128: 0 | D128: 345882 | E128: 11574964.24 | F128: 1000000 | G128: 2969292 | H128: 2969292 | I128: 1350000 | J128: 0 | K128: 500022
A129: Transport Assets | C129: 0 | D129: 3499900 | E129: 0 | F129: 5000000 | G129: 5000000 | H129: 5000000 | I129: 9820000 | J129: 7400000 | K129: 4300002
A130: Land | C130: 0 | D130: 0 | E130: 0 | F130: 0 | G130: 0 | H130: 0 | I130: 0 | J130: 0 | K130: 0
A131: Zoo's, Marine and Non-biological Animals | C131: 0 | D131: 0 | E131: 0 | F131: 0 | G131: 0 | H131: 0 | I131: 0 | J131: 0 | K131: 0
A132: TOTAL CAPITAL EXPENDITURE - Asset class | C132: =+C5+C37+C69 -> 126531358 | D132: =+D5+D37+D69 -> 103482439 | E132: 190258111.3 | F132: 130973034 | G132: 161492943 | H132: 161492943 | I132: 130857450 | J132: 160103800 | K132: 176675282
A134: ASSET REGISTER SUMMARY - PPE (WDV) | B134: 5 | C134: =C144+C147+C148+C151+C154+C155+C158+C159+C160+C161+C162+C163+C164 -> 1669489042 | D134: =D144+D147+D148+D151+D154+D155+D158+D159+D160+D161+D162+D163+D164 -> 1639850190 | E134: 1569928216 | F134: 1955535988 | G134: 1982055911 | H134: 1982055911 | I134: 2802941632 | J134: 3314285367 | K134: 3517263679
A135: Roads Infrastructure | C135: 498474762.5 | D135: 53816542 | E135: 472530830.6 | F135: 838381680 | G135: 851732710 | H135: 851732710 | I135: 931129082 | J135: 1350903869 | K135: 1399770259
A136: Storm water Infrastructure | C136: 54381993.53 | D136: 0 | E136: 52562323.44 | F136: 0 | G136: 0 | H136: 0 | I136: 104000712 | J136: 110240755 | K136: 116855202
A137: Electrical Infrastructure | C137: 503442680.6 | D137: 34296394 | E137: 511502732.6 | F137: 602282967 | G137: 604899399 | H137: 604899399 | I137: 949093933 | J137: 1004843712 | K137: 1064571550
A138: Water Supply Infrastructure | C138: 79145.8 | D138: 0 | E138: 59345.8 | F138: 0 | G138: 0 | H138: 0 | I138: 0 | J138: 0 | K138: 0
A139: Sanitation Infrastructure | C139: 0 | D139: 0 | E139: 0 | F139: 0 | G139: 0 | H139: 0 | I139: 0 | J139: 0 | K139: 0
A140: Solid Waste Infrastructure | C140: 45746571.54 | D140: 1247321 | E140: 44243157.14 | F140: 30034734 | G140: 30034740 | H140: 30034740 | I140: 63948812 | J140: 64076588 | K140: 67921967
A141: Rail Infrastructure | C141: 0 | D141: 0 | E141: 0 | F141: 0 | G141: 0 | H141: 0 | I141: 0 | J141: 0 | K141: 0
A142: Coastal Infrastructure | C142: 0 | D142: 0 | E142: 0 | F142: 0 | G142: 0 | H142: 0 | I142: 0 | J142: 0 | K142: 0
A143: Information and Communication Infrastructure | C143: 0 | D143: 0 | E143: 0 | F143: 20282668 | G143: 20282668 | H143: 20282668 | I143: 2800000 | J143: 4000000 | K143: 4000002
A144: Infrastructure | C144: =SUM(C135:C143) -> 1102125154 | D144: =SUM(D135:D143) -> 89360257 | E144: 1080898390 | F144: 1490982049 | G144: 1506949517 | H144: 1506949517 | I144: 2050972539 | J144: 2534064924 | K144: 2653118980
A147: Community Assets | C147: 157801501.3 | D147: 0 | E147: 152935240.3 | F147: 148473115 | G147: 148473104 | H147: 148473104 | I147: 185618468 | J147: 193575576 | K147: 235440115
A148: Heritage Assets | C148: 195000 | D148: 195000 | E148: 200958.15 | F148: 195000 | G148: 195000 | H148: 195000 | I148: 195000 | J148: 203190 | K148: 212130
A151: Investment properties | C151: 181377053 | D151: 181746803 | E151: 181586803.4 | F151: 187377053 | G151: 189377060 | H151: 189377060 | I151: 189377053 | J151: 197330889 | K151: 206013451
A154: Other Assets | C154: 209762284.5 | D154: 1353290811 | E154: 135962108.8 | F154: 1500000 | G154: 8047162 | H154: 8047162 | I154: 122678837 | J154: 125027166 | K154: 144797117
A155: Biological or Cultivated Assets | C155: 0 | D155: 0 | E155: 0 | F155: 0 | G155: 0 | H155: 0 | I155: 0 | J155: 0 | K155: 0
A158: Intangible Assets | C158: 1603468 | D158: 1135137 | E158: 744470 | F158: 1003005 | G158: 1002996 | H158: 1002996 | I158: 1003005 | J158: 1045131 | K158: 1091115
A159: Computer Equipment | C159: 2802472.81 | D159: 0 | E159: 1817728.17 | F159: 7494122 | G159: 7494120 | H159: 7494120 | I159: 1359986 | J159: 1094745 | K159: 1402100
A160: Furniture and Office Equipment | C160: 2530204.87 | D160: 10276400 | E160: 1370649.92 | F160: 1583545 | G160: 1583548 | H160: 1583548 | I160: 1523559 | J160: 897116 | K160: 1273307
A161: Machinery and Equipment | C161: 3824768.93 | D161: 345882 | E161: 8779851.13 | F161: 113058457 | G161: 114927752 | H161: 114927752 | I161: 1315194 | J161: 111521 | K161: 755707
A162: Transport Assets | C162: 7467134.71 | D162: 3499900 | E162: 5632016.93 | F162: 3869642 | G162: 4005652 | H162: 4005652 | I162: 13817598 | J162: 11749893 | K162: 9023328
A163: Land | C163: 0 | D163: 0 | E163: 0 | F163: 0 | G163: 0 | H163: 0 | I163: 235080393 | J163: 249185216 | K163: 264136329
A164: Zoo's, Marine and Non-biological Animals | C164: 0 | D164: 0 | E164: 0 | F164: 0 | G164: 0 | H164: 0 | I164: 0 | J164: 0 | K164: 0
A165: TOTAL ASSET REGISTER SUMMARY - PPE (WDV) | B165: 5 | C165: =C144+C147+C148+C151+C154+C155+C158+C159+C160+C161+C162+C163+C164 -> 1669489042 | D165: =D144+D147+D148+D151+D154+D155+D158+D159+D160+D161+D162+D163+D164 -> 1639850190 | E165: 1569928216 | F165: 1955535988 | G165: 1982055911 | H165: 1982055911 | I165: 2802941632 | J165: 3314285367 | K165: 3517263679
A167: EXPENDITURE OTHER ITEMS | C167: =SUM(C168:C169) -> 189648153.5 | D167: =SUM(D168:D169) -> 235750336.2 | E167: 134481916.2 | F167: 189211892 | G167: 198937892 | H167: 198937892 | I167: 267333206 | J167: 279017139 | K167: 291954748
A168: Depreciation | B168: 7 | C168: =SA34d!C167 -> 130493937.2 | D168: =SA34d!D167 -> 128241991.2 | E168: =SA34d!E167 -> 98378041.76 | F168: =SA34d!F167 -> 132970807 | G168: =SA34d!G167 -> 132970807 | H168: =SA34d!H167 -> 132970807 | I168: =SA34d!I167 -> 129972562 | J168: =SA34d!J167 -> 135431430 | K168: =SA34d!K167 -> 141390421
A169: Repairs and Maintenance by Asset Class | B169: 3 | C169: =C179+C182+C183+C186+C189+C190+SUM(C193:C199) -> 59154216.31 | D169: =D179+D182+D183+D186+D189+D190+SUM(D193:D199) -> 107508345 | E169: 36103874.4 | F169: 56241085 | G169: 65967085 | H169: 65967085 | I169: 137360644 | J169: 143585709 | K169: 150564327
A170: Roads Infrastructure | C170: =SA34c!C7 -> 1544771 | D170: =SA34c!D7 -> 33306052 | E170: =SA34c!E7 -> 12390863.79 | F170: =SA34c!F7 -> 13750000 | G170: =SA34c!G7 -> 13355000 | H170: =SA34c!H7 -> 13355000 | I170: =SA34c!I7 -> 81815575 | J170: =SA34c!J7 -> 85801946 | K170: =SA34c!K7 -> 90336770
A171: Storm water Infrastructure | C171: =SA34c!C12 -> 0 | D171: =SA34c!D12 -> 0 | E171: =SA34c!E12 -> 574093.92 | F171: =SA34c!F12 -> 1500000 | G171: =SA34c!G12 -> 1500000 | H171: =SA34c!H12 -> 1500000 | I171: =SA34c!I12 -> 1500000 | J171: =SA34c!J12 -> 1563000 | K171: =SA34c!K12 -> 1631772
A172: Electrical Infrastructure | C172: =SA34c!C16 -> 887639 | D172: =SA34c!D16 -> 10019092 | E172: =SA34c!E16 -> 9124807.39 | F172: =SA34c!F16 -> 16852640 | G172: =SA34c!G16 -> 24954640 | H172: =SA34c!H16 -> 24954640 | I172: =SA34c!I16 -> 26094640 | J172: =SA34c!J16 -> 27190620 | K172: =SA34c!K16 -> 28387007
A173: Water Supply Infrastructure | C173: =SA34c!C26 -> 0 | D173: =SA34c!D26 -> 0 | E173: =SA34c!E26 -> 0 | F173: =SA34c!F26 -> 0 | G173: =SA34c!G26 -> 0 | H173: =SA34c!H26 -> 0 | I173: =SA34c!I26 -> 0 | J173: =SA34c!J26 -> 0 | K173: =SA34c!K26 -> 0
A174: Sanitation Infrastructure | C174: =SA34c!C37 -> 0 | D174: =SA34c!D37 -> 0 | E174: =SA34c!E37 -> 0 | F174: =SA34c!F37 -> 0 | G174: =SA34c!G37 -> 0 | H174: =SA34c!H37 -> 0 | I174: =SA34c!I37 -> 0 | J174: =SA34c!J37 -> 0 | K174: =SA34c!K37 -> 0
A175: Solid Waste Infrastructure | C175: =SA34c!C44 -> 0 | D175: =SA34c!D44 -> 0 | E175: =SA34c!E44 -> 0 | F175: =SA34c!F44 -> 9900 | G175: =SA34c!G44 -> 9900 | H175: =SA34c!H44 -> 9900 | I175: =SA34c!I44 -> 9900 | J175: =SA34c!J44 -> 10316 | K175: =SA34c!K44 -> 10770
A176: Rail Infrastructure | C176: =SA34c!C52 -> 30868923.19 | D176: =SA34c!D52 -> 513360 | E176: =SA34c!E52 -> 0 | F176: =SA34c!F52 -> 296000 | G176: =SA34c!G52 -> 296000 | H176: =SA34c!H52 -> 296000 | I176: =SA34c!I52 -> 296000 | J176: =SA34c!J52 -> 308432 | K176: =SA34c!K52 -> 322004
A177: Coastal Infrastructure | C177: =SA34c!C62 -> 0 | D177: =SA34c!D62 -> 0 | E177: =SA34c!E62 -> 0 | F177: =SA34c!F62 -> 0 | G177: =SA34c!G62 -> 0 | H177: =SA34c!H62 -> 0 | I177: =SA34c!I62 -> 0 | J177: =SA34c!J62 -> 0 | K177: =SA34c!K62 -> 0
A178: Information and Communication Infrastructure | C178: =SA34c!C68 -> 0 | D178: =SA34c!D68 -> 0 | E178: =SA34c!E68 -> 0 | F178: =SA34c!F68 -> 0 | G178: =SA34c!G68 -> 0 | H178: =SA34c!H68 -> 0 | I178: =SA34c!I68 -> 0 | J178: =SA34c!J68 -> 0 | K178: =SA34c!K68 -> 0
A179: Infrastructure | C179: =SUM(C170:C178) -> 33301333.19 | D179: =SUM(D170:D178) -> 43838504 | E179: 22089765.1 | F179: 32408540 | G179: 40115540 | H179: 40115540 | I179: 109716115 | J179: 114874314 | K179: 120688323
A180: Community Facilities | C180: =SA34c!C75 -> 0 | D180: =SA34c!D75 -> 14902 | E180: =SA34c!E75 -> 0 | F180: =SA34c!F75 -> 0 | G180: =SA34c!G75 -> 0 | H180: =SA34c!H75 -> 0 | I180: =SA34c!I75 -> 0 | J180: =SA34c!J75 -> 0 | K180: =SA34c!K75 -> 0
A181: Sport and Recreation Facilities | C181: =SA34c!C98 -> 0 | D181: =SA34c!D98 -> 0 | E181: =SA34c!E98 -> 0 | F181: =SA34c!F98 -> 0 | G181: =SA34c!G98 -> 0 | H181: =SA34c!H98 -> 0 | I181: =SA34c!I98 -> 0 | J181: =SA34c!J98 -> 0 | K181: =SA34c!K98 -> 0
A182: Community Assets | C182: =SUM(C180:C181) -> 0 | D182: 14902 | E182: 0 | F182: 0 | G182: 0 | H182: 0 | I182: 0 | J182: 0 | K182: 0
A183: Heritage Assets | C183: =SA34c!C103 -> 0 | D183: =SA34c!D103 -> 0 | E183: =SA34c!E103 -> 0 | F183: =SA34c!F103 -> 0 | G183: =SA34c!G103 -> 0 | H183: =SA34c!H103 -> 0 | I183: =SA34c!I103 -> 0 | J183: =SA34c!J103 -> 0 | K183: =SA34c!K103 -> 0
A184: Revenue Generating | C184: =SA34c!C111 -> 0 | D184: =SA34c!D111 -> 0 | E184: =SA34c!E111 -> 0 | F184: =SA34c!F111 -> 0 | G184: =SA34c!G111 -> 0 | H184: =SA34c!H111 -> 0 | I184: =SA34c!I111 -> 0 | J184: =SA34c!J111 -> 0 | K184: =SA34c!K111 -> 0
A185: Non-revenue Generating | C185: =SA34c!C114 -> 0 | D185: =SA34c!D114 -> 0 | E185: =SA34c!E114 -> 0 | F185: =SA34c!F114 -> 0 | G185: =SA34c!G114 -> 0 | H185: =SA34c!H114 -> 0 | I185: =SA34c!I114 -> 0 | J185: =SA34c!J114 -> 0 | K185: =SA34c!K114 -> 0
A186: Investment properties | C186: =SUM(C184:C185) -> 0 | D186: 0 | E186: 0 | F186: 0 | G186: 0 | H186: 0 | I186: 0 | J186: 0 | K186: 0
A187: Operational Buildings | C187: =SA34c!C119 -> 17597569.62 | D187: =SA34c!D119 -> 2800941 | E187: =SA34c!E119 -> 1563844.64 | F187: =SA34c!F119 -> 1363363 | G187: =SA34c!G119 -> 2233363 | H187: =SA34c!H119 -> 2233363 | I187: =SA34c!I119 -> 1663363 | J187: =SA34c!J119 -> 1733231 | K187: =SA34c!K119 -> 1809496
A188: Housing | C188: =SA34c!C131 -> 0 | D188: =SA34c!D131 -> 0 | E188: =SA34c!E131 -> 0 | F188: =SA34c!F131 -> 0 | G188: =SA34c!G131 -> 0 | H188: =SA34c!H131 -> 0 | I188: =SA34c!I131 -> 0 | J188: =SA34c!J131 -> 0 | K188: =SA34c!K131 -> 0
A189: Other Assets | C189: =SUM(C187:C188) -> 17597569.62 | D189: 2800941 | E189: 1563844.64 | F189: 1363363 | G189: 2233363 | H189: 2233363 | I189: 1663363 | J189: 1733231 | K189: 1809496
A190: Biological or Cultivated Assets | C190: =SA34c!C136 -> 0 | D190: =SA34c!D136 -> 0 | E190: =SA34c!E136 -> 0 | F190: =SA34c!F136 -> 0 | G190: =SA34c!G136 -> 0 | H190: =SA34c!H136 -> 0 | I190: =SA34c!I136 -> 0 | J190: =SA34c!J136 -> 0 | K190: =SA34c!K136 -> 0
A191: Servitudes | C191: =SA34c!C140 -> 0 | D191: =SA34c!D140 -> 0 | E191: =SA34c!E140 -> 0 | F191: =SA34c!F140 -> 0 | G191: =SA34c!G140 -> 0 | H191: =SA34c!H140 -> 0 | I191: =SA34c!I140 -> 0 | J191: =SA34c!J140 -> 0 | K191: =SA34c!K140 -> 0
A192: Licences and Rights | C192: =SA34c!C141 -> 0 | D192: =SA34c!D141 -> 0 | E192: =SA34c!E141 -> 0 | F192: =SA34c!F141 -> 0 | G192: =SA34c!G141 -> 0 | H192: =SA34c!H141 -> 0 | I192: =SA34c!I141 -> 0 | J192: =SA34c!J141 -> 0 | K192: =SA34c!K141 -> 0
A193: Intangible Assets | C193: =SUM(C191:C192) -> 0 | D193: 0 | E193: 0 | F193: 0 | G193: 0 | H193: 0 | I193: 0 | J193: 0 | K193: 0
A194: Computer Equipment | C194: =SA34c!C149 -> 1427860 | D194: =SA34c!D149 -> 15136449 | E194: =SA34c!E149 -> 232524.87 | F194: =SA34c!F149 -> 45000 | G194: =SA34c!G149 -> 899000 | H194: =SA34c!H149 -> 899000 | I194: =SA34c!I149 -> 545000 | J194: =SA34c!J149 -> 567890 | K194: =SA34c!K149 -> 592878
A195: Furniture and Office Equipment | C195: =SA34c!C152 -> 149 | D195: =SA34c!D152 -> 79169 | E195: =SA34c!E152 -> 1042652.61 | F195: =SA34c!F152 -> 1099449 | G195: =SA34c!G152 -> 1194449 | H195: =SA34c!H152 -> 1194449 | I195: =SA34c!I152 -> 1119622 | J195: =SA34c!J152 -> 1165822 | K195: =SA34c!K152 -> 1216261
A196: Machinery and Equipment | C196: =SA34c!C155 -> 14209 | D196: =SA34c!D155 -> 69927 | E196: =SA34c!E155 -> 447826.82 | F196: =SA34c!F155 -> 705075 | G196: =SA34c!G155 -> 895075 | H196: =SA34c!H155 -> 895075 | I196: =SA34c!I155 -> 2929134 | J196: =SA34c!J155 -> 2958767 | K196: =SA34c!K155 -> 2991108
A197: Transport Assets | C197: =SA34c!C158 -> 6813095.5 | D197: =SA34c!D158 -> 45568453 | E197: =SA34c!E158 -> 10727260.36 | F197: =SA34c!F158 -> 20619658 | G197: =SA34c!G158 -> 20629658 | H197: =SA34c!H158 -> 20629658 | I197: =SA34c!I158 -> 21387410 | J197: =SA34c!J158 -> 22285685 | K197: =SA34c!K158 -> 23266261
A198: Land | C198: =SA34c!C161 -> 0 | D198: =SA34c!D161 -> 0 | E198: =SA34c!E161 -> 0 | F198: =SA34c!F161 -> 0 | G198: =SA34c!G161 -> 0 | H198: =SA34c!H161 -> 0 | I198: =SA34c!I161 -> 0 | J198: =SA34c!J161 -> 0 | K198: =SA34c!K161 -> 0
A199: Zoo's, Marine and Non-biological Animals | C199: =SA34c!C164 -> 0 | D199: =SA34c!D164 -> 0 | E199: =SA34c!E164 -> 0 | F199: =SA34c!F164 -> 0 | G199: =SA34c!G164 -> 0 | H199: =SA34c!H164 -> 0 | I199: =SA34c!I164 -> 0 | J199: =SA34c!J164 -> 0 | K199: =SA34c!K164 -> 0
A201: TOTAL EXPENDITURE OTHER ITEMS | C201: =SUM(C168:C169) -> 189648153.5 | D201: 235750336.2 | E201: 134481916.2 | F201: 189211892 | G201: 198937892 | H201: 198937892 | I201: 267333206 | J201: 279017139 | K201: 291954748
A203: Renewal and upgrading of Existing Assets as % of total capex | C203: =IF(ISERROR((C37+C69)/C132),0,((C37+C69)/C132)) -> 0.785289351 | D203: =IF(ISERROR((D37+D69)/D132),0,((D37+D69)/D132)) -> 0.1694162813 | E203: 0.4325824927 | F203: 0.8164889423 | G203: 0.7799808627 | H203: 0.7799808627 | I203: 0.8035763344 | J203: 0.8600907661 | K203: 0.8116031138
A204: Renewal and upgrading of Existing Assets as % of deprecn | C204: =IF(ISERROR((C37+C69)/C168),0,((C37+C69)/C168)) -> 0.7614432527 | D204: =IF(ISERROR((D37+D69)/D168),0,((D37+D69)/D168)) -> 0.1367072504 | E204: 0.836592461 | F204: 0.8042218921 | G204: 0.9472861588 | H204: 0.9472861588 | I204: 0.8090472972 | J204: 1.016778749 | K204: 1.01414373
A205: R&M as a % of PPE | C205: =IF(ISERROR(ROUND(C169/'A6-FinPos'!C19,3)),0,(ROUND(C169/'A6-FinPos'!C19,3))) -> 0.04 | D205: =IF(ISERROR(ROUND(D169/'A6-FinPos'!D19,3)),0,(ROUND(D169/'A6-FinPos'!D19,3))) -> 0.074 | E205: =IF(ISERROR(ROUND(E169/'A6-FinPos'!E19,3)),0,(ROUND(E169/'A6-FinPos'!E19,3))) -> 0.024 | F205: =IF(ISERROR(ROUND(F169/'A6-FinPos'!F19,3)),0,(ROUND(F169/'A6-FinPos'!F19,3))) -> 0.032 | G205: =IF(ISERROR(ROUND(G169/'A6-FinPos'!G19,3)),0,(ROUND(G169/'A6-FinPos'!G19,3))) -> 0.037 | H205: =IF(ISERROR(ROUND(H169/'A6-FinPos'!H19,3)),0,(ROUND(H169/'A6-FinPos'!H19,3))) -> 0.037 | I205: =IF(ISERROR(ROUND(I169/'A6-FinPos'!J19,3)),0,(ROUND(I169/'A6-FinPos'!J19,3))) -> 0.053 | J205: =IF(ISERROR(ROUND(J169/'A6-FinPos'!K19,3)),0,(ROUND(J169/'A6-FinPos'!K19,3))) -> 0.046 | K205: =IF(ISERROR(ROUND(K169/'A6-FinPos'!L19,3)),0,(ROUND(K169/'A6-FinPos'!L19,3))) -> 0.045
A206: Renewal and upgrading and R&M as a % of PPE | C206: =IF(ISERROR(ROUND((C37+C69+C169)/C165,2)),0,(ROUND((C37+C69+C169)/C165,2))) -> 0.09 | D206: =IF(ISERROR(ROUND((D37+D69+D169)/D165,2)),0,(ROUND((D37+D69+D169)/D165,2))) -> 0.08 | E206: 0.08 | F206: 0.08 | G206: 0.1 | H206: 0.1 | I206: 0.09 | J206: 0.08 | K206: 0.08
A208: =head27a -> References
A209: 1. Detail of new assets provided in Table SA34a
A210: 2. Detail of renewal of existing assets provided in Table SA34b
A211: 3. Detail of Repairs and Maintenance by Asset Class provided in Table SA34c
A212: 4. Must reconcile to total capital expenditure on Budgeted Capital Expenditure
A213: 5. Must reconcile to 'Budgeted Financial Position' (written down value)
A214: 6. Detail of upgrading of existing assets provided in Table SA34e
A215: 7. Detail of depreciation provided in Table SA34d
A217: Check balance to A6 | C217: =C165-'A6-FinPos'!D17-'A6-FinPos'!D19-'A6-FinPos'!D20-'A6-FinPos'!D21-'A6-FinPos'!D22-C148 -> 29638852.03 | D217: =D165-'A6-FinPos'!E17-'A6-FinPos'!E19-'A6-FinPos'!E20-'A6-FinPos'!E21-'A6-FinPos'!E22-D148 -> -29449456.01 | E217: =E165-'A6-FinPos'!F17-'A6-FinPos'!F19-'A6-FinPos'!F20-'A6-FinPos'!F21-'A6-FinPos'!F22-E148 -> -385613729.8 | F217: =F165-'A6-FinPos'!G17-'A6-FinPos'!G19-'A6-FinPos'!G20-'A6-FinPos'!G21-'A6-FinPos'!G22-F148 -> -30519923 | G217: =G165-'A6-FinPos'!H17-'A6-FinPos'!H19-'A6-FinPos'!H20-'A6-FinPos'!H21-'A6-FinPos'!H22-G148 -> -4000000 | H217: =H165-'A6-FinPos'!I17-'A6-FinPos'!I19-'A6-FinPos'!I20-'A6-FinPos'!I21-'A6-FinPos'!I22-H148 -> -4000000 | I217: =I165-'A6-FinPos'!J17-'A6-FinPos'!J19-'A6-FinPos'!J20-'A6-FinPos'!J21-'A6-FinPos'!J22-I148 -> 0 | J217: =J165-'A6-FinPos'!K17-'A6-FinPos'!K19-'A6-FinPos'!K20-'A6-FinPos'!K21-'A6-FinPos'!K22-J148 -> 0 | K217: =K165-'A6-FinPos'!L17-'A6-FinPos'!L19-'A6-FinPos'!L20-'A6-FinPos'!L21-'A6-FinPos'!L22-K148 -> -3

Sheet A10-SerDel
A1: =muni&" - "&Approve10 -> Choose name from list - Table A10 Basic service delivery measurement
A2: =desc -> Description | B2: =head27 -> Ref | C2: =head1b -> 2017/18 | D2: =head1A -> 2018/19 | E2: =Head1 -> 2019/20 | F2: =Head2 -> Current Year 2020/21 | I2: =Head3 -> 2021/22 Medium Term Revenue & Expenditure Framework
C3: =Head5A -> Outcome | D3: =Head5A -> Outcome | E3: =Head5A -> Outcome | F3: =Head6 -> Original Budget | G3: =Head7 -> Adjusted Budget | H3: =Head8 -> Full Year Forecast | I3: =Head9 -> Budget Year 2021/22 | J3: =Head10 -> Budget Year +1 2022/23 | K3: =Head11 -> Budget Year +2 2023/24
A4: Household service targets | B4: 1
A5: Water:
A6: Piped water inside dwelling | C6: 17793 | D6: 17793 | E6: 0 | F6: 17793 | G6: 17793 | H6: 17793 | I6: 17793 | J6: 17793 | K6: 17793
A7: Piped water inside yard (but not in dwelling) | C7: 34755 | D7: 34755 | E7: 0 | F7: 34755 | G7: 34755 | H7: 34755 | I7: 34755 | J7: 34755 | K7: 34755
A8: Using public tap (at least min.service level) | B8: 2 | C8: 17540 | D8: 17540 | E8: 0 | F8: 17540 | G8: 17540 | H8: 17540 | I8: 17540 | J8: 17540 | K8: 17540
A9: Other water supply (at least min.service level) | B9: 4 | C9: 25183 | D9: 25183 | E9: 0 | F9: 25183 | G9: 25183 | H9: 25183 | I9: 25183 | J9: 25183 | K9: 25183
A10: Minimum Service Level and Above sub-total | C10: 95271 | D10: 95271 | E10: 0 | F10: 95271 | G10: 95271 | H10: 95271 | I10: 95271 | J10: 95271 | K10: 95271
A11: Using public tap (< min.service level) | B11: 3 | C11: 23511 | D11: 23511 | E11: 0 | F11: 23511 | G11: 23511 | H11: 23511 | I11: 23511 | J11: 23511 | K11: 23511
A12: Other water supply (< min.service level) | B12: =B9 -> 4 | C12: 0 | D12: 0 | E12: 0 | F12: 0 | G12: 0 | H12: 0 | I12: 0 | J12: 0 | K12: 0
A13: No water supply | C13: 0 | D13: 0 | E13: 0 | F13: 0 | G13: 0 | H13: 0 | I13: 0 | J13: 0 | K13: 0
A14: Below Minimum Service Level sub-total | C14: 23511 | D14: 150561 | E14: 0 | F14: 150561 | G14: 150561 | H14: 150561 | I14: 23511 | J14: 23511 | K14: 23511
A15: Total number of households | B15: 5 | C15: 118782 | D15: 118782 | E15: 0 | F15: 118782 | G15: 118782 | H15: 118782 | I15: 118782 | J15: 118782 | K15: 118782
A16: Sanitation/sewerage:
A17: Flush toilet (connected to sewerage) | C17: 14480 | D17: 14480 | E17: 0 | F17: 14480 | G17: 14480 | H17: 14480 | I17: 14480 | J17: 14480 | K17: 14480
A18: Flush toilet (with septic tank) | C18: 284 | D18: 284 | E18: 0 | F18: 284 | G18: 284 | H18: 284 | I18: 284 | J18: 284 | K18: 284
A19: Chemical toilet | C19: 0 | D19: 0 | E19: 0 | F19: 0 | G19: 0 | H19: 0 | I19: 0 | J19: 0 | K19: 0
A20: Pit toilet (ventilated) | C20: 67104 | D20: 67104 | E20: 0 | F20: 67104 | G20: 67104 | H20: 67104 | I20: 67104 | J20: 67104 | K20: 67104
A21: Other toilet provisions (> min.service level) | C21: 0 | D21: 0 | E21: 0 | F21: 0 | G21: 0 | H21: 0 | I21: 0 | J21: 0 | K21: 0
A22: =$A$10 -> Minimum Service Level and Above sub-total | C22: 81868 | D22: 81868 | E22: 0 | F22: 81868 | G22: 81868 | H22: 81868 | I22: 81868 | J22: 81868 | K22: 81868
A23: Bucket toilet | C23: 0 | D23: 0 | E23: 0 | F23: 0 | G23: 0 | H23: 0 | I23: 0 | J23: 0 | K23: 0
A24: Other toilet provisions (< min.service level) | C24: 0 | D24: 0 | E24: 0 | F24: 0 | G24: 0 | H24: 0 | I24: 0 | J24: 0 | K24: 0
A25: No toilet provisions | C25: 27058 | D25: 27058 | E25: 0 | F25: 27058 | G25: 27058 | H25: 27058 | I25: 27058 | J25: 27058 | K25: 27058
A26: =$A$14 -> Below Minimum Service Level sub-total | C26: 27058 | D26: 150561 | E26: 0 | F26: 150561 | G26: 150561 | H26: 150561 | I26: 27058 | J26: 27058 | K26: 27058
A27: =$A$15 -> Total number of households | B27: =$B$15 -> 5 | C27: 108926 | D27: 108926 | E27: 0 | F27: 108926 | G27: 108926 | H27: 108926 | I27: 108926 | J27: 108926 | K27: 108926
A28: Energy:
A29: Electricity (at least min.service level) | C29: 12900 | D29: 13000 | E29: 0 | F29: 13200 | G29: 13200 | H29: 13200 | I29: 13200 | J29: 13500 | K29: 13500
A30: Electricity - prepaid (min.service level) | C30: 1200 | D30: 1350 | E30: 0 | F30: 1420 | G30: 1420 | H30: 1420 | I30: 1420 | J30: 1500 | K30: 1500
A31: =$A$10 -> Minimum Service Level and Above sub-total | C31: 14100 | D31: 14350 | E31: 0 | F31: 14620 | G31: 14620 | H31: 14620 | I31: 14620 | J31: 15000 | K31: 15000
A32: Electricity (< min.service level) | C32: 0 | D32: 0 | E32: 0 | F32: 0 | G32: 0 | H32: 0 | I32: 0 | J32: 0 | K32: 0
A33: Electricity - prepaid (< min. service level) | C33: 0 | D33: 0 | E33: 0 | F33: 0 | G33: 0 | H33: 0 | I33: 0 | J33: 0 | K33: 0
A34: Other energy sources | C34: 0 | D34: 0 | E34: 0 | F34: 0 | G34: 0 | H34: 0 | I34: 0 | J34: 0 | K34: 0
A35: =$A$14 -> Below Minimum Service Level sub-total | C35: 0 | D35: 150561 | E35: 0 | F35: 150561 | G35: 150561 | H35: 150561 | I35: 0 | J35: 0 | K35: 0
A36: =$A$15 -> Total number of households | B36: =$B$15 -> 5 | C36: 14100 | D36: 14350 | E36: 0 | F36: 14620 | G36: 14620 | H36: 14620 | I36: 14620 | J36: 15000 | K36: 15000
A37: Refuse:
A38: Removed at least once a week | C38: 8695 | D38: 8695 | E38: 0 | F38: 8695 | G38: 8695 | H38: 8695 | I38: 8695 | J38: 8695 | K38: 8695
A39: =$A$10 -> Minimum Service Level and Above sub-total | C39: 8695 | D39: 8695 | E39: 0 | F39: 8695 | G39: 8695 | H39: 8695 | I39: 200454 | J39: 200834 | K39: 200834
A40: Removed less frequently than once a week | C40: 47822 | D40: 47822 | E40: 0 | F40: 47822 | G40: 47822 | H40: 47822 | I40: 52170 | J40: 65000 | K40: 99992
A41: Using communal refuse dump | C41: 52170 | D41: 52170 | E41: 0 | F41: 52170 | G41: 52170 | H41: 52170 | I41: 47822 | J41: 34992 | K41: 0
A42: Using own refuse dump | C42: 0 | D42: 0 | E42: 0 | F42: 0 | G42: 0 | H42: 0 | I42: 0 | J42: 0 | K42: 0
A43: Other rubbish disposal | C43: 0 | D43: 0 | E43: 0 | F43: 0 | G43: 0 | H43: 0 | I43: 0 | J43: 0 | K43: 0
A44: No rubbish disposal | C44: 0 | D44: 0 | E44: 0 | F44: 0 | G44: 0 | H44: 0 | I44: 0 | J44: 0 | K44: 0
A45: =$A$14 -> Below Minimum Service Level sub-total | C45: 99992 | D45: 99992 | E45: 0 | F45: 99992 | G45: 99992 | H45: 99992 | I45: 150561 | J45: 150561 | K45: 150561
A46: =$A$15 -> Total number of households | B46: =$B$15 -> 5 | C46: 108687 | D46: 108687 | E46: 0 | F46: 108687 | G46: 108687 | H46: 108687 | I46: 351015 | J46: 351395 | K46: 351395
A48: Households receiving Free Basic Service | B48: 7
A49: Water (6 kilolitres per household per month) | C49: 0 | D49: 0 | E49: 0 | F49: 0 | G49: 0 | H49: 0 | I49: 0 | J49: 0 | K49: 0
A50: Sanitation (free minimum level service) | C50: 0 | D50: 0 | E50: 0 | F50: 0 | G50: 0 | H50: 0 | I50: 0 | J50: 0 | K50: 0
A51: Electricity/other energy (50kwh per household per month) | C51: 3500000 | D51: 0 | E51: 0 | F51: 4000000 | G51: 4000000 | H51: 4000000 | I51: 4000000 | J51: 4000000 | K51: 4000000
A52: Refuse (removed at least once a week) | C52: 1511000 | D52: 0 | E52: 0 | F52: 1300000 | G52: 1300000 | H52: 1300000 | I52: 1300000 | J52: 1300000 | K52: 1300000
A54: Cost of Free Basic Services provided - Formal Settlements (R'000) | B54: 8
A55: Water (6 kilolitres per indigent household per month) | C55: 0 | D55: 0 | E55: 0 | F55: 0 | G55: 0 | H55: 0 | I55: 0 | J55: 0 | K55: 0
A56: Sanitation (free sanitation service to indigent households) | C56: 0 | D56: 0 | E56: 0 | F56: 0 | G56: 0 | H56: 0 | I56: 0 | J56: 0 | K56: 0
A57: Electricity/other energy (50kwh per indigent household per month) | C57: 0 | D57: 0 | E57: 0 | F57: 0 | G57: 0 | H57: 0 | I57: 0 | J57: 0 | K57: 0
A58: Refuse (removed once a week for indigent households) | C58: 0 | D58: 0 | E58: 0 | F58: 0 | G58: 0 | H58: 0 | I58: 0 | J58: 0 | K58: 0
A59: Cost of Free Basic Services provided - Informal Formal Settlements (R'000) | C59: 0 | D59: 0 | E59: 0 | F59: 0 | G59: 0 | H59: 0 | I59: 0 | J59: 0 | K59: 0
A60: Total cost of FBS provided | C60: 0 | D60: 0 | E60: 0 | F60: 0 | G60: 0 | H60: 0 | I60: 0 | J60: 0 | K60: 0
A62: Highest level of free service provided per household
A63: Property rates (R value threshold) | C63: 0 | D63: 0 | E63: 0 | F63: 0 | G63: 0 | H63: 0 | I63: 0 | J63: 0 | K63: 0
A64: Water (kilolitres per household per month) | C64: 0 | D64: 0 | E64: 0 | F64: 0 | G64: 0 | H64: 0 | I64: 0 | J64: 0 | K64: 0
A65: Sanitation (kilolitres per household per month) | C65: 0 | D65: 0 | E65: 0 | F65: 0 | G65: 0 | H65: 0 | I65: 0 | J65: 0 | K65: 0
A66: Sanitation (Rand per household per month) | C66: 0 | D66: 0 | E66: 0 | F66: 0 | G66: 0 | H66: 0 | I66: 0 | J66: 0 | K66: 0
A67: Electricity (kwh per household per month) | C67: 0 | D67: 0 | E67: 0 | F67: 0 | G67: 0 | H67: 0 | I67: 0 | J67: 0 | K67: 0
A68: Refuse (average litres per week) | C68: 0 | D68: 0 | E68: 0 | F68: 0 | G68: 0 | H68: 0 | I68: 0 | J68: 0 | K68: 0
A69: Revenue cost of subsidised services provided (R'000) | B69: 9
A70: Property rates (tariff adjustment) ( impermissable values per section 17 of MPRA) | C70: 0 | D70: 0 | E70: 0 | F70: 0 | G70: 0 | H70: 0 | I70: 0 | J70: 0 | K70: 0
A71: Property rates exemptions, reductions and rebates and impermissable values in excess of section 17 of MPRA) | C71: 0 | D71: 0 | E71: 0 | F71: 0 | G71: 0 | H71: 0 | I71: 0 | J71: 0 | K71: 0
A72: Water (in excess of 6 kilolitres per indigent household per month) | C72: 0 | D72: 0 | E72: 0 | F72: 0 | G72: 0 | H72: 0 | I72: 0 | J72: 0 | K72: 0
A73: Sanitation (in excess of free sanitation service to indigent households) | C73: 0 | D73: 0 | E73: 0 | F73: 0 | G73: 0 | H73: 0 | I73: 0 | J73: 0 | K73: 0
A74: Electricity/other energy (in excess of 50 kwh per indigent household per month) | C74: 0 | D74: 0 | E74: 0 | F74: 0 | G74: 0 | H74: 0 | I74: 0 | J74: 0 | K74: 0
A75: Refuse (in excess of one removal a week for indigent households) | C75: 0 | D75: 0 | E75: 0 | F75: 0 | G75: 0 | H75: 0 | I75: 0 | J75: 0 | K75: 0
A76: Municipal Housing - rental rebates | C76: 0 | D76: 0 | E76: 0 | F76: 0 | G76: 0 | H76: 0 | I76: 0 | J76: 0 | K76: 0
A77: Housing - top structure subsidies | B77: 6 | C77: 0 | D77: 0 | E77: 0 | F77: 0 | G77: 0 | H77: 0 | I77: 0 | J77: 0 | K77: 0
A78: Other | C78: 0 | D78: 0 | E78: 0 | F78: 0 | G78: 0 | H78: 0 | I78: 0 | J78: 0 | K78: 0
A79: Total revenue cost of subsidised services provided | C79: 0 | D79: 0 | E79: 0 | F79: 0 | G79: 0 | H79: 0 | I79: 0 | J79: 0 | K79: 0
A80: =head27a -> References
A81: 1. Include services provided by another entity; e.g. Eskom
A82: 2. Stand distance <= 200m from dwelling
A83: 3. Stand distance > 200m from dwelling
A84: 4. Borehole, spring, rain-water tank etc.
A85: 5. Must agree to total number of households in municipal area (informal settlements receiving services must be included)
A86: 6. Include value of subsidy provided by municipality above provincial subsidy level
A87: 7. Show number of households receiving at least these levels of services completely free (informal settlements must be included)
A88: 8. Must reflect the cost to the municipality of providing the Free Basic Service
A89: 9. Reflect the cost to the municipality in terms of 'revenue foregone' of providing free services (note this will not equal 'Revenue Foregone' on SA1)

Sheet SA1
A1: =muni&" - "&TableA1 -> Choose name from list - Supporting Table SA1 Supportinging detail to 'Budgeted Financial Performance'
A2: =desc -> Description | B2: =head27 -> Ref | C2: =head1b -> 2017/18 | D2: =head1A -> 2018/19 | E2: =Head1 -> 2019/20 | F2: =Head2 -> Current Year 2020/21 | J2: =Head3 -> 2021/22 Medium Term Revenue & Expenditure Framework
C3: =Head5 -> Audited Outcome | D3: =Head5 -> Audited Outcome | E3: =Head5 -> Audited Outcome | F3: =Head6 -> Original Budget | G3: =Head7 -> Adjusted Budget | H3: =Head8 -> Full Year Forecast | I3: =Head5b -> Pre-audit outcome | J3: =Head9 -> Budget Year 2021/22 | K3: =Head10 -> Budget Year +1 2022/23 | L3: =Head11 -> Budget Year +2 2023/24
A4: R thousand
A5: REVENUE ITEMS:
A6: ='A4-FinPerf RE'!A5 -> Property rates | B6: 6
A7: Total Property Rates | C7: 137790730.6 | D7: 147139436 | E7: 151269813.8 | F7: 167500000 | G7: 167500000 | H7: 167500000 | I7: 167500000 | J7: 172500000 | K7: 179745000 | L7: 187653786
A8: Less Revenue Foregone (exemptions, reductions and rebates and impermissable values in excess of section 17 of MPRA) | C8: 38501208.27 | D8: 37975511 | E8: 36523293.59 | F8: 35000000 | G8: 35000000 | H8: 35000000 | I8: 35000000 | J8: 35000000 | K8: 36470000 | L8: 38074680
A9: Net Property Rates | C9: =C7-C8 -> 99289522.36 | D9: =D7-D8 -> 109163925 | E9: 114746520.2 | F9: 132500000 | G9: 132500000 | H9: 132500000 | I9: 132500000 | J9: 137500000 | K9: 143275000 | L9: 149579106
A11: ='A4-FinPerf RE'!A6 -> Service charges - electricity revenue | B11: 6
A12: ="Total "&A11 -> Total Service charges - electricity revenue | C12: 452023274 | D12: 449863851 | E12: 523323295.3 | F12: 575401000 | G12: 584943000 | H12: 584943000 | I12: 584943000 | J12: 674021250 | K12: 743580401 | L12: 808345676
A13: Less Revenue Foregone (in excess of 50 kwh per indigent household per month) | C13: 0 | D13: 0 | E13: 0 | F13: 0 | G13: 0 | H13: 0 | I13: 0 | J13: 200000 | K13: 208400 | L13: 217570
A14: Less Cost of Free Basis Services (50 kwh per indigent household per month) | C14: ='SA9'!E250 -> 0 | D14: ='SA9'!F250 -> 0 | E14: ='SA9'!G250 -> 0 | F14: ='SA9'!H250 -> 4200000 | G14: ='SA9'!I250 -> 4200000 | H14: ='SA9'!J250 -> 4200000 | J14: ='SA9'!K250 -> 4200000 | K14: ='SA9'!L250 -> 4376400 | L14: ='SA9'!M250 -> 4568963
A15: ="Net "& A11 -> Net Service charges - electricity revenue | C15: =C12-C13-C14 -> 452023274 | D15: =D12-D13-D14 -> 449863851 | E15: 523323295.3 | F15: 571201000 | G15: 580743000 | H15: 580743000 | I15: 584943000 | J15: 669621250 | K15: 738995601 | L15: 803559143
A17: ='A4-FinPerf RE'!A7 -> Service charges - water revenue | B17: 6
A18: ="Total "&A17 -> Total Service charges - water revenue | C18: 0 | D18: 0 | E18: 0 | F18: 0 | G18: 0 | H18: 0 | I18: 0 | J18: 0 | K18: 0 | L18: 4
A19: Less Revenue Foregone (in excess of 6 kilolitres per indigent household per month) | C19: 0 | D19: 0 | E19: 0 | F19: 0 | G19: 0 | H19: 0 | I19: 0 | J19: 0 | K19: 0 | L19: 0
A20: Less Cost of Free Basis Services (6 kilolitres per indigent household per month) | C20: ='SA9'!E262 -> 0 | D20: ='SA9'!F262 -> 0 | E20: ='SA9'!G262 -> 0 | F20: ='SA9'!H262 -> 0 | G20: ='SA9'!I262 -> 0 | H20: ='SA9'!J262 -> 0 | J20: ='SA9'!K262 -> 0 | K20: ='SA9'!L262 -> 0 | L20: ='SA9'!M262 -> 0
A21: ="Net "& A17 -> Net Service charges - water revenue | C21: =C18-C19-C20 -> 0 | D21: =D18-D19-D20 -> 0 | E21: 0 | F21: 0 | G21: 0 | H21: 0 | I21: 0 | J21: 0 | K21: 0 | L21: 4
A23: ='A4-FinPerf RE'!A8 -> Service charges - sanitation revenue
A24: ="Total "&A23 -> Total Service charges - sanitation revenue | C24: 0 | D24: 0 | E24: 0 | F24: 0 | G24: 0 | H24: 0 | I24: 0 | J24: 0 | K24: 0 | L24: 1
A25: Less Revenue Foregone (in excess of free sanitation service to indigent households) | C25: 0 | D25: 0 | E25: 0 | F25: 0 | G25: 0 | H25: 0 | I25: 0 | J25: 0 | K25: 0 | L25: 0
A26: Less Cost of Free Basis Services (free sanitation service to indigent households) | C26: ='SA9'!E274 -> 0 | D26: ='SA9'!F274 -> 0 | E26: ='SA9'!G274 -> 0 | F26: ='SA9'!H274 -> 0 | G26: ='SA9'!I274 -> 0 | H26: ='SA9'!J274 -> 0 | J26: ='SA9'!K274 -> 0 | K26: ='SA9'!L274 -> 0 | L26: ='SA9'!M274 -> 0
A27: ="Net "& A23 -> Net Service charges - sanitation revenue | C27: =C24-C25-C26 -> 0 | D27: =D24-D25-D26 -> 0 | E27: 0 | F27: 0 | G27: 0 | H27: 0 | I27: 0 | J27: 0 | K27: 0 | L27: 1
A29: ='A4-FinPerf RE'!A9 -> Service charges - refuse revenue | B29: 6
A30: Total refuse removal revenue | C30: 30990314 | D30: 37605220 | E30: 33128367.25 | F30: 36616132 | G30: 36616132 | H30: 36616132 | I30: 36616132 | J30: 37707361 | K30: 39291071 | L30: 41019880
A31: Total landfill revenue | C31: 0 | D31: 0 | E31: 0 | F31: 0 | G31: 0 | H31: 0 | I31: 0 | J31: 0 | K31: 0 | L31: 0
A32: Less Revenue Foregone (in excess of one removal a week to indigent households) | C32: 0 | D32: 0 | E32: 0 | F32: 0 | G32: 0 | H32: 0 | I32: 0 | J32: 600000 | K32: 625200 | L32: 652710
A33: Less Cost of Free Basis Services (removed once a week to indigent households) | C33: ='SA9'!E286 -> 0 | D33: ='SA9'!F286 -> 1162662.7 | E33: ='SA9'!G286 -> 0 | F33: ='SA9'!H286 -> 1200000 | G33: ='SA9'!I286 -> 1200000 | H33: ='SA9'!J286 -> 1200000 | J33: ='SA9'!K286 -> 1200000 | K33: ='SA9'!L286 -> 1250400 | L33: ='SA9'!M286 -> 1305419
A34: ="Net "& A29 -> Net Service charges - refuse revenue | C34: =SUM(C30:C31)-C32-C33 -> 30990314 | D34: =SUM(D30:D31)-D32-D33 -> 36442557.3 | E34: 33128367.25 | F34: 35416132 | G34: 35416132 | H34: 35416132 | I34: 36616132 | J34: 35907361 | K34: 37415471 | L34: 39061751
A36: Other Revenue by source
A37: Fuel Levy | C37: 0 | D37: 0 | E37: 0 | F37: 0 | G37: 0 | H37: 0 | I37: 0 | J37: 0 | K37: 0 | L37: 0
A38: Other Revenue | C38: 17574075.81 | D38: 12831601.86 | E38: 64521226.85 | F38: 6472573 | G38: 7702706 | H38: 7702706 | I38: 7702706 | J38: 6472576 | K38: 6744434 | L38: 7041199
A49: Total 'Other' Revenue | B49: 1 | C49: =SUM(C37:C38) -> 17574075.81 | D49: =SUM(D37:D38) -> 12831601.86 | E49: =SUM(E37:E38) -> 64521226.85 | F49: 6472573 | G49: 7702706 | H49: 7702706 | I49: 7702706 | J49: 6472576 | K49: 6744434 | L49: 7041199
A51: EXPENDITURE ITEMS:
A52: ='A4-FinPerf RE'!A24 -> Employee related costs
A53: Basic Salaries and Wages | B53: 2 | C53: 253888561 | D53: 123894842 | E53: 199973835.7 | F53: 215721318 | G53: 207665729 | H53: 207665729 | I53: 207665729 | J53: 219191026 | K53: 228397070 | L53: 238446544
A54: Pension and UIF Contributions | C54: 2425551 | D54: 27125020 | E54: 32516516.27 | F54: 40325244 | G54: 39166573 | H54: 39166573 | I54: 39166573 | J54: 41165060 | K54: 42894033 | L54: 44781368
A55: Medical Aid Contributions | C55: 1007527 | D55: 4485967 | E55: 8166005 | F55: 16901173 | G55: 15732036 | H55: 15732036 | I55: 15732036 | J55: 20622070 | K55: 21488213 | L55: 22433697
A56: Overtime | C56: 0 | D56: 0 | E56: 0 | F56: 0 | G56: 0 | H56: 0 | I56: 0 | J56: 0 | K56: 0 | L56: 1
A57: Performance Bonus | C57: 714863 | D57: 12454206 | E57: 15702057.63 | F57: 17310648 | G57: 17322648 | H57: 17322648 | I57: 17322648 | J57: 16192602 | K57: 16872710 | L57: 17615126
A58: Motor Vehicle Allowance | C58: 0 | D58: 0 | E58: 0 | F58: 0 | G58: 0 | H58: 0 | I58: 0 | J58: 0 | K58: 0 | L58: 1
A59: Cellphone Allowance | C59: 0 | D59: 0 | E59: 0 | F59: 0 | G59: 0 | H59: 0 | I59: 0 | J59: 0 | K59: 0 | L59: 1
A60: Housing Allowances | C60: 163097 | D60: 1722419 | E60: 1686100.63 | F60: 1813189 | G60: 1827949 | H60: 1827949 | I60: 1827949 | J60: 1435237 | K60: 1495538 | L60: 1561340
A61: Other benefits and allowances | C61: 2999296 | D61: 37169277 | E61: 44031158.66 | F61: 41285333 | G61: 45589969 | H61: 45589969 | I61: 45589969 | J61: 46293540 | K61: 48237923 | L61: 50360420
A62: Payments in lieu of leave | C62: 1049477 | D62: 7389140 | E62: 9038921.31 | F62: 12207214 | G62: 12334214 | H62: 12334214 | I62: 12334214 | J62: 4970531 | K62: 5179293 | L62: 5407230
A63: Long service awards | C63: 0 | D63: 25439 | E63: 0 | F63: 0 | G63: 0 | H63: 0 | I63: 0 | J63: 0 | K63: 0 | L63: 2
A64: Post-retirement benefit obligations | B64: 4 | C64: 0 | D64: 0 | E64: 0 | F64: 0 | G64: 0 | H64: 0 | I64: 0 | J64: 0 | K64: 0 | L64: 17
A65: sub-total | B65: 5 | C65: =SUM(C53:C64) -> 262248372 | D65: =SUM(D53:D64) -> 214266310 | E65: 311114595.2 | F65: 345564119 | G65: 339639118 | H65: 339639118 | I65: 339639118 | J65: 349870066 | K65: 364564780 | L65: 380605747
A66: Less: Employees costs capitalised to PPE | C66: -5373209 | D66: 0 | E66: 0 | F66: 0 | G66: 0 | H66: 0 | I66: 0 | J66: 0 | K66: 0 | L66: -2
A67: ="Total "&A52 -> Total Employee related costs | B67: 1 | C67: =C65-C66 -> 267621581 | D67: =D65-D66 -> 214266310 | E67: 311114595.2 | F67: 345564119 | G67: 339639118 | H67: 339639118 | I67: 339639118 | J67: 349870066 | K67: 364564780 | L67: 380605749
A78: ='A4-FinPerf RE'!A27 -> Depreciation & asset impairment
A79: Depreciation of Property, Plant & Equipment | C79: 130493937.2 | D79: 128241991.2 | E79: 98378041.76 | F79: 132970807 | G79: 132970807 | H79: 132970807 | I79: 132970807 | J79: 129379554 | K79: 134838422 | L79: 140797413
A80: Lease amortisation | C80: 0 | D80: 0 | E80: 0 | F80: 0 | G80: 0 | H80: 0 | I80: 0 | J80: 593008 | K80: 593008 | L80: 593008
A81: Capital asset impairment | C81: 0 | D81: 4399272.34 | E81: 9236673.15 | F81: 0 | G81: 0 | H81: 0 | I81: 0 | J81: 0 | K81: 0 | L81: 0
A83: ="Total "&LEFT(A78,35) -> Total Depreciation & asset impairment | B83: 1 | C83: =SUM(C79:C81) -> 130493937.2 | D83: =SUM(D79:D81) -> 132641263.5 | E83: 107614714.9 | F83: 132970807 | G83: 132970807 | H83: 132970807 | I83: 132970807 | J83: 129972562 | K83: 135431430 | L83: 141390421
A85: Bulk purchases - electricity
A86: Electricity bulk purchases | C86: 325455992 | D86: 348443870 | E86: 389694217.1 | F86: 406187500 | G86: 406187500 | H86: 406187500 | I86: 406187500 | J86: 456871250 | K86: 480289000 | L86: 523698000
C87: 0 | D87: 0 | E87: 0 | F87: 0 | G87: 0 | H87: 0 | I87: 0 | J87: 0 | K87: 0 | L87: 0
A88: Total bulk purchases | B88: 1 | C88: =SUM(C86:C87) -> 325455992 | D88: =SUM(D86:D87) -> 348443870 | E88: 389694217.1 | F88: 406187500 | G88: 406187500 | H88: 406187500 | I88: 406187500 | J88: 456871250 | K88: 480289000 | L88: 523698000
A90: Transfers and grants
A91: Cash transfers and grants | C91: ='SA21'!C32 -> 112420696.4 | D91: ='SA21'!D32 -> 40499741 | E91: ='SA21'!E32 -> 33708094.67 | F91: ='SA21'!F32 -> 30919000 | G91: ='SA21'!G32 -> 31351814 | H91: ='SA21'!H32 -> 31351814 | I91: ='SA21'!I32 -> 31351814 | J91: ='SA21'!J32 -> 32118000 | K91: ='SA21'!K32 -> 7871670 | L91: ='SA21'!L32 -> 8130053
A92: Non-cash transfers and grants | C92: ='SA21'!C63 -> 0 | D92: ='SA21'!D63 -> 16632404 | E92: ='SA21'!E63 -> 3279555.43 | F92: ='SA21'!F63 -> 0 | G92: ='SA21'!G63 -> 0 | H92: ='SA21'!H63 -> 0 | I92: ='SA21'!I63 -> 0 | J92: ='SA21'!J63 -> 0 | K92: ='SA21'!K63 -> 0 | L92: ='SA21'!L63 -> 0
A93: Total transfers and grants | B93: 1 | C93: =SUM(C91:C92) -> 112420696.4 | D93: =SUM(D91:D92) -> 57132145 | E93: 36987650.1 | F93: 30919000 | G93: 31351814 | H93: 31351814 | I93: 31351814 | J93: 32118000 | K93: 7871670 | L93: 8130053
A95: ='A4-FinPerf RE'!A31 -> Contracted services
A96: Outsourced Services | C96: 4078417 | D96: 45140912.55 | E96: 51959509.63 | F96: 60301540 | G96: 55911540 | H96: 55911540 | I96: 55911540 | J96: 59001540 | K96: 61479607 | L96: 64184727
A97: Consultants and Professional Services | C97: 43972130 | D97: 4910793 | E97: 6479885.16 | F97: 9214771 | G97: 6431771 | H97: 6431771 | I97: 6431771 | J97: 14564771 | K97: 15176493 | L97: 15844267
A98: Contractors | C98: 0 | D98: 28060 | E98: 814149.98 | F98: 2008898 | G98: 1358898 | H98: 1358898 | I98: 1358898 | J98: 1648898 | K98: 1718152 | L98: 1793762
A127: Total contracted services | C127: =SUM(C96:C98) -> 48050547 | D127: =SUM(D96:D98) -> 50079765.55 | E127: 59253544.77 | F127: 71525209 | G127: 63702209 | H127: 63702209 | I127: 63702209 | J127: 75215209 | K127: 78374252 | L127: 81822756
A129: Other Expenditure By Type
A130: Collection costs | C130: 218490.97 | D130: 1215179 | E130: 1181966.35 | F130: 1000000 | G130: 1000000 | H130: 1000000 | I130: 1000000 | J130: 1250000 | K130: 1302500 | L130: 1359812
A131: Contributions to 'other' provisions | C131: 0 | D131: 0 | E131: 0 | F131: 0 | G131: 0 | H131: 0 | I131: 0 | J131: 0 | K131: 0 | L131: 1
A133: Audit fees | C133: 0 | D133: 5780394 | E133: 6474173.21 | F133: 5591809 | G133: 5591809 | H133: 5591809 | I133: 5591809 | J133: 5591809 | K133: 5826665 | L133: 6083040
A136: General expenses | C136: 102382063.3 | D136: 109040113.6 | E136: 88088170.83 | F136: 121476022 | G136: 113619133 | H136: 113619133 | I136: 113619133 | J136: 113435659 | K136: 118200139 | L136: 123401053
A157: Total 'Other' Expenditure | B157: 1 | C157: =+C130+C131+C133+C136 -> 102600554.3 | D157: =+D130+D131+D133+D136 -> 116035686.6 | E157: 95744310.39 | F157: 128067831 | G157: 120210942 | H157: 120210942 | I157: 120210942 | J157: 120277468 | K157: 125329304 | L157: 130843906
A159: Repairs and Maintenance by Expenditure Item | B159: 8
A160: Employee related costs | C160: 0 | D160: 0 | E160: 0 | F160: 0 | G160: 0 | H160: 0 | I160: 0 | J160: 0 | K160: 0 | L160: 0
A161: Inventory Consumed (Project Maintenance) | C161: 59154216.31 | D161: 107508345 | E161: 36103874.4 | F161: 56241085 | G161: 65967085 | H161: 65967085 | I161: 65967085 | J161: 66950837 | K161: 69762831 | L161: 72832450
A162: Contracted Services | C162: 0 | D162: 0 | E162: 0 | F162: 0 | G162: 0 | H162: 0 | I162: 0 | J162: 0 | K162: 0 | L162: 0
A163: Other Expenditure | C163: 0 | D163: 0 | E163: 0 | F163: 0 | G163: 0 | H163: 0 | I163: 0 | J163: 0 | K163: 0 | L163: 1
A164: Total Repairs and Maintenance Expenditure | B164: 9 | C164: =SUM(C160:C163) -> 59154216.31 | D164: =SUM(D160:D163) -> 107508345 | E164: 36103874.4 | F164: 56241085 | G164: 65967085 | H164: 65967085 | I164: 65967085 | J164: 66950837 | K164: 69762831 | L164: 72832451
A166: Inventory Consumed
A167: Inventory Consumed - Water | C167: =-'SA3'!C29 -> 0 | D167: =-'SA3'!D29 -> 0 | E167: =-'SA3'!E29 -> 0 | F167: =-'SA3'!F29 -> 0 | G167: =-'SA3'!G29 -> 0 | H167: =-'SA3'!H29 -> 0 | I167: =-'SA3'!I29 -> 0 | J167: =-'SA3'!J29 -> 0 | K167: =-'SA3'!K29 -> 0 | L167: =-'SA3'!L29 -> 0
A168: Inventory Consumed - Other | C168: =-'SA3'!C58-'SA3'!C67-'SA3'!C74-'SA3'!C82-'SA3'!C90 -> 0 | D168: =-'SA3'!D58-'SA3'!D67-'SA3'!D74-'SA3'!D82-'SA3'!D90 -> 0 | E168: =-'SA3'!E58-'SA3'!E67-'SA3'!E74-'SA3'!E82-'SA3'!E90 -> 0 | F168: =-'SA3'!F58-'SA3'!F67-'SA3'!F74-'SA3'!F82-'SA3'!F90 -> 0 | G168: =-'SA3'!G58-'SA3'!G67-'SA3'!G74-'SA3'!G82-'SA3'!G90 -> 0 | H168: =-'SA3'!H58-'SA3'!H67-'SA3'!H74-'SA3'!H82-'SA3'!H90 -> 0 | I168: =-'SA3'!I58-'SA3'!I67-'SA3'!I74-'SA3'!I82-'SA3'!I90 -> 0 | J168: =-'SA3'!J58-'SA3'!J67-'SA3'!J74-'SA3'!J82-'SA3'!J90 -> 0 | K168: =-'SA3'!K58-'SA3'!K67-'SA3'!K74-'SA3'!K82-'SA3'!K90 -> 0 | L168: =-'SA3'!L58-'SA3'!L67-'SA3'!L74-'SA3'!L82-'SA3'!L90 -> 0
A169: Total Inventory Consumed & Other Material | C169: =SUM(C167:C168) -> 0 | D169: 0 | E169: 0 | F169: 0 | G169: 0 | H169: 0 | I169: 0 | J169: 0 | K169: 0 | L169: 0
A171: check | C171: =C164-SA34c!C167 -> 0 | D171: =D164-SA34c!D167 -> 0 | E171: =E164-SA34c!E167 -> 0 | F171: =F164-SA34c!F167 -> 0 | G171: =G164-SA34c!G167 -> 0 | H171: =H164-SA34c!H167 -> 0 | J171: =J164-SA34c!I167 -> -70409807 | K171: =K164-SA34c!J167 -> -73822878 | L171: =L164-SA34c!K167 -> -77731876
A172: =head27a -> References
A173: 1. Must reconcile with 'Budgeted Financial Performance (Revenue and Expenditure)
A174: 2. Must reconcile to supporting documentation on staff salaries
A176: 4. Expenditure to meet any 'unfunded obligations'
